Workbook

Sheet Main.Page
AE1: location/crop | AF1: Sved
AE2: Watershed
AE3: Livestock

Sheet Summary.Sheet
C1: County | D1: =county -> Johnston | G1: =IF(pname<>"",pname,"") -> test2
C2: Watershed size | D2: =wattotarea -> 0 | E2: acres | G2: =IF(location<>"",location,"") -> raleigh
C3: Irrigated Area | D3: =total.acres -> 100 | E3: acres
D5: Rainfall | E5: Runoff | F5: Runoff | G5: -----------------Demand------------------ | K5: Deficit | L5: ----Cumulative--- | O5: Monthly
C6: Month | D6: in. | E6: inches | F6: Acre-ft | G6: Crop, in | H6: Crop, AF | I6: Livestock, AF | J6: Total, AF | K6: AF | L6: Runoff, AF | M6: Demand, AF | N6: Difference | O6: Excess
C7: 1 | D7: =IFERROR(runoff.model!B2,0) -> 3.82 | E7: =IFERROR(IF(wattotarea<>"",+runoff.model!K2*12/wattotarea,0),0) -> 0 | F7: =IFERROR(IF(wattotarea<>"",+runoff.model!K2,0),0) -> 0 | G7: =+water.demand.model!S2 -> 0 | H7: =+water.demand.model!T2 -> 0 | I7: =+water.demand.model!V2 -> 0 | J7: =SUM(H7,I7) -> 0 | K7: =ABS(MIN(0,F7-J7)) -> 0 | L7: =+F7 -> 0 | M7: =+J7 -> 0 | N7: =+L7-M7 -> 0 | O7: =+F7-J7 -> 0
C8: 2 | D8: =IFERROR(runoff.model!B3,0) -> 3.4 | E8: =IFERROR(IF(wattotarea<>"",+runoff.model!K3*12/wattotarea,0),0) -> 0 | F8: =IFERROR(IF(wattotarea<>"",+runoff.model!K3,0),0) -> 0 | G8: =+water.demand.model!S3 -> 0 | H8: =+water.demand.model!T3 -> 0 | I8: =+water.demand.model!V3 -> 0 | J8: =SUM(H8,I8) -> 0 | K8: =ABS(MIN(0,F8-J8)) -> 0 | L8: =+L7+F8 -> 0 | M8: =+M7+J8 -> 0 | N8: =+L8-M8 -> 0 | O8: =+F8-J8 -> 0
C9: 3 | D9: =IFERROR(runoff.model!B4,0) -> 4.16 | E9: =IFERROR(IF(wattotarea<>"",+runoff.model!K4*12/wattotarea,0),0) -> 0 | F9: =IFERROR(IF(wattotarea<>"",+runoff.model!K4,0),0) -> 0 | G9: =+water.demand.model!S4 -> 0 | H9: =+water.demand.model!T4 -> 0 | I9: =+water.demand.model!V4 -> 0 | J9: 0 | K9: 0 | L9: =+L8+F9 -> 0 | M9: =+M8+J9 -> 0 | N9: 0 | O9: 0
C10: 4 | D10: =IFERROR(runoff.model!B5,0) -> 3.05 | E10: =IFERROR(IF(wattotarea<>"",+runoff.model!K5*12/wattotarea,0),0) -> 0 | F10: =IFERROR(IF(wattotarea<>"",+runoff.model!K5,0),0) -> 0 | G10: =+water.demand.model!S5 -> 0 | H10: =+water.demand.model!T5 -> 0 | I10: =+water.demand.model!V5 -> 0 | J10: 0 | K10: 0 | L10: 0 | M10: 0 | N10: 0 | O10: 0
C11: 5 | D11: =IFERROR(runoff.model!B6,0) -> 3.37 | E11: =IFERROR(IF(wattotarea<>"",+runoff.model!K6*12/wattotarea,0),0) -> 0 | F11: =IFERROR(IF(wattotarea<>"",+runoff.model!K6,0),0) -> 0 | G11: =+water.demand.model!S6 -> 3.580409566 | H11: =+water.demand.model!T6 -> 29.83674638 | I11: =+water.demand.model!V6 -> 0 | J11: 29.83674638 | K11: 29.83674638 | L11: 0 | M11: 29.83674638 | N11: -29.83674638 | O11: -29.83674638
C12: 6 | D12: =IFERROR(runoff.model!B7,0) -> 3.91 | E12: =IFERROR(IF(wattotarea<>"",+runoff.model!K7*12/wattotarea,0),0) -> 0 | F12: =IFERROR(IF(wattotarea<>"",+runoff.model!K7,0),0) -> 0 | G12: =+water.demand.model!S7 -> 6.800282651 | H12: =+water.demand.model!T7 -> 56.66902209 | I12: =+water.demand.model!V7 -> 0 | J12: 56.66902209 | K12: 56.66902209 | L12: 0 | M12: 86.50576847 | N12: -86.50576847 | O12: -56.66902209
C13: 7 | D13: =IFERROR(runoff.model!B8,0) -> 5.21 | E13: =IFERROR(IF(wattotarea<>"",+runoff.model!K8*12/wattotarea,0),0) -> 0 | F13: =IFERROR(IF(wattotarea<>"",+runoff.model!K8,0),0) -> 0 | G13: =+water.demand.model!S8 -> 0 | H13: =+water.demand.model!T8 -> 0 | I13: =+water.demand.model!V8 -> 0 | J13: 0 | K13: 0 | L13: 0 | M13: 86.50576847 | N13: -86.50576847 | O13: 0
C14: 8 | D14: =IFERROR(runoff.model!B9,0) -> 5.32 | E14: =IFERROR(IF(wattotarea<>"",+runoff.model!K9*12/wattotarea,0),0) -> 0 | F14: =IFERROR(IF(wattotarea<>"",+runoff.model!K9,0),0) -> 0 | G14: =+water.demand.model!S9 -> 0 | H14: =+water.demand.model!T9 -> 0 | I14: =+water.demand.model!V9 -> 0 | J14: 0 | K14: 0 | L14: 0 | M14: 86.50576847 | N14: -86.50576847 | O14: 0
C15: 9 | D15: =IFERROR(runoff.model!B10,0) -> 4.49 | E15: =IFERROR(IF(wattotarea<>"",+runoff.model!K10*12/wattotarea,0),0) -> 0 | F15: =IFERROR(IF(wattotarea<>"",+runoff.model!K10,0),0) -> 0 | G15: =+water.demand.model!S10 -> 0 | H15: =+water.demand.model!T10 -> 0 | I15: =+water.demand.model!V10 -> 0 | J15: 0 | K15: 0 | L15: 0 | M15: 86.50576847 | N15: -86.50576847 | O15: 0
C16: 10 | D16: =IFERROR(runoff.model!B11,0) -> 3.17 | E16: =IFERROR(IF(wattotarea<>"",+runoff.model!K11*12/wattotarea,0),0) -> 0 | F16: =IFERROR(IF(wattotarea<>"",+runoff.model!K11,0),0) -> 0 | G16: =+water.demand.model!S11 -> 0 | H16: =+water.demand.model!T11 -> 0 | I16: =+water.demand.model!V11 -> 0 | J16: 0 | K16: 0 | L16: 0 | M16: 86.50576847 | N16: -86.50576847 | O16: 0
C17: 11 | D17: =IFERROR(runoff.model!B12,0) -> 3.19 | E17: =IFERROR(IF(wattotarea<>"",+runoff.model!K12*12/wattotarea,0),0) -> 0 | F17: =IFERROR(IF(wattotarea<>"",+runoff.model!K12,0),0) -> 0 | G17: =+water.demand.model!S12 -> 0 | H17: =+water.demand.model!T12 -> 0 | I17: =+water.demand.model!V12 -> 0 | J17: 0 | K17: 0 | L17: 0 | M17: 86.50576847 | N17: -86.50576847 | O17: 0
C18: 12 | D18: =IFERROR(runoff.model!B13,0) -> 3.33 | E18: =IFERROR(IF(wattotarea<>"",+runoff.model!K13*12/wattotarea,0),0) -> 0 | F18: =IFERROR(IF(wattotarea<>"",+runoff.model!K13,0),0) -> 0 | G18: =+water.demand.model!S13 -> 0 | H18: =+water.demand.model!T13 -> 0 | I18: =+water.demand.model!V13 -> 0 | J18: 0 | K18: 0 | L18: 0 | M18: 86.50576847 | N18: -86.50576847 | O18: 0
C20: Total | D20: =SUM(D7:D18) -> 46.42 | E20: 0 | F20: 0 | G20: 10.38069222 | H20: 86.50576847 | I20: 0 | J20: 86.50576847 | K20: 86.50576847 | N20: =MIN(N7:N18) -> -86.50576847
C22: Required Storage | F22: =IF(sum_tot_demand>sum_runoff,"surface runoff supply inadequate",IF(sum_deficit>0,MAX(MAX(tot.demand),sum_deficit,rippl),MAX(tot.demand))) -> surface runoff supply inadequate
C24: Notes
C26: =IF(AND(wattotarea=0,WatSize=0),"no watershed area data entered!","") -> no watershed area data entered!
C27: =IF(total.acres=0,"no irrigated acres entered!","") -> 
C28: =IFERROR(IF(F20<J20,"Surface Runoff Inadequate -Reduce Demand by reducing acreage, etc.","Surface Runoff Supply Adequate"),"Need to enter data") -> Surface Runoff Inadequate -Reduce Demand by reducing acreage, etc.

Sheet summary2
A4: County | B4: =IF(county<>"",county,"") -> Johnston | E4: =IF(county<>"", "","no county entered, go home and select county from list in location, crop, and irr. system form") -> 
D6: =IF(Crop1="","NULL",Crop1) -> Corn (sweet) | I6: =IF(Crop2="","NULL",Crop2) -> NULL | N6: =IF(Crop3="","NULL",Crop3) -> NULL
A7: Month | B7: ET0, in. | C7: ppt, in. | D7: Kc | E7: Etc, in. | F7: Pe, in. | G7: NIR, in. | H7: GIR, in. | I7: Kc | J7: Etc, in. | K7: Pe, in. | L7: NIR, in. | M7: GIR, in. | N7: Kc | O7: Etc, in. | P7: Pe, in. | Q7: NIR, in. | R7: GIR, in.
A8: 1 | B8: =+water.demand.model!B2 -> 1.562204724 | C8: =+water.demand.model!G2 -> 3.82 | D8: =+water.demand.model!C2 -> 0 | E8: =+water.demand.model!F2 -> 0 | F8: =IF(E8=0,0,+water.demand.model!H2) -> 0 | G8: =+water.demand.model!I2 -> 0 | H8: =+water.demand.model!J2 -> 0 | I8: =+water.demand.model!D2 -> 0 | J8: =+water.demand.model!K2 -> 0 | K8: =IF(J8=0,0,+water.demand.model!L2) -> 0 | L8: =+water.demand.model!M2 -> 0 | M8: =+water.demand.model!N2 -> 0 | N8: =+water.demand.model!E2 -> 0 | O8: =+water.demand.model!O2 -> 0 | P8: =IF(O8=0,0,+water.demand.model!P2) -> 0 | Q8: =+water.demand.model!Q2 -> 0 | R8: =+water.demand.model!R2 -> 0
A9: 2 | B9: =+water.demand.model!B3 -> 2.050393701 | C9: =+water.demand.model!G3 -> 3.4 | D9: =+water.demand.model!C3 -> 0 | E9: =+water.demand.model!F3 -> 0 | F9: =IF(E9=0,0,+water.demand.model!H3) -> 0 | G9: =+water.demand.model!I3 -> 0 | H9: =+water.demand.model!J3 -> 0 | I9: =+water.demand.model!D3 -> 0 | J9: =+water.demand.model!K3 -> 0 | K9: =IF(J9=0,0,+water.demand.model!L3) -> 0 | L9: =+water.demand.model!M3 -> 0 | M9: =+water.demand.model!N3 -> 0 | N9: =+water.demand.model!E3 -> 0 | O9: =+water.demand.model!O3 -> 0 | P9: =IF(O9=0,0,+water.demand.model!P3) -> 0 | Q9: =+water.demand.model!Q3 -> 0 | R9: =+water.demand.model!R3 -> 0
A10: 3 | B10: =+water.demand.model!B4 -> 3.502755906 | C10: =+water.demand.model!G4 -> 4.16 | D10: =+water.demand.model!C4 -> 0 | E10: =+water.demand.model!F4 -> 0 | F10: =IF(E10=0,0,+water.demand.model!H4) -> 0 | G10: =+water.demand.model!I4 -> 0 | H10: =+water.demand.model!J4 -> 0 | I10: =+water.demand.model!D4 -> 0 | J10: =+water.demand.model!K4 -> 0 | K10: =IF(J10=0,0,+water.demand.model!L4) -> 0 | L10: =+water.demand.model!M4 -> 0 | M10: =+water.demand.model!N4 -> 0 | N10: =+water.demand.model!E4 -> 0 | O10: =+water.demand.model!O4 -> 0 | P10: =IF(O10=0,0,+water.demand.model!P4) -> 0 | Q10: =+water.demand.model!Q4 -> 0 | R10: =+water.demand.model!R4 -> 0
A11: 4 | B11: =+water.demand.model!B5 -> 4.937007874 | C11: =+water.demand.model!G5 -> 3.05 | D11: =+water.demand.model!C5 -> 0.15 | E11: =+water.demand.model!F5 -> 0.7405511811 | F11: =IF(E11=0,0,+water.demand.model!H5) -> 1.217115171 | G11: =+water.demand.model!I5 -> 0 | H11: =+water.demand.model!J5 -> 0 | I11: =+water.demand.model!D5 -> 0 | J11: =+water.demand.model!K5 -> 0 | K11: =IF(J11=0,0,+water.demand.model!L5) -> 0 | L11: =+water.demand.model!M5 -> 0 | M11: =+water.demand.model!N5 -> 0 | N11: =+water.demand.model!E5 -> 0 | O11: =+water.demand.model!O5 -> 0 | P11: =IF(O11=0,0,+water.demand.model!P5) -> 0 | Q11: =+water.demand.model!Q5 -> 0 | R11: =+water.demand.model!R5 -> 0
A12: 5 | B12: =+water.demand.model!B6 -> 6.212204724 | C12: =+water.demand.model!G6 -> 3.37 | D12: =+water.demand.model!C6 -> 0.725 | E12: =+water.demand.model!F6 -> 4.503848425 | F12: =IF(E12=0,0,+water.demand.model!H6) -> 1.639520773 | G12: =+water.demand.model!I6 -> 2.864327653 | H12: =+water.demand.model!J6 -> 3.580409566 | I12: =+water.demand.model!D6 -> 0 | J12: =+water.demand.model!K6 -> 0 | K12: =IF(J12=0,0,+water.demand.model!L6) -> 0 | L12: =+water.demand.model!M6 -> 0 | M12: =+water.demand.model!N6 -> 0 | N12: =+water.demand.model!E6 -> 0 | O12: =+water.demand.model!O6 -> 0 | P12: =IF(O12=0,0,+water.demand.model!P6) -> 0 | Q12: =+water.demand.model!Q6 -> 0 | R12: =+water.demand.model!R6 -> 0
A13: 6 | B13: =+water.demand.model!B7 -> 6.696850394 | C13: =+water.demand.model!G7 -> 3.91 | D13: =+water.demand.model!C7 -> 1.145 | E13: =+water.demand.model!F7 -> 7.667893701 | F13: =IF(E13=0,0,+water.demand.model!H7) -> 2.22766758 | G13: =+water.demand.model!I7 -> 5.440226121 | H13: =+water.demand.model!J7 -> 6.800282651 | I13: =+water.demand.model!D7 -> 0 | J13: =+water.demand.model!K7 -> 0 | K13: =IF(J13=0,0,+water.demand.model!L7) -> 0 | L13: =+water.demand.model!M7 -> 0 | M13: =+water.demand.model!N7 -> 0 | N13: =+water.demand.model!E7 -> 0 | O13: =+water.demand.model!O7 -> 0 | P13: =IF(O13=0,0,+water.demand.model!P7) -> 0 | Q13: =+water.demand.model!Q7 -> 0 | R13: =+water.demand.model!R7 -> 0
A14: 7 | B14: =+water.demand.model!B8 -> 6.944488189 | C14: =+water.demand.model!G8 -> 5.21 | D14: =+water.demand.model!C8 -> 0.1725806452 | E14: =+water.demand.model!F8 -> 1.198484252 | F14: =IF(E14=0,0,+water.demand.model!H8) -> 1.989437624 | G14: =+water.demand.model!I8 -> 0 | H14: =+water.demand.model!J8 -> 0 | I14: =+water.demand.model!D8 -> 0 | J14: =+water.demand.model!K8 -> 0 | K14: =IF(J14=0,0,+water.demand.model!L8) -> 0 | L14: =+water.demand.model!M8 -> 0 | M14: =+water.demand.model!N8 -> 0 | N14: =+water.demand.model!E8 -> 0 | O14: =+water.demand.model!O8 -> 0 | P14: =IF(O14=0,0,+water.demand.model!P8) -> 0 | Q14: =+water.demand.model!Q8 -> 0 | R14: =+water.demand.model!R8 -> 0
A15: 8 | B15: =+water.demand.model!B9 -> 6.212204724 | C15: =+water.demand.model!G9 -> 5.32 | D15: =+water.demand.model!C9 -> 0 | E15: =+water.demand.model!F9 -> 0 | F15: =IF(E15=0,0,+water.demand.model!H9) -> 0 | G15: =+water.demand.model!I9 -> 0 | H15: =+water.demand.model!J9 -> 0 | I15: =+water.demand.model!D9 -> 0 | J15: =+water.demand.model!K9 -> 0 | K15: =IF(J15=0,0,+water.demand.model!L9) -> 0 | L15: =+water.demand.model!M9 -> 0 | M15: =+water.demand.model!N9 -> 0 | N15: =+water.demand.model!E9 -> 0 | O15: =+water.demand.model!O9 -> 0 | P15: =IF(O15=0,0,+water.demand.model!P9) -> 0 | Q15: =+water.demand.model!Q9 -> 0 | R15: =+water.demand.model!R9 -> 0
A16: 9 | B16: =+water.demand.model!B10 -> 4.75984252 | C16: =+water.demand.model!G10 -> 4.49 | D16: =+water.demand.model!C10 -> 0 | E16: =+water.demand.model!F10 -> 0 | F16: =IF(E16=0,0,+water.demand.model!H10) -> 0 | G16: =+water.demand.model!I10 -> 0 | H16: =+water.demand.model!J10 -> 0 | I16: =+water.demand.model!D10 -> 0 | J16: =+water.demand.model!K10 -> 0 | K16: =IF(J16=0,0,+water.demand.model!L10) -> 0 | L16: =+water.demand.model!M10 -> 0 | M16: =+water.demand.model!N10 -> 0 | N16: =+water.demand.model!E10 -> 0 | O16: =+water.demand.model!O10 -> 0 | P16: =IF(O16=0,0,+water.demand.model!P10) -> 0 | Q16: =+water.demand.model!Q10 -> 0 | R16: =+water.demand.model!R10 -> 0
A17: 10 | B17: =+water.demand.model!B11 -> 3.441732283 | C17: =+water.demand.model!G11 -> 3.17 | D17: =+water.demand.model!C11 -> 0 | E17: =+water.demand.model!F11 -> 0 | F17: =IF(E17=0,0,+water.demand.model!H11) -> 0 | G17: =+water.demand.model!I11 -> 0 | H17: =+water.demand.model!J11 -> 0 | I17: =+water.demand.model!D11 -> 0 | J17: =+water.demand.model!K11 -> 0 | K17: =IF(J17=0,0,+water.demand.model!L11) -> 0 | L17: =+water.demand.model!M11 -> 0 | M17: =+water.demand.model!N11 -> 0 | N17: =+water.demand.model!E11 -> 0 | O17: =+water.demand.model!O11 -> 0 | P17: =IF(O17=0,0,+water.demand.model!P11) -> 0 | Q17: =+water.demand.model!Q11 -> 0 | R17: =+water.demand.model!R11 -> 0
A18: 11 | B18: =+water.demand.model!B12 -> 2.149606299 | C18: =+water.demand.model!G12 -> 3.19 | D18: =+water.demand.model!C12 -> 0 | E18: =+water.demand.model!F12 -> 0 | F18: =IF(E18=0,0,+water.demand.model!H12) -> 0 | G18: =+water.demand.model!I12 -> 0 | H18: =+water.demand.model!J12 -> 0 | I18: =+water.demand.model!D12 -> 0 | J18: =+water.demand.model!K12 -> 0 | K18: =IF(J18=0,0,+water.demand.model!L12) -> 0 | L18: =+water.demand.model!M12 -> 0 | M18: =+water.demand.model!N12 -> 0 | N18: =+water.demand.model!E12 -> 0 | O18: =+water.demand.model!O12 -> 0 | P18: =IF(O18=0,0,+water.demand.model!P12) -> 0 | Q18: =+water.demand.model!Q12 -> 0 | R18: =+water.demand.model!R12 -> 0
A19: 12 | B19: =+water.demand.model!B13 -> 1.513385827 | C19: =+water.demand.model!G13 -> 3.33 | D19: =+water.demand.model!C13 -> 0 | E19: =+water.demand.model!F13 -> 0 | F19: =IF(E19=0,0,+water.demand.model!H13) -> 0 | G19: =+water.demand.model!I13 -> 0 | H19: =+water.demand.model!J13 -> 0 | I19: =+water.demand.model!D13 -> 0 | J19: =+water.demand.model!K13 -> 0 | K19: =IF(J19=0,0,+water.demand.model!L13) -> 0 | L19: =+water.demand.model!M13 -> 0 | M19: =+water.demand.model!N13 -> 0 | N19: =+water.demand.model!E13 -> 0 | O19: =+water.demand.model!O13 -> 0 | P19: =IF(O19=0,0,+water.demand.model!P13) -> 0 | Q19: =+water.demand.model!Q13 -> 0 | R19: =+water.demand.model!R13 -> 0
A21: Total | B21: =SUM(B8:B19) -> 49.98267717 | C21: =SUM(C8:C19) -> 46.42 | E21: =SUM(E8:E19) -> 14.11077756 | F21: =SUM(F8:F19) -> 7.073741148 | G21: =SUM(G8:G19) -> 8.304553774 | H21: =SUM(H8:H19) -> 10.38069222 | J21: =SUM(J8:J19) -> 0 | K21: =SUM(K8:K19) -> 0 | L21: =SUM(L8:L19) -> 0 | M21: =SUM(M8:M19) -> 0 | O21: =SUM(O8:O19) -> 0 | P21: =SUM(P8:P19) -> 0 | Q21: =SUM(Q8:Q19) -> 0 | R21: =SUM(R8:R19) -> 0

Sheet variables
A1: 2012-01-01 | B1: Output from Input Screen | E1: project name | F1: test2
E2: project location | F2: raleigh
C3: Input1 | E3: saved date | F3: 2018-07-10 | G3: 7/10/2018
B4: County | C4: Johnston
B5: WatSize, ac | H5: rstate1
B6: WatSoil | H6: rstate2
B7: Enabled.State | C7: TRUE | D7: FALSE | E7: FALSE | H7: watstate
B8: Crops | C8: =IF(Plant1<>"",TEXT(Plant1,"d-mmm"),"") -> 15-Apr | D8: =IF(Plant2<>"",TEXT(Plant2,"d-mmm"),"") ->  | E8: =IF(Plant3<>"",TEXT(Plant3,"d-mmm"),"") ->  | H8: Watershed
C9: Crop1 | D9: Crop2 | E9: Crop3 | H9: watcovers | I9: Cover1 | J9: Cover2 | K9: Cover3
B10: Type | C10: Corn (sweet) | H10: Type
B11: Plant | C11: 2012-04-15 | H11: Area, ac | L11: =IF(simplemethod,WatSize,SUM(VALUE(watarea1),VALUE(watarea2),VALUE(watarea3))) -> 0
B12: JD.Plant | C12: =+Plant1-$A$1 -> 105 | D12: =+Plant2-$A$1 -> -40909 | E12: =+Plant3-$A$1 -> -40909 | H12: HSG | I12: =IFERROR(VLOOKUP(WatSoil,input.form.data!$I$2:$J$358,2),"") ->  | J12: =IFERROR(VLOOKUP(WatSoil,input.form.data!$I$2:$J$358,2),"") ->  | K12: =IFERROR(VLOOKUP(WatSoil,input.form.data!$I$2:$J$358,2),"") -> 
B13: init | C13: =IFERROR(VLOOKUP(Crop1,kcs!$B$2:$G$20,2,FALSE),"") -> 20 | D13: =IFERROR(VLOOKUP(Crop2,kcs!$B$2:$G$20,2,FALSE),"") ->  | E13: =IFERROR(VLOOKUP(Crop3,kcs!$B$2:$F$16,2,FALSE),"") ->  | H13: CN | I13: =IFERROR(INDEX(input.form.data!$N$1:$R$24,MATCH(cover1,input.form.data!$N$1:$N$24,0),MATCH(hydsg1,input.form.data!$N$1:$R1,1)),"") ->  | J13: =IFERROR(INDEX(input.form.data!$N$1:$R$24,MATCH(cover2,input.form.data!$N$1:$N$24,0),MATCH(hydsg2,input.form.data!$N$1:$R1,1)),"") ->  | K13: =IFERROR(INDEX(input.form.data!$N$1:$R$24,MATCH(cover3,input.form.data!$N$1:$N$24,0),MATCH(hydsg3,input.form.data!$N$1:$R1,1)),"") ->  | L13: =IFERROR(+I13*watarea1/wattotarea+J13*watarea2/wattotarea+K13*watarea3/wattotarea,"") -> 
B14: dev | C14: =IFERROR(VLOOKUP(Crop1,kcs!$B$2:$G$20,3,FALSE),"") -> 20 | D14: =IFERROR(VLOOKUP(Crop2,kcs!$B$2:$G$20,3,FALSE),"") ->  | E14: =IFERROR(VLOOKUP(Crop3,kcs!$B$2:$F$16,3,FALSE),"") -> 
B15: mid | C15: =IFERROR(VLOOKUP(Crop1,kcs!$B$2:$G$20,4,FALSE),"") -> 30 | D15: =IFERROR(VLOOKUP(Crop2,kcs!$B$2:$G$20,4,FALSE),"") ->  | E15: =IFERROR(VLOOKUP(Crop3,kcs!$B$2:$F$16,4,FALSE),"") ->  | H15: S | I15: =IFERROR(1000/wtgdcn-10,"") -> 
B16: late | C16: =IFERROR(VLOOKUP(Crop1,kcs!$B$2:$G$20,5,FALSE),"") -> 10 | D16: =IFERROR(VLOOKUP(Crop2,kcs!$B$2:$G$20,5,FALSE),"") ->  | E16: =IFERROR(VLOOKUP(Crop3,kcs!$B$2:$F$16,5,FALSE),"") ->  | H16: Ia | I16: =IFERROR(0.2*S,"") -> 
B17: Total.Days | C17: =IFERROR(VLOOKUP(Crop1,kcs!$B$2:$G$20,6,FALSE),"") -> 80 | D17: =IFERROR(VLOOKUP(Crop2,kcs!$B$2:$G$20,6,FALSE),"") ->  | E17: =IFERROR(VLOOKUP(Crop3,kcs!$B$2:$G$16,6,FALSE),"") ->  | H17: fig. 11
B18: Acres | C18: 100 | F18: =IF(DoubleCrop1=TRUE,SUM(VALUE(Acres1),VALUE(Acres3)),SUM(VALUE(Acres1),VALUE(Acres2),VALUE(Acres3))) -> 100
B19: Double.Crop | C19: FALSE | D19: FALSE
B21: Irrigation system
B23: irr.system | C23: Center Pivot
B24: efficiency | C24: 80
C26: 1 | D26: 2 | E26: 3
B30: Livestock | C30: FALSE | D30: FALSE | E30: FALSE | F30: FALSE
B31: Enabled.state
B32: Type
B33: Head | G33: =SUM(VALUE(Livestock1),VALUE(Livestock2),VALUE(Livestock3),VALUE(Livestock4)) -> 0

Sheet ppt.county
B1: coop.id | C1: sta.name | D1: County | E1: lat.dec | F1: long.dec | G1: elev.m | H1: variable | I1: 1 | J1: 2 | K1: 3 | L1: 4 | M1: 5 | N1: 6 | O1: 7 | P1: 8 | Q1: 9 | R1: 10 | S1: 11 | T1: 12 | U1: Name | V1: City | W1: State | X1: County | Y1: Lat | Z1: Long | AA1: Type | AB1: RO.NRCS.Ac.ft.RO
A2: 142 | B2: 93783 | C2: BURLINGTON ALAMANCE AP | D2: Alamance | E2: 36.04667 | F2: -79.47694 | G2: 188.1 | H2: mly.prcp.normal | I2: 350 | J2: 329 | K2: 426 | L2: 353 | M2: 352 | N2: 422 | O2: 463 | P2: 420 | Q2: 385 | R2: 356 | S2: 331 | T2: 323 | U2: NA | V2: NA | W2: NA | X2: Alamance County | Y2: NA | Z2: NA | AA2: NA | AB2: =INDEX(latlongrunoff,MATCH(pptstalong,longrunoff,1),MATCH(pptstalat,latrunoff,1)) -> 3
A3: 184 | B3: 318519 | C3: TAYLORSVILLE | D3: Alexander | E3: 35.9225 | F3: -81.1716 | G3: 402.3 | H3: mly.prcp.normal | I3: 466 | J3: 427 | K3: 438 | L3: 424 | M3: 408 | N3: 465 | O3: 451 | P3: 428 | Q3: 388 | R3: 347 | S3: 335 | T3: 401 | U3: NA | V3: NA | W3: NA | X3: Alexander County | Y3: NA | Z3: NA | AA3: NA | AB3: 1
D4: Alleghany | I4: =+I6 -> 411 | J4: =+J6 -> 382 | K4: 473 | L4: 434 | M4: 473 | N4: 516 | O4: 500 | P4: 501 | Q4: 508 | R4: 396 | S4: 498 | T4: 399
A5: 111 | B5: 318964 | C5: WADESBORO | D5: Anson | E5: 34.9603 | F5: -80.0772 | G5: 146.3 | H5: mly.prcp.normal | I5: 398 | J5: 356 | K5: 403 | L5: 294 | M5: 294 | N5: 422 | O5: 490 | P5: 459 | Q5: 395 | R5: 380 | S5: 330 | T5: 320 | U5: Wadesboro | V5: Wadesboro | W5: NC | X5: Anson County | Y5: 34.96 | Z5: -80.08 | AA5: COOP | AB5: 2
A6: 106 | B6: 318694 | C6: TRANSOU | D6: Ashe | E6: 36.3919 | F6: -81.3039 | G6: 876.3 | H6: mly.prcp.normal | I6: 411 | J6: 382 | K6: 473 | L6: 434 | M6: 473 | N6: 516 | O6: 500 | P6: 501 | Q6: 508 | R6: 396 | S6: 498 | T6: 399 | U6: Transou | V6: Laurel Springs | W6: NC | X6: Ashe County | Y6: 36.39 | Z6: -81.3 | AA6: COOP | AB6: 1
A7: 5 | B7: 310506 | C7: BANNER ELK | D7: Avery | E7: 36.1616 | F7: -81.8741 | G7: 1149.1 | H7: mly.prcp.normal | I7: 410 | J7: 397 | K7: 405 | L7: 412 | M7: 431 | N7: 431 | O7: 513 | P7: 428 | Q7: 436 | R7: 367 | S7: 366 | T7: 351 | U7: Banner Elk | V7: Banner Elk | W7: NC | X7: Avery County | Y7: 36.16 | Z7: -81.87 | AA7: COOP | AB7: 1
A8: 4 | B8: 310375 | C8: AURORA 6 N | D8: Beaufort | E8: 35.3872 | F8: -76.7763 | G8: 6.1 | H8: mly.prcp.normal | I8: 386 | J8: 314 | K8: 399 | L8: 321 | M8: 393 | N8: 502 | O8: 553 | P8: 612 | Q8: 518 | R8: 348 | S8: 308 | T8: 318 | U8: Aurora 6 N | V8: Aurora | W8: NC | X8: Beaufort County | Y8: 35.39 | Z8: -76.78 | AA8: COOP | AB8: 3
A9: 61 | B9: 314962 | C9: LEWISTON | D9: Bertie | E9: 36.1325 | F9: -77.1708 | G9: 15.2 | H9: mly.prcp.normal | I9: 334 | J9: 323 | K9: 382 | L9: 301 | M9: 341 | N9: 442 | O9: 553 | P9: 517 | Q9: 562 | R9: 308 | S9: 292 | T9: 324 | U9: Lewiston | V9: Lewiston | W9: NC | X9: Bertie County | Y9: 36.13 | Z9: -77.17 | AA9: COOP | AB9: 3
A10: 33 | B10: 312732 | C10: ELIZABETHTOWN 3 SW | D10: Bladen | E10: 34.6044 | F10: -78.648 | G10: 31.4 | H10: mly.prcp.normal | I10: 381 | J10: 344 | K10: 391 | L10: 312 | M10: 367 | N10: 470 | O10: 575 | P10: 595 | Q10: 529 | R10: 338 | S10: 316 | T10: 314 | U10: Elizabethtown 3 Sw | V10: Elizabethtown | W10: NC | X10: Bladen County | Y10: 34.6 | Z10: -78.65 | AA10: COOP | AB10: 3
A11: 155 | B11: 317813 | C11: SHALLOTTE AG | D11: Brunswick | E11: 33.9283 | F11: -78.3894 | G11: 6.1 | H11: mly.prcp.normal | I11: 423 | J11: 343 | K11: 412 | L11: 305 | M11: 388 | N11: 459 | O11: 616 | P11: 688 | Q11: 712 | R11: 398 | S11: 288 | T11: 342 | U11: NA | V11: NA | W11: NA | X11: Brunswick County | Y11: NA | Z11: NA | AA11: NA | AB11: 3
A12: 129 | B12: 3812 | C12: ASHEVILLE AP | D12: Buncombe | E12: 35.43194 | F12: -82.5375 | G12: 645.3 | H12: mly.prcp.normal | I12: 367 | J12: 376 | K12: 383 | L12: 333 | M12: 366 | N12: 465 | O12: 431 | P12: 440 | Q12: 381 | R12: 291 | S12: 365 | T12: 359 | U12: NA | V12: NA | W12: NA | X12: Buncombe County | Y12: NA | Z12: NA | AA12: NA | AB12: 1
A13: 11 | B13: 311081 | C13: BRIDGEWATER HYDRO | D13: Burke | E13: 35.7425 | F13: -81.8372 | G13: 350.5 | H13: mly.prcp.normal | I13: 372 | J13: 400 | K13: 425 | L13: 385 | M13: 376 | N13: 449 | O13: 489 | P13: 454 | Q13: 416 | R13: 356 | S13: 373 | T13: 390 | U13: Bridgewater Hydro | V13: Bridgewater | W13: NC | X13: Burke County | Y13: 35.74 | Z13: -81.84 | AA13: COOP | AB13: 1
A14: 23 | B14: 311975 | C14: CONCORD | D14: Cabarrus | E14: 35.4163 | F14: -80.6005 | G14: 210.3 | H14: mly.prcp.normal | I14: 362 | J14: 339 | K14: 422 | L14: 359 | M14: 343 | N14: 435 | O14: 516 | P14: 412 | Q14: 383 | R14: 366 | S14: 335 | T14: 319 | U14: Concord | V14: Concord | W14: NC | X14: Cabarrus County | Y14: 35.42 | Z14: -80.6 | AA14: COOP | AB14: 1.5
A15: 60 | B15: 314938 | C15: LENOIR | D15: Caldwell | E15: 35.915 | F15: -81.5377 | G15: 365.8 | H15: mly.prcp.normal | I15: 353 | J15: 367 | K15: 433 | L15: 384 | M15: 434 | N15: 457 | O15: 485 | P15: 392 | Q15: 419 | R15: 340 | S15: 325 | T15: 378 | U15: Lenoir | V15: Lenoir | W15: NC | X15: Caldwell County | Y15: 35.92 | Z15: -81.54 | AA15: COOP | AB15: 1
D16: Camden | I16: =+I71 -> 390 | J16: =+J71 -> 325 | K16: 385 | L16: 312 | M16: 398 | N16: 459 | O16: 558 | P16: 569 | Q16: 476 | R16: 314 | S16: 326 | T16: 342
A17: 134 | B17: 93765 | C17: BEAUFORT MICHAEL J SMITH FLD | D17: Carteret | E17: 34.73361 | F17: -76.66056 | G17: 3.4 | H17: mly.prcp.normal | I17: 408 | J17: 320 | K17: 420 | L17: 355 | M17: 393 | N17: 464 | O17: 602 | P17: 770 | Q17: 596 | R17: 388 | S17: 387 | T17: 352 | U17: NA | V17: NA | W17: NA | X17: Carteret County | Y17: NA | Z17: NA | AA17: NA | AB17: 3
A18: 187 | B18: 319704 | C18: YANCEYVILLE 4 SE | D18: Caswell | E18: 36.3783 | F18: -79.2544 | G18: 199.6 | H18: mly.prcp.normal | I18: 335 | J18: 330 | K18: 445 | L18: 407 | M18: 378 | N18: 352 | O18: 436 | P18: 580 | Q18: 462 | R18: 345 | S18: 381 | T18: 349 | U18: NA | V18: NA | W18: NA | X18: Caswell County | Y18: NA | Z18: NA | AA18: NA | AB18: 3
A19: 175 | B19: 3810 | C19: HICKORY FAA AP | D19: Catawba | E19: 35.7425 | F19: -81.3819 | G19: 348.4 | H19: mly.prcp.normal | I19: 383 | J19: 372 | K19: 424 | L19: 371 | M19: 368 | N19: 412 | O19: 444 | P19: 410 | Q19: 371 | R19: 355 | S19: 346 | T19: 370 | U19: NA | V19: NA | W19: NA | X19: Catawba County | Y19: NA | Z19: NA | AA19: NA | AB19: 1
A20: 99 | B20: 317924 | C20: SILER CITY 2 N | D20: Chatham | E20: 35.7606 | F20: -79.4622 | G20: 185.9 | H20: mly.prcp.normal | I20: 395 | J20: 353 | K20: 449 | L20: 343 | M20: 390 | N20: 390 | O20: 454 | P20: 413 | Q20: 424 | R20: 377 | S20: 349 | T20: 325 | U20: Siler City 2 N | V20: Siler City | W20: NC | X20: Chatham County | Y20: 35.76 | Z20: -79.46 | AA20: COOP | AB20: 3
A21: 77 | B21: 316001 | C21: MURPHY | D21: Cherokee | E21: 35.09611 | F21: -84.02389 | G21: 480.4 | H21: mly.prcp.normal | I21: 542 | J21: 526 | K21: 499 | L21: 432 | M21: 510 | N21: 491 | O21: 508 | P21: 426 | Q21: 447 | R21: 332 | S21: 485 | T21: 549 | U21: Murphy | V21: Murphy | W21: NC | X21: Cherokee County | Y21: 35.1 | Z21: -84.02 | AA21: COOP | AB21: 1
A22: 31 | B22: 312635 | C22: EDENTON | D22: Chowan | E22: 36.01639 | F22: -76.55167 | G22: 3 | H22: mly.prcp.normal | I22: 351 | J22: 315 | K22: 402 | L22: 293 | M22: 374 | N22: 482 | O22: 548 | P22: 592 | Q22: 494 | R22: 338 | S22: 317 | T22: 305 | U22: Edenton | V22: Edenton | W22: NC | X22: Chowan County | Y22: 36.02 | Z22: -76.55 | AA22: COOP | AB22: 3
A23: 172 | B23: 313921 | C23: HAYESVILLE 1 SW | D23: Clay | E23: 35.05333 | F23: -83.825 | G23: 579.1 | H23: mly.prcp.normal | I23: 553 | J23: 525 | K23: 497 | L23: 441 | M23: 537 | N23: 536 | O23: 507 | P23: 400 | Q23: 518 | R23: 359 | S23: 600 | T23: 472 | U23: NA | V23: NA | W23: NA | X23: Clay County | Y23: NA | Z23: NA | AA23: NA | AB23: 1
A24: 98 | B24: 317845 | C24: SHELBY 2 NNE | D24: Cleveland | E24: 35.3144 | F24: -81.5336 | G24: 280.4 | H24: mly.prcp.normal | I24: 404 | J24: 368 | K24: 472 | L24: 349 | M24: 410 | N24: 413 | O24: 419 | P24: 424 | Q24: 370 | R24: 380 | S24: 371 | T24: 409 | U24: Shelby 2 Nne | V24: Shelby | W24: NC | X24: Cleveland County | Y24: 35.31 | Z24: -81.53 | AA24: COOP | AB24: 1
A25: 116 | B25: 319357 | C25: WHITEVILLE 7 NW | D25: Columbus | E25: 34.4094 | F25: -78.7913 | G25: 27.4 | H25: mly.prcp.normal | I25: 380 | J25: 325 | K25: 386 | L25: 302 | M25: 423 | N25: 450 | O25: 551 | P25: 564 | Q25: 550 | R25: 309 | S25: 284 | T25: 304 | U25: Whiteville 7 Nw | V25: Whiteville | W25: NC | X25: Columbus County | Y25: 34.41 | Z25: -78.79 | AA25: COOP | AB25: 3
A26: 160 | B26: 93719 | C26: NEW BERN - ASOS | D26: Craven | E26: 35.0677 | F26: -77.048 | G26: 5.8 | H26: mly.prcp.normal | I26: 402 | J26: 366 | K26: 439 | L26: 317 | M26: 415 | N26: 459 | O26: 617 | P26: 665 | Q26: 589 | R26: 326 | S26: 340 | T26: 340 | U26: NA | V26: NA | W26: NA | X26: Craven County | Y26: NA | Z26: NA | AA26: NA | AB26: 3
A27: 143 | B27: 93740 | C27: FAYETTEVILLE RGNL AP | D27: Cumberland | E27: 34.99139 | F27: -78.88028 | G27: 56.7 | H27: mly.prcp.normal | I27: 330 | J27: 276 | K27: 355 | L27: 282 | M27: 324 | N27: 435 | O27: 592 | P27: 549 | Q27: 440 | R27: 321 | S27: 277 | T27: 265 | U27: NA | V27: NA | W27: NA | X27: Cumberland County | Y27: NA | Z27: NA | AA27: NA | AB27: 3
D28: Currituck | I28: =+I71 -> 390 | J28: =+J71 -> 325 | K28: 385 | L28: 312 | M28: 398 | N28: 459 | O28: 558 | P28: 569 | Q28: 476 | R28: 314 | S28: 326 | T28: 342
A29: 183 | B29: 13766 | C29: MANTEO AP | D29: Dare | E29: 35.9173 | F29: -75.7 | G29: 4 | H29: mly.prcp.normal | I29: 413 | J29: 305 | K29: 431 | L29: 313 | M29: 392 | N29: 501 | O29: 518 | P29: 569 | Q29: 464 | R29: 344 | S29: 348 | T29: 399 | U29: NA | V29: NA | W29: NA | X29: Dare County | Y29: NA | Z29: NA | AA29: NA | AB29: 3
A30: 62 | B30: 314970 | C30: LEXINGTON | D30: Davidson | E30: 35.8458 | F30: -80.2597 | G30: 231.6 | H30: mly.prcp.normal | I30: 359 | J30: 371 | K30: 404 | L30: 372 | M30: 321 | N30: 414 | O30: 406 | P30: 412 | Q30: 382 | R30: 323 | S30: 341 | T30: 328 | U30: Lexington | V30: Lexington | W30: NC | X30: Davidson County | Y30: 35.85 | Z30: -80.26 | AA30: COOP | AB30: 1.5
A31: 69 | B31: 315743 | C31: MOCKSVILLE 5SE | D31: Davie | E31: 35.8438 | F31: -80.4972 | G31: 244.4 | H31: mly.prcp.normal | I31: 347 | J31: 358 | K31: 410 | L31: 371 | M31: 335 | N31: 426 | O31: 397 | P31: 393 | Q31: 384 | R31: 344 | S31: 336 | T31: 358 | U31: Mocksville 5se | V31: Mocksville | W31: NC | X31: Davie County | Y31: 35.84 | Z31: -80.5 | AA31: COOP | AB31: 1.5
A32: 162 | B32: 319026 | C32: WALLACE | D32: Duplin | E32: 34.72 | F32: -77.9778 | G32: 8.8 | H32: mly.prcp.normal | I32: 403 | J32: 355 | K32: 411 | L32: 349 | M32: 411 | N32: 555 | O32: 604 | P32: 655 | Q32: 637 | R32: 351 | S32: 340 | T32: 349 | U32: NA | V32: NA | W32: NA | X32: Duplin County | Y32: NA | Z32: NA | AA32: NA | AB32: 3
A33: 169 | B33: 3758 | C33: DURHAM 11 W | D33: Durham | E33: 35.9705 | F33: -79.0931 | G33: 171.3 | H33: mly.prcp.normal | I33: 364 | J33: 320 | K33: 426 | L33: 327 | M33: 356 | N33: 394 | O33: 475 | P33: 406 | Q33: 426 | R33: 347 | S33: 362 | T33: 336 | U33: NA | V33: NA | W33: NA | X33: Durham County | Y33: NA | Z33: NA | AA33: NA | AB33: 3
A34: 92 | B34: 317400 | C34: ROCKY MT 8 ESE | D34: Edgecombe | E34: 35.89361 | F34: -77.68056 | G34: 33.5 | H34: mly.prcp.normal | I34: 354 | J34: 324 | K34: 408 | L34: 326 | M34: 356 | N34: 435 | O34: 507 | P34: 471 | Q34: 525 | R34: 316 | S34: 288 | T34: 311 | U34: Rocky Mt 8 Ese | V34: Rocky Mount | W34: NC | X34: Edgecombe County | Y34: 35.89 | Z34: -77.68 | AA34: COOP | AB34: 3
A35: 135 | B35: 93807 | C35: WINSTON SALEM RYNLDS AP | D35: Forsyth | E35: 36.13361 | F35: -80.22222 | G35: 295.7 | H35: mly.prcp.normal | I35: 361 | J35: 319 | K35: 404 | L35: 370 | M35: 387 | N35: 420 | O35: 500 | P35: 487 | Q35: 419 | R35: 341 | S35: 335 | T35: 347 | U35: NA | V35: NA | W35: NA | X35: Forsyth County | Y35: NA | Z35: NA | AA35: NA | AB35: 1.5 | AF35: Acres-ft.RO
A36: 65 | B36: 315123 | C36: LOUISBURG | D36: Franklin | E36: 36.1028 | F36: -78.3039 | G36: 79.2 | H36: mly.prcp.normal | I36: 370 | J36: 325 | K36: 406 | L36: 334 | M36: 380 | N36: 402 | O36: 444 | P36: 506 | Q36: 418 | R36: 336 | S36: 317 | T36: 325 | U36: Louisburg | V36: Louisburg | W36: NC | X36: Franklin County | Y36: 36.1 | Z36: -78.3 | AA36: COOP | AB36: 3 | AF36: 33 | AG36: 34 | AH36: 35 | AI36: 35.5 | AJ36: 36 | AK36: 37
A37: 137 | B37: 53870 | C37: GASTONIA MUNI AP | D37: Gaston | E37: 35.19667 | F37: -81.15583 | G37: 242.9 | H37: mly.prcp.normal | I37: 386 | J37: 351 | K37: 419 | L37: 319 | M37: 317 | N37: 390 | O37: 398 | P37: 408 | Q37: 353 | R37: 365 | S37: 325 | T37: 330 | U37: NA | V37: NA | W37: NA | X37: Gaston County | Y37: NA | Z37: NA | AA37: NA | AB37: =INDEX(latlongrunoff,MATCH(pptstalong,longrunoff,1),MATCH(pptstalat,latrunoff,1)) -> 1 | AE37: -85 | AF37: NA | AG37: NA | AH37: 1 | AI37: 1 | AJ37: 1 | AK37: 1
D38: Gates | I38: =+I47 -> 379 | J38: =+J47 -> 351 | K38: 407 | L38: 362 | M38: 404 | N38: 454 | O38: 510 | P38: 446 | Q38: 465 | R38: 345 | S38: 307 | T38: 360 | AB38: 4
A39: 171 | B39: 317346 | C39: ROBBINSVILLE 1 S | D39: Graham | E39: 35.3044 | F39: -83.8113 | G39: 678.2 | H39: mly.prcp.normal | I39: 557 | J39: 558 | K39: 557 | L39: 478 | M39: 487 | N39: 514 | O39: 511 | P39: 529 | Q39: 500 | R39: 390 | S39: 466 | T39: 586 | U39: NA | V39: NA | W39: NA | X39: Graham County | Y39: NA | Z39: NA | AA39: NA | AB39: 1 | AE39: -84 | AF39: 1 | AG39: 1 | AH39: 1 | AI39: 1 | AJ39: 1 | AK39: 1
A40: 153 | B40: 316510 | C40: OXFORD AG | D40: Granville | E40: 36.30222 | F40: -78.61083 | G40: 152.4 | H40: mly.prcp.normal | I40: 321 | J40: 283 | K40: 484 | L40: 308 | M40: 358 | N40: 405 | O40: 469 | P40: 540 | Q40: 389 | R40: 358 | S40: 305 | T40: 372 | U40: NA | V40: NA | W40: NA | X40: Granville County | Y40: NA | Z40: NA | AA40: NA | AB40: 3 | AE40: -83 | AF40: 1 | AG40: 1 | AH40: 1 | AI40: 1 | AJ40: 1 | AK40: 1
D41: Greene | I41: =+I55 -> 374 | J41: =+J55 -> 319 | K41: 389 | L41: 313 | M41: 371 | N41: 506 | O41: 558 | P41: 541 | Q41: 571 | R41: 306 | S41: 308 | T41: 308 | AB41: 3
A42: 154 | B42: 13723 | C42: GREENSBORO AP | D42: Guilford | E42: 36.08333 | F42: -79.95 | G42: 271.3 | H42: mly.prcp.normal | I42: 306 | J42: 296 | K42: 373 | L42: 357 | M42: 338 | N42: 373 | O42: 448 | P42: 388 | Q42: 419 | R42: 316 | S42: 311 | T42: 298 | U42: NA | V42: NA | W42: NA | X42: Guilford County | Y42: NA | Z42: NA | AA42: NA | AB42: 2 | AE42: -82 | AF42: 1 | AG42: 1 | AH42: 1 | AI42: 1 | AJ42: 1 | AK42: 1
A43: 188 | B43: 317725 | C43: SCOTLAND NECK #2 | D43: Halifax | E43: 36.1369 | F43: -77.4231 | G43: 30.5 | H43: mly.prcp.normal | I43: 368 | J43: 317 | K43: 370 | L43: 367 | M43: 323 | N43: 481 | O43: 446 | P43: 467 | Q43: 460 | R43: 329 | S43: 287 | T43: 331 | U43: NA | V43: NA | W43: NA | X43: Halifax County | Y43: NA | Z43: NA | AA43: NA | AB43: 3 | AE43: -81 | AF43: 2 | AG43: 2 | AH43: 1.5 | AI43: 1.5 | AJ43: 1.5 | AK43: 1.5
A44: 28 | B44: 312500 | C44: DUNN 4 NW | D44: Harnett | E44: 35.3247 | F44: -78.6881 | G44: 61 | H44: mly.prcp.normal | I44: 357 | J44: 347 | K44: 387 | L44: 326 | M44: 362 | N44: 447 | O44: 621 | P44: 552 | Q44: 432 | R44: 315 | S44: 306 | T44: 325 | U44: Dunn 4 Nw | V44: Dunn | W44: NC | X44: Harnett County | Y44: 35.32 | Z44: -78.69 | AA44: COOP | AB44: 3 | AE44: -80 | AF44: 3 | AG44: 3 | AH44: 2 | AI44: 2 | AJ44: 2 | AK44: 2
A45: 115 | B45: 319147 | C45: WAYNESVILLE 1 E | D45: Haywood | E45: 35.4866 | F45: -82.9683 | G45: 810.2 | H45: mly.prcp.normal | I45: 431 | J45: 448 | K45: 440 | L45: 376 | M45: 434 | N45: 407 | O45: 370 | P45: 420 | Q45: 394 | R45: 265 | S45: 378 | T45: 409 | U45: Waynesville 1 E | V45: Waynesville | W45: NC | X45: Haywood County | Y45: 35.49 | Z45: -82.97 | AA45: COOP | AB45: 1 | AE45: -79.5 | AF45: 3 | AG45: 3 | AH45: 3 | AI45: 3 | AJ45: 3 | AK45: 2
A46: 38 | B46: 313106 | C46: FLETCHER 3 W | D46: Henderson | E46: 35.4266 | F46: -82.5574 | G46: 630.9 | H46: mly.prcp.normal | I46: 419 | J46: 409 | K46: 439 | L46: 364 | M46: 407 | N46: 508 | O46: 478 | P46: 500 | Q46: 433 | R46: 317 | S46: 383 | T46: 407 | U46: Fletcher 3 W | V46: Fletcher | W46: NC | X46: Henderson County | Y46: 35.43 | Z46: -82.56 | AA46: COOP | AB46: 1 | AE46: -79 | AF46: 3 | AG46: 3 | AH46: 3 | AI46: 3 | AJ46: 3 | AK46: 3
A47: 76 | B47: 315996 | C47: MURFREESBORO | D47: Hertford | E47: 36.4521 | F47: -77.0803 | G47: 30.5 | H47: mly.prcp.normal | I47: 379 | J47: 351 | K47: 407 | L47: 362 | M47: 404 | N47: 454 | O47: 510 | P47: 446 | Q47: 465 | R47: 345 | S47: 307 | T47: 360 | U47: Murfreesboro | V47: Murfreesboro | W47: NC | X47: Hertford County | Y47: 36.45 | Z47: -77.08 | AA47: COOP | AB47: 3 | AE47: -78 | AF47: 3 | AG47: 3 | AH47: 3 | AI47: 3 | AJ47: 3 | AK47: 4
A48: 132 | B48: 317056 | C48: RAEFORD | D48: Hoke | E48: 34.987 | F48: -79.219 | G48: 76.2 | H48: mly.prcp.normal | I48: 386 | J48: 348 | K48: 442 | L48: 287 | M48: 312 | N48: 459 | O48: 542 | P48: 506 | Q48: 431 | R48: 331 | S48: 305 | T48: 305 | U48: NA | V48: NA | W48: NA | X48: Hoke County | Y48: NA | Z48: NA | AA48: NA | AB48: 3 | AE48: -77 | AF48: 3 | AG48: 3 | AH48: 3 | AI48: 3 | AJ48: 3 | AK48: 4
A49: 124 | B49: 318450 | C49: SWANQUARTER FERRY | D49: Hyde | E49: 35.395 | F49: -76.326 | G49: 0.9 | H49: mly.prcp.normal | I49: 398 | J49: 332 | K49: 423 | L49: 343 | M49: 399 | N49: 513 | O49: 555 | P49: 760 | Q49: 590 | R49: 341 | S49: 402 | T49: 370 | U49: NA | V49: NA | W49: NA | X49: Hyde County | Y49: NA | Z49: NA | AA49: NA | AB49: 3 | AE49: -76 | AF49: 3 | AG49: 3 | AH49: 3 | AI49: 3 | AJ49: 3 | AK49: 4
A50: 103 | B50: 318292 | C50: STATESVILLE 2 NNE | D50: Iredell | E50: 35.8099 | F50: -80.8808 | G50: 289.6 | H50: mly.prcp.normal | I50: 342 | J50: 336 | K50: 417 | L50: 357 | M50: 339 | N50: 423 | O50: 415 | P50: 382 | Q50: 365 | R50: 339 | S50: 328 | T50: 364 | U50: Statesville 2 Nne | V50: Statesville | W50: NC | X50: Iredell County | Y50: 35.81 | Z50: -80.88 | AA50: COOP | AB50: 1.5
A51: 26 | B51: 312200 | C51: CULLOWHEE | D51: Jackson | E51: 35.3116 | F51: -83.1747 | G51: 668.1 | H51: mly.prcp.normal | I51: 465 | J51: 463 | K51: 445 | L51: 390 | M51: 448 | N51: 485 | O51: 441 | P51: 407 | Q51: 422 | R51: 301 | S51: 423 | T51: 442 | U51: Cullowhee | V51: Cullowhee | W51: NC | X51: Jackson County | Y51: 35.31 | Z51: -83.17 | AA51: COOP | AB51: 1
A52: 21 | B52: 311820 | C52: CLAYTON WTP | D52: Johnston | E52: 35.6408 | F52: -78.4633 | G52: 91.4 | H52: mly.prcp.normal | I52: 382 | J52: 340 | K52: 416 | L52: 305 | M52: 337 | N52: 391 | O52: 521 | P52: 532 | Q52: 449 | R52: 317 | S52: 319 | T52: 333 | U52: Clayton Wtp | V52: Clayton | W52: NC | X52: Johnston County | Y52: 35.64 | Z52: -78.46 | AA52: COOP | AB52: 3
A53: 107 | B53: 318706 | C53: TRENTON | D53: Jones | E53: 35.06278 | F53: -77.35472 | G53: 9.1 | H53: mly.prcp.normal | I53: 404 | J53: 348 | K53: 415 | L53: 319 | M53: 393 | N53: 498 | O53: 615 | P53: 638 | Q53: 620 | R53: 366 | S53: 304 | T53: 345 | U53: Trenton | V53: Trenton | W53: NC | X53: Jones County | Y53: 35.06 | Z53: -77.35 | AA53: COOP | AB53: 3
A54: 97 | B54: 317656 | C54: SANFORD 8 NE | D54: Lee | E54: 35.5347 | F54: -79.0464 | G54: 79.9 | H54: mly.prcp.normal | I54: 387 | J54: 351 | K54: 399 | L54: 286 | M54: 352 | N54: 463 | O54: 514 | P54: 472 | Q54: 412 | R54: 358 | S54: 330 | T54: 297 | U54: Sanford 8 Ne | V54: Sanford | W54: NC | X54: Lee County | Y54: 35.53 | Z54: -79.05 | AA54: COOP | AB54: 3
A55: 56 | B55: 314689 | C55: KINSTON AG RSCH | D55: Lenoir | E55: 35.2975 | F55: -77.5722 | G55: 18.3 | H55: mly.prcp.normal | I55: 374 | J55: 319 | K55: 389 | L55: 313 | M55: 371 | N55: 506 | O55: 558 | P55: 541 | Q55: 571 | R55: 306 | S55: 308 | T55: 308 | U55: Kinston Ag Rsch | V55: Kinston | W55: NC | X55: Lenoir County | Y55: 35.3 | Z55: -77.57 | AA55: COOP | AB55: 3
A56: 63 | B56: 314996 | C56: LINCOLNTON 4 W | D56: Lincoln | E56: 35.46056 | F56: -81.32889 | G56: 274.3 | H56: mly.prcp.normal | I56: 385 | J56: 365 | K56: 450 | L56: 348 | M56: 401 | N56: 404 | O56: 406 | P56: 450 | Q56: 345 | R56: 414 | S56: 355 | T56: 387 | U56: Lincolnton 4 W | V56: Lincolnton | W56: NC | X56: Lincoln County | Y56: 35.46 | Z56: -81.33 | AA56: COOP | AB56: 1
A57: 25 | B57: 312102 | C57: COWEETA EXP STN | D57: Macon | E57: 35.0591 | F57: -83.4313 | G57: 685.5 | H57: mly.prcp.normal | I57: 663 | J57: 671 | K57: 642 | L57: 524 | M57: 527 | N57: 582 | O57: 486 | P57: 480 | Q57: 590 | R57: 454 | S57: 645 | T57: 635 | U57: Coweeta Exp Stn | V57: Coweeta | W57: NC | X57: Macon County | Y57: 35.06 | Z57: -83.43 | AA57: COOP | AB57: 1
A58: 51 | B58: 314260 | C58: HOT SPRINGS | D58: Madison | E58: 35.895 | F58: -82.83111 | G58: 425.5 | H58: mly.prcp.normal | I58: 348 | J58: 351 | K58: 367 | L58: 352 | M58: 479 | N58: 420 | O58: 455 | P58: 411 | Q58: 307 | R58: 215 | S58: 279 | T58: 314 | U58: Hot Springs | V58: Hot Springs | W58: NC | X58: Madison County | Y58: 35.9 | Z58: -82.83 | AA58: COOP | AB58: 1
A59: 118 | B59: 319440 | C59: WILLIAMSTON 1 E | D59: Martin | E59: 35.8529 | F59: -77.0306 | G59: 6.1 | H59: mly.prcp.normal | I59: 382 | J59: 315 | K59: 412 | L59: 317 | M59: 374 | N59: 471 | O59: 529 | P59: 554 | Q59: 607 | R59: 390 | S59: 308 | T59: 324 | U59: Williamston 1 E | V59: Williamston | W59: NC | X59: Martin County | Y59: 35.85 | Z59: -77.03 | AA59: COOP | AB59: 3
A60: 67 | B60: 315340 | C60: MARION 2 NW | D60: Mcdowell | E60: 35.663 | F60: -82.0291 | G60: 446.8 | H60: mly.prcp.normal | I60: 406 | J60: 416 | K60: 463 | L60: 424 | M60: 470 | N60: 486 | O60: 484 | P60: 445 | Q60: 445 | R60: 350 | S60: 395 | T60: 441 | U60: Marion 2 Nw | V60: Marion | W60: NC | X60: Mcdowell County | Y60: 35.66 | Z60: -82.03 | AA60: COOP | AB60: 1
A61: 144 | B61: 13881 | C61: CHARLOTTE DOUGLAS AP | D61: Mecklenburg | E61: 35.2236 | F61: -80.9552 | G61: 221.9 | H61: mly.prcp.normal | I61: 341 | J61: 332 | K61: 401 | L61: 304 | M61: 318 | N61: 374 | O61: 368 | P61: 422 | Q61: 324 | R61: 340 | S61: 314 | T61: 325 | U61: NA | V61: NA | W61: NA | X61: Mecklenburg County | Y61: NA | Z61: NA | AA61: NA | AB61: 1.5
D62: Mitchell | I62: =+I101 -> 511 | J62: =+J101 -> 502 | K62: 552 | L62: 450 | M62: 497 | N62: 471 | O62: 467 | P62: 532 | Q62: 499 | R62: 382 | S62: 467 | T62: 456
A63: 53 | B63: 314464 | C63: JACKSON SPRINGS 5 WNW | D63: Montgomery | E63: 35.1858 | F63: -79.6772 | G63: 222.5 | H63: mly.prcp.normal | I63: 388 | J63: 354 | K63: 404 | L63: 305 | M63: 309 | N63: 405 | O63: 503 | P63: 512 | Q63: 422 | R63: 372 | S63: 332 | T63: 327 | U63: Jackson Springs 5 Wnw | V63: Jackson Springs | W63: NC | X63: Montgomery County | Y63: 35.19 | Z63: -79.68 | AA63: COOP | AB63: 2
A64: 14 | B64: 311515 | C64: CARTHAGE WTP | D64: Moore | E64: 35.332 | F64: -79.4066 | G64: 134.1 | H64: mly.prcp.normal | I64: 395 | J64: 343 | K64: 432 | L64: 298 | M64: 342 | N64: 429 | O64: 498 | P64: 514 | Q64: 438 | R64: 356 | S64: 346 | T64: 342 | U64: Carthage Wtp | V64: Carthage | W64: NC | X64: Moore County | Y64: 35.33 | Z64: -79.41 | AA64: COOP | AB64: 3
A65: 174 | B65: 93759 | C65: ROCKY MT WILSON AP | D65: Nash | E65: 35.855 | F65: -77.89306 | G65: 48.8 | H65: mly.prcp.normal | I65: 360 | J65: 290 | K65: 390 | L65: 312 | M65: 343 | N65: 413 | O65: 490 | P65: 482 | Q65: 443 | R65: 309 | S65: 304 | T65: 293 | U65: NA | V65: NA | W65: NA | X65: Nash County | Y65: NA | Z65: NA | AA65: NA | AB65: 3
A66: 180 | B66: 13748 | C66: WILMINGTON INTL AP | D66: New Hanover | E66: 34.2675 | F66: -77.8997 | G66: 10.1 | H66: mly.prcp.normal | I66: 376 | J66: 362 | K66: 421 | L66: 282 | M66: 449 | N66: 518 | O66: 748 | P66: 741 | Q66: 784 | R66: 389 | S66: 329 | T66: 362 | U66: NA | V66: NA | W66: NA | X66: New Hanover County | Y66: NA | Z66: NA | AA66: NA | AB66: 3
A67: 52 | B67: 314456 | C67: JACKSON | D67: Northampton | E67: 36.3967 | F67: -77.4239 | G67: 39.6 | H67: mly.prcp.normal | I67: 361 | J67: 311 | K67: 414 | L67: 343 | M67: 357 | N67: 403 | O67: 536 | P67: 495 | Q67: 468 | R67: 330 | S67: 326 | T67: 342 | U67: Jackson | V67: Jackson | W67: NC | X67: Northampton County | Y67: 36.4 | Z67: -77.42 | AA67: COOP | AB67: 3
A68: 168 | B68: 314471 | C68: JACKSONVILLE EOC | D68: Onslow | E68: 34.7966 | F68: -77.4008 | G68: 5.2 | H68: mly.prcp.normal | I68: 388 | J68: 327 | K68: 409 | L68: 316 | M68: 395 | N68: 536 | O68: 668 | P68: 692 | Q68: 616 | R68: 348 | S68: 311 | T68: 422 | U68: NA | V68: NA | W68: NA | X68: Onslow County | Y68: NA | Z68: NA | AA68: NA | AB68: 3
A69: 156 | B69: 93785 | C69: CHAPEL HILL WILLIAMS AP | D69: Orange | E69: 35.93333 | F69: -79.06417 | G69: 156.1 | H69: mly.prcp.normal | I69: 383 | J69: 332 | K69: 449 | L69: 311 | M69: 367 | N69: 374 | O69: 402 | P69: 445 | Q69: 427 | R69: 318 | S69: 320 | T69: 318 | U69: NA | V69: NA | W69: NA | X69: Orange County | Y69: NA | Z69: NA | AA69: NA | AB69: 3
A70: 6 | B70: 310576 | C70: BAYBORO 3 SW | D70: Pamlico | E70: 35.1311 | F70: -76.816 | G70: 1.5 | H70: mly.prcp.normal | I70: 385 | J70: 321 | K70: 400 | L70: 361 | M70: 412 | N70: 518 | O70: 627 | P70: 725 | Q70: 588 | R70: 398 | S70: 378 | T70: 375 | U70: Bayboro 3 Sw | V70: Bayboro | W70: NC | X70: Pamlico County | Y70: 35.13 | Z70: -76.82 | AA70: COOP | AB70: 3
A71: 32 | B71: 312719 | C71: ELIZABETH CITY | D71: Pasquotank | E71: 36.30972 | F71: -76.205 | G71: 2.4 | H71: mly.prcp.normal | I71: 390 | J71: 325 | K71: 385 | L71: 312 | M71: 398 | N71: 459 | O71: 558 | P71: 569 | Q71: 476 | R71: 314 | S71: 326 | T71: 342 | U71: Elizabeth City | V71: Elizabeth City | W71: NC | X71: Pasquotank County | Y71: 36.31 | Z71: -76.21 | AA71: COOP | AB71: 3
A72: 117 | B72: 319423 | C72: WILLARD 4 SW | D72: Pender | E72: 34.6612 | F72: -78.0455 | G72: 16.8 | H72: mly.prcp.normal | I72: 389 | J72: 350 | K72: 406 | L72: 325 | M72: 395 | N72: 520 | O72: 660 | P72: 661 | Q72: 608 | R72: 362 | S72: 294 | T72: 337 | U72: Willard 4 Sw | V72: Willard | W72: NC | X72: Pender County | Y72: 34.66 | Z72: -78.05 | AA72: COOP | AB72: =INDEX(latlongrunoff,MATCH(pptstalong,longrunoff,1),MATCH(pptstalat,latrunoff,1)) -> 3
D73: Perquimans | I73: =+I71 -> 390 | J73: =+J71 -> 325 | K73: 385 | L73: 312 | M73: 398 | N73: 459 | O73: 558 | P73: 569 | Q73: 476 | R73: 314 | S73: 326 | T73: 342
A74: 94 | B74: 317516 | C74: ROXBORO 7 ESE | D74: Person | E74: 36.3464 | F74: -78.8858 | G74: 216.4 | H74: mly.prcp.normal | I74: 381 | J74: 333 | K74: 445 | L74: 334 | M74: 335 | N74: 384 | O74: 457 | P74: 389 | Q74: 391 | R74: 372 | S74: 346 | T74: 370 | U74: Roxboro 7 Ese | V74: Roxboro | W74: NC | X74: Person County | Y74: 36.35 | Z74: -78.89 | AA74: COOP | AB74: 3
A75: 44 | B75: 313638 | C75: GREENVILLE | D75: Pitt | E75: 35.64 | F75: -77.3984 | G75: 9.8 | H75: mly.prcp.normal | I75: 386 | J75: 335 | K75: 404 | L75: 317 | M75: 385 | N75: 431 | O75: 539 | P75: 614 | Q75: 583 | R75: 325 | S75: 312 | T75: 325 | U75: Greenville | V75: Greenville | W75: NC | X75: Pitt County | Y75: 35.64 | Z75: -77.4 | AA75: COOP | AB75: 3
A76: 108 | B76: 318744 | C76: TRYON | D76: Polk | E76: 35.2058 | F76: -82.2516 | G76: 365.8 | H76: mly.prcp.normal | I76: 510 | J76: 486 | K76: 576 | L76: 458 | M76: 457 | N76: 538 | O76: 527 | P76: 618 | Q76: 538 | R76: 465 | S76: 480 | T76: 524 | U76: Tryon | V76: Tryon | W76: NC | X76: Polk County | Y76: 35.21 | Z76: -82.25 | AA76: COOP | AB76: 1
A77: 3 | B77: 310286 | C77: ASHEBORO 2 W | D77: Randolph | E77: 35.70444 | F77: -79.83778 | G77: 265.2 | H77: mly.prcp.normal | I77: 383 | J77: 364 | K77: 402 | L77: 364 | M77: 352 | N77: 390 | O77: 408 | P77: 417 | Q77: 394 | R77: 368 | S77: 341 | T77: 327 | U77: Asheboro 2 W | V77: Asheboro | W77: NC | X77: Randolph County | Y77: 35.7 | Z77: -79.84 | AA77: COOP | AB77: 2
A78: 45 | B78: 313784 | C78: HAMLET | D78: Richmond | E78: 34.8872 | F78: -79.6922 | G78: 106.7 | H78: mly.prcp.normal | I78: 379 | J78: 342 | K78: 383 | L78: 285 | M78: 323 | N78: 473 | O78: 616 | P78: 480 | Q78: 475 | R78: 396 | S78: 332 | T78: 316 | U78: Hamlet | V78: Hamlet | W78: NC | X78: Richmond County | Y78: 34.89 | Z78: -79.69 | AA78: COOP | AB78: 3
A79: 159 | B79: 13776 | C79: LUMBERTON REGIONAL AP | D79: Robeson | E79: 34.60806 | F79: -79.05917 | G79: 36.9 | H79: mly.prcp.normal | I79: 297 | J79: 290 | K79: 333 | L79: 282 | M79: 305 | N79: 434 | O79: 548 | P79: 550 | Q79: 480 | R79: 257 | S79: 287 | T79: 289 | U79: NA | V79: NA | W79: NA | X79: Robeson County | Y79: NA | Z79: NA | AA79: NA | AB79: 3
A80: 88 | B80: 317202 | C80: REIDSVILLE 2 NW | D80: Rockingham | E80: 36.3825 | F80: -79.6947 | G80: 271.3 | H80: mly.prcp.normal | I80: 386 | J80: 340 | K80: 431 | L80: 390 | M80: 382 | N80: 394 | O80: 481 | P80: 392 | Q80: 418 | R80: 345 | S80: 345 | T80: 333 | U80: Reidsville 2 Nw | V80: Reidsville | W80: NC | X80: Rockingham County | Y80: 36.38 | Z80: -79.69 | AA80: COOP | AB80: 2
A81: 96 | B81: 317618 | C81: SALISBURY 9 WNW | D81: Rowan | E81: 35.6966 | F81: -80.6227 | G81: 251.5 | H81: mly.prcp.normal | I81: 342 | J81: 350 | K81: 410 | L81: 354 | M81: 321 | N81: 428 | O81: 342 | P81: 379 | Q81: 375 | R81: 329 | S81: 314 | T81: 337 | U81: Salisbury 9 Wnw | V81: Salisbury | W81: NC | X81: Rowan County | Y81: 35.7 | Z81: -80.62 | AA81: COOP | AB81: 1.5
A82: 173 | B82: 313152 | C82: FOREST CITY 8 W | D82: Rutherford | E82: 35.3125 | F82: -81.98889 | G82: 258.8 | H82: mly.prcp.normal | I82: 421 | J82: 397 | K82: 474 | L82: 370 | M82: 442 | N82: 458 | O82: 447 | P82: 470 | Q82: 429 | R82: 377 | S82: 402 | T82: 430 | U82: NA | V82: NA | W82: NA | X82: Rutherford County | Y82: NA | Z82: NA | AA82: NA | AB82: 1
A83: 22 | B83: 311881 | C83: CLINTON 2 NE | D83: Sampson | E83: 35.0247 | F83: -78.2758 | G83: 48.2 | H83: mly.prcp.normal | I83: 371 | J83: 321 | K83: 400 | L83: 299 | M83: 362 | N83: 472 | O83: 602 | P83: 590 | Q83: 513 | R83: 302 | S83: 312 | T83: 318 | U83: Clinton 2 Ne | V83: Clinton | W83: NC | X83: Sampson County | Y83: 35.02 | Z83: -78.28 | AA83: COOP | AB83: 3
A84: 136 | B84: 93782 | C84: LAURINBURG MAXTON AP | D84: Scotland | E84: 34.79167 | F84: -79.36611 | G84: 67.1 | H84: mly.prcp.normal | I84: 309 | J84: 232 | K84: 300 | L84: 255 | M84: 341 | N84: 375 | O84: 465 | P84: 434 | Q84: 458 | R84: 316 | S84: 251 | T84: 260 | U84: NA | V84: NA | W84: NA | X84: Scotland County | Y84: NA | Z84: NA | AA84: NA | AB84: 3
A85: 1 | B85: 310090 | C85: ALBEMARLE | D85: Stanly | E85: 35.39917 | F85: -80.19944 | G85: 185.9 | H85: mly.prcp.normal | I85: 405 | J85: 351 | K85: 437 | L85: 345 | M85: 363 | N85: 471 | O85: 553 | P85: 464 | Q85: 430 | R85: 379 | S85: 336 | T85: 342 | U85: Albemarle | V85: Albemarle | W85: NC | X85: Stanly County | Y85: 35.4 | Z85: -80.2 | AA85: COOP | AB85: 1.5
A86: 27 | B86: 312238 | C86: DANBURY | D86: Stokes | E86: 36.4147 | F86: -80.2169 | G86: 256 | H86: mly.prcp.normal | I86: 368 | J86: 304 | K86: 429 | L86: 355 | M86: 403 | N86: 401 | O86: 501 | P86: 430 | Q86: 456 | R86: 360 | S86: 325 | T86: 360 | U86: Danbury | V86: Danbury | W86: NC | X86: Stokes County | Y86: 36.41 | Z86: -80.22 | AA86: COOP | AB86: 1.5
A87: 34 | B87: 312740 | C87: ELKIN | D87: Surry | E87: 36.2544 | F87: -80.865 | G87: 265.2 | H87: mly.prcp.normal | I87: 375 | J87: 337 | K87: 417 | L87: 398 | M87: 394 | N87: 402 | O87: 487 | P87: 401 | Q87: 392 | R87: 334 | S87: 306 | T87: 363 | U87: Elkin | V87: Elkin | W87: NC | X87: Surry County | Y87: 36.25 | Z87: -80.87 | AA87: COOP | AB87: 1.5
A88: 80 | B88: 316341 | C88: OCONALUFTEE | D88: Swain | E88: 35.5261 | F88: -83.3089 | G88: 621.8 | H88: mly.prcp.normal | I88: 487 | J88: 469 | K88: 504 | L88: 431 | M88: 513 | N88: 439 | O88: 491 | P88: 394 | Q88: 424 | R88: 284 | S88: 449 | T88: 494 | U88: Oconaluftee | V88: Oconaluftee | W88: NC | X88: Swain County | Y88: 35.53 | Z88: -83.31 | AA88: COOP | AB88: 1
A89: 10 | B89: 311055 | C89: BREVARD | D89: Transylvania | E89: 35.2283 | F89: -82.7358 | G89: 676.7 | H89: mly.prcp.normal | I89: 640 | J89: 568 | K89: 560 | L89: 471 | M89: 508 | N89: 607 | O89: 516 | P89: 609 | Q89: 502 | R89: 446 | S89: 536 | T89: 638 | U89: Brevard | V89: Brevard | W89: NC | X89: Transylvania County | Y89: 35.23 | Z89: -82.74 | AA89: COOP | AB89: 1
D90: Tyrrell | I90: =+I29 -> 413 | J90: =+J29 -> 305 | K90: 431 | L90: 313 | M90: 392 | N90: 501 | O90: 518 | P90: 569 | Q90: 464 | R90: 344 | S90: 348 | T90: =+T29 -> 399
A91: 178 | B91: 53872 | C91: MONROE AP | D91: Union | E91: 35.01694 | F91: -80.62056 | G91: 207 | H91: mly.prcp.normal | I91: 374 | J91: 360 | K91: 384 | L91: 302 | M91: 299 | N91: 417 | O91: 419 | P91: 462 | Q91: 356 | R91: 368 | S91: 318 | T91: 320 | U91: NA | V91: NA | W91: NA | X91: Union County | Y91: NA | Z91: NA | AA91: NA | AB91: 1.5
D92: Vance | I92: =+I40 -> 321 | J92: =+J40 -> 283 | K92: 484 | L92: 308 | M92: 358 | N92: 405 | O92: 469 | P92: 540 | Q92: 389 | R92: 358 | S92: 305 | T92: 372 | X92: =+D92 -> Vance
A93: 84 | B93: 317074 | C93: RALEIGH 4 SW | D93: Wake | E93: 35.7294 | F93: -78.6838 | G93: 128 | H93: mly.prcp.normal | I93: 399 | J93: 347 | K93: 434 | L93: 305 | M93: 352 | N93: 483 | O93: 446 | P93: 439 | Q93: 421 | R93: 354 | S93: 319 | T93: 323 | U93: Raleigh 4 Sw | V93: Raleigh | W93: NC | X93: Wake County | Y93: 35.73 | Z93: -78.68 | AA93: COOP | AB93: 3
A94: 2 | B94: 310241 | C94: ARCOLA | D94: Warren | E94: 36.2911 | F94: -77.9822 | G94: 100.6 | H94: mly.prcp.normal | I94: 384 | J94: 325 | K94: 460 | L94: 337 | M94: 350 | N94: 456 | O94: 510 | P94: 520 | Q94: 419 | R94: 334 | S94: 330 | T94: 327 | U94: Arcola | V94: Arcola | W94: NC | X94: Warren County | Y94: 36.29 | Z94: -77.98 | AA94: COOP | AB94: 3
A95: 83 | B95: 316853 | C95: PLYMOUTH 5 E | D95: Washington | E95: 35.8723 | F95: -76.6592 | G95: 6.1 | H95: mly.prcp.normal | I95: 394 | J95: 330 | K95: 437 | L95: 333 | M95: 419 | N95: 519 | O95: 534 | P95: 628 | Q95: 539 | R95: 375 | S95: 353 | T95: 329 | U95: Plymouth 5 E | V95: Plymouth | W95: NC | X95: Washington County | Y95: 35.87 | Z95: -76.66 | AA95: COOP | AB95: 3
A96: 9 | B96: 310982 | C96: BOONE 1 SE | D96: Watauga | E96: 36.2114 | F96: -81.6442 | G96: 1024.1 | H96: mly.prcp.normal | I96: 389 | J96: 390 | K96: 466 | L96: 449 | M96: 462 | N96: 506 | O96: 473 | P96: 507 | Q96: 441 | R96: 356 | S96: 449 | T96: 378 | U96: Boone 1 Se | V96: Boone | W96: NC | X96: Watauga County | Y96: 36.21 | Z96: -81.64 | AA96: COOP | AB96: 1
A97: 151 | B97: 13713 | C97: GOLDSBORO 4 SE | D97: Wayne | E97: 35.3444 | F97: -77.9647 | G97: 33.2 | H97: mly.prcp.normal | I97: 368 | J97: 342 | K97: 401 | L97: 334 | M97: 377 | N97: 386 | O97: 554 | P97: 588 | Q97: 600 | R97: 298 | S97: 309 | T97: 322 | U97: NA | V97: NA | W97: NA | X97: Wayne County | Y97: NA | Z97: NA | AA97: NA | AB97: 3
A98: 79 | B98: 316256 | C98: NORTH WILKESBORO | D98: Wilkes | E98: 36.1631 | F98: -81.1494 | G98: 341.4 | H98: mly.prcp.normal | I98: 409 | J98: 375 | K98: 461 | L98: 409 | M98: 411 | N98: 458 | O98: 473 | P98: 444 | Q98: 413 | R98: 358 | S98: 349 | T98: 386 | U98: North Wilkesboro | V98: North Wilkesboro | W98: NC | X98: Wilkes County | Y98: 36.16 | Z98: -81.15 | AA98: COOP | AB98: 1
A99: 120 | B99: 319476 | C99: WILSON 3 SW | D99: Wilson | E99: 35.69389 | F99: -77.94556 | G99: 33.5 | H99: mly.prcp.normal | I99: 376 | J99: 314 | K99: 423 | L99: 303 | M99: 406 | N99: 410 | O99: 537 | P99: 491 | Q99: 502 | R99: 314 | S99: 299 | T99: 329 | U99: Wilson 3 Sw | V99: Wilson | W99: NC | X99: Wilson County | Y99: 35.69 | Z99: -77.95 | AA99: COOP | AB99: 3
A100: 121 | B100: 319675 | C100: YADKINVILLE 6 E | D100: Yadkin | E100: 36.1306 | F100: -80.5481 | G100: 266.7 | H100: mly.prcp.normal | I100: 349 | J100: 331 | K100: 413 | L100: 361 | M100: 378 | N100: 416 | O100: 473 | P100: 349 | Q100: 386 | R100: 339 | S100: 314 | T100: 363 | U100: Yadkinville 6 E | V100: Yadkinville | W100: NC | X100: Yadkin County | Y100: 36.13 | Z100: -80.55 | AA100: COOP | AB100: 1.5
A101: 19 | B101: 311624 | C101: CELO 2 S | D101: Yancey | E101: 35.8297 | F101: -82.1769 | G101: 816.9 | H101: mly.prcp.normal | I101: 511 | J101: 502 | K101: 552 | L101: 450 | M101: 497 | N101: 471 | O101: 467 | P101: 532 | Q101: 499 | R101: 382 | S101: 467 | T101: 456 | U101: Celo 2 S | V101: Celo | W101: NC | X101: Yancey County | Y101: 35.83 | Z101: -82.18 | AA101: COOP | AB101: 1

Sheet ppt.events.5
B1: coop.id | C1: sta.name | D1: County | E1: lat.dec | F1: long.dec | G1: elev.m | H1: variable | I1: 1 | J1: 2 | K1: 3 | L1: 4 | M1: 5 | N1: 6 | O1: 7 | P1: 8 | Q1: 9 | R1: 10 | S1: 11 | T1: 12 | U1: Name | V1: City | W1: State | X1: County | Y1: Lat | Z1: Long | AA1: Type
A2: 12 | B2: 311239 | C2: BURLINGTON FIRE STN #5 | D2: Alamance | E2: 36.06028 | F2: -79.44806 | G2: 201.2 | H2: .avgnds.ge050hi | I2: 29 | J2: 22 | K2: 29 | L2: 24 | M2: 29 | N2: 23 | O2: 32 | P2: 27 | Q2: 24 | R2: 19 | S2: 23 | T2: 22 | U2: Burlington Fire Stn #5 | V2: Burlington | W2: NC | X2: Alamance | Y2: 36.06 | Z2: -79.45 | AA2: COOP
D3: Alexander | I3: =+I19 -> 26 | J3: =+J19 -> 25 | K3: 29 | L3: 25 | M3: 24 | N3: 27 | O3: 33 | P3: 27 | Q3: 24 | R3: 21 | S3: 23 | T3: 27
D4: Alleghany | I4: =+I6 -> 27 | J4: =+J6 -> 26 | K4: 33 | L4: 26 | M4: 28 | N4: 34 | O4: 29 | P4: 30 | Q4: 31 | R4: 24 | S4: 29 | T4: 26
A5: 111 | B5: 318964 | C5: WADESBORO | D5: Anson | E5: 34.9603 | F5: -80.0772 | G5: 146.3 | H5: .avgnds.ge050hi | I5: 27 | J5: 24 | K5: 29 | L5: 20 | M5: 23 | N5: 28 | O5: 37 | P5: 28 | Q5: 26 | R5: 21 | S5: 23 | T5: 23 | U5: Wadesboro | V5: Wadesboro | W5: NC | X5: Anson | Y5: 34.96 | Z5: -80.08 | AA5: COOP
A6: 106 | B6: 318694 | C6: TRANSOU | D6: Ashe | E6: 36.3919 | F6: -81.3039 | G6: 876.3 | H6: .avgnds.ge050hi | I6: 27 | J6: 26 | K6: 33 | L6: 26 | M6: 28 | N6: 34 | O6: 29 | P6: 30 | Q6: 31 | R6: 24 | S6: 29 | T6: 26 | U6: Transou | V6: Laurel Springs | W6: NC | X6: Ashe | Y6: 36.39 | Z6: -81.3 | AA6: COOP
A7: 5 | B7: 310506 | C7: BANNER ELK | D7: Avery | E7: 36.1616 | F7: -81.8741 | G7: 1149.1 | H7: .avgnds.ge050hi | I7: 27 | J7: 27 | K7: 25 | L7: 28 | M7: 30 | N7: 36 | O7: 36 | P7: 33 | Q7: 27 | R7: 20 | S7: 19 | T7: 22 | U7: Banner Elk | V7: Banner Elk | W7: NC | X7: Avery | Y7: 36.16 | Z7: -81.87 | AA7: COOP
A8: 4 | B8: 310375 | C8: AURORA 6 N | D8: Beaufort | E8: 35.3872 | F8: -76.7763 | G8: 6.1 | H8: .avgnds.ge050hi | I8: 28 | J8: 22 | K8: 28 | L8: 19 | M8: 24 | N8: 35 | O8: 41 | P8: 41 | Q8: 27 | R8: 19 | S8: 19 | T8: 22 | U8: Aurora 6 N | V8: Aurora | W8: NC | X8: Beaufort | Y8: 35.39 | Z8: -76.78 | AA8: COOP
A9: 61 | B9: 314962 | C9: LEWISTON | D9: Bertie | E9: 36.1325 | F9: -77.1708 | G9: 15.2 | H9: .avgnds.ge050hi | I9: 23 | J9: 23 | K9: 27 | L9: 21 | M9: 23 | N9: 26 | O9: 38 | P9: 36 | Q9: 30 | R9: 19 | S9: 23 | T9: 25 | U9: Lewiston | V9: Lewiston | W9: NC | X9: Bertie | Y9: 36.13 | Z9: -77.17 | AA9: COOP
D10: Bladen | I10: 28 | J10: 25 | K10: 29 | L10: 24 | M10: 28 | N10: 34 | O10: 43 | P10: 40 | Q10: 35 | R10: 20 | S10: 19 | T10: 21
A11: 64 | B11: 315116 | C11: LONGWOOD | D11: Brunswick | E11: 34.0102 | F11: -78.545 | G11: 12.2 | H11: .avgnds.ge050hi | I11: 29 | J11: 21 | K11: 27 | L11: 21 | M11: 24 | N11: 35 | O11: 35 | P11: 43 | Q11: 33 | R11: 24 | S11: 22 | T11: 24 | U11: Longwood | V11: Longwood | W11: NC | X11: Brunswick | Y11: 34.01 | Z11: -78.55 | AA11: COOP
A12: 7 | B12: 310724 | C12: BENT CREEK | D12: Buncombe | E12: 35.5044 | F12: -82.5966 | G12: 643.1 | H12: .avgnds.ge050hi | I12: 23 | J12: 25 | K12: 28 | L12: 25 | M12: 25 | N12: 30 | O12: 34 | P12: 23 | Q12: 28 | R12: 18 | S12: 29 | T12: 23 | U12: Bent Creek | V12: Asheville | W12: NC | X12: Buncombe | Y12: 35.5 | Z12: -82.6 | AA12: COOP
A13: 11 | B13: 311081 | C13: BRIDGEWATER HYDRO | D13: Burke | E13: 35.7425 | F13: -81.8372 | G13: 350.5 | H13: .avgnds.ge050hi | I13: 28 | J13: 27 | K13: 26 | L13: 26 | M13: 26 | N13: 31 | O13: 30 | P13: 28 | Q13: 27 | R13: 21 | S13: 25 | T13: 26 | U13: Bridgewater Hydro | V13: Bridgewater | W13: NC | X13: Burke | Y13: 35.74 | Z13: -81.84 | AA13: COOP
A14: 23 | B14: 311975 | C14: CONCORD | D14: Cabarrus | E14: 35.4163 | F14: -80.6005 | G14: 210.3 | H14: .avgnds.ge050hi | I14: 25 | J14: 25 | K14: 28 | L14: 24 | M14: 23 | N14: 29 | O14: 31 | P14: 26 | Q14: 20 | R14: 23 | S14: 23 | T14: 22 | U14: Concord | V14: Concord | W14: NC | X14: Cabarrus | Y14: 35.42 | Z14: -80.6 | AA14: COOP
A15: 60 | B15: 314938 | C15: LENOIR | D15: Caldwell | E15: 35.915 | F15: -81.5377 | G15: 365.8 | H15: .avgnds.ge050hi | I15: 24 | J15: 28 | K15: 32 | L15: 28 | M15: 28 | N15: 31 | O15: 29 | P15: 28 | Q15: 31 | R15: 23 | S15: 26 | T15: 26 | U15: Lenoir | V15: Lenoir | W15: NC | X15: Caldwell | Y15: 35.92 | Z15: -81.54 | AA15: COOP
D16: Camden | I16: =+I86 -> 27 | J16: =+J86 -> 23 | K16: 26 | L16: 20 | M16: 26 | N16: 31 | O16: 36 | P16: 39 | Q16: 29 | R16: 20 | S16: 24 | T16: 24
A17: 71 | B17: 315830 | C17: MOREHEAD CITY 2 WNW | D17: Carteret | E17: 34.7336 | F17: -76.7357 | G17: 3 | H17: .avgnds.ge050hi | I17: 33 | J17: 26 | K17: 31 | L17: 21 | M17: 28 | N17: 30 | O17: 42 | P17: 46 | Q17: 40 | R17: 24 | S17: 30 | T17: 32 | U17: Morehead City 2 Wnw | V17: Morehead City | W17: NC | X17: Carteret | Y17: 34.73 | Z17: -76.74 | AA17: COOP
A18: 187 | B18: 319704 | C18: YANCEYVILLE 4 SE | D18: Caswell | E18: 36.3783 | F18: -79.2544 | G18: 199.6 | H18: .avgnds.ge050hi | I18: 25 | J18: 19 | K18: 31 | L18: 30 | M18: 22 | N18: 24 | O18: 29 | P18: 24 | Q18: 30 | R18: 21 | S18: 25 | T18: 29 | U18: NA | V18: NA | W18: NA | X18: NA | Y18: NA | Z18: NA | AA18: NA
A19: 175 | B19: 3810 | C19: HICKORY FAA AP | D19: Catawba | E19: 35.7425 | F19: -81.3819 | G19: 348.4 | H19: .avgnds.ge050hi | I19: 26 | J19: 25 | K19: 29 | L19: 25 | M19: 24 | N19: 27 | O19: 33 | P19: 27 | Q19: 24 | R19: 21 | S19: 23 | T19: 27 | U19: NA | V19: NA | W19: NA | X19: NA | Y19: NA | Z19: NA | AA19: NA
A20: 99 | B20: 317924 | C20: SILER CITY 2 N | D20: Chatham | E20: 35.7606 | F20: -79.4622 | G20: 185.9 | H20: .avgnds.ge050hi | I20: 24 | J20: 24 | K20: 31 | L20: 23 | M20: 27 | N20: 26 | O20: 29 | P20: 26 | Q20: 24 | R20: 24 | S20: 26 | T20: 22 | U20: Siler City 2 N | V20: Siler City | W20: NC | X20: Chatham | Y20: 35.76 | Z20: -79.46 | AA20: COOP
A21: 77 | B21: 316001 | C21: MURPHY | D21: Cherokee | E21: 35.09611 | F21: -84.02389 | G21: 480.4 | H21: .avgnds.ge050hi | I21: 42 | J21: 37 | K21: 37 | L21: 35 | M21: 33 | N21: 38 | O21: 35 | P21: 32 | Q21: 31 | R21: 25 | S21: 35 | T21: 37 | U21: Murphy | V21: Murphy | W21: NC | X21: Cherokee | Y21: 35.1 | Z21: -84.02 | AA21: COOP
A22: 31 | B22: 312635 | C22: EDENTON | D22: Chowan | E22: 36.01639 | F22: -76.55167 | G22: 3 | H22: .avgnds.ge050hi | I22: 26 | J22: 23 | K22: 27 | L22: 22 | M22: 26 | N22: 30 | O22: 41 | P22: 39 | Q22: 30 | R22: 18 | S22: 24 | T22: 21 | U22: Edenton | V22: Edenton | W22: NC | X22: Chowan | Y22: 36.02 | Z22: -76.55 | AA22: COOP
D23: Clay | I23: =+I21 -> 42 | J23: =+J21 -> 37 | K23: 37 | L23: 35 | M23: 33 | N23: 38 | O23: 35 | P23: 32 | Q23: 31 | R23: 25 | S23: 35 | T23: 37
A24: 98 | B24: 317845 | C24: SHELBY 2 NNE | D24: Cleveland | E24: 35.3144 | F24: -81.5336 | G24: 280.4 | H24: .avgnds.ge050hi | I24: 29 | J24: 27 | K24: 34 | L24: 27 | M24: 27 | N24: 27 | O24: 26 | P24: 26 | Q24: 23 | R24: 23 | S24: 27 | T24: 30 | U24: Shelby 2 Nne | V24: Shelby | W24: NC | X24: Cleveland | Y24: 35.31 | Z24: -81.53 | AA24: COOP
A25: 116 | B25: 319357 | C25: WHITEVILLE 7 NW | D25: Columbus | E25: 34.4094 | F25: -78.7913 | G25: 27.4 | H25: .avgnds.ge050hi | I25: 27 | J25: 23 | K25: 25 | L25: 22 | M25: 27 | N25: 30 | O25: 37 | P25: 40 | Q25: 28 | R25: 19 | S25: 20 | T25: 21 | U25: Whiteville 7 Nw | V25: Whiteville | W25: NC | X25: Columbus | Y25: 34.41 | Z25: -78.79 | AA25: COOP
A26: 160 | B26: 93719 | C26: NEW BERN - ASOS | D26: Craven | E26: 35.0677 | F26: -77.048 | G26: 5.8 | H26: .avgnds.ge050hi | I26: 28 | J26: 26 | K26: 30 | L26: 22 | M26: 28 | N26: 31 | O26: 46 | P26: 43 | Q26: 29 | R26: 21 | S26: 20 | T26: 22 | U26: NA | V26: NA | W26: NA | X26: NA | Y26: NA | Z26: NA | AA26: NA
A27: 37 | B27: 313017 | C27: FAYETTEVILLE PWC | D27: Cumberland | E27: 35.0583 | F27: -78.8583 | G27: 29.3 | H27: .avgnds.ge050hi | I27: 26 | J27: 23 | K27: 25 | L27: 22 | M27: 21 | N27: 31 | O27: 36 | P27: 37 | Q27: 26 | R27: 19 | S27: 21 | T27: 22 | U27: Fayetteville Pwc | V27: Fayetteville | W27: NC | X27: Cumberland | Y27: 35.06 | Z27: -78.86 | AA27: COOP
D28: Currituck | I28: =+I86 -> 27 | J28: =+J86 -> 23 | K28: 26 | L28: 20 | M28: 26 | N28: 31 | O28: 36 | P28: 39 | Q28: 29 | R28: 20 | S28: 24 | T28: 24
A29: 183 | B29: 13766 | C29: MANTEO AP | D29: Dare | E29: 35.9173 | F29: -75.7 | G29: 4 | H29: .avgnds.ge050hi | I29: 33 | J29: 22 | K29: 30 | L29: 25 | M29: 24 | N29: 30 | O29: 37 | P29: 40 | Q29: 27 | R29: 20 | S29: 22 | T29: 25 | U29: NA | V29: NA | W29: NA | X29: NA | Y29: NA | Z29: NA | AA29: NA
A30: 62 | B30: 314970 | C30: LEXINGTON | D30: Davidson | E30: 35.8458 | F30: -80.2597 | G30: 231.6 | H30: .avgnds.ge050hi | I30: 26 | J30: 27 | K30: 29 | L30: 27 | M30: 22 | N30: 29 | O30: 27 | P30: 25 | Q30: 27 | R30: 21 | S30: 24 | T30: 26 | U30: Lexington | V30: Lexington | W30: NC | X30: Davidson | Y30: 35.85 | Z30: -80.26 | AA30: COOP
A31: 69 | B31: 315743 | C31: MOCKSVILLE 5SE | D31: Davie | E31: 35.8438 | F31: -80.4972 | G31: 244.4 | H31: .avgnds.ge050hi | I31: 27 | J31: 26 | K31: 32 | L31: 26 | M31: 21 | N31: 25 | O31: 28 | P31: 24 | Q31: 25 | R31: 23 | S31: 23 | T31: 28 | U31: Mocksville 5se | V31: Mocksville | W31: NC | X31: Davie | Y31: 35.84 | Z31: -80.5 | AA31: COOP
D32: Duplin | I32: =+I87 -> 28 | J32: =+J87 -> 25 | K32: 29 | L32: 24 | M32: 28 | N32: 34 | O32: 43 | P32: 40 | Q32: 35 | R32: 20 | S32: 19 | T32: 21
A33: 29 | B33: 312515 | C33: DURHAM | D33: Durham | E33: 36.0425 | F33: -78.9625 | G33: 121.9 | H33: .avgnds.ge050hi | I33: 28 | J33: 26 | K33: 32 | L33: 24 | M33: 25 | N33: 30 | O33: 29 | P33: 33 | Q33: 23 | R33: 23 | S33: 23 | T33: 28 | U33: Durham | V33: Durham | W33: NC | X33: Durham | Y33: 36.04 | Z33: -78.96 | AA33: COOP
A34: 92 | B34: 317400 | C34: ROCKY MT 8 ESE | D34: Edgecombe | E34: 35.89361 | F34: -77.68056 | G34: 33.5 | H34: .avgnds.ge050hi | I34: 25 | J34: 25 | K34: 30 | L34: 26 | M34: 22 | N34: 28 | O34: 31 | P34: 32 | Q34: 27 | R34: 20 | S34: 20 | T34: 23 | U34: Rocky Mt 8 Ese | V34: Rocky Mount | W34: NC | X34: Edgecombe | Y34: 35.89 | Z34: -77.68 | AA34: COOP
D35: Forsyth | I35: =+I42 -> 27 | J35: =+J42 -> 26 | K35: 30 | L35: 23 | M35: 24 | N35: 31 | O35: 31 | P35: 29 | Q35: 27 | R35: 22 | S35: 25 | T35: 25
A36: 65 | B36: 315123 | C36: LOUISBURG | D36: Franklin | E36: 36.1028 | F36: -78.3039 | G36: 79.2 | H36: .avgnds.ge050hi | I36: 23 | J36: 20 | K36: 30 | L36: 20 | M36: 26 | N36: 26 | O36: 30 | P36: 36 | Q36: 27 | R36: 20 | S36: 23 | T36: 24 | U36: Louisburg | V36: Louisburg | W36: NC | X36: Franklin | Y36: 36.1 | Z36: -78.3 | AA36: COOP
A37: 41 | B37: 313356 | C37: GASTONIA | D37: Gaston | E37: 35.2655 | F37: -81.1433 | G37: 213.4 | H37: .avgnds.ge050hi | I37: 29 | J37: 25 | K37: 27 | L37: 22 | M37: 22 | N37: 25 | O37: 20 | P37: 30 | Q37: 23 | R37: 24 | S37: 20 | T37: 27 | U37: Gastonia | V37: Gastonia | W37: NC | X37: Gaston | Y37: 35.27 | Z37: -81.14 | AA37: COOP
D38: Gates | I38: =+I47 -> 26 | J38: =+J47 -> 26 | K38: 30 | L38: 26 | M38: 31 | N38: 34 | O38: 32 | P38: 30 | Q38: 28 | R38: 25 | S38: 22 | T38: 28
A39: 104 | B39: 318492 | C39: TAPOCO | D39: Graham | E39: 35.45611 | F39: -83.93972 | G39: 338.3 | H39: .avgnds.ge050hi | I39: 31 | J39: 35 | K39: 36 | L39: 31 | M39: 37 | N39: 41 | O39: 38 | P39: 25 | Q39: 25 | R39: 18 | S39: 35 | T39: 35 | U39: Tapoco | V39: Tapoco | W39: NC | X39: Graham | Y39: 35.46 | Z39: -83.94 | AA39: COOP
A40: 153 | B40: 316510 | C40: OXFORD AG | D40: Granville | E40: 36.30222 | F40: -78.61083 | G40: 152.4 | H40: .avgnds.ge050hi | I40: 22 | J40: 19 | K40: 29 | L40: 27 | M40: 26 | N40: 27 | O40: 29 | P40: 28 | Q40: 26 | R40: 19 | S40: 22 | T40: 28 | U40: NA | V40: NA | W40: NA | X40: NA | Y40: NA | Z40: NA | AA40: NA
D41: Greene | I41: =+I55 -> 27 | J41: =+J55 -> 24 | K41: 27 | L41: 21 | M41: 25 | N41: 34 | O41: 37 | P41: 33 | Q41: 30 | R41: 17 | S41: 24 | T41: 24
A42: 48 | B42: 314063 | C42: HIGH POINT | D42: Guilford | E42: 35.96722 | F42: -79.97222 | G42: 274.3 | H42: .avgnds.ge050hi | I42: 27 | J42: 26 | K42: 30 | L42: 23 | M42: 24 | N42: 31 | O42: 31 | P42: 29 | Q42: 27 | R42: 22 | S42: 25 | T42: 25 | U42: High Point | V42: High Point | W42: NC | X42: Guilford | Y42: 35.97 | Z42: -79.97 | AA42: COOP
A43: 35 | B43: 312827 | C43: ENFIELD | D43: Halifax | E43: 36.1686 | F43: -77.675 | G43: 33.5 | H43: .avgnds.ge050hi | I43: 23 | J43: 23 | K43: 32 | L43: 22 | M43: 22 | N43: 23 | O43: 31 | P43: 31 | Q43: 27 | R43: 22 | S43: 23 | T43: 23 | U43: Enfield | V43: Enfield | W43: NC | X43: Halifax | Y43: 36.17 | Z43: -77.68 | AA43: COOP
A44: 28 | B44: 312500 | C44: DUNN 4 NW | D44: Harnett | E44: 35.3247 | F44: -78.6881 | G44: 61 | H44: .avgnds.ge050hi | I44: 27 | J44: 23 | K44: 28 | L44: 21 | M44: 25 | N44: 28 | O44: 38 | P44: 36 | Q44: 26 | R44: 18 | S44: 23 | T44: 24 | U44: Dunn 4 Nw | V44: Dunn | W44: NC | X44: Harnett | Y44: 35.32 | Z44: -78.69 | AA44: COOP
A45: 115 | B45: 319147 | C45: WAYNESVILLE 1 E | D45: Haywood | E45: 35.4866 | F45: -82.9683 | G45: 810.2 | H45: .avgnds.ge050hi | I45: 30 | J45: 30 | K45: 29 | L45: 29 | M45: 29 | N45: 28 | O45: 23 | P45: 26 | Q45: 24 | R45: 16 | S45: 28 | T45: 27 | U45: Waynesville 1 E | V45: Waynesville | W45: NC | X45: Haywood | Y45: 35.49 | Z45: -82.97 | AA45: COOP
A46: 38 | B46: 313106 | C46: FLETCHER 3 W | D46: Henderson | E46: 35.4266 | F46: -82.5574 | G46: 630.9 | H46: .avgnds.ge050hi | I46: 31 | J46: 28 | K46: 29 | L46: 22 | M46: 25 | N46: 32 | O46: 31 | P46: 29 | Q46: 28 | R46: 23 | S46: 24 | T46: 29 | U46: Fletcher 3 W | V46: Fletcher | W46: NC | X46: Henderson | Y46: 35.43 | Z46: -82.56 | AA46: COOP
A47: 76 | B47: 315996 | C47: MURFREESBORO | D47: Hertford | E47: 36.4521 | F47: -77.0803 | G47: 30.5 | H47: .avgnds.ge050hi | I47: 26 | J47: 26 | K47: 30 | L47: 26 | M47: 31 | N47: 34 | O47: 32 | P47: 30 | Q47: 28 | R47: 25 | S47: 22 | T47: 28 | U47: Murfreesboro | V47: Murfreesboro | W47: NC | X47: Hertford | Y47: 36.45 | Z47: -77.08 | AA47: COOP
A48: 132 | B48: 317056 | C48: RAEFORD | D48: Hoke | E48: 34.987 | F48: -79.219 | G48: 76.2 | H48: .avgnds.ge050hi | I48: 28 | J48: 23 | K48: 27 | L48: 23 | M48: 20 | N48: 30 | O48: 29 | P48: 35 | Q48: 27 | R48: 20 | S48: 24 | T48: 21 | U48: NA | V48: NA | W48: NA | X48: NA | Y48: NA | Z48: NA | AA48: NA
D49: Hyde | I49: =+I29 -> 33 | J49: =+J29 -> 22 | K49: 30 | L49: 25 | M49: 24 | N49: 30 | O49: 37 | P49: 40 | Q49: 27 | R49: 20 | S49: 22 | T49: 25
A50: 103 | B50: 318292 | C50: STATESVILLE 2 NNE | D50: Iredell | E50: 35.8099 | F50: -80.8808 | G50: 289.6 | H50: .avgnds.ge050hi | I50: 24 | J50: 25 | K50: 28 | L50: 23 | M50: 23 | N50: 29 | O50: 25 | P50: 24 | Q50: 24 | R50: 23 | S50: 24 | T50: 27 | U50: Statesville 2 Nne | V50: Statesville | W50: NC | X50: Iredell | Y50: 35.81 | Z50: -80.88 | AA50: COOP
A51: 26 | B51: 312200 | C51: CULLOWHEE | D51: Jackson | E51: 35.3116 | F51: -83.1747 | G51: 668.1 | H51: .avgnds.ge050hi | I51: 34 | J51: 34 | K51: 31 | L51: 29 | M51: 30 | N51: 32 | O51: 31 | P51: 29 | Q51: 24 | R51: 20 | S51: 32 | T51: 31 | U51: Cullowhee | V51: Cullowhee | W51: NC | X51: Jackson | Y51: 35.31 | Z51: -83.17 | AA51: COOP
A52: 21 | B52: 311820 | C52: CLAYTON WTP | D52: Johnston | E52: 35.6408 | F52: -78.4633 | G52: 91.4 | H52: .avgnds.ge050hi | I52: 28 | J52: 24 | K52: 34 | L52: 21 | M52: 23 | N52: 28 | O52: 35 | P52: 39 | Q52: 26 | R52: 19 | S52: 22 | T52: 24 | U52: Clayton Wtp | V52: Clayton | W52: NC | X52: Johnston | Y52: 35.64 | Z52: -78.46 | AA52: COOP
A53: 107 | B53: 318706 | C53: TRENTON | D53: Jones | E53: 35.06278 | F53: -77.35472 | G53: 9.1 | H53: .avgnds.ge050hi | I53: 30 | J53: 23 | K53: 28 | L53: 22 | M53: 29 | N53: 32 | O53: 40 | P53: 41 | Q53: 32 | R53: 21 | S53: 20 | T53: 22 | U53: Trenton | V53: Trenton | W53: NC | X53: Jones | Y53: 35.06 | Z53: -77.35 | AA53: COOP
A54: 97 | B54: 317656 | C54: SANFORD 8 NE | D54: Lee | E54: 35.5347 | F54: -79.0464 | G54: 79.9 | H54: .avgnds.ge050hi | I54: 27 | J54: 25 | K54: 29 | L54: 20 | M54: 26 | N54: 29 | O54: 33 | P54: 32 | Q54: 26 | R54: 21 | S54: 24 | T54: 22 | U54: Sanford 8 Ne | V54: Sanford | W54: NC | X54: Lee | Y54: 35.53 | Z54: -79.05 | AA54: COOP
A55: 56 | B55: 314689 | C55: KINSTON AG RSCH | D55: Lenoir | E55: 35.2975 | F55: -77.5722 | G55: 18.3 | H55: .avgnds.ge050hi | I55: 27 | J55: 24 | K55: 27 | L55: 21 | M55: 25 | N55: 34 | O55: 37 | P55: 33 | Q55: 30 | R55: 17 | S55: 24 | T55: 24 | U55: Kinston Ag Rsch | V55: Kinston | W55: NC | X55: Lenoir | Y55: 35.3 | Z55: -77.57 | AA55: COOP
A56: 63 | B56: 314996 | C56: LINCOLNTON 4 W | D56: Lincoln | E56: 35.46056 | F56: -81.32889 | G56: 274.3 | H56: .avgnds.ge050hi | I56: 26 | J56: 26 | K56: 31 | L56: 26 | M56: 27 | N56: 30 | O56: 26 | P56: 25 | Q56: 23 | R56: 27 | S56: 24 | T56: 28 | U56: Lincolnton 4 W | V56: Lincolnton | W56: NC | X56: Lincoln | Y56: 35.46 | Z56: -81.33 | AA56: COOP
A57: 25 | B57: 312102 | C57: COWEETA EXP STN | D57: Macon | E57: 35.0591 | F57: -83.4313 | G57: 685.5 | H57: .avgnds.ge050hi | I57: 41 | J57: 44 | K57: 42 | L57: 35 | M57: 33 | N57: 37 | O57: 32 | P57: 30 | Q57: 31 | R57: 29 | S57: 39 | T57: 44 | U57: Coweeta Exp Stn | V57: Coweeta | W57: NC | X57: Macon | Y57: 35.06 | Z57: -83.43 | AA57: COOP
A58: 51 | B58: 314260 | C58: HOT SPRINGS | D58: Madison | E58: 35.895 | F58: -82.83111 | G58: 425.5 | H58: .avgnds.ge050hi | I58: 20 | J58: 21 | K58: 23 | L58: 24 | M58: 31 | N58: 29 | O58: 35 | P58: 30 | Q58: 25 | R58: 13 | S58: 17 | T58: 16 | U58: Hot Springs | V58: Hot Springs | W58: NC | X58: Madison | Y58: 35.9 | Z58: -82.83 | AA58: COOP
A59: 118 | B59: 319440 | C59: WILLIAMSTON 1 E | D59: Martin | E59: 35.8529 | F59: -77.0306 | G59: 6.1 | H59: .avgnds.ge050hi | I59: 28 | J59: 22 | K59: 28 | L59: 26 | M59: 28 | N59: 29 | O59: 32 | P59: 40 | Q59: 31 | R59: 22 | S59: 21 | T59: 25 | U59: Williamston 1 E | V59: Williamston | W59: NC | X59: Martin | Y59: 35.85 | Z59: -77.03 | AA59: COOP
A60: 67 | B60: 315340 | C60: MARION 2 NW | D60: Mcdowell | E60: 35.663 | F60: -82.0291 | G60: 446.8 | H60: .avgnds.ge050hi | I60: 25 | J60: 28 | K60: 31 | L60: 29 | M60: 30 | N60: 33 | O60: 31 | P60: 30 | Q60: 32 | R60: 21 | S60: 27 | T60: 28 | U60: Marion 2 Nw | V60: Marion | W60: NC | X60: Mcdowell | Y60: 35.66 | Z60: -82.03 | AA60: COOP
A61: 144 | B61: 13881 | C61: CHARLOTTE DOUGLAS AP | D61: Mecklenburg | E61: 35.2236 | F61: -80.9552 | G61: 221.9 | H61: .avgnds.ge050hi | I61: 23 | J61: 23 | K61: 30 | L61: 23 | M61: 20 | N61: 27 | O61: 23 | P61: 26 | Q61: 23 | R61: 20 | S61: 25 | T61: 23 | U61: NA | V61: NA | W61: NA | X61: NA | Y61: NA | Z61: NA | AA61: NA
D62: Mitchell | I62: =+I116 -> 33 | J62: =+J116 -> 32 | K62: 35 | L62: 31 | M62: 34 | N62: 32 | O62: 29 | P62: 30 | Q62: 26 | R62: 23 | S62: 31 | T62: 29
A63: 53 | B63: 314464 | C63: JACKSON SPRINGS 5 WNW | D63: Montgomery | E63: 35.1858 | F63: -79.6772 | G63: 222.5 | H63: .avgnds.ge050hi | I63: 26 | J63: 25 | K63: 28 | L63: 22 | M63: 19 | N63: 27 | O63: 32 | P63: 33 | Q63: 24 | R63: 21 | S63: 24 | T63: 25 | U63: Jackson Springs 5 Wnw | V63: Jackson Springs | W63: NC | X63: Montgomery | Y63: 35.19 | Z63: -79.68 | AA63: COOP
A64: 14 | B64: 311515 | C64: CARTHAGE WTP | D64: Moore | E64: 35.332 | F64: -79.4066 | G64: 134.1 | H64: .avgnds.ge050hi | I64: 29 | J64: 25 | K64: 29 | L64: 19 | M64: 21 | N64: 30 | O64: 34 | P64: 33 | Q64: 25 | R64: 20 | S64: 22 | T64: 25 | U64: Carthage Wtp | V64: Carthage | W64: NC | X64: Moore | Y64: 35.33 | Z64: -79.41 | AA64: COOP
A65: 126 | B65: 13872 | C65: ASHEVILLE | D65: NA | E65: 35.5954 | F65: -82.5568 | G65: 682.1 | H65: .avgnds.ge050hi | I65: 19 | J65: 19 | K65: 20 | L65: 23 | M65: 19 | N65: 23 | O65: 19 | P65: 22 | Q65: 20 | R65: 13 | S65: 19 | T65: 19 | U65: NA | V65: NA | W65: NA | X65: NA | Y65: NA | Z65: NA | AA65: NA
A66: 129 | B66: 3812 | C66: ASHEVILLE AP | D66: NA | E66: 35.43194 | F66: -82.5375 | G66: 645.3 | H66: .avgnds.ge050hi | I66: 25 | J66: 24 | K66: 25 | L66: 25 | M66: 22 | N66: 31 | O66: 30 | P66: 25 | Q66: 27 | R66: 21 | S66: 24 | T66: 24 | U66: NA | V66: NA | W66: NA | X66: NA | Y66: NA | Z66: NA | AA66: NA
A67: 145 | B67: 311420 | C67: CANDLER 1W | D67: NA | E67: 35.54528 | F67: -82.69861 | G67: 718.4 | H67: .avgnds.ge050hi | I67: 27 | J67: 19 | K67: 27 | L67: 25 | M67: 23 | N67: 29 | O67: 24 | P67: 31 | Q67: 25 | R67: 12 | S67: 21 | T67: 19 | U67: NA | V67: NA | W67: NA | X67: NA | Y67: NA | Z67: NA | AA67: NA
A68: 146 | B68: 311437 | C68: CANTO | D68: NA | E68: 35.7044 | F68: -82.7697 | G68: 620.9 | H68: .avgnds.ge050hi | I68: 24 | J68: 23 | K68: 27 | L68: 25 | M68: 23 | N68: 34 | O68: 31 | P68: 26 | Q68: 24 | R68: 12 | S68: 15 | T68: 18 | U68: NA | V68: NA | W68: NA | X68: NA | Y68: NA | Z68: NA | AA68: NA
A69: 147 | B69: 93729 | C69: CAPE HATTERAS AP | D69: NA | E69: 35.2326 | F69: -75.6219 | G69: 3.4 | H69: .avgnds.ge050hi | I69: 34 | J69: 28 | K69: 31 | L69: 26 | M69: 23 | N69: 28 | O69: 31 | P69: 39 | Q69: 34 | R69: 30 | S69: 30 | T69: 30 | U69: NA | V69: NA | W69: NA | X69: NA | Y69: NA | Z69: NA | AA69: NA
A70: 158 | B70: 13754 | C70: CHERRY POINT MCAS | D70: NA | E70: 34.9 | F70: -76.88333 | G70: 8.8 | H70: .avgnds.ge050hi | I70: 28 | J70: 25 | K70: 28 | L70: 21 | M70: 30 | N70: 33 | O70: 49 | P70: 44 | Q70: 36 | R70: 22 | S70: 23 | T70: 25 | U70: NA | V70: NA | W70: NA | X70: NA | Y70: NA | Z70: NA | AA70: NA
A71: 161 | B71: 13786 | C71: ELIZABETH CITY CGAS | D71: NA | E71: 36.26056 | F71: -76.175 | G71: 4 | H71: .avgnds.ge050hi | I71: 16 | J71: 20 | K71: 25 | L71: 19 | M71: 28 | N71: 32 | O71: 33 | P71: 34 | Q71: 25 | R71: 16 | S71: 21 | T71: 20 | U71: NA | V71: NA | W71: NA | X71: NA | Y71: NA | Z71: NA | AA71: NA
A72: 181 | B72: 13714 | C72: FAYETTEVILLE POPE AFB | D72: NA | E72: 35.17389 | F72: -79.00889 | G72: 66.4 | H72: .avgnds.ge050hi | I72: 27 | J72: 25 | K72: 30 | L72: 20 | M72: 20 | N72: 32 | O72: 35 | P72: 31 | Q72: 25 | R72: 22 | S72: 21 | T72: 20 | U72: NA | V72: NA | W72: NA | X72: NA | Y72: NA | Z72: NA | AA72: NA
A73: 154 | B73: 13723 | C73: GREENSBORO AP | D73: NA | E73: 36.08333 | F73: -79.95 | G73: 271.3 | H73: .avgnds.ge050hi | I73: 23 | J73: 20 | K73: 25 | L73: 24 | M73: 24 | N73: 27 | O73: 29 | P73: 23 | Q73: 29 | R73: 22 | S73: 21 | T73: 22 | U73: NA | V73: NA | W73: NA | X73: NA | Y73: NA | Z73: NA | AA73: NA
A74: 125 | B74: 316349 | C74: OCRACOKE | D74: NA | E74: 35.1075 | F74: -75.9872 | G74: 1.2 | H74: .avgnds.ge050hi | I74: 25 | J74: 26 | K74: 23 | L74: 27 | M74: 24 | N74: 26 | O74: 31 | P74: 40 | Q74: 42 | R74: 26 | S74: 22 | T74: 29 | U74: NA | V74: NA | W74: NA | X74: NA | Y74: NA | Z74: NA | AA74: NA
A75: 133 | B75: 13722 | C75: RALEIGH AP | D75: NA | E75: 35.86667 | F75: -78.78333 | G75: 126.8 | H75: .avgnds.ge050hi | I75: 23 | J75: 23 | K75: 30 | L75: 18 | M75: 24 | N75: 23 | O75: 34 | P75: 25 | Q75: 28 | R75: 19 | S75: 23 | T75: 22 | U75: NA | V75: NA | W75: NA | X75: NA | Y75: NA | Z75: NA | AA75: NA
A76: 188 | B76: 317725 | C76: SCOTLAND NECK #2 | D76: NA | E76: 36.1369 | F76: -77.4231 | G76: 30.5 | H76: .avgnds.ge050hi | I76: 26 | J76: 20 | K76: 30 | L76: 24 | M76: 24 | N76: 29 | O76: 34 | P76: 33 | Q76: 31 | R76: 19 | S76: 20 | T76: 26 | U76: NA | V76: NA | W76: NA | X76: NA | Y76: NA | Z76: NA | AA76: NA
A77: 167 | B77: 319354 | C77: WHITEVILLE 5 S | D77: NA | E77: 34.2572 | F77: -78.6872 | G77: 15.2 | H77: .avgnds.ge050hi | I77: 29 | J77: 24 | K77: 24 | L77: 21 | M77: 26 | N77: 32 | O77: 38 | P77: 39 | Q77: 34 | R77: 22 | S77: 27 | T77: 23 | U77: NA | V77: NA | W77: NA | X77: NA | Y77: NA | Z77: NA | AA77: NA
A78: 180 | B78: 13748 | C78: WILMINGTON INTL AP | D78: NA | E78: 34.2675 | F78: -77.8997 | G78: 10.1 | H78: .avgnds.ge050hi | I78: 26 | J78: 26 | K78: 28 | L78: 15 | M78: 25 | N78: 34 | O78: 45 | P78: 44 | Q78: 37 | R78: 22 | S78: 20 | T78: 25 | U78: NA | V78: NA | W78: NA | X78: NA | Y78: NA | Z78: NA | AA78: NA
A79: 166 | B79: 319923 | C79: ZEBULON 3 SW | D79: NA | E79: 35.7878 | F79: -78.3497 | G79: 79.2 | H79: .avgnds.ge050hi | I79: 28 | J79: 22 | K79: 33 | L79: 23 | M79: 26 | N79: 24 | O79: 33 | P79: 35 | Q79: 26 | R79: 21 | S79: 28 | T79: 24 | U79: NA | V79: NA | W79: NA | X79: NA | Y79: NA | Z79: NA | AA79: NA
A80: 91 | B80: 317395 | C80: ROCKY MOUNT | D80: Nash | E80: 35.952 | F80: -77.8184 | G80: 39.6 | H80: .avgnds.ge050hi | I80: 24 | J80: 23 | K80: 30 | L80: 23 | M80: 22 | N80: 27 | O80: 33 | P80: 36 | Q80: 24 | R80: 21 | S80: 19 | T80: 26 | U80: Rocky Mount | V80: Rocky Mount | W80: NC | X80: Nash | Y80: 35.95 | Z80: -77.82 | AA80: COOP
A81: 119 | B81: 319467 | C81: WILMINGTON 7 N | D81: New Hanover | E81: 34.3208 | F81: -77.9205 | G81: 12.2 | H81: .avgnds.ge050hi | I81: 29 | J81: 25 | K81: 28 | L81: 19 | M81: 26 | N81: 33 | O81: 48 | P81: 43 | Q81: 39 | R81: 22 | S81: 20 | T81: 26 | U81: Wilmington 7 N | V81: Wilmington | W81: NC | X81: New Hanover | Y81: 34.32 | Z81: -77.92 | AA81: COOP
A82: 52 | B82: 314456 | C82: JACKSON | D82: Northampton | E82: 36.3967 | F82: -77.4239 | G82: 39.6 | H82: .avgnds.ge050hi | I82: 25 | J82: 20 | K82: 32 | L82: 22 | M82: 28 | N82: 25 | O82: 34 | P82: 34 | Q82: 25 | R82: 20 | S82: 21 | T82: 22 | U82: Jackson | V82: Jackson | W82: NC | X82: Northampton | Y82: 36.4 | Z82: -77.42 | AA82: COOP
A83: 50 | B83: 314144 | C83: HOFMANN FOREST | D83: Onslow | E83: 34.8358 | F83: -77.303 | G83: 14.3 | H83: .avgnds.ge050hi | I83: 32 | J83: 25 | K83: 30 | L83: 22 | M83: 28 | N83: 35 | O83: 44 | P83: 50 | Q83: 33 | R83: 21 | S83: 23 | T83: 24 | U83: Hofmann Forest | V83: Maysville | W83: NC | X83: Onslow | Y83: 34.84 | Z83: -77.3 | AA83: COOP
A84: 20 | B84: 311677 | C84: CHAPEL HILL 2 W | D84: Orange | E84: 35.9086 | F84: -79.0794 | G84: 152.4 | H84: .avgnds.ge050hi | I84: 27 | J84: 27 | K84: 30 | L84: 22 | M84: 26 | N84: 26 | O84: 30 | P84: 29 | Q84: 25 | R84: 23 | S84: 25 | T84: 24 | U84: Chapel Hill 2 W | V84: Chapel Hill | W84: NC | X84: Orange | Y84: 35.91 | Z84: -79.08 | AA84: COOP
A85: 6 | B85: 310576 | C85: BAYBORO 3 SW | D85: Pamlico | E85: 35.1311 | F85: -76.816 | G85: 1.5 | H85: .avgnds.ge050hi | I85: 27 | J85: 22 | K85: 29 | L85: 24 | M85: 29 | N85: 37 | O85: 43 | P85: 44 | Q85: 34 | R85: 25 | S85: 22 | T85: 23 | U85: Bayboro 3 Sw | V85: Bayboro | W85: NC | X85: Pamlico | Y85: 35.13 | Z85: -76.82 | AA85: COOP
A86: 32 | B86: 312719 | C86: ELIZABETH CITY | D86: Pasquotank | E86: 36.30972 | F86: -76.205 | G86: 2.4 | H86: .avgnds.ge050hi | I86: 27 | J86: 23 | K86: 26 | L86: 20 | M86: 26 | N86: 31 | O86: 36 | P86: 39 | Q86: 29 | R86: 20 | S86: 24 | T86: 24 | U86: Elizabeth City | V86: Elizabeth City | W86: NC | X86: Pasquotank | Y86: 36.31 | Z86: -76.21 | AA86: COOP
A87: 117 | B87: 319423 | C87: WILLARD 4 SW | D87: Pender | E87: 34.6612 | F87: -78.0455 | G87: 16.8 | H87: .avgnds.ge050hi | I87: 28 | J87: 25 | K87: 29 | L87: 24 | M87: 28 | N87: 34 | O87: 43 | P87: 40 | Q87: 35 | R87: 20 | S87: 19 | T87: 21 | U87: Willard 4 Sw | V87: Willard | W87: NC | X87: Pender | Y87: 34.66 | Z87: -78.05 | AA87: COOP
D88: Perquimans | I88: =+I86 -> 27 | J88: =+J86 -> 23 | K88: 26 | L88: 20 | M88: 26 | N88: 31 | O88: 36 | P88: 39 | Q88: 29 | R88: 20 | S88: 24 | T88: 24
A89: 94 | B89: 317516 | C89: ROXBORO 7 ESE | D89: Person | E89: 36.3464 | F89: -78.8858 | G89: 216.4 | H89: .avgnds.ge050hi | I89: 26 | J89: 24 | K89: 33 | L89: 26 | M89: 22 | N89: 24 | O89: 31 | P89: 27 | Q89: 23 | R89: 25 | S89: 26 | T89: 28 | U89: Roxboro 7 Ese | V89: Roxboro | W89: NC | X89: Person | Y89: 36.35 | Z89: -78.89 | AA89: COOP
A90: 44 | B90: 313638 | C90: GREENVILLE | D90: Pitt | E90: 35.64 | F90: -77.3984 | G90: 9.8 | H90: .avgnds.ge050hi | I90: 27 | J90: 24 | K90: 30 | L90: 22 | M90: 25 | N90: 28 | O90: 38 | P90: 36 | Q90: 31 | R90: 19 | S90: 24 | T90: 23 | U90: Greenville | V90: Greenville | W90: NC | X90: Pitt | Y90: 35.64 | Z90: -77.4 | AA90: COOP
A91: 108 | B91: 318744 | C91: TRYON | D91: Polk | E91: 35.2058 | F91: -82.2516 | G91: 365.8 | H91: .avgnds.ge050hi | I91: 34 | J91: 35 | K91: 37 | L91: 32 | M91: 29 | N91: 35 | O91: 33 | P91: 31 | Q91: 32 | R91: 28 | S91: 29 | T91: 36 | U91: Tryon | V91: Tryon | W91: NC | X91: Polk | Y91: 35.21 | Z91: -82.25 | AA91: COOP
A92: 3 | B92: 310286 | C92: ASHEBORO 2 W | D92: Randolph | E92: 35.70444 | F92: -79.83778 | G92: 265.2 | H92: .avgnds.ge050hi | I92: 25 | J92: 27 | K92: 32 | L92: 24 | M92: 26 | N92: 26 | O92: 27 | P92: 26 | Q92: 26 | R92: 22 | S92: 24 | T92: 22 | U92: Asheboro 2 W | V92: Asheboro | W92: NC | X92: Randolph | Y92: 35.7 | Z92: -79.84 | AA92: COOP
D93: Richmond | I93: =+I99 -> 26 | J93: =+J99 -> 27 | K93: 28 | L93: 20 | M93: 23 | N93: 31 | O93: 33 | P93: 34 | Q93: 27 | R93: 21 | S93: 20 | T93: 21
A94: 66 | B94: 315177 | C94: LUMBERTON | D94: Robeson | E94: 34.6269 | F94: -79.025 | G94: 34.1 | H94: .avgnds.ge050hi | I94: 27 | J94: 26 | K94: 27 | L94: 24 | M94: 23 | N94: 30 | O94: 43 | P94: 39 | Q94: 26 | R94: 19 | S94: 23 | T94: 21 | U94: Lumberton | V94: Lumberton | W94: NC | X94: Robeson | Y94: 34.63 | Z94: -79.03 | AA94: COOP
A95: 88 | B95: 317202 | C95: REIDSVILLE 2 NW | D95: Rockingham | E95: 36.3825 | F95: -79.6947 | G95: 271.3 | H95: .avgnds.ge050hi | I95: 27 | J95: 26 | K95: 29 | L95: 26 | M95: 24 | N95: 27 | O95: 33 | P95: 23 | Q95: 24 | R95: 22 | S95: 25 | T95: 25 | U95: Reidsville 2 Nw | V95: Reidsville | W95: NC | X95: Rockingham | Y95: 36.38 | Z95: -79.69 | AA95: COOP
A96: 96 | B96: 317618 | C96: SALISBURY 9 WNW | D96: Rowan | E96: 35.6966 | F96: -80.6227 | G96: 251.5 | H96: .avgnds.ge050hi | I96: 26 | J96: 24 | K96: 30 | L96: 24 | M96: 21 | N96: 27 | O96: 23 | P96: 25 | Q96: 27 | R96: 20 | S96: 19 | T96: 24 | U96: Salisbury 9 Wnw | V96: Salisbury | W96: NC | X96: Rowan | Y96: 35.7 | Z96: -80.62 | AA96: COOP
A97: 57 | B97: 314764 | C97: LAKE LURE 2 | D97: Rutherford | E97: 35.4205 | F97: -82.1877 | G97: 317 | H97: .avgnds.ge050hi | I97: 31 | J97: 28 | K97: 28 | L97: 28 | M97: 24 | N97: 31 | O97: 24 | P97: 33 | Q97: 26 | R97: 25 | S97: 26 | T97: 24 | U97: Lake Lure 2 | V97: Lake Lure | W97: NC | X97: Rutherford | Y97: 35.42 | Z97: -82.19 | AA97: COOP
A98: 22 | B98: 311881 | C98: CLINTON 2 NE | D98: Sampson | E98: 35.0247 | F98: -78.2758 | G98: 48.2 | H98: .avgnds.ge050hi | I98: 25 | J98: 21 | K98: 23 | L98: 19 | M98: 23 | N98: 32 | O98: 38 | P98: 36 | Q98: 28 | R98: 17 | S98: 20 | T98: 26 | U98: Clinton 2 Ne | V98: Clinton | W98: NC | X98: Sampson | Y98: 35.02 | Z98: -78.28 | AA98: COOP
A99: 59 | B99: 314860 | C99: LAURINBURG | D99: Scotland | E99: 34.7508 | F99: -79.4664 | G99: 64 | H99: .avgnds.ge050hi | I99: 26 | J99: 27 | K99: 28 | L99: 20 | M99: 23 | N99: 31 | O99: 33 | P99: 34 | Q99: 27 | R99: 21 | S99: 20 | T99: 21 | U99: Laurinburg | V99: Laurinburg | W99: NC | X99: Scotland | Y99: 34.75 | Z99: -79.47 | AA99: COOP
A100: 1 | B100: 310090 | C100: ALBEMARLE | D100: Stanly | E100: 35.39917 | F100: -80.19944 | G100: 185.9 | H100: .avgnds.ge050hi | I100: 25 | J100: 26 | K100: 34 | L100: 22 | M100: 26 | N100: 32 | O100: 36 | P100: 27 | Q100: 25 | R100: 22 | S100: 24 | T100: 24 | U100: Albemarle | V100: Albemarle | W100: NC | X100: Stanly | Y100: 35.4 | Z100: -80.2 | AA100: COOP
A101: 27 | B101: 312238 | C101: DANBURY | D101: Stokes | E101: 36.4147 | F101: -80.2169 | G101: 256 | H101: .avgnds.ge050hi | I101: 24 | J101: 23 | K101: 31 | L101: 25 | M101: 31 | N101: 29 | O101: 36 | P101: 24 | Q101: 29 | R101: 23 | S101: 21 | T101: 27 | U101: Danbury | V101: Danbury | W101: NC | X101: Stokes | Y101: 36.41 | Z101: -80.22 | AA101: COOP
A102: 34 | B102: 312740 | C102: ELKIN | D102: Surry | E102: 36.2544 | F102: -80.865 | G102: 265.2 | H102: .avgnds.ge050hi | I102: 25 | J102: 24 | K102: 30 | L102: 26 | M102: 24 | N102: 28 | O102: 34 | P102: 26 | Q102: 27 | R102: 21 | S102: 21 | T102: 26 | U102: Elkin | V102: Elkin | W102: NC | X102: Surry | Y102: 36.25 | Z102: -80.87 | AA102: COOP
A103: 80 | B103: 316341 | C103: OCONALUFTEE | D103: Swain | E103: 35.5261 | F103: -83.3089 | G103: 621.8 | H103: .avgnds.ge050hi | I103: 35 | J103: 34 | K103: 34 | L103: 28 | M103: 36 | N103: 32 | O103: 31 | P103: 26 | Q103: 29 | R103: 19 | S103: 32 | T103: 33 | U103: Oconaluftee | V103: Oconaluftee | W103: NC | X103: Swain | Y103: 35.53 | Z103: -83.31 | AA103: COOP
A104: 10 | B104: 311055 | C104: BREVARD | D104: Transylvania | E104: 35.2283 | F104: -82.7358 | G104: 676.7 | H104: .avgnds.ge050hi | I104: 37 | J104: 38 | K104: 36 | L104: 31 | M104: 34 | N104: 43 | O104: 37 | P104: 37 | Q104: 32 | R104: 32 | S104: 35 | T104: 42 | U104: Brevard | V104: Brevard | W104: NC | X104: Transylvania | Y104: 35.23 | Z104: -82.74 | AA104: COOP
D105: Tyrrell | I105: =+I29 -> 33 | J105: =+J29 -> 22 | K105: 30 | L105: 25 | M105: 24 | N105: 30 | O105: 37 | P105: 40 | Q105: 27 | R105: 20 | S105: 22 | T105: 25
A106: 70 | B106: 315771 | C106: MONROE 2 SE | D106: Union | E106: 34.97972 | F106: -80.52333 | G106: 167.6 | H106: .avgnds.ge050hi | I106: 30 | J106: 26 | K106: 29 | L106: 22 | M106: 22 | N106: 30 | O106: 30 | P106: 32 | Q106: 24 | R106: 27 | S106: 24 | T106: 25 | U106: Monroe 2 Se | V106: Monroe | W106: NC | X106: Union | Y106: 34.98 | Z106: -80.52 | AA106: COOP
A107: 46 | B107: 313969 | C107: HENDERSON 2 NNW | D107: Vance | E107: 36.3481 | F107: -78.4119 | G107: 146.3 | H107: .avgnds.ge050hi | I107: 28 | J107: 20 | K107: 29 | L107: 26 | M107: 27 | N107: 31 | O107: 33 | P107: 27 | Q107: 24 | R107: 21 | S107: 25 | T107: 26 | U107: Henderson 2 Nnw | V107: Henderson | W107: NC | X107: Vance | Y107: 36.35 | Z107: -78.41 | AA107: COOP
A108: 84 | B108: 317074 | C108: RALEIGH 4 SW | D108: Wake | E108: 35.7294 | F108: -78.6838 | G108: 128 | H108: .avgnds.ge050hi | I108: 29 | J108: 28 | K108: 32 | L108: 20 | M108: 26 | N108: 32 | O108: 34 | P108: 30 | Q108: 26 | R108: 24 | S108: 26 | T108: 22 | U108: Raleigh 4 Sw | V108: Raleigh | W108: NC | X108: Wake | Y108: 35.73 | Z108: -78.68 | AA108: COOP
A109: 2 | B109: 310241 | C109: ARCOLA | D109: Warren | E109: 36.2911 | F109: -77.9822 | G109: 100.6 | H109: .avgnds.ge050hi | I109: 26 | J109: 23 | K109: 36 | L109: 25 | M109: 25 | N109: 30 | O109: 35 | P109: 35 | Q109: 26 | R109: 23 | S109: 26 | T109: 25 | U109: Arcola | V109: Arcola | W109: NC | X109: Warren | Y109: 36.29 | Z109: -77.98 | AA109: COOP
A110: 83 | B110: 316853 | C110: PLYMOUTH 5 E | D110: Washington | E110: 35.8723 | F110: -76.6592 | G110: 6.1 | H110: .avgnds.ge050hi | I110: 27 | J110: 25 | K110: 30 | L110: 25 | M110: 26 | N110: 34 | O110: 37 | P110: 42 | Q110: 31 | R110: 19 | S110: 23 | T110: 22 | U110: Plymouth 5 E | V110: Plymouth | W110: NC | X110: Washington | Y110: 35.87 | Z110: -76.66 | AA110: COOP
A111: 9 | B111: 310982 | C111: BOONE 1 SE | D111: Watauga | E111: 36.2114 | F111: -81.6442 | G111: 1024.1 | H111: .avgnds.ge050hi | I111: 21 | J111: 27 | K111: 30 | L111: 30 | M111: 30 | N111: 33 | O111: 34 | P111: 32 | Q111: 27 | R111: 19 | S111: 28 | T111: 22 | U111: Boone 1 Se | V111: Boone | W111: NC | X111: Watauga | Y111: 36.21 | Z111: -81.64 | AA111: COOP
A112: 151 | B112: 13713 | C112: GOLDSBORO 4 SE | D112: Wayne | E112: 35.3444 | F112: -77.9647 | G112: 33.2 | H112: .avgnds.ge050hi | I112: 29 | J112: 27 | K112: 29 | L112: 25 | M112: 25 | N112: 28 | O112: 32 | P112: 40 | Q112: 33 | R112: 19 | S112: 19 | T112: 19 | U112: NA | V112: NA | W112: NA | X112: NA | Y112: NA | Z112: NA | AA112: NA
A113: 79 | B113: 316256 | C113: NORTH WILKESBORO | D113: Wilkes | E113: 36.1631 | F113: -81.1494 | G113: 341.4 | H113: .avgnds.ge050hi | I113: 29 | J113: 27 | K113: 35 | L113: 30 | M113: 26 | N113: 31 | O113: 35 | P113: 26 | Q113: 30 | R113: 24 | S113: 27 | T113: 27 | U113: North Wilkesboro | V113: North Wilkesboro | W113: NC | X113: Wilkes | Y113: 36.16 | Z113: -81.15 | AA113: COOP
A114: 120 | B114: 319476 | C114: WILSON 3 SW | D114: Wilson | E114: 35.69389 | F114: -77.94556 | G114: 33.5 | H114: .avgnds.ge050hi | I114: 28 | J114: 24 | K114: 31 | L114: 20 | M114: 28 | N114: 26 | O114: 35 | P114: 33 | Q114: 30 | R114: 20 | S114: 23 | T114: 24 | U114: Wilson 3 Sw | V114: Wilson | W114: NC | X114: Wilson | Y114: 35.69 | Z114: -77.95 | AA114: COOP
A115: 121 | B115: 319675 | C115: YADKINVILLE 6 E | D115: Yadkin | E115: 36.1306 | F115: -80.5481 | G115: 266.7 | H115: .avgnds.ge050hi | I115: 26 | J115: 24 | K115: 30 | L115: 24 | M115: 23 | N115: 29 | O115: 34 | P115: 21 | Q115: 27 | R115: 22 | S115: 22 | T115: 28 | U115: Yadkinville 6 E | V115: Yadkinville | W115: NC | X115: Yadkin | Y115: 36.13 | Z115: -80.55 | AA115: COOP
A116: 19 | B116: 311624 | C116: CELO 2 S | D116: Yancey | E116: 35.8297 | F116: -82.1769 | G116: 816.9 | H116: .avgnds.ge050hi | I116: 33 | J116: 32 | K116: 35 | L116: 31 | M116: 34 | N116: 32 | O116: 29 | P116: 30 | Q116: 26 | R116: 23 | S116: 31 | T116: 29 | U116: Celo 2 S | V116: Celo | W116: NC | X116: Yancey | Y116: 35.83 | Z116: -82.18 | AA116: COOP

Sheet ET.county
A1: County | B1: ET Region | C1: 1 | D1: 2 | E1: 3 | F1: 4 | G1: 5 | H1: 6 | I1: 7 | J1: 8 | K1: 9 | L1: 10 | M1: 11 | N1: 12
A2: Alamance | B2: Raleigh | C2: =INDEX(ET.region!$A$51:$M$61,MATCH(ET.county!$B2,ET.region!$A$51:$A$61,0),MATCH(ET.county!C$1,ET.region!$A$51:$M$51,0)) -> 1.562204724 | D2: =INDEX(ET.region!$A$51:$M$61,MATCH(ET.county!$B2,ET.region!$A$51:$A$61,0),MATCH(ET.county!D$1,ET.region!$A$51:$M$51,0)) -> 2.050393701 | E2: =INDEX(ET.region!$A$51:$M$61,MATCH(ET.county!$B2,ET.region!$A$51:$A$61,0),MATCH(ET.county!E$1,ET.region!$A$51:$M$51,0)) -> 3.502755906 | F2: =INDEX(ET.region!$A$51:$M$61,MATCH(ET.county!$B2,ET.region!$A$51:$A$61,0),MATCH(ET.county!F$1,ET.region!$A$51:$M$51,0)) -> 4.937007874 | G2: =INDEX(ET.region!$A$51:$M$61,MATCH(ET.county!$B2,ET.region!$A$51:$A$61,0),MATCH(ET.county!G$1,ET.region!$A$51:$M$51,0)) -> 6.212204724 | H2: =INDEX(ET.region!$A$51:$M$61,MATCH(ET.county!$B2,ET.region!$A$51:$A$61,0),MATCH(ET.county!H$1,ET.region!$A$51:$M$51,0)) -> 6.696850394 | I2: =INDEX(ET.region!$A$51:$M$61,MATCH(ET.county!$B2,ET.region!$A$51:$A$61,0),MATCH(ET.county!I$1,ET.region!$A$51:$M$51,0)) -> 6.944488189 | J2: =INDEX(ET.region!$A$51:$M$61,MATCH(ET.county!$B2,ET.region!$A$51:$A$61,0),MATCH(ET.county!J$1,ET.region!$A$51:$M$51,0)) -> 6.212204724 | K2: =INDEX(ET.region!$A$51:$M$61,MATCH(ET.county!$B2,ET.region!$A$51:$A$61,0),MATCH(ET.county!K$1,ET.region!$A$51:$M$51,0)) -> 4.75984252 | L2: =INDEX(ET.region!$A$51:$M$61,MATCH(ET.county!$B2,ET.region!$A$51:$A$61,0),MATCH(ET.county!L$1,ET.region!$A$51:$M$51,0)) -> 3.441732283 | M2: =INDEX(ET.region!$A$51:$M$61,MATCH(ET.county!$B2,ET.region!$A$51:$A$61,0),MATCH(ET.county!M$1,ET.region!$A$51:$M$51,0)) -> 2.149606299 | N2: =INDEX(ET.region!$A$51:$M$61,MATCH(ET.county!$B2,ET.region!$A$51:$A$61,0),MATCH(ET.county!N$1,ET.region!$A$51:$M$51,0)) -> 1.513385827
A3: Alexander | B3: Lenoir | C3: =INDEX(ET.region!$A$51:$M$61,MATCH(ET.county!$B3,ET.region!$A$51:$A$61,0),MATCH(ET.county!C$1,ET.region!$A$51:$M$51,0)) -> 1.452362205 | D3: =INDEX(ET.region!$A$51:$M$61,MATCH(ET.county!$B3,ET.region!$A$51:$A$61,0),MATCH(ET.county!D$1,ET.region!$A$51:$M$51,0)) -> 1.88503937 | E3: =INDEX(ET.region!$A$51:$M$61,MATCH(ET.county!$B3,ET.region!$A$51:$A$61,0),MATCH(ET.county!E$1,ET.region!$A$51:$M$51,0)) -> 3.161023622 | F3: =INDEX(ET.region!$A$51:$M$61,MATCH(ET.county!$B3,ET.region!$A$51:$A$61,0),MATCH(ET.county!F$1,ET.region!$A$51:$M$51,0)) -> 4.346456693 | G3: =INDEX(ET.region!$A$51:$M$61,MATCH(ET.county!$B3,ET.region!$A$51:$A$61,0),MATCH(ET.county!G$1,ET.region!$A$51:$M$51,0)) -> 5.333464567 | H3: =INDEX(ET.region!$A$51:$M$61,MATCH(ET.county!$B3,ET.region!$A$51:$A$61,0),MATCH(ET.county!H$1,ET.region!$A$51:$M$51,0)) -> 5.57480315 | I3: =INDEX(ET.region!$A$51:$M$61,MATCH(ET.county!$B3,ET.region!$A$51:$A$61,0),MATCH(ET.county!I$1,ET.region!$A$51:$M$51,0)) -> 5.67519685 | J3: =INDEX(ET.region!$A$51:$M$61,MATCH(ET.county!$B3,ET.region!$A$51:$A$61,0),MATCH(ET.county!J$1,ET.region!$A$51:$M$51,0)) -> 5.089370079 | K3: =INDEX(ET.region!$A$51:$M$61,MATCH(ET.county!$B3,ET.region!$A$51:$A$61,0),MATCH(ET.county!K$1,ET.region!$A$51:$M$51,0)) -> 4.015748031 | L3: =INDEX(ET.region!$A$51:$M$61,MATCH(ET.county!$B3,ET.region!$A$51:$A$61,0),MATCH(ET.county!L$1,ET.region!$A$51:$M$51,0)) -> 3.063385827 | M3: =INDEX(ET.region!$A$51:$M$61,MATCH(ET.county!$B3,ET.region!$A$51:$A$61,0),MATCH(ET.county!M$1,ET.region!$A$51:$M$51,0)) -> 1.960629921 | N3: =INDEX(ET.region!$A$51:$M$61,MATCH(ET.county!$B3,ET.region!$A$51:$A$61,0),MATCH(ET.county!N$1,ET.region!$A$51:$M$51,0)) -> 1.391338583
A4: Alleghany | B4: Fletcher | C4: =INDEX(ET.region!$A$51:$M$61,MATCH(ET.county!$B4,ET.region!$A$51:$A$61,0),MATCH(ET.county!C$1,ET.region!$A$51:$M$51,0)) -> 1.391338583 | D4: =INDEX(ET.region!$A$51:$M$61,MATCH(ET.county!$B4,ET.region!$A$51:$A$61,0),MATCH(ET.county!D$1,ET.region!$A$51:$M$51,0)) -> 1.77480315 | E4: =INDEX(ET.region!$A$51:$M$61,MATCH(ET.county!$B4,ET.region!$A$51:$A$61,0),MATCH(ET.county!E$1,ET.region!$A$51:$M$51,0)) -> 3.063385827 | F4: =INDEX(ET.region!$A$51:$M$61,MATCH(ET.county!$B4,ET.region!$A$51:$A$61,0),MATCH(ET.county!F$1,ET.region!$A$51:$M$51,0)) -> 4.417322835 | G4: =INDEX(ET.region!$A$51:$M$61,MATCH(ET.county!$B4,ET.region!$A$51:$A$61,0),MATCH(ET.county!G$1,ET.region!$A$51:$M$51,0)) -> 5.736220472 | H4: =INDEX(ET.region!$A$51:$M$61,MATCH(ET.county!$B4,ET.region!$A$51:$A$61,0),MATCH(ET.county!H$1,ET.region!$A$51:$M$51,0)) -> 6.307086614 | I4: =INDEX(ET.region!$A$51:$M$61,MATCH(ET.county!$B4,ET.region!$A$51:$A$61,0),MATCH(ET.county!I$1,ET.region!$A$51:$M$51,0)) -> 6.541732283 | J4: =INDEX(ET.region!$A$51:$M$61,MATCH(ET.county!$B4,ET.region!$A$51:$A$61,0),MATCH(ET.county!J$1,ET.region!$A$51:$M$51,0)) -> 5.931496063 | K4: =INDEX(ET.region!$A$51:$M$61,MATCH(ET.county!$B4,ET.region!$A$51:$A$61,0),MATCH(ET.county!K$1,ET.region!$A$51:$M$51,0)) -> 4.511811024 | L4: =INDEX(ET.region!$A$51:$M$61,MATCH(ET.county!$B4,ET.region!$A$51:$A$61,0),MATCH(ET.county!L$1,ET.region!$A$51:$M$51,0)) -> 3.270866142 | M4: =INDEX(ET.region!$A$51:$M$61,MATCH(ET.county!$B4,ET.region!$A$51:$A$61,0),MATCH(ET.county!M$1,ET.region!$A$51:$M$51,0)) -> 1.972440945 | N4: =INDEX(ET.region!$A$51:$M$61,MATCH(ET.county!$B4,ET.region!$A$51:$A$61,0),MATCH(ET.county!N$1,ET.region!$A$51:$M$51,0)) -> 1.354724409
A5: Anson | B5: Jackson.Springs | C5: =INDEX(ET.region!$A$51:$M$61,MATCH(ET.county!$B5,ET.region!$A$51:$A$61,0),MATCH(ET.county!C$1,ET.region!$A$51:$M$51,0)) -> 1.501181102 | D5: =INDEX(ET.region!$A$51:$M$61,MATCH(ET.county!$B5,ET.region!$A$51:$A$61,0),MATCH(ET.county!D$1,ET.region!$A$51:$M$51,0)) -> 1.962204724 | E5: =INDEX(ET.region!$A$51:$M$61,MATCH(ET.county!$B5,ET.region!$A$51:$A$61,0),MATCH(ET.county!E$1,ET.region!$A$51:$M$51,0)) -> 3.40511811 | F5: =INDEX(ET.region!$A$51:$M$61,MATCH(ET.county!$B5,ET.region!$A$51:$A$61,0),MATCH(ET.county!F$1,ET.region!$A$51:$M$51,0)) -> 4.866141732 | G5: =INDEX(ET.region!$A$51:$M$61,MATCH(ET.county!$B5,ET.region!$A$51:$A$61,0),MATCH(ET.county!G$1,ET.region!$A$51:$M$51,0)) -> 6.175590551 | H5: =INDEX(ET.region!$A$51:$M$61,MATCH(ET.county!$B5,ET.region!$A$51:$A$61,0),MATCH(ET.county!H$1,ET.region!$A$51:$M$51,0)) -> 6.744094488 | I5: =INDEX(ET.region!$A$51:$M$61,MATCH(ET.county!$B5,ET.region!$A$51:$A$61,0),MATCH(ET.county!I$1,ET.region!$A$51:$M$51,0)) -> 7.005511811 | J5: =INDEX(ET.region!$A$51:$M$61,MATCH(ET.county!$B5,ET.region!$A$51:$A$61,0),MATCH(ET.county!J$1,ET.region!$A$51:$M$51,0)) -> 6.224409449 | K5: =INDEX(ET.region!$A$51:$M$61,MATCH(ET.county!$B5,ET.region!$A$51:$A$61,0),MATCH(ET.county!K$1,ET.region!$A$51:$M$51,0)) -> 4.771653543 | L5: =INDEX(ET.region!$A$51:$M$61,MATCH(ET.county!$B5,ET.region!$A$51:$A$61,0),MATCH(ET.county!L$1,ET.region!$A$51:$M$51,0)) -> 3.40511811 | M5: =INDEX(ET.region!$A$51:$M$61,MATCH(ET.county!$B5,ET.region!$A$51:$A$61,0),MATCH(ET.county!M$1,ET.region!$A$51:$M$51,0)) -> 2.090551181 | N5: =INDEX(ET.region!$A$51:$M$61,MATCH(ET.county!$B5,ET.region!$A$51:$A$61,0),MATCH(ET.county!N$1,ET.region!$A$51:$M$51,0)) -> 1.488976378
A6: Ashe | B6: Fletcher | C6: =INDEX(ET.region!$A$51:$M$61,MATCH(ET.county!$B6,ET.region!$A$51:$A$61,0),MATCH(ET.county!C$1,ET.region!$A$51:$M$51,0)) -> 1.391338583 | D6: =INDEX(ET.region!$A$51:$M$61,MATCH(ET.county!$B6,ET.region!$A$51:$A$61,0),MATCH(ET.county!D$1,ET.region!$A$51:$M$51,0)) -> 1.77480315 | E6: =INDEX(ET.region!$A$51:$M$61,MATCH(ET.county!$B6,ET.region!$A$51:$A$61,0),MATCH(ET.county!E$1,ET.region!$A$51:$M$51,0)) -> 3.063385827 | F6: =INDEX(ET.region!$A$51:$M$61,MATCH(ET.county!$B6,ET.region!$A$51:$A$61,0),MATCH(ET.county!F$1,ET.region!$A$51:$M$51,0)) -> 4.417322835 | G6: =INDEX(ET.region!$A$51:$M$61,MATCH(ET.county!$B6,ET.region!$A$51:$A$61,0),MATCH(ET.county!G$1,ET.region!$A$51:$M$51,0)) -> 5.736220472 | H6: =INDEX(ET.region!$A$51:$M$61,MATCH(ET.county!$B6,ET.region!$A$51:$A$61,0),MATCH(ET.county!H$1,ET.region!$A$51:$M$51,0)) -> 6.307086614 | I6: =INDEX(ET.region!$A$51:$M$61,MATCH(ET.county!$B6,ET.region!$A$51:$A$61,0),MATCH(ET.county!I$1,ET.region!$A$51:$M$51,0)) -> 6.541732283 | J6: =INDEX(ET.region!$A$51:$M$61,MATCH(ET.county!$B6,ET.region!$A$51:$A$61,0),MATCH(ET.county!J$1,ET.region!$A$51:$M$51,0)) -> 5.931496063 | K6: =INDEX(ET.region!$A$51:$M$61,MATCH(ET.county!$B6,ET.region!$A$51:$A$61,0),MATCH(ET.county!K$1,ET.region!$A$51:$M$51,0)) -> 4.511811024 | L6: =INDEX(ET.region!$A$51:$M$61,MATCH(ET.county!$B6,ET.region!$A$51:$A$61,0),MATCH(ET.county!L$1,ET.region!$A$51:$M$51,0)) -> 3.270866142 | M6: =INDEX(ET.region!$A$51:$M$61,MATCH(ET.county!$B6,ET.region!$A$51:$A$61,0),MATCH(ET.county!M$1,ET.region!$A$51:$M$51,0)) -> 1.972440945 | N6: =INDEX(ET.region!$A$51:$M$61,MATCH(ET.county!$B6,ET.region!$A$51:$A$61,0),MATCH(ET.county!N$1,ET.region!$A$51:$M$51,0)) -> 1.354724409
A7: Avery | B7: Fletcher | C7: =INDEX(ET.region!$A$51:$M$61,MATCH(ET.county!$B7,ET.region!$A$51:$A$61,0),MATCH(ET.county!C$1,ET.region!$A$51:$M$51,0)) -> 1.391338583 | D7: =INDEX(ET.region!$A$51:$M$61,MATCH(ET.county!$B7,ET.region!$A$51:$A$61,0),MATCH(ET.county!D$1,ET.region!$A$51:$M$51,0)) -> 1.77480315 | E7: =INDEX(ET.region!$A$51:$M$61,MATCH(ET.county!$B7,ET.region!$A$51:$A$61,0),MATCH(ET.county!E$1,ET.region!$A$51:$M$51,0)) -> 3.063385827 | F7: =INDEX(ET.region!$A$51:$M$61,MATCH(ET.county!$B7,ET.region!$A$51:$A$61,0),MATCH(ET.county!F$1,ET.region!$A$51:$M$51,0)) -> 4.417322835 | G7: =INDEX(ET.region!$A$51:$M$61,MATCH(ET.county!$B7,ET.region!$A$51:$A$61,0),MATCH(ET.county!G$1,ET.region!$A$51:$M$51,0)) -> 5.736220472 | H7: =INDEX(ET.region!$A$51:$M$61,MATCH(ET.county!$B7,ET.region!$A$51:$A$61,0),MATCH(ET.county!H$1,ET.region!$A$51:$M$51,0)) -> 6.307086614 | I7: =INDEX(ET.region!$A$51:$M$61,MATCH(ET.county!$B7,ET.region!$A$51:$A$61,0),MATCH(ET.county!I$1,ET.region!$A$51:$M$51,0)) -> 6.541732283 | J7: =INDEX(ET.region!$A$51:$M$61,MATCH(ET.county!$B7,ET.region!$A$51:$A$61,0),MATCH(ET.county!J$1,ET.region!$A$51:$M$51,0)) -> 5.931496063 | K7: =INDEX(ET.region!$A$51:$M$61,MATCH(ET.county!$B7,ET.region!$A$51:$A$61,0),MATCH(ET.county!K$1,ET.region!$A$51:$M$51,0)) -> 4.511811024 | L7: =INDEX(ET.region!$A$51:$M$61,MATCH(ET.county!$B7,ET.region!$A$51:$A$61,0),MATCH(ET.county!L$1,ET.region!$A$51:$M$51,0)) -> 3.270866142 | M7: =INDEX(ET.region!$A$51:$M$61,MATCH(ET.county!$B7,ET.region!$A$51:$A$61,0),MATCH(ET.county!M$1,ET.region!$A$51:$M$51,0)) -> 1.972440945 | N7: =INDEX(ET.region!$A$51:$M$61,MATCH(ET.county!$B7,ET.region!$A$51:$A$61,0),MATCH(ET.county!N$1,ET.region!$A$51:$M$51,0)) -> 1.354724409
A8: Beaufort | B8: Aurora | C8: =INDEX(ET.region!$A$51:$M$61,MATCH(ET.county!$B8,ET.region!$A$51:$A$61,0),MATCH(ET.county!C$1,ET.region!$A$51:$M$51,0)) -> 1.581 | D8: =INDEX(ET.region!$A$51:$M$61,MATCH(ET.county!$B8,ET.region!$A$51:$A$61,0),MATCH(ET.county!D$1,ET.region!$A$51:$M$51,0)) -> 1.96 | E8: =INDEX(ET.region!$A$51:$M$61,MATCH(ET.county!$B8,ET.region!$A$51:$A$61,0),MATCH(ET.county!E$1,ET.region!$A$51:$M$51,0)) -> 3.255 | F8: =INDEX(ET.region!$A$51:$M$61,MATCH(ET.county!$B8,ET.region!$A$51:$A$61,0),MATCH(ET.county!F$1,ET.region!$A$51:$M$51,0)) -> 4.59 | G8: =INDEX(ET.region!$A$51:$M$61,MATCH(ET.county!$B8,ET.region!$A$51:$A$61,0),MATCH(ET.county!G$1,ET.region!$A$51:$M$51,0)) -> 5.797 | H8: =INDEX(ET.region!$A$51:$M$61,MATCH(ET.county!$B8,ET.region!$A$51:$A$61,0),MATCH(ET.county!H$1,ET.region!$A$51:$M$51,0)) -> 6.24 | I8: =INDEX(ET.region!$A$51:$M$61,MATCH(ET.county!$B8,ET.region!$A$51:$A$61,0),MATCH(ET.county!I$1,ET.region!$A$51:$M$51,0)) -> 6.479 | J8: =INDEX(ET.region!$A$51:$M$61,MATCH(ET.county!$B8,ET.region!$A$51:$A$61,0),MATCH(ET.county!J$1,ET.region!$A$51:$M$51,0)) -> 5.735 | K8: =INDEX(ET.region!$A$51:$M$61,MATCH(ET.county!$B8,ET.region!$A$51:$A$61,0),MATCH(ET.county!K$1,ET.region!$A$51:$M$51,0)) -> 4.38 | L8: =INDEX(ET.region!$A$51:$M$61,MATCH(ET.county!$B8,ET.region!$A$51:$A$61,0),MATCH(ET.county!L$1,ET.region!$A$51:$M$51,0)) -> 3.255 | M8: =INDEX(ET.region!$A$51:$M$61,MATCH(ET.county!$B8,ET.region!$A$51:$A$61,0),MATCH(ET.county!M$1,ET.region!$A$51:$M$51,0)) -> 2.07 | N8: =INDEX(ET.region!$A$51:$M$61,MATCH(ET.county!$B8,ET.region!$A$51:$A$61,0),MATCH(ET.county!N$1,ET.region!$A$51:$M$51,0)) -> 1.55
A9: Bertie | B9: Lewiston | C9: =INDEX(ET.region!$A$51:$M$61,MATCH(ET.county!$B9,ET.region!$A$51:$A$61,0),MATCH(ET.county!C$1,ET.region!$A$51:$M$51,0)) -> 1.525590551 | D9: =INDEX(ET.region!$A$51:$M$61,MATCH(ET.county!$B9,ET.region!$A$51:$A$61,0),MATCH(ET.county!D$1,ET.region!$A$51:$M$51,0)) -> 2.017322835 | E9: =INDEX(ET.region!$A$51:$M$61,MATCH(ET.county!$B9,ET.region!$A$51:$A$61,0),MATCH(ET.county!E$1,ET.region!$A$51:$M$51,0)) -> 3.490551181 | F9: =INDEX(ET.region!$A$51:$M$61,MATCH(ET.county!$B9,ET.region!$A$51:$A$61,0),MATCH(ET.county!F$1,ET.region!$A$51:$M$51,0)) -> 5.05511811 | G9: =INDEX(ET.region!$A$51:$M$61,MATCH(ET.county!$B9,ET.region!$A$51:$A$61,0),MATCH(ET.county!G$1,ET.region!$A$51:$M$51,0)) -> 6.431889764 | H9: =INDEX(ET.region!$A$51:$M$61,MATCH(ET.county!$B9,ET.region!$A$51:$A$61,0),MATCH(ET.county!H$1,ET.region!$A$51:$M$51,0)) -> 7.07480315 | I9: =INDEX(ET.region!$A$51:$M$61,MATCH(ET.county!$B9,ET.region!$A$51:$A$61,0),MATCH(ET.county!I$1,ET.region!$A$51:$M$51,0)) -> 7.359448819 | J9: =INDEX(ET.region!$A$51:$M$61,MATCH(ET.county!$B9,ET.region!$A$51:$A$61,0),MATCH(ET.county!J$1,ET.region!$A$51:$M$51,0)) -> 6.566141732 | K9: =INDEX(ET.region!$A$51:$M$61,MATCH(ET.county!$B9,ET.region!$A$51:$A$61,0),MATCH(ET.county!K$1,ET.region!$A$51:$M$51,0)) -> 4.948818898 | L9: =INDEX(ET.region!$A$51:$M$61,MATCH(ET.county!$B9,ET.region!$A$51:$A$61,0),MATCH(ET.county!L$1,ET.region!$A$51:$M$51,0)) -> 3.575984252 | M9: =INDEX(ET.region!$A$51:$M$61,MATCH(ET.county!$B9,ET.region!$A$51:$A$61,0),MATCH(ET.county!M$1,ET.region!$A$51:$M$51,0)) -> 2.196850394 | N9: =INDEX(ET.region!$A$51:$M$61,MATCH(ET.county!$B9,ET.region!$A$51:$A$61,0),MATCH(ET.county!N$1,ET.region!$A$51:$M$51,0)) -> 1.525590551
A10: Bladen | B10: Whiteville | C10: =INDEX(ET.region!$A$51:$M$61,MATCH(ET.county!$B10,ET.region!$A$51:$A$61,0),MATCH(ET.county!C$1,ET.region!$A$51:$M$51,0)) -> 1.696456693 | D10: =INDEX(ET.region!$A$51:$M$61,MATCH(ET.county!$B10,ET.region!$A$51:$A$61,0),MATCH(ET.county!D$1,ET.region!$A$51:$M$51,0)) -> 2.149606299 | E10: =INDEX(ET.region!$A$51:$M$61,MATCH(ET.county!$B10,ET.region!$A$51:$A$61,0),MATCH(ET.county!E$1,ET.region!$A$51:$M$51,0)) -> 3.62480315 | F10: =INDEX(ET.region!$A$51:$M$61,MATCH(ET.county!$B10,ET.region!$A$51:$A$61,0),MATCH(ET.county!F$1,ET.region!$A$51:$M$51,0)) -> 4.972440945 | G10: =INDEX(ET.region!$A$51:$M$61,MATCH(ET.county!$B10,ET.region!$A$51:$A$61,0),MATCH(ET.county!G$1,ET.region!$A$51:$M$51,0)) -> 6.297637795 | H10: =INDEX(ET.region!$A$51:$M$61,MATCH(ET.county!$B10,ET.region!$A$51:$A$61,0),MATCH(ET.county!H$1,ET.region!$A$51:$M$51,0)) -> 6.614173228 | I10: =INDEX(ET.region!$A$51:$M$61,MATCH(ET.county!$B10,ET.region!$A$51:$A$61,0),MATCH(ET.county!I$1,ET.region!$A$51:$M$51,0)) -> 6.859055118 | J10: =INDEX(ET.region!$A$51:$M$61,MATCH(ET.county!$B10,ET.region!$A$51:$A$61,0),MATCH(ET.county!J$1,ET.region!$A$51:$M$51,0)) -> 6.175590551 | K10: =INDEX(ET.region!$A$51:$M$61,MATCH(ET.county!$B10,ET.region!$A$51:$A$61,0),MATCH(ET.county!K$1,ET.region!$A$51:$M$51,0)) -> 4.866141732 | L10: =INDEX(ET.region!$A$51:$M$61,MATCH(ET.county!$B10,ET.region!$A$51:$A$61,0),MATCH(ET.county!L$1,ET.region!$A$51:$M$51,0)) -> 3.637007874 | M10: =INDEX(ET.region!$A$51:$M$61,MATCH(ET.county!$B10,ET.region!$A$51:$A$61,0),MATCH(ET.county!M$1,ET.region!$A$51:$M$51,0)) -> 2.362204724 | N10: =INDEX(ET.region!$A$51:$M$61,MATCH(ET.county!$B10,ET.region!$A$51:$A$61,0),MATCH(ET.county!N$1,ET.region!$A$51:$M$51,0)) -> 1.684251969
A11: Brunswick | B11: Whiteville | C11: =INDEX(ET.region!$A$51:$M$61,MATCH(ET.county!$B11,ET.region!$A$51:$A$61,0),MATCH(ET.county!C$1,ET.region!$A$51:$M$51,0)) -> 1.696456693 | D11: =INDEX(ET.region!$A$51:$M$61,MATCH(ET.county!$B11,ET.region!$A$51:$A$61,0),MATCH(ET.county!D$1,ET.region!$A$51:$M$51,0)) -> 2.149606299 | E11: =INDEX(ET.region!$A$51:$M$61,MATCH(ET.county!$B11,ET.region!$A$51:$A$61,0),MATCH(ET.county!E$1,ET.region!$A$51:$M$51,0)) -> 3.62480315 | F11: =INDEX(ET.region!$A$51:$M$61,MATCH(ET.county!$B11,ET.region!$A$51:$A$61,0),MATCH(ET.county!F$1,ET.region!$A$51:$M$51,0)) -> 4.972440945 | G11: =INDEX(ET.region!$A$51:$M$61,MATCH(ET.county!$B11,ET.region!$A$51:$A$61,0),MATCH(ET.county!G$1,ET.region!$A$51:$M$51,0)) -> 6.297637795 | H11: =INDEX(ET.region!$A$51:$M$61,MATCH(ET.county!$B11,ET.region!$A$51:$A$61,0),MATCH(ET.county!H$1,ET.region!$A$51:$M$51,0)) -> 6.614173228 | I11: =INDEX(ET.region!$A$51:$M$61,MATCH(ET.county!$B11,ET.region!$A$51:$A$61,0),MATCH(ET.county!I$1,ET.region!$A$51:$M$51,0)) -> 6.859055118 | J11: =INDEX(ET.region!$A$51:$M$61,MATCH(ET.county!$B11,ET.region!$A$51:$A$61,0),MATCH(ET.county!J$1,ET.region!$A$51:$M$51,0)) -> 6.175590551 | K11: =INDEX(ET.region!$A$51:$M$61,MATCH(ET.county!$B11,ET.region!$A$51:$A$61,0),MATCH(ET.county!K$1,ET.region!$A$51:$M$51,0)) -> 4.866141732 | L11: =INDEX(ET.region!$A$51:$M$61,MATCH(ET.county!$B11,ET.region!$A$51:$A$61,0),MATCH(ET.county!L$1,ET.region!$A$51:$M$51,0)) -> 3.637007874 | M11: =INDEX(ET.region!$A$51:$M$61,MATCH(ET.county!$B11,ET.region!$A$51:$A$61,0),MATCH(ET.county!M$1,ET.region!$A$51:$M$51,0)) -> 2.362204724 | N11: =INDEX(ET.region!$A$51:$M$61,MATCH(ET.county!$B11,ET.region!$A$51:$A$61,0),MATCH(ET.county!N$1,ET.region!$A$51:$M$51,0)) -> 1.684251969
A12: Buncombe | B12: Fletcher | C12: =INDEX(ET.region!$A$51:$M$61,MATCH(ET.county!$B12,ET.region!$A$51:$A$61,0),MATCH(ET.county!C$1,ET.region!$A$51:$M$51,0)) -> 1.391338583 | D12: =INDEX(ET.region!$A$51:$M$61,MATCH(ET.county!$B12,ET.region!$A$51:$A$61,0),MATCH(ET.county!D$1,ET.region!$A$51:$M$51,0)) -> 1.77480315 | E12: =INDEX(ET.region!$A$51:$M$61,MATCH(ET.county!$B12,ET.region!$A$51:$A$61,0),MATCH(ET.county!E$1,ET.region!$A$51:$M$51,0)) -> 3.063385827 | F12: =INDEX(ET.region!$A$51:$M$61,MATCH(ET.county!$B12,ET.region!$A$51:$A$61,0),MATCH(ET.county!F$1,ET.region!$A$51:$M$51,0)) -> 4.417322835 | G12: =INDEX(ET.region!$A$51:$M$61,MATCH(ET.county!$B12,ET.region!$A$51:$A$61,0),MATCH(ET.county!G$1,ET.region!$A$51:$M$51,0)) -> 5.736220472 | H12: =INDEX(ET.region!$A$51:$M$61,MATCH(ET.county!$B12,ET.region!$A$51:$A$61,0),MATCH(ET.county!H$1,ET.region!$A$51:$M$51,0)) -> 6.307086614 | I12: =INDEX(ET.region!$A$51:$M$61,MATCH(ET.county!$B12,ET.region!$A$51:$A$61,0),MATCH(ET.county!I$1,ET.region!$A$51:$M$51,0)) -> 6.541732283 | J12: =INDEX(ET.region!$A$51:$M$61,MATCH(ET.county!$B12,ET.region!$A$51:$A$61,0),MATCH(ET.county!J$1,ET.region!$A$51:$M$51,0)) -> 5.931496063 | K12: =INDEX(ET.region!$A$51:$M$61,MATCH(ET.county!$B12,ET.region!$A$51:$A$61,0),MATCH(ET.county!K$1,ET.region!$A$51:$M$51,0)) -> 4.511811024 | L12: =INDEX(ET.region!$A$51:$M$61,MATCH(ET.county!$B12,ET.region!$A$51:$A$61,0),MATCH(ET.county!L$1,ET.region!$A$51:$M$51,0)) -> 3.270866142 | M12: =INDEX(ET.region!$A$51:$M$61,MATCH(ET.county!$B12,ET.region!$A$51:$A$61,0),MATCH(ET.county!M$1,ET.region!$A$51:$M$51,0)) -> 1.972440945 | N12: =INDEX(ET.region!$A$51:$M$61,MATCH(ET.county!$B12,ET.region!$A$51:$A$61,0),MATCH(ET.county!N$1,ET.region!$A$51:$M$51,0)) -> 1.354724409
A13: Burke | B13: Lenoir | C13: =INDEX(ET.region!$A$51:$M$61,MATCH(ET.county!$B13,ET.region!$A$51:$A$61,0),MATCH(ET.county!C$1,ET.region!$A$51:$M$51,0)) -> 1.452362205 | D13: =INDEX(ET.region!$A$51:$M$61,MATCH(ET.county!$B13,ET.region!$A$51:$A$61,0),MATCH(ET.county!D$1,ET.region!$A$51:$M$51,0)) -> 1.88503937 | E13: =INDEX(ET.region!$A$51:$M$61,MATCH(ET.county!$B13,ET.region!$A$51:$A$61,0),MATCH(ET.county!E$1,ET.region!$A$51:$M$51,0)) -> 3.161023622 | F13: =INDEX(ET.region!$A$51:$M$61,MATCH(ET.county!$B13,ET.region!$A$51:$A$61,0),MATCH(ET.county!F$1,ET.region!$A$51:$M$51,0)) -> 4.346456693 | G13: =INDEX(ET.region!$A$51:$M$61,MATCH(ET.county!$B13,ET.region!$A$51:$A$61,0),MATCH(ET.county!G$1,ET.region!$A$51:$M$51,0)) -> 5.333464567 | H13: =INDEX(ET.region!$A$51:$M$61,MATCH(ET.county!$B13,ET.region!$A$51:$A$61,0),MATCH(ET.county!H$1,ET.region!$A$51:$M$51,0)) -> 5.57480315 | I13: =INDEX(ET.region!$A$51:$M$61,MATCH(ET.county!$B13,ET.region!$A$51:$A$61,0),MATCH(ET.county!I$1,ET.region!$A$51:$M$51,0)) -> 5.67519685 | J13: =INDEX(ET.region!$A$51:$M$61,MATCH(ET.county!$B13,ET.region!$A$51:$A$61,0),MATCH(ET.county!J$1,ET.region!$A$51:$M$51,0)) -> 5.089370079 | K13: =INDEX(ET.region!$A$51:$M$61,MATCH(ET.county!$B13,ET.region!$A$51:$A$61,0),MATCH(ET.county!K$1,ET.region!$A$51:$M$51,0)) -> 4.015748031 | L13: =INDEX(ET.region!$A$51:$M$61,MATCH(ET.county!$B13,ET.region!$A$51:$A$61,0),MATCH(ET.county!L$1,ET.region!$A$51:$M$51,0)) -> 3.063385827 | M13: =INDEX(ET.region!$A$51:$M$61,MATCH(ET.county!$B13,ET.region!$A$51:$A$61,0),MATCH(ET.county!M$1,ET.region!$A$51:$M$51,0)) -> 1.960629921 | N13: =INDEX(ET.region!$A$51:$M$61,MATCH(ET.county!$B13,ET.region!$A$51:$A$61,0),MATCH(ET.county!N$1,ET.region!$A$51:$M$51,0)) -> 1.391338583
A14: Cabarrus | B14: Salisbury | C14: =INDEX(ET.region!$A$51:$M$61,MATCH(ET.county!$B14,ET.region!$A$51:$A$61,0),MATCH(ET.county!C$1,ET.region!$A$51:$M$51,0)) -> 1.488976378 | D14: =INDEX(ET.region!$A$51:$M$61,MATCH(ET.county!$B14,ET.region!$A$51:$A$61,0),MATCH(ET.county!D$1,ET.region!$A$51:$M$51,0)) -> 1.94015748 | E14: =INDEX(ET.region!$A$51:$M$61,MATCH(ET.county!$B14,ET.region!$A$51:$A$61,0),MATCH(ET.county!E$1,ET.region!$A$51:$M$51,0)) -> 3.295275591 | F14: =INDEX(ET.region!$A$51:$M$61,MATCH(ET.county!$B14,ET.region!$A$51:$A$61,0),MATCH(ET.county!F$1,ET.region!$A$51:$M$51,0)) -> 4.700787402 | G14: =INDEX(ET.region!$A$51:$M$61,MATCH(ET.county!$B14,ET.region!$A$51:$A$61,0),MATCH(ET.county!G$1,ET.region!$A$51:$M$51,0)) -> 6.016929134 | H14: =INDEX(ET.region!$A$51:$M$61,MATCH(ET.county!$B14,ET.region!$A$51:$A$61,0),MATCH(ET.county!H$1,ET.region!$A$51:$M$51,0)) -> 6.649606299 | I14: =INDEX(ET.region!$A$51:$M$61,MATCH(ET.county!$B14,ET.region!$A$51:$A$61,0),MATCH(ET.county!I$1,ET.region!$A$51:$M$51,0)) -> 6.932283465 | J14: =INDEX(ET.region!$A$51:$M$61,MATCH(ET.county!$B14,ET.region!$A$51:$A$61,0),MATCH(ET.county!J$1,ET.region!$A$51:$M$51,0)) -> 6.175590551 | K14: =INDEX(ET.region!$A$51:$M$61,MATCH(ET.county!$B14,ET.region!$A$51:$A$61,0),MATCH(ET.county!K$1,ET.region!$A$51:$M$51,0)) -> 4.712598425 | L14: =INDEX(ET.region!$A$51:$M$61,MATCH(ET.county!$B14,ET.region!$A$51:$A$61,0),MATCH(ET.county!L$1,ET.region!$A$51:$M$51,0)) -> 3.417322835 | M14: =INDEX(ET.region!$A$51:$M$61,MATCH(ET.county!$B14,ET.region!$A$51:$A$61,0),MATCH(ET.county!M$1,ET.region!$A$51:$M$51,0)) -> 2.114173228 | N14: =INDEX(ET.region!$A$51:$M$61,MATCH(ET.county!$B14,ET.region!$A$51:$A$61,0),MATCH(ET.county!N$1,ET.region!$A$51:$M$51,0)) -> 1.452362205
A15: Caldwell | B15: Lenoir | C15: =INDEX(ET.region!$A$51:$M$61,MATCH(ET.county!$B15,ET.region!$A$51:$A$61,0),MATCH(ET.county!C$1,ET.region!$A$51:$M$51,0)) -> 1.452362205 | D15: =INDEX(ET.region!$A$51:$M$61,MATCH(ET.county!$B15,ET.region!$A$51:$A$61,0),MATCH(ET.county!D$1,ET.region!$A$51:$M$51,0)) -> 1.88503937 | E15: =INDEX(ET.region!$A$51:$M$61,MATCH(ET.county!$B15,ET.region!$A$51:$A$61,0),MATCH(ET.county!E$1,ET.region!$A$51:$M$51,0)) -> 3.161023622 | F15: =INDEX(ET.region!$A$51:$M$61,MATCH(ET.county!$B15,ET.region!$A$51:$A$61,0),MATCH(ET.county!F$1,ET.region!$A$51:$M$51,0)) -> 4.346456693 | G15: =INDEX(ET.region!$A$51:$M$61,MATCH(ET.county!$B15,ET.region!$A$51:$A$61,0),MATCH(ET.county!G$1,ET.region!$A$51:$M$51,0)) -> 5.333464567 | H15: =INDEX(ET.region!$A$51:$M$61,MATCH(ET.county!$B15,ET.region!$A$51:$A$61,0),MATCH(ET.county!H$1,ET.region!$A$51:$M$51,0)) -> 5.57480315 | I15: =INDEX(ET.region!$A$51:$M$61,MATCH(ET.county!$B15,ET.region!$A$51:$A$61,0),MATCH(ET.county!I$1,ET.region!$A$51:$M$51,0)) -> 5.67519685 | J15: =INDEX(ET.region!$A$51:$M$61,MATCH(ET.county!$B15,ET.region!$A$51:$A$61,0),MATCH(ET.county!J$1,ET.region!$A$51:$M$51,0)) -> 5.089370079 | K15: =INDEX(ET.region!$A$51:$M$61,MATCH(ET.county!$B15,ET.region!$A$51:$A$61,0),MATCH(ET.county!K$1,ET.region!$A$51:$M$51,0)) -> 4.015748031 | L15: =INDEX(ET.region!$A$51:$M$61,MATCH(ET.county!$B15,ET.region!$A$51:$A$61,0),MATCH(ET.county!L$1,ET.region!$A$51:$M$51,0)) -> 3.063385827 | M15: =INDEX(ET.region!$A$51:$M$61,MATCH(ET.county!$B15,ET.region!$A$51:$A$61,0),MATCH(ET.county!M$1,ET.region!$A$51:$M$51,0)) -> 1.960629921 | N15: =INDEX(ET.region!$A$51:$M$61,MATCH(ET.county!$B15,ET.region!$A$51:$A$61,0),MATCH(ET.county!N$1,ET.region!$A$51:$M$51,0)) -> 1.391338583
A16: Camden | B16: Lewiston | C16: =INDEX(ET.region!$A$51:$M$61,MATCH(ET.county!$B16,ET.region!$A$51:$A$61,0),MATCH(ET.county!C$1,ET.region!$A$51:$M$51,0)) -> 1.525590551 | D16: =INDEX(ET.region!$A$51:$M$61,MATCH(ET.county!$B16,ET.region!$A$51:$A$61,0),MATCH(ET.county!D$1,ET.region!$A$51:$M$51,0)) -> 2.017322835 | E16: =INDEX(ET.region!$A$51:$M$61,MATCH(ET.county!$B16,ET.region!$A$51:$A$61,0),MATCH(ET.county!E$1,ET.region!$A$51:$M$51,0)) -> 3.490551181 | F16: =INDEX(ET.region!$A$51:$M$61,MATCH(ET.county!$B16,ET.region!$A$51:$A$61,0),MATCH(ET.county!F$1,ET.region!$A$51:$M$51,0)) -> 5.05511811 | G16: =INDEX(ET.region!$A$51:$M$61,MATCH(ET.county!$B16,ET.region!$A$51:$A$61,0),MATCH(ET.county!G$1,ET.region!$A$51:$M$51,0)) -> 6.431889764 | H16: =INDEX(ET.region!$A$51:$M$61,MATCH(ET.county!$B16,ET.region!$A$51:$A$61,0),MATCH(ET.county!H$1,ET.region!$A$51:$M$51,0)) -> 7.07480315 | I16: =INDEX(ET.region!$A$51:$M$61,MATCH(ET.county!$B16,ET.region!$A$51:$A$61,0),MATCH(ET.county!I$1,ET.region!$A$51:$M$51,0)) -> 7.359448819 | J16: =INDEX(ET.region!$A$51:$M$61,MATCH(ET.county!$B16,ET.region!$A$51:$A$61,0),MATCH(ET.county!J$1,ET.region!$A$51:$M$51,0)) -> 6.566141732 | K16: =INDEX(ET.region!$A$51:$M$61,MATCH(ET.county!$B16,ET.region!$A$51:$A$61,0),MATCH(ET.county!K$1,ET.region!$A$51:$M$51,0)) -> 4.948818898 | L16: =INDEX(ET.region!$A$51:$M$61,MATCH(ET.county!$B16,ET.region!$A$51:$A$61,0),MATCH(ET.county!L$1,ET.region!$A$51:$M$51,0)) -> 3.575984252 | M16: =INDEX(ET.region!$A$51:$M$61,MATCH(ET.county!$B16,ET.region!$A$51:$A$61,0),MATCH(ET.county!M$1,ET.region!$A$51:$M$51,0)) -> 2.196850394 | N16: =INDEX(ET.region!$A$51:$M$61,MATCH(ET.county!$B16,ET.region!$A$51:$A$61,0),MATCH(ET.county!N$1,ET.region!$A$51:$M$51,0)) -> 1.525590551
A17: Carteret | B17: Aurora | C17: =INDEX(ET.region!$A$51:$M$61,MATCH(ET.county!$B17,ET.region!$A$51:$A$61,0),MATCH(ET.county!C$1,ET.region!$A$51:$M$51,0)) -> 1.581 | D17: =INDEX(ET.region!$A$51:$M$61,MATCH(ET.county!$B17,ET.region!$A$51:$A$61,0),MATCH(ET.county!D$1,ET.region!$A$51:$M$51,0)) -> 1.96 | E17: =INDEX(ET.region!$A$51:$M$61,MATCH(ET.county!$B17,ET.region!$A$51:$A$61,0),MATCH(ET.county!E$1,ET.region!$A$51:$M$51,0)) -> 3.255 | F17: =INDEX(ET.region!$A$51:$M$61,MATCH(ET.county!$B17,ET.region!$A$51:$A$61,0),MATCH(ET.county!F$1,ET.region!$A$51:$M$51,0)) -> 4.59 | G17: =INDEX(ET.region!$A$51:$M$61,MATCH(ET.county!$B17,ET.region!$A$51:$A$61,0),MATCH(ET.county!G$1,ET.region!$A$51:$M$51,0)) -> 5.797 | H17: =INDEX(ET.region!$A$51:$M$61,MATCH(ET.county!$B17,ET.region!$A$51:$A$61,0),MATCH(ET.county!H$1,ET.region!$A$51:$M$51,0)) -> 6.24 | I17: =INDEX(ET.region!$A$51:$M$61,MATCH(ET.county!$B17,ET.region!$A$51:$A$61,0),MATCH(ET.county!I$1,ET.region!$A$51:$M$51,0)) -> 6.479 | J17: =INDEX(ET.region!$A$51:$M$61,MATCH(ET.county!$B17,ET.region!$A$51:$A$61,0),MATCH(ET.county!J$1,ET.region!$A$51:$M$51,0)) -> 5.735 | K17: =INDEX(ET.region!$A$51:$M$61,MATCH(ET.county!$B17,ET.region!$A$51:$A$61,0),MATCH(ET.county!K$1,ET.region!$A$51:$M$51,0)) -> 4.38 | L17: =INDEX(ET.region!$A$51:$M$61,MATCH(ET.county!$B17,ET.region!$A$51:$A$61,0),MATCH(ET.county!L$1,ET.region!$A$51:$M$51,0)) -> 3.255 | M17: =INDEX(ET.region!$A$51:$M$61,MATCH(ET.county!$B17,ET.region!$A$51:$A$61,0),MATCH(ET.county!M$1,ET.region!$A$51:$M$51,0)) -> 2.07 | N17: =INDEX(ET.region!$A$51:$M$61,MATCH(ET.county!$B17,ET.region!$A$51:$A$61,0),MATCH(ET.county!N$1,ET.region!$A$51:$M$51,0)) -> 1.55
A18: Caswell | B18: Reidsville | C18: =INDEX(ET.region!$A$51:$M$61,MATCH(ET.county!$B18,ET.region!$A$51:$A$61,0),MATCH(ET.county!C$1,ET.region!$A$51:$M$51,0)) -> 1.342519685 | D18: =INDEX(ET.region!$A$51:$M$61,MATCH(ET.county!$B18,ET.region!$A$51:$A$61,0),MATCH(ET.county!D$1,ET.region!$A$51:$M$51,0)) -> 1.763779528 | E18: =INDEX(ET.region!$A$51:$M$61,MATCH(ET.county!$B18,ET.region!$A$51:$A$61,0),MATCH(ET.county!E$1,ET.region!$A$51:$M$51,0)) -> 3.087795276 | F18: =INDEX(ET.region!$A$51:$M$61,MATCH(ET.county!$B18,ET.region!$A$51:$A$61,0),MATCH(ET.county!F$1,ET.region!$A$51:$M$51,0)) -> 4.476377953 | G18: =INDEX(ET.region!$A$51:$M$61,MATCH(ET.county!$B18,ET.region!$A$51:$A$61,0),MATCH(ET.county!G$1,ET.region!$A$51:$M$51,0)) -> 5.821653543 | H18: =INDEX(ET.region!$A$51:$M$61,MATCH(ET.county!$B18,ET.region!$A$51:$A$61,0),MATCH(ET.county!H$1,ET.region!$A$51:$M$51,0)) -> 6.484251969 | I18: =INDEX(ET.region!$A$51:$M$61,MATCH(ET.county!$B18,ET.region!$A$51:$A$61,0),MATCH(ET.county!I$1,ET.region!$A$51:$M$51,0)) -> 6.834645669 | J18: =INDEX(ET.region!$A$51:$M$61,MATCH(ET.county!$B18,ET.region!$A$51:$A$61,0),MATCH(ET.county!J$1,ET.region!$A$51:$M$51,0)) -> 6.126771654 | K18: =INDEX(ET.region!$A$51:$M$61,MATCH(ET.county!$B18,ET.region!$A$51:$A$61,0),MATCH(ET.county!K$1,ET.region!$A$51:$M$51,0)) -> 4.582677165 | L18: =INDEX(ET.region!$A$51:$M$61,MATCH(ET.county!$B18,ET.region!$A$51:$A$61,0),MATCH(ET.county!L$1,ET.region!$A$51:$M$51,0)) -> 3.246456693 | M18: =INDEX(ET.region!$A$51:$M$61,MATCH(ET.county!$B18,ET.region!$A$51:$A$61,0),MATCH(ET.county!M$1,ET.region!$A$51:$M$51,0)) -> 1.948818898 | N18: =INDEX(ET.region!$A$51:$M$61,MATCH(ET.county!$B18,ET.region!$A$51:$A$61,0),MATCH(ET.county!N$1,ET.region!$A$51:$M$51,0)) -> 1.318110236
A19: Catawba | B19: Salisbury | C19: =INDEX(ET.region!$A$51:$M$61,MATCH(ET.county!$B19,ET.region!$A$51:$A$61,0),MATCH(ET.county!C$1,ET.region!$A$51:$M$51,0)) -> 1.488976378 | D19: =INDEX(ET.region!$A$51:$M$61,MATCH(ET.county!$B19,ET.region!$A$51:$A$61,0),MATCH(ET.county!D$1,ET.region!$A$51:$M$51,0)) -> 1.94015748 | E19: =INDEX(ET.region!$A$51:$M$61,MATCH(ET.county!$B19,ET.region!$A$51:$A$61,0),MATCH(ET.county!E$1,ET.region!$A$51:$M$51,0)) -> 3.295275591 | F19: =INDEX(ET.region!$A$51:$M$61,MATCH(ET.county!$B19,ET.region!$A$51:$A$61,0),MATCH(ET.county!F$1,ET.region!$A$51:$M$51,0)) -> 4.700787402 | G19: =INDEX(ET.region!$A$51:$M$61,MATCH(ET.county!$B19,ET.region!$A$51:$A$61,0),MATCH(ET.county!G$1,ET.region!$A$51:$M$51,0)) -> 6.016929134 | H19: =INDEX(ET.region!$A$51:$M$61,MATCH(ET.county!$B19,ET.region!$A$51:$A$61,0),MATCH(ET.county!H$1,ET.region!$A$51:$M$51,0)) -> 6.649606299 | I19: =INDEX(ET.region!$A$51:$M$61,MATCH(ET.county!$B19,ET.region!$A$51:$A$61,0),MATCH(ET.county!I$1,ET.region!$A$51:$M$51,0)) -> 6.932283465 | J19: =INDEX(ET.region!$A$51:$M$61,MATCH(ET.county!$B19,ET.region!$A$51:$A$61,0),MATCH(ET.county!J$1,ET.region!$A$51:$M$51,0)) -> 6.175590551 | K19: =INDEX(ET.region!$A$51:$M$61,MATCH(ET.county!$B19,ET.region!$A$51:$A$61,0),MATCH(ET.county!K$1,ET.region!$A$51:$M$51,0)) -> 4.712598425 | L19: =INDEX(ET.region!$A$51:$M$61,MATCH(ET.county!$B19,ET.region!$A$51:$A$61,0),MATCH(ET.county!L$1,ET.region!$A$51:$M$51,0)) -> 3.417322835 | M19: =INDEX(ET.region!$A$51:$M$61,MATCH(ET.county!$B19,ET.region!$A$51:$A$61,0),MATCH(ET.county!M$1,ET.region!$A$51:$M$51,0)) -> 2.114173228 | N19: =INDEX(ET.region!$A$51:$M$61,MATCH(ET.county!$B19,ET.region!$A$51:$A$61,0),MATCH(ET.county!N$1,ET.region!$A$51:$M$51,0)) -> 1.452362205
A20: Chatham | B20: Raleigh | C20: =INDEX(ET.region!$A$51:$M$61,MATCH(ET.county!$B20,ET.region!$A$51:$A$61,0),MATCH(ET.county!C$1,ET.region!$A$51:$M$51,0)) -> 1.562204724 | D20: =INDEX(ET.region!$A$51:$M$61,MATCH(ET.county!$B20,ET.region!$A$51:$A$61,0),MATCH(ET.county!D$1,ET.region!$A$51:$M$51,0)) -> 2.050393701 | E20: =INDEX(ET.region!$A$51:$M$61,MATCH(ET.county!$B20,ET.region!$A$51:$A$61,0),MATCH(ET.county!E$1,ET.region!$A$51:$M$51,0)) -> 3.502755906 | F20: =INDEX(ET.region!$A$51:$M$61,MATCH(ET.county!$B20,ET.region!$A$51:$A$61,0),MATCH(ET.county!F$1,ET.region!$A$51:$M$51,0)) -> 4.937007874 | G20: =INDEX(ET.region!$A$51:$M$61,MATCH(ET.county!$B20,ET.region!$A$51:$A$61,0),MATCH(ET.county!G$1,ET.region!$A$51:$M$51,0)) -> 6.212204724 | H20: =INDEX(ET.region!$A$51:$M$61,MATCH(ET.county!$B20,ET.region!$A$51:$A$61,0),MATCH(ET.county!H$1,ET.region!$A$51:$M$51,0)) -> 6.696850394 | I20: =INDEX(ET.region!$A$51:$M$61,MATCH(ET.county!$B20,ET.region!$A$51:$A$61,0),MATCH(ET.county!I$1,ET.region!$A$51:$M$51,0)) -> 6.944488189 | J20: =INDEX(ET.region!$A$51:$M$61,MATCH(ET.county!$B20,ET.region!$A$51:$A$61,0),MATCH(ET.county!J$1,ET.region!$A$51:$M$51,0)) -> 6.212204724 | K20: =INDEX(ET.region!$A$51:$M$61,MATCH(ET.county!$B20,ET.region!$A$51:$A$61,0),MATCH(ET.county!K$1,ET.region!$A$51:$M$51,0)) -> 4.75984252 | L20: =INDEX(ET.region!$A$51:$M$61,MATCH(ET.county!$B20,ET.region!$A$51:$A$61,0),MATCH(ET.county!L$1,ET.region!$A$51:$M$51,0)) -> 3.441732283 | M20: =INDEX(ET.region!$A$51:$M$61,MATCH(ET.county!$B20,ET.region!$A$51:$A$61,0),MATCH(ET.county!M$1,ET.region!$A$51:$M$51,0)) -> 2.149606299 | N20: =INDEX(ET.region!$A$51:$M$61,MATCH(ET.county!$B20,ET.region!$A$51:$A$61,0),MATCH(ET.county!N$1,ET.region!$A$51:$M$51,0)) -> 1.513385827
A21: Cherokee | B21: Fletcher | C21: =INDEX(ET.region!$A$51:$M$61,MATCH(ET.county!$B21,ET.region!$A$51:$A$61,0),MATCH(ET.county!C$1,ET.region!$A$51:$M$51,0)) -> 1.391338583 | D21: =INDEX(ET.region!$A$51:$M$61,MATCH(ET.county!$B21,ET.region!$A$51:$A$61,0),MATCH(ET.county!D$1,ET.region!$A$51:$M$51,0)) -> 1.77480315 | E21: =INDEX(ET.region!$A$51:$M$61,MATCH(ET.county!$B21,ET.region!$A$51:$A$61,0),MATCH(ET.county!E$1,ET.region!$A$51:$M$51,0)) -> 3.063385827 | F21: =INDEX(ET.region!$A$51:$M$61,MATCH(ET.county!$B21,ET.region!$A$51:$A$61,0),MATCH(ET.county!F$1,ET.region!$A$51:$M$51,0)) -> 4.417322835 | G21: =INDEX(ET.region!$A$51:$M$61,MATCH(ET.county!$B21,ET.region!$A$51:$A$61,0),MATCH(ET.county!G$1,ET.region!$A$51:$M$51,0)) -> 5.736220472 | H21: =INDEX(ET.region!$A$51:$M$61,MATCH(ET.county!$B21,ET.region!$A$51:$A$61,0),MATCH(ET.county!H$1,ET.region!$A$51:$M$51,0)) -> 6.307086614 | I21: =INDEX(ET.region!$A$51:$M$61,MATCH(ET.county!$B21,ET.region!$A$51:$A$61,0),MATCH(ET.county!I$1,ET.region!$A$51:$M$51,0)) -> 6.541732283 | J21: =INDEX(ET.region!$A$51:$M$61,MATCH(ET.county!$B21,ET.region!$A$51:$A$61,0),MATCH(ET.county!J$1,ET.region!$A$51:$M$51,0)) -> 5.931496063 | K21: =INDEX(ET.region!$A$51:$M$61,MATCH(ET.county!$B21,ET.region!$A$51:$A$61,0),MATCH(ET.county!K$1,ET.region!$A$51:$M$51,0)) -> 4.511811024 | L21: =INDEX(ET.region!$A$51:$M$61,MATCH(ET.county!$B21,ET.region!$A$51:$A$61,0),MATCH(ET.county!L$1,ET.region!$A$51:$M$51,0)) -> 3.270866142 | M21: =INDEX(ET.region!$A$51:$M$61,MATCH(ET.county!$B21,ET.region!$A$51:$A$61,0),MATCH(ET.county!M$1,ET.region!$A$51:$M$51,0)) -> 1.972440945 | N21: =INDEX(ET.region!$A$51:$M$61,MATCH(ET.county!$B21,ET.region!$A$51:$A$61,0),MATCH(ET.county!N$1,ET.region!$A$51:$M$51,0)) -> 1.354724409
A22: Chowan | B22: Lewiston | C22: =INDEX(ET.region!$A$51:$M$61,MATCH(ET.county!$B22,ET.region!$A$51:$A$61,0),MATCH(ET.county!C$1,ET.region!$A$51:$M$51,0)) -> 1.525590551 | D22: =INDEX(ET.region!$A$51:$M$61,MATCH(ET.county!$B22,ET.region!$A$51:$A$61,0),MATCH(ET.county!D$1,ET.region!$A$51:$M$51,0)) -> 2.017322835 | E22: =INDEX(ET.region!$A$51:$M$61,MATCH(ET.county!$B22,ET.region!$A$51:$A$61,0),MATCH(ET.county!E$1,ET.region!$A$51:$M$51,0)) -> 3.490551181 | F22: =INDEX(ET.region!$A$51:$M$61,MATCH(ET.county!$B22,ET.region!$A$51:$A$61,0),MATCH(ET.county!F$1,ET.region!$A$51:$M$51,0)) -> 5.05511811 | G22: =INDEX(ET.region!$A$51:$M$61,MATCH(ET.county!$B22,ET.region!$A$51:$A$61,0),MATCH(ET.county!G$1,ET.region!$A$51:$M$51,0)) -> 6.431889764 | H22: =INDEX(ET.region!$A$51:$M$61,MATCH(ET.county!$B22,ET.region!$A$51:$A$61,0),MATCH(ET.county!H$1,ET.region!$A$51:$M$51,0)) -> 7.07480315 | I22: =INDEX(ET.region!$A$51:$M$61,MATCH(ET.county!$B22,ET.region!$A$51:$A$61,0),MATCH(ET.county!I$1,ET.region!$A$51:$M$51,0)) -> 7.359448819 | J22: =INDEX(ET.region!$A$51:$M$61,MATCH(ET.county!$B22,ET.region!$A$51:$A$61,0),MATCH(ET.county!J$1,ET.region!$A$51:$M$51,0)) -> 6.566141732 | K22: =INDEX(ET.region!$A$51:$M$61,MATCH(ET.county!$B22,ET.region!$A$51:$A$61,0),MATCH(ET.county!K$1,ET.region!$A$51:$M$51,0)) -> 4.948818898 | L22: =INDEX(ET.region!$A$51:$M$61,MATCH(ET.county!$B22,ET.region!$A$51:$A$61,0),MATCH(ET.county!L$1,ET.region!$A$51:$M$51,0)) -> 3.575984252 | M22: =INDEX(ET.region!$A$51:$M$61,MATCH(ET.county!$B22,ET.region!$A$51:$A$61,0),MATCH(ET.county!M$1,ET.region!$A$51:$M$51,0)) -> 2.196850394 | N22: =INDEX(ET.region!$A$51:$M$61,MATCH(ET.county!$B22,ET.region!$A$51:$A$61,0),MATCH(ET.county!N$1,ET.region!$A$51:$M$51,0)) -> 1.525590551
A23: Clay | B23: Fletcher | C23: =INDEX(ET.region!$A$51:$M$61,MATCH(ET.county!$B23,ET.region!$A$51:$A$61,0),MATCH(ET.county!C$1,ET.region!$A$51:$M$51,0)) -> 1.391338583 | D23: =INDEX(ET.region!$A$51:$M$61,MATCH(ET.county!$B23,ET.region!$A$51:$A$61,0),MATCH(ET.county!D$1,ET.region!$A$51:$M$51,0)) -> 1.77480315 | E23: =INDEX(ET.region!$A$51:$M$61,MATCH(ET.county!$B23,ET.region!$A$51:$A$61,0),MATCH(ET.county!E$1,ET.region!$A$51:$M$51,0)) -> 3.063385827 | F23: =INDEX(ET.region!$A$51:$M$61,MATCH(ET.county!$B23,ET.region!$A$51:$A$61,0),MATCH(ET.county!F$1,ET.region!$A$51:$M$51,0)) -> 4.417322835 | G23: =INDEX(ET.region!$A$51:$M$61,MATCH(ET.county!$B23,ET.region!$A$51:$A$61,0),MATCH(ET.county!G$1,ET.region!$A$51:$M$51,0)) -> 5.736220472 | H23: =INDEX(ET.region!$A$51:$M$61,MATCH(ET.county!$B23,ET.region!$A$51:$A$61,0),MATCH(ET.county!H$1,ET.region!$A$51:$M$51,0)) -> 6.307086614 | I23: =INDEX(ET.region!$A$51:$M$61,MATCH(ET.county!$B23,ET.region!$A$51:$A$61,0),MATCH(ET.county!I$1,ET.region!$A$51:$M$51,0)) -> 6.541732283 | J23: =INDEX(ET.region!$A$51:$M$61,MATCH(ET.county!$B23,ET.region!$A$51:$A$61,0),MATCH(ET.county!J$1,ET.region!$A$51:$M$51,0)) -> 5.931496063 | K23: =INDEX(ET.region!$A$51:$M$61,MATCH(ET.county!$B23,ET.region!$A$51:$A$61,0),MATCH(ET.county!K$1,ET.region!$A$51:$M$51,0)) -> 4.511811024 | L23: =INDEX(ET.region!$A$51:$M$61,MATCH(ET.county!$B23,ET.region!$A$51:$A$61,0),MATCH(ET.county!L$1,ET.region!$A$51:$M$51,0)) -> 3.270866142 | M23: =INDEX(ET.region!$A$51:$M$61,MATCH(ET.county!$B23,ET.region!$A$51:$A$61,0),MATCH(ET.county!M$1,ET.region!$A$51:$M$51,0)) -> 1.972440945 | N23: =INDEX(ET.region!$A$51:$M$61,MATCH(ET.county!$B23,ET.region!$A$51:$A$61,0),MATCH(ET.county!N$1,ET.region!$A$51:$M$51,0)) -> 1.354724409
A24: Cleveland | B24: Lenoir | C24: =INDEX(ET.region!$A$51:$M$61,MATCH(ET.county!$B24,ET.region!$A$51:$A$61,0),MATCH(ET.county!C$1,ET.region!$A$51:$M$51,0)) -> 1.452362205 | D24: =INDEX(ET.region!$A$51:$M$61,MATCH(ET.county!$B24,ET.region!$A$51:$A$61,0),MATCH(ET.county!D$1,ET.region!$A$51:$M$51,0)) -> 1.88503937 | E24: =INDEX(ET.region!$A$51:$M$61,MATCH(ET.county!$B24,ET.region!$A$51:$A$61,0),MATCH(ET.county!E$1,ET.region!$A$51:$M$51,0)) -> 3.161023622 | F24: =INDEX(ET.region!$A$51:$M$61,MATCH(ET.county!$B24,ET.region!$A$51:$A$61,0),MATCH(ET.county!F$1,ET.region!$A$51:$M$51,0)) -> 4.346456693 | G24: =INDEX(ET.region!$A$51:$M$61,MATCH(ET.county!$B24,ET.region!$A$51:$A$61,0),MATCH(ET.county!G$1,ET.region!$A$51:$M$51,0)) -> 5.333464567 | H24: =INDEX(ET.region!$A$51:$M$61,MATCH(ET.county!$B24,ET.region!$A$51:$A$61,0),MATCH(ET.county!H$1,ET.region!$A$51:$M$51,0)) -> 5.57480315 | I24: =INDEX(ET.region!$A$51:$M$61,MATCH(ET.county!$B24,ET.region!$A$51:$A$61,0),MATCH(ET.county!I$1,ET.region!$A$51:$M$51,0)) -> 5.67519685 | J24: =INDEX(ET.region!$A$51:$M$61,MATCH(ET.county!$B24,ET.region!$A$51:$A$61,0),MATCH(ET.county!J$1,ET.region!$A$51:$M$51,0)) -> 5.089370079 | K24: =INDEX(ET.region!$A$51:$M$61,MATCH(ET.county!$B24,ET.region!$A$51:$A$61,0),MATCH(ET.county!K$1,ET.region!$A$51:$M$51,0)) -> 4.015748031 | L24: =INDEX(ET.region!$A$51:$M$61,MATCH(ET.county!$B24,ET.region!$A$51:$A$61,0),MATCH(ET.county!L$1,ET.region!$A$51:$M$51,0)) -> 3.063385827 | M24: =INDEX(ET.region!$A$51:$M$61,MATCH(ET.county!$B24,ET.region!$A$51:$A$61,0),MATCH(ET.county!M$1,ET.region!$A$51:$M$51,0)) -> 1.960629921 | N24: =INDEX(ET.region!$A$51:$M$61,MATCH(ET.county!$B24,ET.region!$A$51:$A$61,0),MATCH(ET.county!N$1,ET.region!$A$51:$M$51,0)) -> 1.391338583
A25: Columbus | B25: Whiteville | C25: =INDEX(ET.region!$A$51:$M$61,MATCH(ET.county!$B25,ET.region!$A$51:$A$61,0),MATCH(ET.county!C$1,ET.region!$A$51:$M$51,0)) -> 1.696456693 | D25: =INDEX(ET.region!$A$51:$M$61,MATCH(ET.county!$B25,ET.region!$A$51:$A$61,0),MATCH(ET.county!D$1,ET.region!$A$51:$M$51,0)) -> 2.149606299 | E25: =INDEX(ET.region!$A$51:$M$61,MATCH(ET.county!$B25,ET.region!$A$51:$A$61,0),MATCH(ET.county!E$1,ET.region!$A$51:$M$51,0)) -> 3.62480315 | F25: =INDEX(ET.region!$A$51:$M$61,MATCH(ET.county!$B25,ET.region!$A$51:$A$61,0),MATCH(ET.county!F$1,ET.region!$A$51:$M$51,0)) -> 4.972440945 | G25: =INDEX(ET.region!$A$51:$M$61,MATCH(ET.county!$B25,ET.region!$A$51:$A$61,0),MATCH(ET.county!G$1,ET.region!$A$51:$M$51,0)) -> 6.297637795 | H25: =INDEX(ET.region!$A$51:$M$61,MATCH(ET.county!$B25,ET.region!$A$51:$A$61,0),MATCH(ET.county!H$1,ET.region!$A$51:$M$51,0)) -> 6.614173228 | I25: =INDEX(ET.region!$A$51:$M$61,MATCH(ET.county!$B25,ET.region!$A$51:$A$61,0),MATCH(ET.county!I$1,ET.region!$A$51:$M$51,0)) -> 6.859055118 | J25: =INDEX(ET.region!$A$51:$M$61,MATCH(ET.county!$B25,ET.region!$A$51:$A$61,0),MATCH(ET.county!J$1,ET.region!$A$51:$M$51,0)) -> 6.175590551 | K25: =INDEX(ET.region!$A$51:$M$61,MATCH(ET.county!$B25,ET.region!$A$51:$A$61,0),MATCH(ET.county!K$1,ET.region!$A$51:$M$51,0)) -> 4.866141732 | L25: =INDEX(ET.region!$A$51:$M$61,MATCH(ET.county!$B25,ET.region!$A$51:$A$61,0),MATCH(ET.county!L$1,ET.region!$A$51:$M$51,0)) -> 3.637007874 | M25: =INDEX(ET.region!$A$51:$M$61,MATCH(ET.county!$B25,ET.region!$A$51:$A$61,0),MATCH(ET.county!M$1,ET.region!$A$51:$M$51,0)) -> 2.362204724 | N25: =INDEX(ET.region!$A$51:$M$61,MATCH(ET.county!$B25,ET.region!$A$51:$A$61,0),MATCH(ET.county!N$1,ET.region!$A$51:$M$51,0)) -> 1.684251969
A26: Craven | B26: Aurora | C26: =INDEX(ET.region!$A$51:$M$61,MATCH(ET.county!$B26,ET.region!$A$51:$A$61,0),MATCH(ET.county!C$1,ET.region!$A$51:$M$51,0)) -> 1.581 | D26: =INDEX(ET.region!$A$51:$M$61,MATCH(ET.county!$B26,ET.region!$A$51:$A$61,0),MATCH(ET.county!D$1,ET.region!$A$51:$M$51,0)) -> 1.96 | E26: =INDEX(ET.region!$A$51:$M$61,MATCH(ET.county!$B26,ET.region!$A$51:$A$61,0),MATCH(ET.county!E$1,ET.region!$A$51:$M$51,0)) -> 3.255 | F26: =INDEX(ET.region!$A$51:$M$61,MATCH(ET.county!$B26,ET.region!$A$51:$A$61,0),MATCH(ET.county!F$1,ET.region!$A$51:$M$51,0)) -> 4.59 | G26: =INDEX(ET.region!$A$51:$M$61,MATCH(ET.county!$B26,ET.region!$A$51:$A$61,0),MATCH(ET.county!G$1,ET.region!$A$51:$M$51,0)) -> 5.797 | H26: =INDEX(ET.region!$A$51:$M$61,MATCH(ET.county!$B26,ET.region!$A$51:$A$61,0),MATCH(ET.county!H$1,ET.region!$A$51:$M$51,0)) -> 6.24 | I26: =INDEX(ET.region!$A$51:$M$61,MATCH(ET.county!$B26,ET.region!$A$51:$A$61,0),MATCH(ET.county!I$1,ET.region!$A$51:$M$51,0)) -> 6.479 | J26: =INDEX(ET.region!$A$51:$M$61,MATCH(ET.county!$B26,ET.region!$A$51:$A$61,0),MATCH(ET.county!J$1,ET.region!$A$51:$M$51,0)) -> 5.735 | K26: =INDEX(ET.region!$A$51:$M$61,MATCH(ET.county!$B26,ET.region!$A$51:$A$61,0),MATCH(ET.county!K$1,ET.region!$A$51:$M$51,0)) -> 4.38 | L26: =INDEX(ET.region!$A$51:$M$61,MATCH(ET.county!$B26,ET.region!$A$51:$A$61,0),MATCH(ET.county!L$1,ET.region!$A$51:$M$51,0)) -> 3.255 | M26: =INDEX(ET.region!$A$51:$M$61,MATCH(ET.county!$B26,ET.region!$A$51:$A$61,0),MATCH(ET.county!M$1,ET.region!$A$51:$M$51,0)) -> 2.07 | N26: =INDEX(ET.region!$A$51:$M$61,MATCH(ET.county!$B26,ET.region!$A$51:$A$61,0),MATCH(ET.county!N$1,ET.region!$A$51:$M$51,0)) -> 1.55
A27: Cumberland | B27: Whiteville | C27: =INDEX(ET.region!$A$51:$M$61,MATCH(ET.county!$B27,ET.region!$A$51:$A$61,0),MATCH(ET.county!C$1,ET.region!$A$51:$M$51,0)) -> 1.696456693 | D27: =INDEX(ET.region!$A$51:$M$61,MATCH(ET.county!$B27,ET.region!$A$51:$A$61,0),MATCH(ET.county!D$1,ET.region!$A$51:$M$51,0)) -> 2.149606299 | E27: =INDEX(ET.region!$A$51:$M$61,MATCH(ET.county!$B27,ET.region!$A$51:$A$61,0),MATCH(ET.county!E$1,ET.region!$A$51:$M$51,0)) -> 3.62480315 | F27: =INDEX(ET.region!$A$51:$M$61,MATCH(ET.county!$B27,ET.region!$A$51:$A$61,0),MATCH(ET.county!F$1,ET.region!$A$51:$M$51,0)) -> 4.972440945 | G27: =INDEX(ET.region!$A$51:$M$61,MATCH(ET.county!$B27,ET.region!$A$51:$A$61,0),MATCH(ET.county!G$1,ET.region!$A$51:$M$51,0)) -> 6.297637795 | H27: =INDEX(ET.region!$A$51:$M$61,MATCH(ET.county!$B27,ET.region!$A$51:$A$61,0),MATCH(ET.county!H$1,ET.region!$A$51:$M$51,0)) -> 6.614173228 | I27: =INDEX(ET.region!$A$51:$M$61,MATCH(ET.county!$B27,ET.region!$A$51:$A$61,0),MATCH(ET.county!I$1,ET.region!$A$51:$M$51,0)) -> 6.859055118 | J27: =INDEX(ET.region!$A$51:$M$61,MATCH(ET.county!$B27,ET.region!$A$51:$A$61,0),MATCH(ET.county!J$1,ET.region!$A$51:$M$51,0)) -> 6.175590551 | K27: =INDEX(ET.region!$A$51:$M$61,MATCH(ET.county!$B27,ET.region!$A$51:$A$61,0),MATCH(ET.county!K$1,ET.region!$A$51:$M$51,0)) -> 4.866141732 | L27: =INDEX(ET.region!$A$51:$M$61,MATCH(ET.county!$B27,ET.region!$A$51:$A$61,0),MATCH(ET.county!L$1,ET.region!$A$51:$M$51,0)) -> 3.637007874 | M27: =INDEX(ET.region!$A$51:$M$61,MATCH(ET.county!$B27,ET.region!$A$51:$A$61,0),MATCH(ET.county!M$1,ET.region!$A$51:$M$51,0)) -> 2.362204724 | N27: =INDEX(ET.region!$A$51:$M$61,MATCH(ET.county!$B27,ET.region!$A$51:$A$61,0),MATCH(ET.county!N$1,ET.region!$A$51:$M$51,0)) -> 1.684251969
A28: Currituck | B28: Lewiston | C28: =INDEX(ET.region!$A$51:$M$61,MATCH(ET.county!$B28,ET.region!$A$51:$A$61,0),MATCH(ET.county!C$1,ET.region!$A$51:$M$51,0)) -> 1.525590551 | D28: =INDEX(ET.region!$A$51:$M$61,MATCH(ET.county!$B28,ET.region!$A$51:$A$61,0),MATCH(ET.county!D$1,ET.region!$A$51:$M$51,0)) -> 2.017322835 | E28: =INDEX(ET.region!$A$51:$M$61,MATCH(ET.county!$B28,ET.region!$A$51:$A$61,0),MATCH(ET.county!E$1,ET.region!$A$51:$M$51,0)) -> 3.490551181 | F28: =INDEX(ET.region!$A$51:$M$61,MATCH(ET.county!$B28,ET.region!$A$51:$A$61,0),MATCH(ET.county!F$1,ET.region!$A$51:$M$51,0)) -> 5.05511811 | G28: =INDEX(ET.region!$A$51:$M$61,MATCH(ET.county!$B28,ET.region!$A$51:$A$61,0),MATCH(ET.county!G$1,ET.region!$A$51:$M$51,0)) -> 6.431889764 | H28: =INDEX(ET.region!$A$51:$M$61,MATCH(ET.county!$B28,ET.region!$A$51:$A$61,0),MATCH(ET.county!H$1,ET.region!$A$51:$M$51,0)) -> 7.07480315 | I28: =INDEX(ET.region!$A$51:$M$61,MATCH(ET.county!$B28,ET.region!$A$51:$A$61,0),MATCH(ET.county!I$1,ET.region!$A$51:$M$51,0)) -> 7.359448819 | J28: =INDEX(ET.region!$A$51:$M$61,MATCH(ET.county!$B28,ET.region!$A$51:$A$61,0),MATCH(ET.county!J$1,ET.region!$A$51:$M$51,0)) -> 6.566141732 | K28: =INDEX(ET.region!$A$51:$M$61,MATCH(ET.county!$B28,ET.region!$A$51:$A$61,0),MATCH(ET.county!K$1,ET.region!$A$51:$M$51,0)) -> 4.948818898 | L28: =INDEX(ET.region!$A$51:$M$61,MATCH(ET.county!$B28,ET.region!$A$51:$A$61,0),MATCH(ET.county!L$1,ET.region!$A$51:$M$51,0)) -> 3.575984252 | M28: =INDEX(ET.region!$A$51:$M$61,MATCH(ET.county!$B28,ET.region!$A$51:$A$61,0),MATCH(ET.county!M$1,ET.region!$A$51:$M$51,0)) -> 2.196850394 | N28: =INDEX(ET.region!$A$51:$M$61,MATCH(ET.county!$B28,ET.region!$A$51:$A$61,0),MATCH(ET.county!N$1,ET.region!$A$51:$M$51,0)) -> 1.525590551
A29: Dare | B29: Aurora | C29: =INDEX(ET.region!$A$51:$M$61,MATCH(ET.county!$B29,ET.region!$A$51:$A$61,0),MATCH(ET.county!C$1,ET.region!$A$51:$M$51,0)) -> 1.581 | D29: =INDEX(ET.region!$A$51:$M$61,MATCH(ET.county!$B29,ET.region!$A$51:$A$61,0),MATCH(ET.county!D$1,ET.region!$A$51:$M$51,0)) -> 1.96 | E29: =INDEX(ET.region!$A$51:$M$61,MATCH(ET.county!$B29,ET.region!$A$51:$A$61,0),MATCH(ET.county!E$1,ET.region!$A$51:$M$51,0)) -> 3.255 | F29: =INDEX(ET.region!$A$51:$M$61,MATCH(ET.county!$B29,ET.region!$A$51:$A$61,0),MATCH(ET.county!F$1,ET.region!$A$51:$M$51,0)) -> 4.59 | G29: =INDEX(ET.region!$A$51:$M$61,MATCH(ET.county!$B29,ET.region!$A$51:$A$61,0),MATCH(ET.county!G$1,ET.region!$A$51:$M$51,0)) -> 5.797 | H29: =INDEX(ET.region!$A$51:$M$61,MATCH(ET.county!$B29,ET.region!$A$51:$A$61,0),MATCH(ET.county!H$1,ET.region!$A$51:$M$51,0)) -> 6.24 | I29: =INDEX(ET.region!$A$51:$M$61,MATCH(ET.county!$B29,ET.region!$A$51:$A$61,0),MATCH(ET.county!I$1,ET.region!$A$51:$M$51,0)) -> 6.479 | J29: =INDEX(ET.region!$A$51:$M$61,MATCH(ET.county!$B29,ET.region!$A$51:$A$61,0),MATCH(ET.county!J$1,ET.region!$A$51:$M$51,0)) -> 5.735 | K29: =INDEX(ET.region!$A$51:$M$61,MATCH(ET.county!$B29,ET.region!$A$51:$A$61,0),MATCH(ET.county!K$1,ET.region!$A$51:$M$51,0)) -> 4.38 | L29: =INDEX(ET.region!$A$51:$M$61,MATCH(ET.county!$B29,ET.region!$A$51:$A$61,0),MATCH(ET.county!L$1,ET.region!$A$51:$M$51,0)) -> 3.255 | M29: =INDEX(ET.region!$A$51:$M$61,MATCH(ET.county!$B29,ET.region!$A$51:$A$61,0),MATCH(ET.county!M$1,ET.region!$A$51:$M$51,0)) -> 2.07 | N29: =INDEX(ET.region!$A$51:$M$61,MATCH(ET.county!$B29,ET.region!$A$51:$A$61,0),MATCH(ET.county!N$1,ET.region!$A$51:$M$51,0)) -> 1.55
A30: Davidson | B30: Salisbury | C30: =INDEX(ET.region!$A$51:$M$61,MATCH(ET.county!$B30,ET.region!$A$51:$A$61,0),MATCH(ET.county!C$1,ET.region!$A$51:$M$51,0)) -> 1.488976378 | D30: =INDEX(ET.region!$A$51:$M$61,MATCH(ET.county!$B30,ET.region!$A$51:$A$61,0),MATCH(ET.county!D$1,ET.region!$A$51:$M$51,0)) -> 1.94015748 | E30: =INDEX(ET.region!$A$51:$M$61,MATCH(ET.county!$B30,ET.region!$A$51:$A$61,0),MATCH(ET.county!E$1,ET.region!$A$51:$M$51,0)) -> 3.295275591 | F30: =INDEX(ET.region!$A$51:$M$61,MATCH(ET.county!$B30,ET.region!$A$51:$A$61,0),MATCH(ET.county!F$1,ET.region!$A$51:$M$51,0)) -> 4.700787402 | G30: =INDEX(ET.region!$A$51:$M$61,MATCH(ET.county!$B30,ET.region!$A$51:$A$61,0),MATCH(ET.county!G$1,ET.region!$A$51:$M$51,0)) -> 6.016929134 | H30: =INDEX(ET.region!$A$51:$M$61,MATCH(ET.county!$B30,ET.region!$A$51:$A$61,0),MATCH(ET.county!H$1,ET.region!$A$51:$M$51,0)) -> 6.649606299 | I30: =INDEX(ET.region!$A$51:$M$61,MATCH(ET.county!$B30,ET.region!$A$51:$A$61,0),MATCH(ET.county!I$1,ET.region!$A$51:$M$51,0)) -> 6.932283465 | J30: =INDEX(ET.region!$A$51:$M$61,MATCH(ET.county!$B30,ET.region!$A$51:$A$61,0),MATCH(ET.county!J$1,ET.region!$A$51:$M$51,0)) -> 6.175590551 | K30: =INDEX(ET.region!$A$51:$M$61,MATCH(ET.county!$B30,ET.region!$A$51:$A$61,0),MATCH(ET.county!K$1,ET.region!$A$51:$M$51,0)) -> 4.712598425 | L30: =INDEX(ET.region!$A$51:$M$61,MATCH(ET.county!$B30,ET.region!$A$51:$A$61,0),MATCH(ET.county!L$1,ET.region!$A$51:$M$51,0)) -> 3.417322835 | M30: =INDEX(ET.region!$A$51:$M$61,MATCH(ET.county!$B30,ET.region!$A$51:$A$61,0),MATCH(ET.county!M$1,ET.region!$A$51:$M$51,0)) -> 2.114173228 | N30: =INDEX(ET.region!$A$51:$M$61,MATCH(ET.county!$B30,ET.region!$A$51:$A$61,0),MATCH(ET.county!N$1,ET.region!$A$51:$M$51,0)) -> 1.452362205
A31: Davie | B31: Salisbury | C31: =INDEX(ET.region!$A$51:$M$61,MATCH(ET.county!$B31,ET.region!$A$51:$A$61,0),MATCH(ET.county!C$1,ET.region!$A$51:$M$51,0)) -> 1.488976378 | D31: =INDEX(ET.region!$A$51:$M$61,MATCH(ET.county!$B31,ET.region!$A$51:$A$61,0),MATCH(ET.county!D$1,ET.region!$A$51:$M$51,0)) -> 1.94015748 | E31: =INDEX(ET.region!$A$51:$M$61,MATCH(ET.county!$B31,ET.region!$A$51:$A$61,0),MATCH(ET.county!E$1,ET.region!$A$51:$M$51,0)) -> 3.295275591 | F31: =INDEX(ET.region!$A$51:$M$61,MATCH(ET.county!$B31,ET.region!$A$51:$A$61,0),MATCH(ET.county!F$1,ET.region!$A$51:$M$51,0)) -> 4.700787402 | G31: =INDEX(ET.region!$A$51:$M$61,MATCH(ET.county!$B31,ET.region!$A$51:$A$61,0),MATCH(ET.county!G$1,ET.region!$A$51:$M$51,0)) -> 6.016929134 | H31: =INDEX(ET.region!$A$51:$M$61,MATCH(ET.county!$B31,ET.region!$A$51:$A$61,0),MATCH(ET.county!H$1,ET.region!$A$51:$M$51,0)) -> 6.649606299 | I31: =INDEX(ET.region!$A$51:$M$61,MATCH(ET.county!$B31,ET.region!$A$51:$A$61,0),MATCH(ET.county!I$1,ET.region!$A$51:$M$51,0)) -> 6.932283465 | J31: =INDEX(ET.region!$A$51:$M$61,MATCH(ET.county!$B31,ET.region!$A$51:$A$61,0),MATCH(ET.county!J$1,ET.region!$A$51:$M$51,0)) -> 6.175590551 | K31: =INDEX(ET.region!$A$51:$M$61,MATCH(ET.county!$B31,ET.region!$A$51:$A$61,0),MATCH(ET.county!K$1,ET.region!$A$51:$M$51,0)) -> 4.712598425 | L31: =INDEX(ET.region!$A$51:$M$61,MATCH(ET.county!$B31,ET.region!$A$51:$A$61,0),MATCH(ET.county!L$1,ET.region!$A$51:$M$51,0)) -> 3.417322835 | M31: =INDEX(ET.region!$A$51:$M$61,MATCH(ET.county!$B31,ET.region!$A$51:$A$61,0),MATCH(ET.county!M$1,ET.region!$A$51:$M$51,0)) -> 2.114173228 | N31: =INDEX(ET.region!$A$51:$M$61,MATCH(ET.county!$B31,ET.region!$A$51:$A$61,0),MATCH(ET.county!N$1,ET.region!$A$51:$M$51,0)) -> 1.452362205
A32: Duplin | B32: Goldsboro | C32: =INDEX(ET.region!$A$51:$M$61,MATCH(ET.county!$B32,ET.region!$A$51:$A$61,0),MATCH(ET.county!C$1,ET.region!$A$51:$M$51,0)) -> 1.574409449 | D32: =INDEX(ET.region!$A$51:$M$61,MATCH(ET.county!$B32,ET.region!$A$51:$A$61,0),MATCH(ET.county!D$1,ET.region!$A$51:$M$51,0)) -> 2.017322835 | E32: =INDEX(ET.region!$A$51:$M$61,MATCH(ET.county!$B32,ET.region!$A$51:$A$61,0),MATCH(ET.county!E$1,ET.region!$A$51:$M$51,0)) -> 3.466141732 | F32: =INDEX(ET.region!$A$51:$M$61,MATCH(ET.county!$B32,ET.region!$A$51:$A$61,0),MATCH(ET.county!F$1,ET.region!$A$51:$M$51,0)) -> 4.877952756 | G32: =INDEX(ET.region!$A$51:$M$61,MATCH(ET.county!$B32,ET.region!$A$51:$A$61,0),MATCH(ET.county!G$1,ET.region!$A$51:$M$51,0)) -> 6.297637795 | H32: =INDEX(ET.region!$A$51:$M$61,MATCH(ET.county!$B32,ET.region!$A$51:$A$61,0),MATCH(ET.county!H$1,ET.region!$A$51:$M$51,0)) -> 6.696850394 | I32: =INDEX(ET.region!$A$51:$M$61,MATCH(ET.county!$B32,ET.region!$A$51:$A$61,0),MATCH(ET.county!I$1,ET.region!$A$51:$M$51,0)) -> 6.834645669 | J32: =INDEX(ET.region!$A$51:$M$61,MATCH(ET.county!$B32,ET.region!$A$51:$A$61,0),MATCH(ET.county!J$1,ET.region!$A$51:$M$51,0)) -> 6.114566929 | K32: =INDEX(ET.region!$A$51:$M$61,MATCH(ET.county!$B32,ET.region!$A$51:$A$61,0),MATCH(ET.county!K$1,ET.region!$A$51:$M$51,0)) -> 4.712598425 | L32: =INDEX(ET.region!$A$51:$M$61,MATCH(ET.county!$B32,ET.region!$A$51:$A$61,0),MATCH(ET.county!L$1,ET.region!$A$51:$M$51,0)) -> 3.466141732 | M32: =INDEX(ET.region!$A$51:$M$61,MATCH(ET.county!$B32,ET.region!$A$51:$A$61,0),MATCH(ET.county!M$1,ET.region!$A$51:$M$51,0)) -> 2.196850394 | N32: =INDEX(ET.region!$A$51:$M$61,MATCH(ET.county!$B32,ET.region!$A$51:$A$61,0),MATCH(ET.county!N$1,ET.region!$A$51:$M$51,0)) -> 1.55
A33: Durham | B33: Raleigh | C33: =INDEX(ET.region!$A$51:$M$61,MATCH(ET.county!$B33,ET.region!$A$51:$A$61,0),MATCH(ET.county!C$1,ET.region!$A$51:$M$51,0)) -> 1.562204724 | D33: =INDEX(ET.region!$A$51:$M$61,MATCH(ET.county!$B33,ET.region!$A$51:$A$61,0),MATCH(ET.county!D$1,ET.region!$A$51:$M$51,0)) -> 2.050393701 | E33: =INDEX(ET.region!$A$51:$M$61,MATCH(ET.county!$B33,ET.region!$A$51:$A$61,0),MATCH(ET.county!E$1,ET.region!$A$51:$M$51,0)) -> 3.502755906 | F33: =INDEX(ET.region!$A$51:$M$61,MATCH(ET.county!$B33,ET.region!$A$51:$A$61,0),MATCH(ET.county!F$1,ET.region!$A$51:$M$51,0)) -> 4.937007874 | G33: =INDEX(ET.region!$A$51:$M$61,MATCH(ET.county!$B33,ET.region!$A$51:$A$61,0),MATCH(ET.county!G$1,ET.region!$A$51:$M$51,0)) -> 6.212204724 | H33: =INDEX(ET.region!$A$51:$M$61,MATCH(ET.county!$B33,ET.region!$A$51:$A$61,0),MATCH(ET.county!H$1,ET.region!$A$51:$M$51,0)) -> 6.696850394 | I33: =INDEX(ET.region!$A$51:$M$61,MATCH(ET.county!$B33,ET.region!$A$51:$A$61,0),MATCH(ET.county!I$1,ET.region!$A$51:$M$51,0)) -> 6.944488189 | J33: =INDEX(ET.region!$A$51:$M$61,MATCH(ET.county!$B33,ET.region!$A$51:$A$61,0),MATCH(ET.county!J$1,ET.region!$A$51:$M$51,0)) -> 6.212204724 | K33: =INDEX(ET.region!$A$51:$M$61,MATCH(ET.county!$B33,ET.region!$A$51:$A$61,0),MATCH(ET.county!K$1,ET.region!$A$51:$M$51,0)) -> 4.75984252 | L33: =INDEX(ET.region!$A$51:$M$61,MATCH(ET.county!$B33,ET.region!$A$51:$A$61,0),MATCH(ET.county!L$1,ET.region!$A$51:$M$51,0)) -> 3.441732283 | M33: =INDEX(ET.region!$A$51:$M$61,MATCH(ET.county!$B33,ET.region!$A$51:$A$61,0),MATCH(ET.county!M$1,ET.region!$A$51:$M$51,0)) -> 2.149606299 | N33: =INDEX(ET.region!$A$51:$M$61,MATCH(ET.county!$B33,ET.region!$A$51:$A$61,0),MATCH(ET.county!N$1,ET.region!$A$51:$M$51,0)) -> 1.513385827
A34: Edgecombe | B34: Lewiston | C34: =INDEX(ET.region!$A$51:$M$61,MATCH(ET.county!$B34,ET.region!$A$51:$A$61,0),MATCH(ET.county!C$1,ET.region!$A$51:$M$51,0)) -> 1.525590551 | D34: =INDEX(ET.region!$A$51:$M$61,MATCH(ET.county!$B34,ET.region!$A$51:$A$61,0),MATCH(ET.county!D$1,ET.region!$A$51:$M$51,0)) -> 2.017322835 | E34: =INDEX(ET.region!$A$51:$M$61,MATCH(ET.county!$B34,ET.region!$A$51:$A$61,0),MATCH(ET.county!E$1,ET.region!$A$51:$M$51,0)) -> 3.490551181 | F34: =INDEX(ET.region!$A$51:$M$61,MATCH(ET.county!$B34,ET.region!$A$51:$A$61,0),MATCH(ET.county!F$1,ET.region!$A$51:$M$51,0)) -> 5.05511811 | G34: =INDEX(ET.region!$A$51:$M$61,MATCH(ET.county!$B34,ET.region!$A$51:$A$61,0),MATCH(ET.county!G$1,ET.region!$A$51:$M$51,0)) -> 6.431889764 | H34: =INDEX(ET.region!$A$51:$M$61,MATCH(ET.county!$B34,ET.region!$A$51:$A$61,0),MATCH(ET.county!H$1,ET.region!$A$51:$M$51,0)) -> 7.07480315 | I34: =INDEX(ET.region!$A$51:$M$61,MATCH(ET.county!$B34,ET.region!$A$51:$A$61,0),MATCH(ET.county!I$1,ET.region!$A$51:$M$51,0)) -> 7.359448819 | J34: =INDEX(ET.region!$A$51:$M$61,MATCH(ET.county!$B34,ET.region!$A$51:$A$61,0),MATCH(ET.county!J$1,ET.region!$A$51:$M$51,0)) -> 6.566141732 | K34: =INDEX(ET.region!$A$51:$M$61,MATCH(ET.county!$B34,ET.region!$A$51:$A$61,0),MATCH(ET.county!K$1,ET.region!$A$51:$M$51,0)) -> 4.948818898 | L34: =INDEX(ET.region!$A$51:$M$61,MATCH(ET.county!$B34,ET.region!$A$51:$A$61,0),MATCH(ET.county!L$1,ET.region!$A$51:$M$51,0)) -> 3.575984252 | M34: =INDEX(ET.region!$A$51:$M$61,MATCH(ET.county!$B34,ET.region!$A$51:$A$61,0),MATCH(ET.county!M$1,ET.region!$A$51:$M$51,0)) -> 2.196850394 | N34: =INDEX(ET.region!$A$51:$M$61,MATCH(ET.county!$B34,ET.region!$A$51:$A$61,0),MATCH(ET.county!N$1,ET.region!$A$51:$M$51,0)) -> 1.525590551
A35: Forsyth | B35: Reidsville | C35: =INDEX(ET.region!$A$51:$M$61,MATCH(ET.county!$B35,ET.region!$A$51:$A$61,0),MATCH(ET.county!C$1,ET.region!$A$51:$M$51,0)) -> 1.342519685 | D35: =INDEX(ET.region!$A$51:$M$61,MATCH(ET.county!$B35,ET.region!$A$51:$A$61,0),MATCH(ET.county!D$1,ET.region!$A$51:$M$51,0)) -> 1.763779528 | E35: =INDEX(ET.region!$A$51:$M$61,MATCH(ET.county!$B35,ET.region!$A$51:$A$61,0),MATCH(ET.county!E$1,ET.region!$A$51:$M$51,0)) -> 3.087795276 | F35: =INDEX(ET.region!$A$51:$M$61,MATCH(ET.county!$B35,ET.region!$A$51:$A$61,0),MATCH(ET.county!F$1,ET.region!$A$51:$M$51,0)) -> 4.476377953 | G35: =INDEX(ET.region!$A$51:$M$61,MATCH(ET.county!$B35,ET.region!$A$51:$A$61,0),MATCH(ET.county!G$1,ET.region!$A$51:$M$51,0)) -> 5.821653543 | H35: =INDEX(ET.region!$A$51:$M$61,MATCH(ET.county!$B35,ET.region!$A$51:$A$61,0),MATCH(ET.county!H$1,ET.region!$A$51:$M$51,0)) -> 6.484251969 | I35: =INDEX(ET.region!$A$51:$M$61,MATCH(ET.county!$B35,ET.region!$A$51:$A$61,0),MATCH(ET.county!I$1,ET.region!$A$51:$M$51,0)) -> 6.834645669 | J35: =INDEX(ET.region!$A$51:$M$61,MATCH(ET.county!$B35,ET.region!$A$51:$A$61,0),MATCH(ET.county!J$1,ET.region!$A$51:$M$51,0)) -> 6.126771654 | K35: =INDEX(ET.region!$A$51:$M$61,MATCH(ET.county!$B35,ET.region!$A$51:$A$61,0),MATCH(ET.county!K$1,ET.region!$A$51:$M$51,0)) -> 4.582677165 | L35: =INDEX(ET.region!$A$51:$M$61,MATCH(ET.county!$B35,ET.region!$A$51:$A$61,0),MATCH(ET.county!L$1,ET.region!$A$51:$M$51,0)) -> 3.246456693 | M35: =INDEX(ET.region!$A$51:$M$61,MATCH(ET.county!$B35,ET.region!$A$51:$A$61,0),MATCH(ET.county!M$1,ET.region!$A$51:$M$51,0)) -> 1.948818898 | N35: =INDEX(ET.region!$A$51:$M$61,MATCH(ET.county!$B35,ET.region!$A$51:$A$61,0),MATCH(ET.county!N$1,ET.region!$A$51:$M$51,0)) -> 1.318110236
A36: Franklin | B36: Raleigh | C36: =INDEX(ET.region!$A$51:$M$61,MATCH(ET.county!$B36,ET.region!$A$51:$A$61,0),MATCH(ET.county!C$1,ET.region!$A$51:$M$51,0)) -> 1.562204724 | D36: =INDEX(ET.region!$A$51:$M$61,MATCH(ET.county!$B36,ET.region!$A$51:$A$61,0),MATCH(ET.county!D$1,ET.region!$A$51:$M$51,0)) -> 2.050393701 | E36: =INDEX(ET.region!$A$51:$M$61,MATCH(ET.county!$B36,ET.region!$A$51:$A$61,0),MATCH(ET.county!E$1,ET.region!$A$51:$M$51,0)) -> 3.502755906 | F36: =INDEX(ET.region!$A$51:$M$61,MATCH(ET.county!$B36,ET.region!$A$51:$A$61,0),MATCH(ET.county!F$1,ET.region!$A$51:$M$51,0)) -> 4.937007874 | G36: =INDEX(ET.region!$A$51:$M$61,MATCH(ET.county!$B36,ET.region!$A$51:$A$61,0),MATCH(ET.county!G$1,ET.region!$A$51:$M$51,0)) -> 6.212204724 | H36: =INDEX(ET.region!$A$51:$M$61,MATCH(ET.county!$B36,ET.region!$A$51:$A$61,0),MATCH(ET.county!H$1,ET.region!$A$51:$M$51,0)) -> 6.696850394 | I36: =INDEX(ET.region!$A$51:$M$61,MATCH(ET.county!$B36,ET.region!$A$51:$A$61,0),MATCH(ET.county!I$1,ET.region!$A$51:$M$51,0)) -> 6.944488189 | J36: =INDEX(ET.region!$A$51:$M$61,MATCH(ET.county!$B36,ET.region!$A$51:$A$61,0),MATCH(ET.county!J$1,ET.region!$A$51:$M$51,0)) -> 6.212204724 | K36: =INDEX(ET.region!$A$51:$M$61,MATCH(ET.county!$B36,ET.region!$A$51:$A$61,0),MATCH(ET.county!K$1,ET.region!$A$51:$M$51,0)) -> 4.75984252 | L36: =INDEX(ET.region!$A$51:$M$61,MATCH(ET.county!$B36,ET.region!$A$51:$A$61,0),MATCH(ET.county!L$1,ET.region!$A$51:$M$51,0)) -> 3.441732283 | M36: =INDEX(ET.region!$A$51:$M$61,MATCH(ET.county!$B36,ET.region!$A$51:$A$61,0),MATCH(ET.county!M$1,ET.region!$A$51:$M$51,0)) -> 2.149606299 | N36: =INDEX(ET.region!$A$51:$M$61,MATCH(ET.county!$B36,ET.region!$A$51:$A$61,0),MATCH(ET.county!N$1,ET.region!$A$51:$M$51,0)) -> 1.513385827
A37: Gates | B37: Lewiston | C37: =INDEX(ET.region!$A$51:$M$61,MATCH(ET.county!$B37,ET.region!$A$51:$A$61,0),MATCH(ET.county!C$1,ET.region!$A$51:$M$51,0)) -> 1.525590551 | D37: =INDEX(ET.region!$A$51:$M$61,MATCH(ET.county!$B37,ET.region!$A$51:$A$61,0),MATCH(ET.county!D$1,ET.region!$A$51:$M$51,0)) -> 2.017322835 | E37: =INDEX(ET.region!$A$51:$M$61,MATCH(ET.county!$B37,ET.region!$A$51:$A$61,0),MATCH(ET.county!E$1,ET.region!$A$51:$M$51,0)) -> 3.490551181 | F37: =INDEX(ET.region!$A$51:$M$61,MATCH(ET.county!$B37,ET.region!$A$51:$A$61,0),MATCH(ET.county!F$1,ET.region!$A$51:$M$51,0)) -> 5.05511811 | G37: =INDEX(ET.region!$A$51:$M$61,MATCH(ET.county!$B37,ET.region!$A$51:$A$61,0),MATCH(ET.county!G$1,ET.region!$A$51:$M$51,0)) -> 6.431889764 | H37: =INDEX(ET.region!$A$51:$M$61,MATCH(ET.county!$B37,ET.region!$A$51:$A$61,0),MATCH(ET.county!H$1,ET.region!$A$51:$M$51,0)) -> 7.07480315 | I37: =INDEX(ET.region!$A$51:$M$61,MATCH(ET.county!$B37,ET.region!$A$51:$A$61,0),MATCH(ET.county!I$1,ET.region!$A$51:$M$51,0)) -> 7.359448819 | J37: =INDEX(ET.region!$A$51:$M$61,MATCH(ET.county!$B37,ET.region!$A$51:$A$61,0),MATCH(ET.county!J$1,ET.region!$A$51:$M$51,0)) -> 6.566141732 | K37: =INDEX(ET.region!$A$51:$M$61,MATCH(ET.county!$B37,ET.region!$A$51:$A$61,0),MATCH(ET.county!K$1,ET.region!$A$51:$M$51,0)) -> 4.948818898 | L37: =INDEX(ET.region!$A$51:$M$61,MATCH(ET.county!$B37,ET.region!$A$51:$A$61,0),MATCH(ET.county!L$1,ET.region!$A$51:$M$51,0)) -> 3.575984252 | M37: =INDEX(ET.region!$A$51:$M$61,MATCH(ET.county!$B37,ET.region!$A$51:$A$61,0),MATCH(ET.county!M$1,ET.region!$A$51:$M$51,0)) -> 2.196850394 | N37: =INDEX(ET.region!$A$51:$M$61,MATCH(ET.county!$B37,ET.region!$A$51:$A$61,0),MATCH(ET.county!N$1,ET.region!$A$51:$M$51,0)) -> 1.525590551
A38: Gaston | B38: Salisbury | C38: =INDEX(ET.region!$A$51:$M$61,MATCH(ET.county!$B38,ET.region!$A$51:$A$61,0),MATCH(ET.county!C$1,ET.region!$A$51:$M$51,0)) -> 1.488976378 | D38: =INDEX(ET.region!$A$51:$M$61,MATCH(ET.county!$B38,ET.region!$A$51:$A$61,0),MATCH(ET.county!D$1,ET.region!$A$51:$M$51,0)) -> 1.94015748 | E38: =INDEX(ET.region!$A$51:$M$61,MATCH(ET.county!$B38,ET.region!$A$51:$A$61,0),MATCH(ET.county!E$1,ET.region!$A$51:$M$51,0)) -> 3.295275591 | F38: =INDEX(ET.region!$A$51:$M$61,MATCH(ET.county!$B38,ET.region!$A$51:$A$61,0),MATCH(ET.county!F$1,ET.region!$A$51:$M$51,0)) -> 4.700787402 | G38: =INDEX(ET.region!$A$51:$M$61,MATCH(ET.county!$B38,ET.region!$A$51:$A$61,0),MATCH(ET.county!G$1,ET.region!$A$51:$M$51,0)) -> 6.016929134 | H38: =INDEX(ET.region!$A$51:$M$61,MATCH(ET.county!$B38,ET.region!$A$51:$A$61,0),MATCH(ET.county!H$1,ET.region!$A$51:$M$51,0)) -> 6.649606299 | I38: =INDEX(ET.region!$A$51:$M$61,MATCH(ET.county!$B38,ET.region!$A$51:$A$61,0),MATCH(ET.county!I$1,ET.region!$A$51:$M$51,0)) -> 6.932283465 | J38: =INDEX(ET.region!$A$51:$M$61,MATCH(ET.county!$B38,ET.region!$A$51:$A$61,0),MATCH(ET.county!J$1,ET.region!$A$51:$M$51,0)) -> 6.175590551 | K38: =INDEX(ET.region!$A$51:$M$61,MATCH(ET.county!$B38,ET.region!$A$51:$A$61,0),MATCH(ET.county!K$1,ET.region!$A$51:$M$51,0)) -> 4.712598425 | L38: =INDEX(ET.region!$A$51:$M$61,MATCH(ET.county!$B38,ET.region!$A$51:$A$61,0),MATCH(ET.county!L$1,ET.region!$A$51:$M$51,0)) -> 3.417322835 | M38: =INDEX(ET.region!$A$51:$M$61,MATCH(ET.county!$B38,ET.region!$A$51:$A$61,0),MATCH(ET.county!M$1,ET.region!$A$51:$M$51,0)) -> 2.114173228 | N38: =INDEX(ET.region!$A$51:$M$61,MATCH(ET.county!$B38,ET.region!$A$51:$A$61,0),MATCH(ET.county!N$1,ET.region!$A$51:$M$51,0)) -> 1.452362205
A39: Graham | B39: Fletcher | C39: =INDEX(ET.region!$A$51:$M$61,MATCH(ET.county!$B39,ET.region!$A$51:$A$61,0),MATCH(ET.county!C$1,ET.region!$A$51:$M$51,0)) -> 1.391338583 | D39: =INDEX(ET.region!$A$51:$M$61,MATCH(ET.county!$B39,ET.region!$A$51:$A$61,0),MATCH(ET.county!D$1,ET.region!$A$51:$M$51,0)) -> 1.77480315 | E39: =INDEX(ET.region!$A$51:$M$61,MATCH(ET.county!$B39,ET.region!$A$51:$A$61,0),MATCH(ET.county!E$1,ET.region!$A$51:$M$51,0)) -> 3.063385827 | F39: =INDEX(ET.region!$A$51:$M$61,MATCH(ET.county!$B39,ET.region!$A$51:$A$61,0),MATCH(ET.county!F$1,ET.region!$A$51:$M$51,0)) -> 4.417322835 | G39: =INDEX(ET.region!$A$51:$M$61,MATCH(ET.county!$B39,ET.region!$A$51:$A$61,0),MATCH(ET.county!G$1,ET.region!$A$51:$M$51,0)) -> 5.736220472 | H39: =INDEX(ET.region!$A$51:$M$61,MATCH(ET.county!$B39,ET.region!$A$51:$A$61,0),MATCH(ET.county!H$1,ET.region!$A$51:$M$51,0)) -> 6.307086614 | I39: =INDEX(ET.region!$A$51:$M$61,MATCH(ET.county!$B39,ET.region!$A$51:$A$61,0),MATCH(ET.county!I$1,ET.region!$A$51:$M$51,0)) -> 6.541732283 | J39: =INDEX(ET.region!$A$51:$M$61,MATCH(ET.county!$B39,ET.region!$A$51:$A$61,0),MATCH(ET.county!J$1,ET.region!$A$51:$M$51,0)) -> 5.931496063 | K39: =INDEX(ET.region!$A$51:$M$61,MATCH(ET.county!$B39,ET.region!$A$51:$A$61,0),MATCH(ET.county!K$1,ET.region!$A$51:$M$51,0)) -> 4.511811024 | L39: =INDEX(ET.region!$A$51:$M$61,MATCH(ET.county!$B39,ET.region!$A$51:$A$61,0),MATCH(ET.county!L$1,ET.region!$A$51:$M$51,0)) -> 3.270866142 | M39: =INDEX(ET.region!$A$51:$M$61,MATCH(ET.county!$B39,ET.region!$A$51:$A$61,0),MATCH(ET.county!M$1,ET.region!$A$51:$M$51,0)) -> 1.972440945 | N39: =INDEX(ET.region!$A$51:$M$61,MATCH(ET.county!$B39,ET.region!$A$51:$A$61,0),MATCH(ET.county!N$1,ET.region!$A$51:$M$51,0)) -> 1.354724409
A40: Granville | B40: Reidsville | C40: =INDEX(ET.region!$A$51:$M$61,MATCH(ET.county!$B40,ET.region!$A$51:$A$61,0),MATCH(ET.county!C$1,ET.region!$A$51:$M$51,0)) -> 1.342519685 | D40: =INDEX(ET.region!$A$51:$M$61,MATCH(ET.county!$B40,ET.region!$A$51:$A$61,0),MATCH(ET.county!D$1,ET.region!$A$51:$M$51,0)) -> 1.763779528 | E40: =INDEX(ET.region!$A$51:$M$61,MATCH(ET.county!$B40,ET.region!$A$51:$A$61,0),MATCH(ET.county!E$1,ET.region!$A$51:$M$51,0)) -> 3.087795276 | F40: =INDEX(ET.region!$A$51:$M$61,MATCH(ET.county!$B40,ET.region!$A$51:$A$61,0),MATCH(ET.county!F$1,ET.region!$A$51:$M$51,0)) -> 4.476377953 | G40: =INDEX(ET.region!$A$51:$M$61,MATCH(ET.county!$B40,ET.region!$A$51:$A$61,0),MATCH(ET.county!G$1,ET.region!$A$51:$M$51,0)) -> 5.821653543 | H40: =INDEX(ET.region!$A$51:$M$61,MATCH(ET.county!$B40,ET.region!$A$51:$A$61,0),MATCH(ET.county!H$1,ET.region!$A$51:$M$51,0)) -> 6.484251969 | I40: =INDEX(ET.region!$A$51:$M$61,MATCH(ET.county!$B40,ET.region!$A$51:$A$61,0),MATCH(ET.county!I$1,ET.region!$A$51:$M$51,0)) -> 6.834645669 | J40: =INDEX(ET.region!$A$51:$M$61,MATCH(ET.county!$B40,ET.region!$A$51:$A$61,0),MATCH(ET.county!J$1,ET.region!$A$51:$M$51,0)) -> 6.126771654 | K40: =INDEX(ET.region!$A$51:$M$61,MATCH(ET.county!$B40,ET.region!$A$51:$A$61,0),MATCH(ET.county!K$1,ET.region!$A$51:$M$51,0)) -> 4.582677165 | L40: =INDEX(ET.region!$A$51:$M$61,MATCH(ET.county!$B40,ET.region!$A$51:$A$61,0),MATCH(ET.county!L$1,ET.region!$A$51:$M$51,0)) -> 3.246456693 | M40: =INDEX(ET.region!$A$51:$M$61,MATCH(ET.county!$B40,ET.region!$A$51:$A$61,0),MATCH(ET.county!M$1,ET.region!$A$51:$M$51,0)) -> 1.948818898 | N40: =INDEX(ET.region!$A$51:$M$61,MATCH(ET.county!$B40,ET.region!$A$51:$A$61,0),MATCH(ET.county!N$1,ET.region!$A$51:$M$51,0)) -> 1.318110236
A41: Greene | B41: Goldsboro | C41: =INDEX(ET.region!$A$51:$M$61,MATCH(ET.county!$B41,ET.region!$A$51:$A$61,0),MATCH(ET.county!C$1,ET.region!$A$51:$M$51,0)) -> 1.574409449 | D41: =INDEX(ET.region!$A$51:$M$61,MATCH(ET.county!$B41,ET.region!$A$51:$A$61,0),MATCH(ET.county!D$1,ET.region!$A$51:$M$51,0)) -> 2.017322835 | E41: =INDEX(ET.region!$A$51:$M$61,MATCH(ET.county!$B41,ET.region!$A$51:$A$61,0),MATCH(ET.county!E$1,ET.region!$A$51:$M$51,0)) -> 3.466141732 | F41: =INDEX(ET.region!$A$51:$M$61,MATCH(ET.county!$B41,ET.region!$A$51:$A$61,0),MATCH(ET.county!F$1,ET.region!$A$51:$M$51,0)) -> 4.877952756 | G41: =INDEX(ET.region!$A$51:$M$61,MATCH(ET.county!$B41,ET.region!$A$51:$A$61,0),MATCH(ET.county!G$1,ET.region!$A$51:$M$51,0)) -> 6.297637795 | H41: =INDEX(ET.region!$A$51:$M$61,MATCH(ET.county!$B41,ET.region!$A$51:$A$61,0),MATCH(ET.county!H$1,ET.region!$A$51:$M$51,0)) -> 6.696850394 | I41: =INDEX(ET.region!$A$51:$M$61,MATCH(ET.county!$B41,ET.region!$A$51:$A$61,0),MATCH(ET.county!I$1,ET.region!$A$51:$M$51,0)) -> 6.834645669 | J41: =INDEX(ET.region!$A$51:$M$61,MATCH(ET.county!$B41,ET.region!$A$51:$A$61,0),MATCH(ET.county!J$1,ET.region!$A$51:$M$51,0)) -> 6.114566929 | K41: =INDEX(ET.region!$A$51:$M$61,MATCH(ET.county!$B41,ET.region!$A$51:$A$61,0),MATCH(ET.county!K$1,ET.region!$A$51:$M$51,0)) -> 4.712598425 | L41: =INDEX(ET.region!$A$51:$M$61,MATCH(ET.county!$B41,ET.region!$A$51:$A$61,0),MATCH(ET.county!L$1,ET.region!$A$51:$M$51,0)) -> 3.466141732 | M41: =INDEX(ET.region!$A$51:$M$61,MATCH(ET.county!$B41,ET.region!$A$51:$A$61,0),MATCH(ET.county!M$1,ET.region!$A$51:$M$51,0)) -> 2.196850394 | N41: =INDEX(ET.region!$A$51:$M$61,MATCH(ET.county!$B41,ET.region!$A$51:$A$61,0),MATCH(ET.county!N$1,ET.region!$A$51:$M$51,0)) -> 1.55
A42: Guilford | B42: Reidsville | C42: =INDEX(ET.region!$A$51:$M$61,MATCH(ET.county!$B42,ET.region!$A$51:$A$61,0),MATCH(ET.county!C$1,ET.region!$A$51:$M$51,0)) -> 1.342519685 | D42: =INDEX(ET.region!$A$51:$M$61,MATCH(ET.county!$B42,ET.region!$A$51:$A$61,0),MATCH(ET.county!D$1,ET.region!$A$51:$M$51,0)) -> 1.763779528 | E42: =INDEX(ET.region!$A$51:$M$61,MATCH(ET.county!$B42,ET.region!$A$51:$A$61,0),MATCH(ET.county!E$1,ET.region!$A$51:$M$51,0)) -> 3.087795276 | F42: =INDEX(ET.region!$A$51:$M$61,MATCH(ET.county!$B42,ET.region!$A$51:$A$61,0),MATCH(ET.county!F$1,ET.region!$A$51:$M$51,0)) -> 4.476377953 | G42: =INDEX(ET.region!$A$51:$M$61,MATCH(ET.county!$B42,ET.region!$A$51:$A$61,0),MATCH(ET.county!G$1,ET.region!$A$51:$M$51,0)) -> 5.821653543 | H42: =INDEX(ET.region!$A$51:$M$61,MATCH(ET.county!$B42,ET.region!$A$51:$A$61,0),MATCH(ET.county!H$1,ET.region!$A$51:$M$51,0)) -> 6.484251969 | I42: =INDEX(ET.region!$A$51:$M$61,MATCH(ET.county!$B42,ET.region!$A$51:$A$61,0),MATCH(ET.county!I$1,ET.region!$A$51:$M$51,0)) -> 6.834645669 | J42: =INDEX(ET.region!$A$51:$M$61,MATCH(ET.county!$B42,ET.region!$A$51:$A$61,0),MATCH(ET.county!J$1,ET.region!$A$51:$M$51,0)) -> 6.126771654 | K42: =INDEX(ET.region!$A$51:$M$61,MATCH(ET.county!$B42,ET.region!$A$51:$A$61,0),MATCH(ET.county!K$1,ET.region!$A$51:$M$51,0)) -> 4.582677165 | L42: =INDEX(ET.region!$A$51:$M$61,MATCH(ET.county!$B42,ET.region!$A$51:$A$61,0),MATCH(ET.county!L$1,ET.region!$A$51:$M$51,0)) -> 3.246456693 | M42: =INDEX(ET.region!$A$51:$M$61,MATCH(ET.county!$B42,ET.region!$A$51:$A$61,0),MATCH(ET.county!M$1,ET.region!$A$51:$M$51,0)) -> 1.948818898 | N42: =INDEX(ET.region!$A$51:$M$61,MATCH(ET.county!$B42,ET.region!$A$51:$A$61,0),MATCH(ET.county!N$1,ET.region!$A$51:$M$51,0)) -> 1.318110236
A43: Halifax | B43: Lewiston | C43: =INDEX(ET.region!$A$51:$M$61,MATCH(ET.county!$B43,ET.region!$A$51:$A$61,0),MATCH(ET.county!C$1,ET.region!$A$51:$M$51,0)) -> 1.525590551 | D43: =INDEX(ET.region!$A$51:$M$61,MATCH(ET.county!$B43,ET.region!$A$51:$A$61,0),MATCH(ET.county!D$1,ET.region!$A$51:$M$51,0)) -> 2.017322835 | E43: =INDEX(ET.region!$A$51:$M$61,MATCH(ET.county!$B43,ET.region!$A$51:$A$61,0),MATCH(ET.county!E$1,ET.region!$A$51:$M$51,0)) -> 3.490551181 | F43: =INDEX(ET.region!$A$51:$M$61,MATCH(ET.county!$B43,ET.region!$A$51:$A$61,0),MATCH(ET.county!F$1,ET.region!$A$51:$M$51,0)) -> 5.05511811 | G43: =INDEX(ET.region!$A$51:$M$61,MATCH(ET.county!$B43,ET.region!$A$51:$A$61,0),MATCH(ET.county!G$1,ET.region!$A$51:$M$51,0)) -> 6.431889764 | H43: =INDEX(ET.region!$A$51:$M$61,MATCH(ET.county!$B43,ET.region!$A$51:$A$61,0),MATCH(ET.county!H$1,ET.region!$A$51:$M$51,0)) -> 7.07480315 | I43: =INDEX(ET.region!$A$51:$M$61,MATCH(ET.county!$B43,ET.region!$A$51:$A$61,0),MATCH(ET.county!I$1,ET.region!$A$51:$M$51,0)) -> 7.359448819 | J43: =INDEX(ET.region!$A$51:$M$61,MATCH(ET.county!$B43,ET.region!$A$51:$A$61,0),MATCH(ET.county!J$1,ET.region!$A$51:$M$51,0)) -> 6.566141732 | K43: =INDEX(ET.region!$A$51:$M$61,MATCH(ET.county!$B43,ET.region!$A$51:$A$61,0),MATCH(ET.county!K$1,ET.region!$A$51:$M$51,0)) -> 4.948818898 | L43: =INDEX(ET.region!$A$51:$M$61,MATCH(ET.county!$B43,ET.region!$A$51:$A$61,0),MATCH(ET.county!L$1,ET.region!$A$51:$M$51,0)) -> 3.575984252 | M43: =INDEX(ET.region!$A$51:$M$61,MATCH(ET.county!$B43,ET.region!$A$51:$A$61,0),MATCH(ET.county!M$1,ET.region!$A$51:$M$51,0)) -> 2.196850394 | N43: =INDEX(ET.region!$A$51:$M$61,MATCH(ET.county!$B43,ET.region!$A$51:$A$61,0),MATCH(ET.county!N$1,ET.region!$A$51:$M$51,0)) -> 1.525590551
A44: Harnett | B44: Raleigh | C44: =INDEX(ET.region!$A$51:$M$61,MATCH(ET.county!$B44,ET.region!$A$51:$A$61,0),MATCH(ET.county!C$1,ET.region!$A$51:$M$51,0)) -> 1.562204724 | D44: =INDEX(ET.region!$A$51:$M$61,MATCH(ET.county!$B44,ET.region!$A$51:$A$61,0),MATCH(ET.county!D$1,ET.region!$A$51:$M$51,0)) -> 2.050393701 | E44: =INDEX(ET.region!$A$51:$M$61,MATCH(ET.county!$B44,ET.region!$A$51:$A$61,0),MATCH(ET.county!E$1,ET.region!$A$51:$M$51,0)) -> 3.502755906 | F44: =INDEX(ET.region!$A$51:$M$61,MATCH(ET.county!$B44,ET.region!$A$51:$A$61,0),MATCH(ET.county!F$1,ET.region!$A$51:$M$51,0)) -> 4.937007874 | G44: =INDEX(ET.region!$A$51:$M$61,MATCH(ET.county!$B44,ET.region!$A$51:$A$61,0),MATCH(ET.county!G$1,ET.region!$A$51:$M$51,0)) -> 6.212204724 | H44: =INDEX(ET.region!$A$51:$M$61,MATCH(ET.county!$B44,ET.region!$A$51:$A$61,0),MATCH(ET.county!H$1,ET.region!$A$51:$M$51,0)) -> 6.696850394 | I44: =INDEX(ET.region!$A$51:$M$61,MATCH(ET.county!$B44,ET.region!$A$51:$A$61,0),MATCH(ET.county!I$1,ET.region!$A$51:$M$51,0)) -> 6.944488189 | J44: =INDEX(ET.region!$A$51:$M$61,MATCH(ET.county!$B44,ET.region!$A$51:$A$61,0),MATCH(ET.county!J$1,ET.region!$A$51:$M$51,0)) -> 6.212204724 | K44: =INDEX(ET.region!$A$51:$M$61,MATCH(ET.county!$B44,ET.region!$A$51:$A$61,0),MATCH(ET.county!K$1,ET.region!$A$51:$M$51,0)) -> 4.75984252 | L44: =INDEX(ET.region!$A$51:$M$61,MATCH(ET.county!$B44,ET.region!$A$51:$A$61,0),MATCH(ET.county!L$1,ET.region!$A$51:$M$51,0)) -> 3.441732283 | M44: =INDEX(ET.region!$A$51:$M$61,MATCH(ET.county!$B44,ET.region!$A$51:$A$61,0),MATCH(ET.county!M$1,ET.region!$A$51:$M$51,0)) -> 2.149606299 | N44: =INDEX(ET.region!$A$51:$M$61,MATCH(ET.county!$B44,ET.region!$A$51:$A$61,0),MATCH(ET.county!N$1,ET.region!$A$51:$M$51,0)) -> 1.513385827
A45: Haywood | B45: Fletcher | C45: =INDEX(ET.region!$A$51:$M$61,MATCH(ET.county!$B45,ET.region!$A$51:$A$61,0),MATCH(ET.county!C$1,ET.region!$A$51:$M$51,0)) -> 1.391338583 | D45: =INDEX(ET.region!$A$51:$M$61,MATCH(ET.county!$B45,ET.region!$A$51:$A$61,0),MATCH(ET.county!D$1,ET.region!$A$51:$M$51,0)) -> 1.77480315 | E45: =INDEX(ET.region!$A$51:$M$61,MATCH(ET.county!$B45,ET.region!$A$51:$A$61,0),MATCH(ET.county!E$1,ET.region!$A$51:$M$51,0)) -> 3.063385827 | F45: =INDEX(ET.region!$A$51:$M$61,MATCH(ET.county!$B45,ET.region!$A$51:$A$61,0),MATCH(ET.county!F$1,ET.region!$A$51:$M$51,0)) -> 4.417322835 | G45: =INDEX(ET.region!$A$51:$M$61,MATCH(ET.county!$B45,ET.region!$A$51:$A$61,0),MATCH(ET.county!G$1,ET.region!$A$51:$M$51,0)) -> 5.736220472 | H45: =INDEX(ET.region!$A$51:$M$61,MATCH(ET.county!$B45,ET.region!$A$51:$A$61,0),MATCH(ET.county!H$1,ET.region!$A$51:$M$51,0)) -> 6.307086614 | I45: =INDEX(ET.region!$A$51:$M$61,MATCH(ET.county!$B45,ET.region!$A$51:$A$61,0),MATCH(ET.county!I$1,ET.region!$A$51:$M$51,0)) -> 6.541732283 | J45: =INDEX(ET.region!$A$51:$M$61,MATCH(ET.county!$B45,ET.region!$A$51:$A$61,0),MATCH(ET.county!J$1,ET.region!$A$51:$M$51,0)) -> 5.931496063 | K45: =INDEX(ET.region!$A$51:$M$61,MATCH(ET.county!$B45,ET.region!$A$51:$A$61,0),MATCH(ET.county!K$1,ET.region!$A$51:$M$51,0)) -> 4.511811024 | L45: =INDEX(ET.region!$A$51:$M$61,MATCH(ET.county!$B45,ET.region!$A$51:$A$61,0),MATCH(ET.county!L$1,ET.region!$A$51:$M$51,0)) -> 3.270866142 | M45: =INDEX(ET.region!$A$51:$M$61,MATCH(ET.county!$B45,ET.region!$A$51:$A$61,0),MATCH(ET.county!M$1,ET.region!$A$51:$M$51,0)) -> 1.972440945 | N45: =INDEX(ET.region!$A$51:$M$61,MATCH(ET.county!$B45,ET.region!$A$51:$A$61,0),MATCH(ET.county!N$1,ET.region!$A$51:$M$51,0)) -> 1.354724409
A46: Henderson | B46: fletcher | C46: =INDEX(ET.region!$A$51:$M$61,MATCH(ET.county!$B46,ET.region!$A$51:$A$61,0),MATCH(ET.county!C$1,ET.region!$A$51:$M$51,0)) -> 1.391338583 | D46: =INDEX(ET.region!$A$51:$M$61,MATCH(ET.county!$B46,ET.region!$A$51:$A$61,0),MATCH(ET.county!D$1,ET.region!$A$51:$M$51,0)) -> 1.77480315 | E46: =INDEX(ET.region!$A$51:$M$61,MATCH(ET.county!$B46,ET.region!$A$51:$A$61,0),MATCH(ET.county!E$1,ET.region!$A$51:$M$51,0)) -> 3.063385827 | F46: =INDEX(ET.region!$A$51:$M$61,MATCH(ET.county!$B46,ET.region!$A$51:$A$61,0),MATCH(ET.county!F$1,ET.region!$A$51:$M$51,0)) -> 4.417322835 | G46: =INDEX(ET.region!$A$51:$M$61,MATCH(ET.county!$B46,ET.region!$A$51:$A$61,0),MATCH(ET.county!G$1,ET.region!$A$51:$M$51,0)) -> 5.736220472 | H46: =INDEX(ET.region!$A$51:$M$61,MATCH(ET.county!$B46,ET.region!$A$51:$A$61,0),MATCH(ET.county!H$1,ET.region!$A$51:$M$51,0)) -> 6.307086614 | I46: =INDEX(ET.region!$A$51:$M$61,MATCH(ET.county!$B46,ET.region!$A$51:$A$61,0),MATCH(ET.county!I$1,ET.region!$A$51:$M$51,0)) -> 6.541732283 | J46: =INDEX(ET.region!$A$51:$M$61,MATCH(ET.county!$B46,ET.region!$A$51:$A$61,0),MATCH(ET.county!J$1,ET.region!$A$51:$M$51,0)) -> 5.931496063 | K46: =INDEX(ET.region!$A$51:$M$61,MATCH(ET.county!$B46,ET.region!$A$51:$A$61,0),MATCH(ET.county!K$1,ET.region!$A$51:$M$51,0)) -> 4.511811024 | L46: =INDEX(ET.region!$A$51:$M$61,MATCH(ET.county!$B46,ET.region!$A$51:$A$61,0),MATCH(ET.county!L$1,ET.region!$A$51:$M$51,0)) -> 3.270866142 | M46: =INDEX(ET.region!$A$51:$M$61,MATCH(ET.county!$B46,ET.region!$A$51:$A$61,0),MATCH(ET.county!M$1,ET.region!$A$51:$M$51,0)) -> 1.972440945 | N46: =INDEX(ET.region!$A$51:$M$61,MATCH(ET.county!$B46,ET.region!$A$51:$A$61,0),MATCH(ET.county!N$1,ET.region!$A$51:$M$51,0)) -> 1.354724409
A47: Hertford | B47: Lewiston | C47: =INDEX(ET.region!$A$51:$M$61,MATCH(ET.county!$B47,ET.region!$A$51:$A$61,0),MATCH(ET.county!C$1,ET.region!$A$51:$M$51,0)) -> 1.525590551 | D47: =INDEX(ET.region!$A$51:$M$61,MATCH(ET.county!$B47,ET.region!$A$51:$A$61,0),MATCH(ET.county!D$1,ET.region!$A$51:$M$51,0)) -> 2.017322835 | E47: =INDEX(ET.region!$A$51:$M$61,MATCH(ET.county!$B47,ET.region!$A$51:$A$61,0),MATCH(ET.county!E$1,ET.region!$A$51:$M$51,0)) -> 3.490551181 | F47: =INDEX(ET.region!$A$51:$M$61,MATCH(ET.county!$B47,ET.region!$A$51:$A$61,0),MATCH(ET.county!F$1,ET.region!$A$51:$M$51,0)) -> 5.05511811 | G47: =INDEX(ET.region!$A$51:$M$61,MATCH(ET.county!$B47,ET.region!$A$51:$A$61,0),MATCH(ET.county!G$1,ET.region!$A$51:$M$51,0)) -> 6.431889764 | H47: =INDEX(ET.region!$A$51:$M$61,MATCH(ET.county!$B47,ET.region!$A$51:$A$61,0),MATCH(ET.county!H$1,ET.region!$A$51:$M$51,0)) -> 7.07480315 | I47: =INDEX(ET.region!$A$51:$M$61,MATCH(ET.county!$B47,ET.region!$A$51:$A$61,0),MATCH(ET.county!I$1,ET.region!$A$51:$M$51,0)) -> 7.359448819 | J47: =INDEX(ET.region!$A$51:$M$61,MATCH(ET.county!$B47,ET.region!$A$51:$A$61,0),MATCH(ET.county!J$1,ET.region!$A$51:$M$51,0)) -> 6.566141732 | K47: =INDEX(ET.region!$A$51:$M$61,MATCH(ET.county!$B47,ET.region!$A$51:$A$61,0),MATCH(ET.county!K$1,ET.region!$A$51:$M$51,0)) -> 4.948818898 | L47: =INDEX(ET.region!$A$51:$M$61,MATCH(ET.county!$B47,ET.region!$A$51:$A$61,0),MATCH(ET.county!L$1,ET.region!$A$51:$M$51,0)) -> 3.575984252 | M47: =INDEX(ET.region!$A$51:$M$61,MATCH(ET.county!$B47,ET.region!$A$51:$A$61,0),MATCH(ET.county!M$1,ET.region!$A$51:$M$51,0)) -> 2.196850394 | N47: =INDEX(ET.region!$A$51:$M$61,MATCH(ET.county!$B47,ET.region!$A$51:$A$61,0),MATCH(ET.county!N$1,ET.region!$A$51:$M$51,0)) -> 1.525590551
A48: Hoke | B48: Jackson.Springs | C48: =INDEX(ET.region!$A$51:$M$61,MATCH(ET.county!$B48,ET.region!$A$51:$A$61,0),MATCH(ET.county!C$1,ET.region!$A$51:$M$51,0)) -> 1.501181102 | D48: =INDEX(ET.region!$A$51:$M$61,MATCH(ET.county!$B48,ET.region!$A$51:$A$61,0),MATCH(ET.county!D$1,ET.region!$A$51:$M$51,0)) -> 1.962204724 | E48: =INDEX(ET.region!$A$51:$M$61,MATCH(ET.county!$B48,ET.region!$A$51:$A$61,0),MATCH(ET.county!E$1,ET.region!$A$51:$M$51,0)) -> 3.40511811 | F48: =INDEX(ET.region!$A$51:$M$61,MATCH(ET.county!$B48,ET.region!$A$51:$A$61,0),MATCH(ET.county!F$1,ET.region!$A$51:$M$51,0)) -> 4.866141732 | G48: =INDEX(ET.region!$A$51:$M$61,MATCH(ET.county!$B48,ET.region!$A$51:$A$61,0),MATCH(ET.county!G$1,ET.region!$A$51:$M$51,0)) -> 6.175590551 | H48: =INDEX(ET.region!$A$51:$M$61,MATCH(ET.county!$B48,ET.region!$A$51:$A$61,0),MATCH(ET.county!H$1,ET.region!$A$51:$M$51,0)) -> 6.744094488 | I48: =INDEX(ET.region!$A$51:$M$61,MATCH(ET.county!$B48,ET.region!$A$51:$A$61,0),MATCH(ET.county!I$1,ET.region!$A$51:$M$51,0)) -> 7.005511811 | J48: =INDEX(ET.region!$A$51:$M$61,MATCH(ET.county!$B48,ET.region!$A$51:$A$61,0),MATCH(ET.county!J$1,ET.region!$A$51:$M$51,0)) -> 6.224409449 | K48: =INDEX(ET.region!$A$51:$M$61,MATCH(ET.county!$B48,ET.region!$A$51:$A$61,0),MATCH(ET.county!K$1,ET.region!$A$51:$M$51,0)) -> 4.771653543 | L48: =INDEX(ET.region!$A$51:$M$61,MATCH(ET.county!$B48,ET.region!$A$51:$A$61,0),MATCH(ET.county!L$1,ET.region!$A$51:$M$51,0)) -> 3.40511811 | M48: =INDEX(ET.region!$A$51:$M$61,MATCH(ET.county!$B48,ET.region!$A$51:$A$61,0),MATCH(ET.county!M$1,ET.region!$A$51:$M$51,0)) -> 2.090551181 | N48: =INDEX(ET.region!$A$51:$M$61,MATCH(ET.county!$B48,ET.region!$A$51:$A$61,0),MATCH(ET.county!N$1,ET.region!$A$51:$M$51,0)) -> 1.488976378
A49: Hyde | B49: Aurora | C49: =INDEX(ET.region!$A$51:$M$61,MATCH(ET.county!$B49,ET.region!$A$51:$A$61,0),MATCH(ET.county!C$1,ET.region!$A$51:$M$51,0)) -> 1.581 | D49: =INDEX(ET.region!$A$51:$M$61,MATCH(ET.county!$B49,ET.region!$A$51:$A$61,0),MATCH(ET.county!D$1,ET.region!$A$51:$M$51,0)) -> 1.96 | E49: =INDEX(ET.region!$A$51:$M$61,MATCH(ET.county!$B49,ET.region!$A$51:$A$61,0),MATCH(ET.county!E$1,ET.region!$A$51:$M$51,0)) -> 3.255 | F49: =INDEX(ET.region!$A$51:$M$61,MATCH(ET.county!$B49,ET.region!$A$51:$A$61,0),MATCH(ET.county!F$1,ET.region!$A$51:$M$51,0)) -> 4.59 | G49: =INDEX(ET.region!$A$51:$M$61,MATCH(ET.county!$B49,ET.region!$A$51:$A$61,0),MATCH(ET.county!G$1,ET.region!$A$51:$M$51,0)) -> 5.797 | H49: =INDEX(ET.region!$A$51:$M$61,MATCH(ET.county!$B49,ET.region!$A$51:$A$61,0),MATCH(ET.county!H$1,ET.region!$A$51:$M$51,0)) -> 6.24 | I49: =INDEX(ET.region!$A$51:$M$61,MATCH(ET.county!$B49,ET.region!$A$51:$A$61,0),MATCH(ET.county!I$1,ET.region!$A$51:$M$51,0)) -> 6.479 | J49: =INDEX(ET.region!$A$51:$M$61,MATCH(ET.county!$B49,ET.region!$A$51:$A$61,0),MATCH(ET.county!J$1,ET.region!$A$51:$M$51,0)) -> 5.735 | K49: =INDEX(ET.region!$A$51:$M$61,MATCH(ET.county!$B49,ET.region!$A$51:$A$61,0),MATCH(ET.county!K$1,ET.region!$A$51:$M$51,0)) -> 4.38 | L49: =INDEX(ET.region!$A$51:$M$61,MATCH(ET.county!$B49,ET.region!$A$51:$A$61,0),MATCH(ET.county!L$1,ET.region!$A$51:$M$51,0)) -> 3.255 | M49: =INDEX(ET.region!$A$51:$M$61,MATCH(ET.county!$B49,ET.region!$A$51:$A$61,0),MATCH(ET.county!M$1,ET.region!$A$51:$M$51,0)) -> 2.07 | N49: =INDEX(ET.region!$A$51:$M$61,MATCH(ET.county!$B49,ET.region!$A$51:$A$61,0),MATCH(ET.county!N$1,ET.region!$A$51:$M$51,0)) -> 1.55
A50: Iredell | B50: Salisbury | C50: =INDEX(ET.region!$A$51:$M$61,MATCH(ET.county!$B50,ET.region!$A$51:$A$61,0),MATCH(ET.county!C$1,ET.region!$A$51:$M$51,0)) -> 1.488976378 | D50: =INDEX(ET.region!$A$51:$M$61,MATCH(ET.county!$B50,ET.region!$A$51:$A$61,0),MATCH(ET.county!D$1,ET.region!$A$51:$M$51,0)) -> 1.94015748 | E50: =INDEX(ET.region!$A$51:$M$61,MATCH(ET.county!$B50,ET.region!$A$51:$A$61,0),MATCH(ET.county!E$1,ET.region!$A$51:$M$51,0)) -> 3.295275591 | F50: =INDEX(ET.region!$A$51:$M$61,MATCH(ET.county!$B50,ET.region!$A$51:$A$61,0),MATCH(ET.county!F$1,ET.region!$A$51:$M$51,0)) -> 4.700787402 | G50: =INDEX(ET.region!$A$51:$M$61,MATCH(ET.county!$B50,ET.region!$A$51:$A$61,0),MATCH(ET.county!G$1,ET.region!$A$51:$M$51,0)) -> 6.016929134 | H50: =INDEX(ET.region!$A$51:$M$61,MATCH(ET.county!$B50,ET.region!$A$51:$A$61,0),MATCH(ET.county!H$1,ET.region!$A$51:$M$51,0)) -> 6.649606299 | I50: =INDEX(ET.region!$A$51:$M$61,MATCH(ET.county!$B50,ET.region!$A$51:$A$61,0),MATCH(ET.county!I$1,ET.region!$A$51:$M$51,0)) -> 6.932283465 | J50: =INDEX(ET.region!$A$51:$M$61,MATCH(ET.county!$B50,ET.region!$A$51:$A$61,0),MATCH(ET.county!J$1,ET.region!$A$51:$M$51,0)) -> 6.175590551 | K50: =INDEX(ET.region!$A$51:$M$61,MATCH(ET.county!$B50,ET.region!$A$51:$A$61,0),MATCH(ET.county!K$1,ET.region!$A$51:$M$51,0)) -> 4.712598425 | L50: =INDEX(ET.region!$A$51:$M$61,MATCH(ET.county!$B50,ET.region!$A$51:$A$61,0),MATCH(ET.county!L$1,ET.region!$A$51:$M$51,0)) -> 3.417322835 | M50: =INDEX(ET.region!$A$51:$M$61,MATCH(ET.county!$B50,ET.region!$A$51:$A$61,0),MATCH(ET.county!M$1,ET.region!$A$51:$M$51,0)) -> 2.114173228 | N50: =INDEX(ET.region!$A$51:$M$61,MATCH(ET.county!$B50,ET.region!$A$51:$A$61,0),MATCH(ET.county!N$1,ET.region!$A$51:$M$51,0)) -> 1.452362205
A51: Jackson | B51: Fletcher | C51: =INDEX(ET.region!$A$51:$M$61,MATCH(ET.county!$B51,ET.region!$A$51:$A$61,0),MATCH(ET.county!C$1,ET.region!$A$51:$M$51,0)) -> 1.391338583 | D51: =INDEX(ET.region!$A$51:$M$61,MATCH(ET.county!$B51,ET.region!$A$51:$A$61,0),MATCH(ET.county!D$1,ET.region!$A$51:$M$51,0)) -> 1.77480315 | E51: =INDEX(ET.region!$A$51:$M$61,MATCH(ET.county!$B51,ET.region!$A$51:$A$61,0),MATCH(ET.county!E$1,ET.region!$A$51:$M$51,0)) -> 3.063385827 | F51: =INDEX(ET.region!$A$51:$M$61,MATCH(ET.county!$B51,ET.region!$A$51:$A$61,0),MATCH(ET.county!F$1,ET.region!$A$51:$M$51,0)) -> 4.417322835 | G51: =INDEX(ET.region!$A$51:$M$61,MATCH(ET.county!$B51,ET.region!$A$51:$A$61,0),MATCH(ET.county!G$1,ET.region!$A$51:$M$51,0)) -> 5.736220472 | H51: =INDEX(ET.region!$A$51:$M$61,MATCH(ET.county!$B51,ET.region!$A$51:$A$61,0),MATCH(ET.county!H$1,ET.region!$A$51:$M$51,0)) -> 6.307086614 | I51: =INDEX(ET.region!$A$51:$M$61,MATCH(ET.county!$B51,ET.region!$A$51:$A$61,0),MATCH(ET.county!I$1,ET.region!$A$51:$M$51,0)) -> 6.541732283 | J51: =INDEX(ET.region!$A$51:$M$61,MATCH(ET.county!$B51,ET.region!$A$51:$A$61,0),MATCH(ET.county!J$1,ET.region!$A$51:$M$51,0)) -> 5.931496063 | K51: =INDEX(ET.region!$A$51:$M$61,MATCH(ET.county!$B51,ET.region!$A$51:$A$61,0),MATCH(ET.county!K$1,ET.region!$A$51:$M$51,0)) -> 4.511811024 | L51: =INDEX(ET.region!$A$51:$M$61,MATCH(ET.county!$B51,ET.region!$A$51:$A$61,0),MATCH(ET.county!L$1,ET.region!$A$51:$M$51,0)) -> 3.270866142 | M51: =INDEX(ET.region!$A$51:$M$61,MATCH(ET.county!$B51,ET.region!$A$51:$A$61,0),MATCH(ET.county!M$1,ET.region!$A$51:$M$51,0)) -> 1.972440945 | N51: =INDEX(ET.region!$A$51:$M$61,MATCH(ET.county!$B51,ET.region!$A$51:$A$61,0),MATCH(ET.county!N$1,ET.region!$A$51:$M$51,0)) -> 1.354724409
A52: Johnston | B52: Raleigh | C52: =INDEX(ET.region!$A$51:$M$61,MATCH(ET.county!$B52,ET.region!$A$51:$A$61,0),MATCH(ET.county!C$1,ET.region!$A$51:$M$51,0)) -> 1.562204724 | D52: =INDEX(ET.region!$A$51:$M$61,MATCH(ET.county!$B52,ET.region!$A$51:$A$61,0),MATCH(ET.county!D$1,ET.region!$A$51:$M$51,0)) -> 2.050393701 | E52: =INDEX(ET.region!$A$51:$M$61,MATCH(ET.county!$B52,ET.region!$A$51:$A$61,0),MATCH(ET.county!E$1,ET.region!$A$51:$M$51,0)) -> 3.502755906 | F52: =INDEX(ET.region!$A$51:$M$61,MATCH(ET.county!$B52,ET.region!$A$51:$A$61,0),MATCH(ET.county!F$1,ET.region!$A$51:$M$51,0)) -> 4.937007874 | G52: =INDEX(ET.region!$A$51:$M$61,MATCH(ET.county!$B52,ET.region!$A$51:$A$61,0),MATCH(ET.county!G$1,ET.region!$A$51:$M$51,0)) -> 6.212204724 | H52: =INDEX(ET.region!$A$51:$M$61,MATCH(ET.county!$B52,ET.region!$A$51:$A$61,0),MATCH(ET.county!H$1,ET.region!$A$51:$M$51,0)) -> 6.696850394 | I52: =INDEX(ET.region!$A$51:$M$61,MATCH(ET.county!$B52,ET.region!$A$51:$A$61,0),MATCH(ET.county!I$1,ET.region!$A$51:$M$51,0)) -> 6.944488189 | J52: =INDEX(ET.region!$A$51:$M$61,MATCH(ET.county!$B52,ET.region!$A$51:$A$61,0),MATCH(ET.county!J$1,ET.region!$A$51:$M$51,0)) -> 6.212204724 | K52: =INDEX(ET.region!$A$51:$M$61,MATCH(ET.county!$B52,ET.region!$A$51:$A$61,0),MATCH(ET.county!K$1,ET.region!$A$51:$M$51,0)) -> 4.75984252 | L52: =INDEX(ET.region!$A$51:$M$61,MATCH(ET.county!$B52,ET.region!$A$51:$A$61,0),MATCH(ET.county!L$1,ET.region!$A$51:$M$51,0)) -> 3.441732283 | M52: =INDEX(ET.region!$A$51:$M$61,MATCH(ET.county!$B52,ET.region!$A$51:$A$61,0),MATCH(ET.county!M$1,ET.region!$A$51:$M$51,0)) -> 2.149606299 | N52: =INDEX(ET.region!$A$51:$M$61,MATCH(ET.county!$B52,ET.region!$A$51:$A$61,0),MATCH(ET.county!N$1,ET.region!$A$51:$M$51,0)) -> 1.513385827
A53: Jones | B53: Aurora | C53: =INDEX(ET.region!$A$51:$M$61,MATCH(ET.county!$B53,ET.region!$A$51:$A$61,0),MATCH(ET.county!C$1,ET.region!$A$51:$M$51,0)) -> 1.581 | D53: =INDEX(ET.region!$A$51:$M$61,MATCH(ET.county!$B53,ET.region!$A$51:$A$61,0),MATCH(ET.county!D$1,ET.region!$A$51:$M$51,0)) -> 1.96 | E53: =INDEX(ET.region!$A$51:$M$61,MATCH(ET.county!$B53,ET.region!$A$51:$A$61,0),MATCH(ET.county!E$1,ET.region!$A$51:$M$51,0)) -> 3.255 | F53: =INDEX(ET.region!$A$51:$M$61,MATCH(ET.county!$B53,ET.region!$A$51:$A$61,0),MATCH(ET.county!F$1,ET.region!$A$51:$M$51,0)) -> 4.59 | G53: =INDEX(ET.region!$A$51:$M$61,MATCH(ET.county!$B53,ET.region!$A$51:$A$61,0),MATCH(ET.county!G$1,ET.region!$A$51:$M$51,0)) -> 5.797 | H53: =INDEX(ET.region!$A$51:$M$61,MATCH(ET.county!$B53,ET.region!$A$51:$A$61,0),MATCH(ET.county!H$1,ET.region!$A$51:$M$51,0)) -> 6.24 | I53: =INDEX(ET.region!$A$51:$M$61,MATCH(ET.county!$B53,ET.region!$A$51:$A$61,0),MATCH(ET.county!I$1,ET.region!$A$51:$M$51,0)) -> 6.479 | J53: =INDEX(ET.region!$A$51:$M$61,MATCH(ET.county!$B53,ET.region!$A$51:$A$61,0),MATCH(ET.county!J$1,ET.region!$A$51:$M$51,0)) -> 5.735 | K53: =INDEX(ET.region!$A$51:$M$61,MATCH(ET.county!$B53,ET.region!$A$51:$A$61,0),MATCH(ET.county!K$1,ET.region!$A$51:$M$51,0)) -> 4.38 | L53: =INDEX(ET.region!$A$51:$M$61,MATCH(ET.county!$B53,ET.region!$A$51:$A$61,0),MATCH(ET.county!L$1,ET.region!$A$51:$M$51,0)) -> 3.255 | M53: =INDEX(ET.region!$A$51:$M$61,MATCH(ET.county!$B53,ET.region!$A$51:$A$61,0),MATCH(ET.county!M$1,ET.region!$A$51:$M$51,0)) -> 2.07 | N53: =INDEX(ET.region!$A$51:$M$61,MATCH(ET.county!$B53,ET.region!$A$51:$A$61,0),MATCH(ET.county!N$1,ET.region!$A$51:$M$51,0)) -> 1.55
A54: Lee | B54: Raleigh | C54: =INDEX(ET.region!$A$51:$M$61,MATCH(ET.county!$B54,ET.region!$A$51:$A$61,0),MATCH(ET.county!C$1,ET.region!$A$51:$M$51,0)) -> 1.562204724 | D54: =INDEX(ET.region!$A$51:$M$61,MATCH(ET.county!$B54,ET.region!$A$51:$A$61,0),MATCH(ET.county!D$1,ET.region!$A$51:$M$51,0)) -> 2.050393701 | E54: =INDEX(ET.region!$A$51:$M$61,MATCH(ET.county!$B54,ET.region!$A$51:$A$61,0),MATCH(ET.county!E$1,ET.region!$A$51:$M$51,0)) -> 3.502755906 | F54: =INDEX(ET.region!$A$51:$M$61,MATCH(ET.county!$B54,ET.region!$A$51:$A$61,0),MATCH(ET.county!F$1,ET.region!$A$51:$M$51,0)) -> 4.937007874 | G54: =INDEX(ET.region!$A$51:$M$61,MATCH(ET.county!$B54,ET.region!$A$51:$A$61,0),MATCH(ET.county!G$1,ET.region!$A$51:$M$51,0)) -> 6.212204724 | H54: =INDEX(ET.region!$A$51:$M$61,MATCH(ET.county!$B54,ET.region!$A$51:$A$61,0),MATCH(ET.county!H$1,ET.region!$A$51:$M$51,0)) -> 6.696850394 | I54: =INDEX(ET.region!$A$51:$M$61,MATCH(ET.county!$B54,ET.region!$A$51:$A$61,0),MATCH(ET.county!I$1,ET.region!$A$51:$M$51,0)) -> 6.944488189 | J54: =INDEX(ET.region!$A$51:$M$61,MATCH(ET.county!$B54,ET.region!$A$51:$A$61,0),MATCH(ET.county!J$1,ET.region!$A$51:$M$51,0)) -> 6.212204724 | K54: =INDEX(ET.region!$A$51:$M$61,MATCH(ET.county!$B54,ET.region!$A$51:$A$61,0),MATCH(ET.county!K$1,ET.region!$A$51:$M$51,0)) -> 4.75984252 | L54: =INDEX(ET.region!$A$51:$M$61,MATCH(ET.county!$B54,ET.region!$A$51:$A$61,0),MATCH(ET.county!L$1,ET.region!$A$51:$M$51,0)) -> 3.441732283 | M54: =INDEX(ET.region!$A$51:$M$61,MATCH(ET.county!$B54,ET.region!$A$51:$A$61,0),MATCH(ET.county!M$1,ET.region!$A$51:$M$51,0)) -> 2.149606299 | N54: =INDEX(ET.region!$A$51:$M$61,MATCH(ET.county!$B54,ET.region!$A$51:$A$61,0),MATCH(ET.county!N$1,ET.region!$A$51:$M$51,0)) -> 1.513385827
A55: Lenoir | B55: Goldsboro | C55: =INDEX(ET.region!$A$51:$M$61,MATCH(ET.county!$B55,ET.region!$A$51:$A$61,0),MATCH(ET.county!C$1,ET.region!$A$51:$M$51,0)) -> 1.574409449 | D55: =INDEX(ET.region!$A$51:$M$61,MATCH(ET.county!$B55,ET.region!$A$51:$A$61,0),MATCH(ET.county!D$1,ET.region!$A$51:$M$51,0)) -> 2.017322835 | E55: =INDEX(ET.region!$A$51:$M$61,MATCH(ET.county!$B55,ET.region!$A$51:$A$61,0),MATCH(ET.county!E$1,ET.region!$A$51:$M$51,0)) -> 3.466141732 | F55: =INDEX(ET.region!$A$51:$M$61,MATCH(ET.county!$B55,ET.region!$A$51:$A$61,0),MATCH(ET.county!F$1,ET.region!$A$51:$M$51,0)) -> 4.877952756 | G55: =INDEX(ET.region!$A$51:$M$61,MATCH(ET.county!$B55,ET.region!$A$51:$A$61,0),MATCH(ET.county!G$1,ET.region!$A$51:$M$51,0)) -> 6.297637795 | H55: =INDEX(ET.region!$A$51:$M$61,MATCH(ET.county!$B55,ET.region!$A$51:$A$61,0),MATCH(ET.county!H$1,ET.region!$A$51:$M$51,0)) -> 6.696850394 | I55: =INDEX(ET.region!$A$51:$M$61,MATCH(ET.county!$B55,ET.region!$A$51:$A$61,0),MATCH(ET.county!I$1,ET.region!$A$51:$M$51,0)) -> 6.834645669 | J55: =INDEX(ET.region!$A$51:$M$61,MATCH(ET.county!$B55,ET.region!$A$51:$A$61,0),MATCH(ET.county!J$1,ET.region!$A$51:$M$51,0)) -> 6.114566929 | K55: =INDEX(ET.region!$A$51:$M$61,MATCH(ET.county!$B55,ET.region!$A$51:$A$61,0),MATCH(ET.county!K$1,ET.region!$A$51:$M$51,0)) -> 4.712598425 | L55: =INDEX(ET.region!$A$51:$M$61,MATCH(ET.county!$B55,ET.region!$A$51:$A$61,0),MATCH(ET.county!L$1,ET.region!$A$51:$M$51,0)) -> 3.466141732 | M55: =INDEX(ET.region!$A$51:$M$61,MATCH(ET.county!$B55,ET.region!$A$51:$A$61,0),MATCH(ET.county!M$1,ET.region!$A$51:$M$51,0)) -> 2.196850394 | N55: =INDEX(ET.region!$A$51:$M$61,MATCH(ET.county!$B55,ET.region!$A$51:$A$61,0),MATCH(ET.county!N$1,ET.region!$A$51:$M$51,0)) -> 1.55
A56: Lincoln | B56: Salisbury | C56: =INDEX(ET.region!$A$51:$M$61,MATCH(ET.county!$B56,ET.region!$A$51:$A$61,0),MATCH(ET.county!C$1,ET.region!$A$51:$M$51,0)) -> 1.488976378 | D56: =INDEX(ET.region!$A$51:$M$61,MATCH(ET.county!$B56,ET.region!$A$51:$A$61,0),MATCH(ET.county!D$1,ET.region!$A$51:$M$51,0)) -> 1.94015748 | E56: =INDEX(ET.region!$A$51:$M$61,MATCH(ET.county!$B56,ET.region!$A$51:$A$61,0),MATCH(ET.county!E$1,ET.region!$A$51:$M$51,0)) -> 3.295275591 | F56: =INDEX(ET.region!$A$51:$M$61,MATCH(ET.county!$B56,ET.region!$A$51:$A$61,0),MATCH(ET.county!F$1,ET.region!$A$51:$M$51,0)) -> 4.700787402 | G56: =INDEX(ET.region!$A$51:$M$61,MATCH(ET.county!$B56,ET.region!$A$51:$A$61,0),MATCH(ET.county!G$1,ET.region!$A$51:$M$51,0)) -> 6.016929134 | H56: =INDEX(ET.region!$A$51:$M$61,MATCH(ET.county!$B56,ET.region!$A$51:$A$61,0),MATCH(ET.county!H$1,ET.region!$A$51:$M$51,0)) -> 6.649606299 | I56: =INDEX(ET.region!$A$51:$M$61,MATCH(ET.county!$B56,ET.region!$A$51:$A$61,0),MATCH(ET.county!I$1,ET.region!$A$51:$M$51,0)) -> 6.932283465 | J56: =INDEX(ET.region!$A$51:$M$61,MATCH(ET.county!$B56,ET.region!$A$51:$A$61,0),MATCH(ET.county!J$1,ET.region!$A$51:$M$51,0)) -> 6.175590551 | K56: =INDEX(ET.region!$A$51:$M$61,MATCH(ET.county!$B56,ET.region!$A$51:$A$61,0),MATCH(ET.county!K$1,ET.region!$A$51:$M$51,0)) -> 4.712598425 | L56: =INDEX(ET.region!$A$51:$M$61,MATCH(ET.county!$B56,ET.region!$A$51:$A$61,0),MATCH(ET.county!L$1,ET.region!$A$51:$M$51,0)) -> 3.417322835 | M56: =INDEX(ET.region!$A$51:$M$61,MATCH(ET.county!$B56,ET.region!$A$51:$A$61,0),MATCH(ET.county!M$1,ET.region!$A$51:$M$51,0)) -> 2.114173228 | N56: =INDEX(ET.region!$A$51:$M$61,MATCH(ET.county!$B56,ET.region!$A$51:$A$61,0),MATCH(ET.county!N$1,ET.region!$A$51:$M$51,0)) -> 1.452362205
A57: Macon | B57: Fletcher | C57: =INDEX(ET.region!$A$51:$M$61,MATCH(ET.county!$B57,ET.region!$A$51:$A$61,0),MATCH(ET.county!C$1,ET.region!$A$51:$M$51,0)) -> 1.391338583 | D57: =INDEX(ET.region!$A$51:$M$61,MATCH(ET.county!$B57,ET.region!$A$51:$A$61,0),MATCH(ET.county!D$1,ET.region!$A$51:$M$51,0)) -> 1.77480315 | E57: =INDEX(ET.region!$A$51:$M$61,MATCH(ET.county!$B57,ET.region!$A$51:$A$61,0),MATCH(ET.county!E$1,ET.region!$A$51:$M$51,0)) -> 3.063385827 | F57: =INDEX(ET.region!$A$51:$M$61,MATCH(ET.county!$B57,ET.region!$A$51:$A$61,0),MATCH(ET.county!F$1,ET.region!$A$51:$M$51,0)) -> 4.417322835 | G57: =INDEX(ET.region!$A$51:$M$61,MATCH(ET.county!$B57,ET.region!$A$51:$A$61,0),MATCH(ET.county!G$1,ET.region!$A$51:$M$51,0)) -> 5.736220472 | H57: =INDEX(ET.region!$A$51:$M$61,MATCH(ET.county!$B57,ET.region!$A$51:$A$61,0),MATCH(ET.county!H$1,ET.region!$A$51:$M$51,0)) -> 6.307086614 | I57: =INDEX(ET.region!$A$51:$M$61,MATCH(ET.county!$B57,ET.region!$A$51:$A$61,0),MATCH(ET.county!I$1,ET.region!$A$51:$M$51,0)) -> 6.541732283 | J57: =INDEX(ET.region!$A$51:$M$61,MATCH(ET.county!$B57,ET.region!$A$51:$A$61,0),MATCH(ET.county!J$1,ET.region!$A$51:$M$51,0)) -> 5.931496063 | K57: =INDEX(ET.region!$A$51:$M$61,MATCH(ET.county!$B57,ET.region!$A$51:$A$61,0),MATCH(ET.county!K$1,ET.region!$A$51:$M$51,0)) -> 4.511811024 | L57: =INDEX(ET.region!$A$51:$M$61,MATCH(ET.county!$B57,ET.region!$A$51:$A$61,0),MATCH(ET.county!L$1,ET.region!$A$51:$M$51,0)) -> 3.270866142 | M57: =INDEX(ET.region!$A$51:$M$61,MATCH(ET.county!$B57,ET.region!$A$51:$A$61,0),MATCH(ET.county!M$1,ET.region!$A$51:$M$51,0)) -> 1.972440945 | N57: =INDEX(ET.region!$A$51:$M$61,MATCH(ET.county!$B57,ET.region!$A$51:$A$61,0),MATCH(ET.county!N$1,ET.region!$A$51:$M$51,0)) -> 1.354724409
A58: Madison | B58: Fletcher | C58: =INDEX(ET.region!$A$51:$M$61,MATCH(ET.county!$B58,ET.region!$A$51:$A$61,0),MATCH(ET.county!C$1,ET.region!$A$51:$M$51,0)) -> 1.391338583 | D58: =INDEX(ET.region!$A$51:$M$61,MATCH(ET.county!$B58,ET.region!$A$51:$A$61,0),MATCH(ET.county!D$1,ET.region!$A$51:$M$51,0)) -> 1.77480315 | E58: =INDEX(ET.region!$A$51:$M$61,MATCH(ET.county!$B58,ET.region!$A$51:$A$61,0),MATCH(ET.county!E$1,ET.region!$A$51:$M$51,0)) -> 3.063385827 | F58: =INDEX(ET.region!$A$51:$M$61,MATCH(ET.county!$B58,ET.region!$A$51:$A$61,0),MATCH(ET.county!F$1,ET.region!$A$51:$M$51,0)) -> 4.417322835 | G58: =INDEX(ET.region!$A$51:$M$61,MATCH(ET.county!$B58,ET.region!$A$51:$A$61,0),MATCH(ET.county!G$1,ET.region!$A$51:$M$51,0)) -> 5.736220472 | H58: =INDEX(ET.region!$A$51:$M$61,MATCH(ET.county!$B58,ET.region!$A$51:$A$61,0),MATCH(ET.county!H$1,ET.region!$A$51:$M$51,0)) -> 6.307086614 | I58: =INDEX(ET.region!$A$51:$M$61,MATCH(ET.county!$B58,ET.region!$A$51:$A$61,0),MATCH(ET.county!I$1,ET.region!$A$51:$M$51,0)) -> 6.541732283 | J58: =INDEX(ET.region!$A$51:$M$61,MATCH(ET.county!$B58,ET.region!$A$51:$A$61,0),MATCH(ET.county!J$1,ET.region!$A$51:$M$51,0)) -> 5.931496063 | K58: =INDEX(ET.region!$A$51:$M$61,MATCH(ET.county!$B58,ET.region!$A$51:$A$61,0),MATCH(ET.county!K$1,ET.region!$A$51:$M$51,0)) -> 4.511811024 | L58: =INDEX(ET.region!$A$51:$M$61,MATCH(ET.county!$B58,ET.region!$A$51:$A$61,0),MATCH(ET.county!L$1,ET.region!$A$51:$M$51,0)) -> 3.270866142 | M58: =INDEX(ET.region!$A$51:$M$61,MATCH(ET.county!$B58,ET.region!$A$51:$A$61,0),MATCH(ET.county!M$1,ET.region!$A$51:$M$51,0)) -> 1.972440945 | N58: =INDEX(ET.region!$A$51:$M$61,MATCH(ET.county!$B58,ET.region!$A$51:$A$61,0),MATCH(ET.county!N$1,ET.region!$A$51:$M$51,0)) -> 1.354724409
A59: Martin | B59: Lewiston | C59: =INDEX(ET.region!$A$51:$M$61,MATCH(ET.county!$B59,ET.region!$A$51:$A$61,0),MATCH(ET.county!C$1,ET.region!$A$51:$M$51,0)) -> 1.525590551 | D59: =INDEX(ET.region!$A$51:$M$61,MATCH(ET.county!$B59,ET.region!$A$51:$A$61,0),MATCH(ET.county!D$1,ET.region!$A$51:$M$51,0)) -> 2.017322835 | E59: =INDEX(ET.region!$A$51:$M$61,MATCH(ET.county!$B59,ET.region!$A$51:$A$61,0),MATCH(ET.county!E$1,ET.region!$A$51:$M$51,0)) -> 3.490551181 | F59: =INDEX(ET.region!$A$51:$M$61,MATCH(ET.county!$B59,ET.region!$A$51:$A$61,0),MATCH(ET.county!F$1,ET.region!$A$51:$M$51,0)) -> 5.05511811 | G59: =INDEX(ET.region!$A$51:$M$61,MATCH(ET.county!$B59,ET.region!$A$51:$A$61,0),MATCH(ET.county!G$1,ET.region!$A$51:$M$51,0)) -> 6.431889764 | H59: =INDEX(ET.region!$A$51:$M$61,MATCH(ET.county!$B59,ET.region!$A$51:$A$61,0),MATCH(ET.county!H$1,ET.region!$A$51:$M$51,0)) -> 7.07480315 | I59: =INDEX(ET.region!$A$51:$M$61,MATCH(ET.county!$B59,ET.region!$A$51:$A$61,0),MATCH(ET.county!I$1,ET.region!$A$51:$M$51,0)) -> 7.359448819 | J59: =INDEX(ET.region!$A$51:$M$61,MATCH(ET.county!$B59,ET.region!$A$51:$A$61,0),MATCH(ET.county!J$1,ET.region!$A$51:$M$51,0)) -> 6.566141732 | K59: =INDEX(ET.region!$A$51:$M$61,MATCH(ET.county!$B59,ET.region!$A$51:$A$61,0),MATCH(ET.county!K$1,ET.region!$A$51:$M$51,0)) -> 4.948818898 | L59: =INDEX(ET.region!$A$51:$M$61,MATCH(ET.county!$B59,ET.region!$A$51:$A$61,0),MATCH(ET.county!L$1,ET.region!$A$51:$M$51,0)) -> 3.575984252 | M59: =INDEX(ET.region!$A$51:$M$61,MATCH(ET.county!$B59,ET.region!$A$51:$A$61,0),MATCH(ET.county!M$1,ET.region!$A$51:$M$51,0)) -> 2.196850394 | N59: =INDEX(ET.region!$A$51:$M$61,MATCH(ET.county!$B59,ET.region!$A$51:$A$61,0),MATCH(ET.county!N$1,ET.region!$A$51:$M$51,0)) -> 1.525590551
A60: Mcdowell | B60: Lenoir | C60: =INDEX(ET.region!$A$51:$M$61,MATCH(ET.county!$B60,ET.region!$A$51:$A$61,0),MATCH(ET.county!C$1,ET.region!$A$51:$M$51,0)) -> 1.452362205 | D60: =INDEX(ET.region!$A$51:$M$61,MATCH(ET.county!$B60,ET.region!$A$51:$A$61,0),MATCH(ET.county!D$1,ET.region!$A$51:$M$51,0)) -> 1.88503937 | E60: =INDEX(ET.region!$A$51:$M$61,MATCH(ET.county!$B60,ET.region!$A$51:$A$61,0),MATCH(ET.county!E$1,ET.region!$A$51:$M$51,0)) -> 3.161023622 | F60: =INDEX(ET.region!$A$51:$M$61,MATCH(ET.county!$B60,ET.region!$A$51:$A$61,0),MATCH(ET.county!F$1,ET.region!$A$51:$M$51,0)) -> 4.346456693 | G60: =INDEX(ET.region!$A$51:$M$61,MATCH(ET.county!$B60,ET.region!$A$51:$A$61,0),MATCH(ET.county!G$1,ET.region!$A$51:$M$51,0)) -> 5.333464567 | H60: =INDEX(ET.region!$A$51:$M$61,MATCH(ET.county!$B60,ET.region!$A$51:$A$61,0),MATCH(ET.county!H$1,ET.region!$A$51:$M$51,0)) -> 5.57480315 | I60: =INDEX(ET.region!$A$51:$M$61,MATCH(ET.county!$B60,ET.region!$A$51:$A$61,0),MATCH(ET.county!I$1,ET.region!$A$51:$M$51,0)) -> 5.67519685 | J60: =INDEX(ET.region!$A$51:$M$61,MATCH(ET.county!$B60,ET.region!$A$51:$A$61,0),MATCH(ET.county!J$1,ET.region!$A$51:$M$51,0)) -> 5.089370079 | K60: =INDEX(ET.region!$A$51:$M$61,MATCH(ET.county!$B60,ET.region!$A$51:$A$61,0),MATCH(ET.county!K$1,ET.region!$A$51:$M$51,0)) -> 4.015748031 | L60: =INDEX(ET.region!$A$51:$M$61,MATCH(ET.county!$B60,ET.region!$A$51:$A$61,0),MATCH(ET.county!L$1,ET.region!$A$51:$M$51,0)) -> 3.063385827 | M60: =INDEX(ET.region!$A$51:$M$61,MATCH(ET.county!$B60,ET.region!$A$51:$A$61,0),MATCH(ET.county!M$1,ET.region!$A$51:$M$51,0)) -> 1.960629921 | N60: =INDEX(ET.region!$A$51:$M$61,MATCH(ET.county!$B60,ET.region!$A$51:$A$61,0),MATCH(ET.county!N$1,ET.region!$A$51:$M$51,0)) -> 1.391338583
A61: Mecklenburg | B61: Salisbury | C61: =INDEX(ET.region!$A$51:$M$61,MATCH(ET.county!$B61,ET.region!$A$51:$A$61,0),MATCH(ET.county!C$1,ET.region!$A$51:$M$51,0)) -> 1.488976378 | D61: =INDEX(ET.region!$A$51:$M$61,MATCH(ET.county!$B61,ET.region!$A$51:$A$61,0),MATCH(ET.county!D$1,ET.region!$A$51:$M$51,0)) -> 1.94015748 | E61: =INDEX(ET.region!$A$51:$M$61,MATCH(ET.county!$B61,ET.region!$A$51:$A$61,0),MATCH(ET.county!E$1,ET.region!$A$51:$M$51,0)) -> 3.295275591 | F61: =INDEX(ET.region!$A$51:$M$61,MATCH(ET.county!$B61,ET.region!$A$51:$A$61,0),MATCH(ET.county!F$1,ET.region!$A$51:$M$51,0)) -> 4.700787402 | G61: =INDEX(ET.region!$A$51:$M$61,MATCH(ET.county!$B61,ET.region!$A$51:$A$61,0),MATCH(ET.county!G$1,ET.region!$A$51:$M$51,0)) -> 6.016929134 | H61: =INDEX(ET.region!$A$51:$M$61,MATCH(ET.county!$B61,ET.region!$A$51:$A$61,0),MATCH(ET.county!H$1,ET.region!$A$51:$M$51,0)) -> 6.649606299 | I61: =INDEX(ET.region!$A$51:$M$61,MATCH(ET.county!$B61,ET.region!$A$51:$A$61,0),MATCH(ET.county!I$1,ET.region!$A$51:$M$51,0)) -> 6.932283465 | J61: =INDEX(ET.region!$A$51:$M$61,MATCH(ET.county!$B61,ET.region!$A$51:$A$61,0),MATCH(ET.county!J$1,ET.region!$A$51:$M$51,0)) -> 6.175590551 | K61: =INDEX(ET.region!$A$51:$M$61,MATCH(ET.county!$B61,ET.region!$A$51:$A$61,0),MATCH(ET.county!K$1,ET.region!$A$51:$M$51,0)) -> 4.712598425 | L61: =INDEX(ET.region!$A$51:$M$61,MATCH(ET.county!$B61,ET.region!$A$51:$A$61,0),MATCH(ET.county!L$1,ET.region!$A$51:$M$51,0)) -> 3.417322835 | M61: =INDEX(ET.region!$A$51:$M$61,MATCH(ET.county!$B61,ET.region!$A$51:$A$61,0),MATCH(ET.county!M$1,ET.region!$A$51:$M$51,0)) -> 2.114173228 | N61: =INDEX(ET.region!$A$51:$M$61,MATCH(ET.county!$B61,ET.region!$A$51:$A$61,0),MATCH(ET.county!N$1,ET.region!$A$51:$M$51,0)) -> 1.452362205
A62: Mitchell | B62: Fletcher | C62: =INDEX(ET.region!$A$51:$M$61,MATCH(ET.county!$B62,ET.region!$A$51:$A$61,0),MATCH(ET.county!C$1,ET.region!$A$51:$M$51,0)) -> 1.391338583 | D62: =INDEX(ET.region!$A$51:$M$61,MATCH(ET.county!$B62,ET.region!$A$51:$A$61,0),MATCH(ET.county!D$1,ET.region!$A$51:$M$51,0)) -> 1.77480315 | E62: =INDEX(ET.region!$A$51:$M$61,MATCH(ET.county!$B62,ET.region!$A$51:$A$61,0),MATCH(ET.county!E$1,ET.region!$A$51:$M$51,0)) -> 3.063385827 | F62: =INDEX(ET.region!$A$51:$M$61,MATCH(ET.county!$B62,ET.region!$A$51:$A$61,0),MATCH(ET.county!F$1,ET.region!$A$51:$M$51,0)) -> 4.417322835 | G62: =INDEX(ET.region!$A$51:$M$61,MATCH(ET.county!$B62,ET.region!$A$51:$A$61,0),MATCH(ET.county!G$1,ET.region!$A$51:$M$51,0)) -> 5.736220472 | H62: =INDEX(ET.region!$A$51:$M$61,MATCH(ET.county!$B62,ET.region!$A$51:$A$61,0),MATCH(ET.county!H$1,ET.region!$A$51:$M$51,0)) -> 6.307086614 | I62: =INDEX(ET.region!$A$51:$M$61,MATCH(ET.county!$B62,ET.region!$A$51:$A$61,0),MATCH(ET.county!I$1,ET.region!$A$51:$M$51,0)) -> 6.541732283 | J62: =INDEX(ET.region!$A$51:$M$61,MATCH(ET.county!$B62,ET.region!$A$51:$A$61,0),MATCH(ET.county!J$1,ET.region!$A$51:$M$51,0)) -> 5.931496063 | K62: =INDEX(ET.region!$A$51:$M$61,MATCH(ET.county!$B62,ET.region!$A$51:$A$61,0),MATCH(ET.county!K$1,ET.region!$A$51:$M$51,0)) -> 4.511811024 | L62: =INDEX(ET.region!$A$51:$M$61,MATCH(ET.county!$B62,ET.region!$A$51:$A$61,0),MATCH(ET.county!L$1,ET.region!$A$51:$M$51,0)) -> 3.270866142 | M62: =INDEX(ET.region!$A$51:$M$61,MATCH(ET.county!$B62,ET.region!$A$51:$A$61,0),MATCH(ET.county!M$1,ET.region!$A$51:$M$51,0)) -> 1.972440945 | N62: =INDEX(ET.region!$A$51:$M$61,MATCH(ET.county!$B62,ET.region!$A$51:$A$61,0),MATCH(ET.county!N$1,ET.region!$A$51:$M$51,0)) -> 1.354724409
A63: Montgomery | B63: Jackson.Springs | C63: =INDEX(ET.region!$A$51:$M$61,MATCH(ET.county!$B63,ET.region!$A$51:$A$61,0),MATCH(ET.county!C$1,ET.region!$A$51:$M$51,0)) -> 1.501181102 | D63: =INDEX(ET.region!$A$51:$M$61,MATCH(ET.county!$B63,ET.region!$A$51:$A$61,0),MATCH(ET.county!D$1,ET.region!$A$51:$M$51,0)) -> 1.962204724 | E63: =INDEX(ET.region!$A$51:$M$61,MATCH(ET.county!$B63,ET.region!$A$51:$A$61,0),MATCH(ET.county!E$1,ET.region!$A$51:$M$51,0)) -> 3.40511811 | F63: =INDEX(ET.region!$A$51:$M$61,MATCH(ET.county!$B63,ET.region!$A$51:$A$61,0),MATCH(ET.county!F$1,ET.region!$A$51:$M$51,0)) -> 4.866141732 | G63: =INDEX(ET.region!$A$51:$M$61,MATCH(ET.county!$B63,ET.region!$A$51:$A$61,0),MATCH(ET.county!G$1,ET.region!$A$51:$M$51,0)) -> 6.175590551 | H63: =INDEX(ET.region!$A$51:$M$61,MATCH(ET.county!$B63,ET.region!$A$51:$A$61,0),MATCH(ET.county!H$1,ET.region!$A$51:$M$51,0)) -> 6.744094488 | I63: =INDEX(ET.region!$A$51:$M$61,MATCH(ET.county!$B63,ET.region!$A$51:$A$61,0),MATCH(ET.county!I$1,ET.region!$A$51:$M$51,0)) -> 7.005511811 | J63: =INDEX(ET.region!$A$51:$M$61,MATCH(ET.county!$B63,ET.region!$A$51:$A$61,0),MATCH(ET.county!J$1,ET.region!$A$51:$M$51,0)) -> 6.224409449 | K63: =INDEX(ET.region!$A$51:$M$61,MATCH(ET.county!$B63,ET.region!$A$51:$A$61,0),MATCH(ET.county!K$1,ET.region!$A$51:$M$51,0)) -> 4.771653543 | L63: =INDEX(ET.region!$A$51:$M$61,MATCH(ET.county!$B63,ET.region!$A$51:$A$61,0),MATCH(ET.county!L$1,ET.region!$A$51:$M$51,0)) -> 3.40511811 | M63: =INDEX(ET.region!$A$51:$M$61,MATCH(ET.county!$B63,ET.region!$A$51:$A$61,0),MATCH(ET.county!M$1,ET.region!$A$51:$M$51,0)) -> 2.090551181 | N63: =INDEX(ET.region!$A$51:$M$61,MATCH(ET.county!$B63,ET.region!$A$51:$A$61,0),MATCH(ET.county!N$1,ET.region!$A$51:$M$51,0)) -> 1.488976378
A64: Moore | B64: Jackson.Springs | C64: =INDEX(ET.region!$A$51:$M$61,MATCH(ET.county!$B64,ET.region!$A$51:$A$61,0),MATCH(ET.county!C$1,ET.region!$A$51:$M$51,0)) -> 1.501181102 | D64: =INDEX(ET.region!$A$51:$M$61,MATCH(ET.county!$B64,ET.region!$A$51:$A$61,0),MATCH(ET.county!D$1,ET.region!$A$51:$M$51,0)) -> 1.962204724 | E64: =INDEX(ET.region!$A$51:$M$61,MATCH(ET.county!$B64,ET.region!$A$51:$A$61,0),MATCH(ET.county!E$1,ET.region!$A$51:$M$51,0)) -> 3.40511811 | F64: =INDEX(ET.region!$A$51:$M$61,MATCH(ET.county!$B64,ET.region!$A$51:$A$61,0),MATCH(ET.county!F$1,ET.region!$A$51:$M$51,0)) -> 4.866141732 | G64: =INDEX(ET.region!$A$51:$M$61,MATCH(ET.county!$B64,ET.region!$A$51:$A$61,0),MATCH(ET.county!G$1,ET.region!$A$51:$M$51,0)) -> 6.175590551 | H64: =INDEX(ET.region!$A$51:$M$61,MATCH(ET.county!$B64,ET.region!$A$51:$A$61,0),MATCH(ET.county!H$1,ET.region!$A$51:$M$51,0)) -> 6.744094488 | I64: =INDEX(ET.region!$A$51:$M$61,MATCH(ET.county!$B64,ET.region!$A$51:$A$61,0),MATCH(ET.county!I$1,ET.region!$A$51:$M$51,0)) -> 7.005511811 | J64: =INDEX(ET.region!$A$51:$M$61,MATCH(ET.county!$B64,ET.region!$A$51:$A$61,0),MATCH(ET.county!J$1,ET.region!$A$51:$M$51,0)) -> 6.224409449 | K64: =INDEX(ET.region!$A$51:$M$61,MATCH(ET.county!$B64,ET.region!$A$51:$A$61,0),MATCH(ET.county!K$1,ET.region!$A$51:$M$51,0)) -> 4.771653543 | L64: =INDEX(ET.region!$A$51:$M$61,MATCH(ET.county!$B64,ET.region!$A$51:$A$61,0),MATCH(ET.county!L$1,ET.region!$A$51:$M$51,0)) -> 3.40511811 | M64: =INDEX(ET.region!$A$51:$M$61,MATCH(ET.county!$B64,ET.region!$A$51:$A$61,0),MATCH(ET.county!M$1,ET.region!$A$51:$M$51,0)) -> 2.090551181 | N64: =INDEX(ET.region!$A$51:$M$61,MATCH(ET.county!$B64,ET.region!$A$51:$A$61,0),MATCH(ET.county!N$1,ET.region!$A$51:$M$51,0)) -> 1.488976378
A65: Nash | B65: Raleigh | C65: =INDEX(ET.region!$A$51:$M$61,MATCH(ET.county!$B65,ET.region!$A$51:$A$61,0),MATCH(ET.county!C$1,ET.region!$A$51:$M$51,0)) -> 1.562204724 | D65: =INDEX(ET.region!$A$51:$M$61,MATCH(ET.county!$B65,ET.region!$A$51:$A$61,0),MATCH(ET.county!D$1,ET.region!$A$51:$M$51,0)) -> 2.050393701 | E65: =INDEX(ET.region!$A$51:$M$61,MATCH(ET.county!$B65,ET.region!$A$51:$A$61,0),MATCH(ET.county!E$1,ET.region!$A$51:$M$51,0)) -> 3.502755906 | F65: =INDEX(ET.region!$A$51:$M$61,MATCH(ET.county!$B65,ET.region!$A$51:$A$61,0),MATCH(ET.county!F$1,ET.region!$A$51:$M$51,0)) -> 4.937007874 | G65: =INDEX(ET.region!$A$51:$M$61,MATCH(ET.county!$B65,ET.region!$A$51:$A$61,0),MATCH(ET.county!G$1,ET.region!$A$51:$M$51,0)) -> 6.212204724 | H65: =INDEX(ET.region!$A$51:$M$61,MATCH(ET.county!$B65,ET.region!$A$51:$A$61,0),MATCH(ET.county!H$1,ET.region!$A$51:$M$51,0)) -> 6.696850394 | I65: =INDEX(ET.region!$A$51:$M$61,MATCH(ET.county!$B65,ET.region!$A$51:$A$61,0),MATCH(ET.county!I$1,ET.region!$A$51:$M$51,0)) -> 6.944488189 | J65: =INDEX(ET.region!$A$51:$M$61,MATCH(ET.county!$B65,ET.region!$A$51:$A$61,0),MATCH(ET.county!J$1,ET.region!$A$51:$M$51,0)) -> 6.212204724 | K65: =INDEX(ET.region!$A$51:$M$61,MATCH(ET.county!$B65,ET.region!$A$51:$A$61,0),MATCH(ET.county!K$1,ET.region!$A$51:$M$51,0)) -> 4.75984252 | L65: =INDEX(ET.region!$A$51:$M$61,MATCH(ET.county!$B65,ET.region!$A$51:$A$61,0),MATCH(ET.county!L$1,ET.region!$A$51:$M$51,0)) -> 3.441732283 | M65: =INDEX(ET.region!$A$51:$M$61,MATCH(ET.county!$B65,ET.region!$A$51:$A$61,0),MATCH(ET.county!M$1,ET.region!$A$51:$M$51,0)) -> 2.149606299 | N65: =INDEX(ET.region!$A$51:$M$61,MATCH(ET.county!$B65,ET.region!$A$51:$A$61,0),MATCH(ET.county!N$1,ET.region!$A$51:$M$51,0)) -> 1.513385827
A66: New Hanover | B66: Whiteville | C66: =INDEX(ET.region!$A$51:$M$61,MATCH(ET.county!$B66,ET.region!$A$51:$A$61,0),MATCH(ET.county!C$1,ET.region!$A$51:$M$51,0)) -> 1.696456693 | D66: =INDEX(ET.region!$A$51:$M$61,MATCH(ET.county!$B66,ET.region!$A$51:$A$61,0),MATCH(ET.county!D$1,ET.region!$A$51:$M$51,0)) -> 2.149606299 | E66: =INDEX(ET.region!$A$51:$M$61,MATCH(ET.county!$B66,ET.region!$A$51:$A$61,0),MATCH(ET.county!E$1,ET.region!$A$51:$M$51,0)) -> 3.62480315 | F66: =INDEX(ET.region!$A$51:$M$61,MATCH(ET.county!$B66,ET.region!$A$51:$A$61,0),MATCH(ET.county!F$1,ET.region!$A$51:$M$51,0)) -> 4.972440945 | G66: =INDEX(ET.region!$A$51:$M$61,MATCH(ET.county!$B66,ET.region!$A$51:$A$61,0),MATCH(ET.county!G$1,ET.region!$A$51:$M$51,0)) -> 6.297637795 | H66: =INDEX(ET.region!$A$51:$M$61,MATCH(ET.county!$B66,ET.region!$A$51:$A$61,0),MATCH(ET.county!H$1,ET.region!$A$51:$M$51,0)) -> 6.614173228 | I66: =INDEX(ET.region!$A$51:$M$61,MATCH(ET.county!$B66,ET.region!$A$51:$A$61,0),MATCH(ET.county!I$1,ET.region!$A$51:$M$51,0)) -> 6.859055118 | J66: =INDEX(ET.region!$A$51:$M$61,MATCH(ET.county!$B66,ET.region!$A$51:$A$61,0),MATCH(ET.county!J$1,ET.region!$A$51:$M$51,0)) -> 6.175590551 | K66: =INDEX(ET.region!$A$51:$M$61,MATCH(ET.county!$B66,ET.region!$A$51:$A$61,0),MATCH(ET.county!K$1,ET.region!$A$51:$M$51,0)) -> 4.866141732 | L66: =INDEX(ET.region!$A$51:$M$61,MATCH(ET.county!$B66,ET.region!$A$51:$A$61,0),MATCH(ET.county!L$1,ET.region!$A$51:$M$51,0)) -> 3.637007874 | M66: =INDEX(ET.region!$A$51:$M$61,MATCH(ET.county!$B66,ET.region!$A$51:$A$61,0),MATCH(ET.county!M$1,ET.region!$A$51:$M$51,0)) -> 2.362204724 | N66: =INDEX(ET.region!$A$51:$M$61,MATCH(ET.county!$B66,ET.region!$A$51:$A$61,0),MATCH(ET.county!N$1,ET.region!$A$51:$M$51,0)) -> 1.684251969
A67: Northampton | B67: Lewiston | C67: =INDEX(ET.region!$A$51:$M$61,MATCH(ET.county!$B67,ET.region!$A$51:$A$61,0),MATCH(ET.county!C$1,ET.region!$A$51:$M$51,0)) -> 1.525590551 | D67: =INDEX(ET.region!$A$51:$M$61,MATCH(ET.county!$B67,ET.region!$A$51:$A$61,0),MATCH(ET.county!D$1,ET.region!$A$51:$M$51,0)) -> 2.017322835 | E67: =INDEX(ET.region!$A$51:$M$61,MATCH(ET.county!$B67,ET.region!$A$51:$A$61,0),MATCH(ET.county!E$1,ET.region!$A$51:$M$51,0)) -> 3.490551181 | F67: =INDEX(ET.region!$A$51:$M$61,MATCH(ET.county!$B67,ET.region!$A$51:$A$61,0),MATCH(ET.county!F$1,ET.region!$A$51:$M$51,0)) -> 5.05511811 | G67: =INDEX(ET.region!$A$51:$M$61,MATCH(ET.county!$B67,ET.region!$A$51:$A$61,0),MATCH(ET.county!G$1,ET.region!$A$51:$M$51,0)) -> 6.431889764 | H67: =INDEX(ET.region!$A$51:$M$61,MATCH(ET.county!$B67,ET.region!$A$51:$A$61,0),MATCH(ET.county!H$1,ET.region!$A$51:$M$51,0)) -> 7.07480315 | I67: =INDEX(ET.region!$A$51:$M$61,MATCH(ET.county!$B67,ET.region!$A$51:$A$61,0),MATCH(ET.county!I$1,ET.region!$A$51:$M$51,0)) -> 7.359448819 | J67: =INDEX(ET.region!$A$51:$M$61,MATCH(ET.county!$B67,ET.region!$A$51:$A$61,0),MATCH(ET.county!J$1,ET.region!$A$51:$M$51,0)) -> 6.566141732 | K67: =INDEX(ET.region!$A$51:$M$61,MATCH(ET.county!$B67,ET.region!$A$51:$A$61,0),MATCH(ET.county!K$1,ET.region!$A$51:$M$51,0)) -> 4.948818898 | L67: =INDEX(ET.region!$A$51:$M$61,MATCH(ET.county!$B67,ET.region!$A$51:$A$61,0),MATCH(ET.county!L$1,ET.region!$A$51:$M$51,0)) -> 3.575984252 | M67: =INDEX(ET.region!$A$51:$M$61,MATCH(ET.county!$B67,ET.region!$A$51:$A$61,0),MATCH(ET.county!M$1,ET.region!$A$51:$M$51,0)) -> 2.196850394 | N67: =INDEX(ET.region!$A$51:$M$61,MATCH(ET.county!$B67,ET.region!$A$51:$A$61,0),MATCH(ET.county!N$1,ET.region!$A$51:$M$51,0)) -> 1.525590551
A68: Onslow | B68: Aurora | C68: =INDEX(ET.region!$A$51:$M$61,MATCH(ET.county!$B68,ET.region!$A$51:$A$61,0),MATCH(ET.county!C$1,ET.region!$A$51:$M$51,0)) -> 1.581 | D68: =INDEX(ET.region!$A$51:$M$61,MATCH(ET.county!$B68,ET.region!$A$51:$A$61,0),MATCH(ET.county!D$1,ET.region!$A$51:$M$51,0)) -> 1.96 | E68: =INDEX(ET.region!$A$51:$M$61,MATCH(ET.county!$B68,ET.region!$A$51:$A$61,0),MATCH(ET.county!E$1,ET.region!$A$51:$M$51,0)) -> 3.255 | F68: =INDEX(ET.region!$A$51:$M$61,MATCH(ET.county!$B68,ET.region!$A$51:$A$61,0),MATCH(ET.county!F$1,ET.region!$A$51:$M$51,0)) -> 4.59 | G68: =INDEX(ET.region!$A$51:$M$61,MATCH(ET.county!$B68,ET.region!$A$51:$A$61,0),MATCH(ET.county!G$1,ET.region!$A$51:$M$51,0)) -> 5.797 | H68: =INDEX(ET.region!$A$51:$M$61,MATCH(ET.county!$B68,ET.region!$A$51:$A$61,0),MATCH(ET.county!H$1,ET.region!$A$51:$M$51,0)) -> 6.24 | I68: =INDEX(ET.region!$A$51:$M$61,MATCH(ET.county!$B68,ET.region!$A$51:$A$61,0),MATCH(ET.county!I$1,ET.region!$A$51:$M$51,0)) -> 6.479 | J68: =INDEX(ET.region!$A$51:$M$61,MATCH(ET.county!$B68,ET.region!$A$51:$A$61,0),MATCH(ET.county!J$1,ET.region!$A$51:$M$51,0)) -> 5.735 | K68: =INDEX(ET.region!$A$51:$M$61,MATCH(ET.county!$B68,ET.region!$A$51:$A$61,0),MATCH(ET.county!K$1,ET.region!$A$51:$M$51,0)) -> 4.38 | L68: =INDEX(ET.region!$A$51:$M$61,MATCH(ET.county!$B68,ET.region!$A$51:$A$61,0),MATCH(ET.county!L$1,ET.region!$A$51:$M$51,0)) -> 3.255 | M68: =INDEX(ET.region!$A$51:$M$61,MATCH(ET.county!$B68,ET.region!$A$51:$A$61,0),MATCH(ET.county!M$1,ET.region!$A$51:$M$51,0)) -> 2.07 | N68: =INDEX(ET.region!$A$51:$M$61,MATCH(ET.county!$B68,ET.region!$A$51:$A$61,0),MATCH(ET.county!N$1,ET.region!$A$51:$M$51,0)) -> 1.55
A69: Orange | B69: Raleigh | C69: =INDEX(ET.region!$A$51:$M$61,MATCH(ET.county!$B69,ET.region!$A$51:$A$61,0),MATCH(ET.county!C$1,ET.region!$A$51:$M$51,0)) -> 1.562204724 | D69: =INDEX(ET.region!$A$51:$M$61,MATCH(ET.county!$B69,ET.region!$A$51:$A$61,0),MATCH(ET.county!D$1,ET.region!$A$51:$M$51,0)) -> 2.050393701 | E69: =INDEX(ET.region!$A$51:$M$61,MATCH(ET.county!$B69,ET.region!$A$51:$A$61,0),MATCH(ET.county!E$1,ET.region!$A$51:$M$51,0)) -> 3.502755906 | F69: =INDEX(ET.region!$A$51:$M$61,MATCH(ET.county!$B69,ET.region!$A$51:$A$61,0),MATCH(ET.county!F$1,ET.region!$A$51:$M$51,0)) -> 4.937007874 | G69: =INDEX(ET.region!$A$51:$M$61,MATCH(ET.county!$B69,ET.region!$A$51:$A$61,0),MATCH(ET.county!G$1,ET.region!$A$51:$M$51,0)) -> 6.212204724 | H69: =INDEX(ET.region!$A$51:$M$61,MATCH(ET.county!$B69,ET.region!$A$51:$A$61,0),MATCH(ET.county!H$1,ET.region!$A$51:$M$51,0)) -> 6.696850394 | I69: =INDEX(ET.region!$A$51:$M$61,MATCH(ET.county!$B69,ET.region!$A$51:$A$61,0),MATCH(ET.county!I$1,ET.region!$A$51:$M$51,0)) -> 6.944488189 | J69: =INDEX(ET.region!$A$51:$M$61,MATCH(ET.county!$B69,ET.region!$A$51:$A$61,0),MATCH(ET.county!J$1,ET.region!$A$51:$M$51,0)) -> 6.212204724 | K69: =INDEX(ET.region!$A$51:$M$61,MATCH(ET.county!$B69,ET.region!$A$51:$A$61,0),MATCH(ET.county!K$1,ET.region!$A$51:$M$51,0)) -> 4.75984252 | L69: =INDEX(ET.region!$A$51:$M$61,MATCH(ET.county!$B69,ET.region!$A$51:$A$61,0),MATCH(ET.county!L$1,ET.region!$A$51:$M$51,0)) -> 3.441732283 | M69: =INDEX(ET.region!$A$51:$M$61,MATCH(ET.county!$B69,ET.region!$A$51:$A$61,0),MATCH(ET.county!M$1,ET.region!$A$51:$M$51,0)) -> 2.149606299 | N69: =INDEX(ET.region!$A$51:$M$61,MATCH(ET.county!$B69,ET.region!$A$51:$A$61,0),MATCH(ET.county!N$1,ET.region!$A$51:$M$51,0)) -> 1.513385827
A70: Pamlico | B70: Aurora | C70: =INDEX(ET.region!$A$51:$M$61,MATCH(ET.county!$B70,ET.region!$A$51:$A$61,0),MATCH(ET.county!C$1,ET.region!$A$51:$M$51,0)) -> 1.581 | D70: =INDEX(ET.region!$A$51:$M$61,MATCH(ET.county!$B70,ET.region!$A$51:$A$61,0),MATCH(ET.county!D$1,ET.region!$A$51:$M$51,0)) -> 1.96 | E70: =INDEX(ET.region!$A$51:$M$61,MATCH(ET.county!$B70,ET.region!$A$51:$A$61,0),MATCH(ET.county!E$1,ET.region!$A$51:$M$51,0)) -> 3.255 | F70: =INDEX(ET.region!$A$51:$M$61,MATCH(ET.county!$B70,ET.region!$A$51:$A$61,0),MATCH(ET.county!F$1,ET.region!$A$51:$M$51,0)) -> 4.59 | G70: =INDEX(ET.region!$A$51:$M$61,MATCH(ET.county!$B70,ET.region!$A$51:$A$61,0),MATCH(ET.county!G$1,ET.region!$A$51:$M$51,0)) -> 5.797 | H70: =INDEX(ET.region!$A$51:$M$61,MATCH(ET.county!$B70,ET.region!$A$51:$A$61,0),MATCH(ET.county!H$1,ET.region!$A$51:$M$51,0)) -> 6.24 | I70: =INDEX(ET.region!$A$51:$M$61,MATCH(ET.county!$B70,ET.region!$A$51:$A$61,0),MATCH(ET.county!I$1,ET.region!$A$51:$M$51,0)) -> 6.479 | J70: =INDEX(ET.region!$A$51:$M$61,MATCH(ET.county!$B70,ET.region!$A$51:$A$61,0),MATCH(ET.county!J$1,ET.region!$A$51:$M$51,0)) -> 5.735 | K70: =INDEX(ET.region!$A$51:$M$61,MATCH(ET.county!$B70,ET.region!$A$51:$A$61,0),MATCH(ET.county!K$1,ET.region!$A$51:$M$51,0)) -> 4.38 | L70: =INDEX(ET.region!$A$51:$M$61,MATCH(ET.county!$B70,ET.region!$A$51:$A$61,0),MATCH(ET.county!L$1,ET.region!$A$51:$M$51,0)) -> 3.255 | M70: =INDEX(ET.region!$A$51:$M$61,MATCH(ET.county!$B70,ET.region!$A$51:$A$61,0),MATCH(ET.county!M$1,ET.region!$A$51:$M$51,0)) -> 2.07 | N70: =INDEX(ET.region!$A$51:$M$61,MATCH(ET.county!$B70,ET.region!$A$51:$A$61,0),MATCH(ET.county!N$1,ET.region!$A$51:$M$51,0)) -> 1.55
A71: Pasquotank | B71: Lewiston | C71: =INDEX(ET.region!$A$51:$M$61,MATCH(ET.county!$B71,ET.region!$A$51:$A$61,0),MATCH(ET.county!C$1,ET.region!$A$51:$M$51,0)) -> 1.525590551 | D71: =INDEX(ET.region!$A$51:$M$61,MATCH(ET.county!$B71,ET.region!$A$51:$A$61,0),MATCH(ET.county!D$1,ET.region!$A$51:$M$51,0)) -> 2.017322835 | E71: =INDEX(ET.region!$A$51:$M$61,MATCH(ET.county!$B71,ET.region!$A$51:$A$61,0),MATCH(ET.county!E$1,ET.region!$A$51:$M$51,0)) -> 3.490551181 | F71: =INDEX(ET.region!$A$51:$M$61,MATCH(ET.county!$B71,ET.region!$A$51:$A$61,0),MATCH(ET.county!F$1,ET.region!$A$51:$M$51,0)) -> 5.05511811 | G71: =INDEX(ET.region!$A$51:$M$61,MATCH(ET.county!$B71,ET.region!$A$51:$A$61,0),MATCH(ET.county!G$1,ET.region!$A$51:$M$51,0)) -> 6.431889764 | H71: =INDEX(ET.region!$A$51:$M$61,MATCH(ET.county!$B71,ET.region!$A$51:$A$61,0),MATCH(ET.county!H$1,ET.region!$A$51:$M$51,0)) -> 7.07480315 | I71: =INDEX(ET.region!$A$51:$M$61,MATCH(ET.county!$B71,ET.region!$A$51:$A$61,0),MATCH(ET.county!I$1,ET.region!$A$51:$M$51,0)) -> 7.359448819 | J71: =INDEX(ET.region!$A$51:$M$61,MATCH(ET.county!$B71,ET.region!$A$51:$A$61,0),MATCH(ET.county!J$1,ET.region!$A$51:$M$51,0)) -> 6.566141732 | K71: =INDEX(ET.region!$A$51:$M$61,MATCH(ET.county!$B71,ET.region!$A$51:$A$61,0),MATCH(ET.county!K$1,ET.region!$A$51:$M$51,0)) -> 4.948818898 | L71: =INDEX(ET.region!$A$51:$M$61,MATCH(ET.county!$B71,ET.region!$A$51:$A$61,0),MATCH(ET.county!L$1,ET.region!$A$51:$M$51,0)) -> 3.575984252 | M71: =INDEX(ET.region!$A$51:$M$61,MATCH(ET.county!$B71,ET.region!$A$51:$A$61,0),MATCH(ET.county!M$1,ET.region!$A$51:$M$51,0)) -> 2.196850394 | N71: =INDEX(ET.region!$A$51:$M$61,MATCH(ET.county!$B71,ET.region!$A$51:$A$61,0),MATCH(ET.county!N$1,ET.region!$A$51:$M$51,0)) -> 1.525590551
A72: Pender | B72: Whiteville | C72: =INDEX(ET.region!$A$51:$M$61,MATCH(ET.county!$B72,ET.region!$A$51:$A$61,0),MATCH(ET.county!C$1,ET.region!$A$51:$M$51,0)) -> 1.696456693 | D72: =INDEX(ET.region!$A$51:$M$61,MATCH(ET.county!$B72,ET.region!$A$51:$A$61,0),MATCH(ET.county!D$1,ET.region!$A$51:$M$51,0)) -> 2.149606299 | E72: =INDEX(ET.region!$A$51:$M$61,MATCH(ET.county!$B72,ET.region!$A$51:$A$61,0),MATCH(ET.county!E$1,ET.region!$A$51:$M$51,0)) -> 3.62480315 | F72: =INDEX(ET.region!$A$51:$M$61,MATCH(ET.county!$B72,ET.region!$A$51:$A$61,0),MATCH(ET.county!F$1,ET.region!$A$51:$M$51,0)) -> 4.972440945 | G72: =INDEX(ET.region!$A$51:$M$61,MATCH(ET.county!$B72,ET.region!$A$51:$A$61,0),MATCH(ET.county!G$1,ET.region!$A$51:$M$51,0)) -> 6.297637795 | H72: =INDEX(ET.region!$A$51:$M$61,MATCH(ET.county!$B72,ET.region!$A$51:$A$61,0),MATCH(ET.county!H$1,ET.region!$A$51:$M$51,0)) -> 6.614173228 | I72: =INDEX(ET.region!$A$51:$M$61,MATCH(ET.county!$B72,ET.region!$A$51:$A$61,0),MATCH(ET.county!I$1,ET.region!$A$51:$M$51,0)) -> 6.859055118 | J72: =INDEX(ET.region!$A$51:$M$61,MATCH(ET.county!$B72,ET.region!$A$51:$A$61,0),MATCH(ET.county!J$1,ET.region!$A$51:$M$51,0)) -> 6.175590551 | K72: =INDEX(ET.region!$A$51:$M$61,MATCH(ET.county!$B72,ET.region!$A$51:$A$61,0),MATCH(ET.county!K$1,ET.region!$A$51:$M$51,0)) -> 4.866141732 | L72: =INDEX(ET.region!$A$51:$M$61,MATCH(ET.county!$B72,ET.region!$A$51:$A$61,0),MATCH(ET.county!L$1,ET.region!$A$51:$M$51,0)) -> 3.637007874 | M72: =INDEX(ET.region!$A$51:$M$61,MATCH(ET.county!$B72,ET.region!$A$51:$A$61,0),MATCH(ET.county!M$1,ET.region!$A$51:$M$51,0)) -> 2.362204724 | N72: =INDEX(ET.region!$A$51:$M$61,MATCH(ET.county!$B72,ET.region!$A$51:$A$61,0),MATCH(ET.county!N$1,ET.region!$A$51:$M$51,0)) -> 1.684251969
A73: Perquimans | B73: Lewiston | C73: =INDEX(ET.region!$A$51:$M$61,MATCH(ET.county!$B73,ET.region!$A$51:$A$61,0),MATCH(ET.county!C$1,ET.region!$A$51:$M$51,0)) -> 1.525590551 | D73: =INDEX(ET.region!$A$51:$M$61,MATCH(ET.county!$B73,ET.region!$A$51:$A$61,0),MATCH(ET.county!D$1,ET.region!$A$51:$M$51,0)) -> 2.017322835 | E73: =INDEX(ET.region!$A$51:$M$61,MATCH(ET.county!$B73,ET.region!$A$51:$A$61,0),MATCH(ET.county!E$1,ET.region!$A$51:$M$51,0)) -> 3.490551181 | F73: =INDEX(ET.region!$A$51:$M$61,MATCH(ET.county!$B73,ET.region!$A$51:$A$61,0),MATCH(ET.county!F$1,ET.region!$A$51:$M$51,0)) -> 5.05511811 | G73: =INDEX(ET.region!$A$51:$M$61,MATCH(ET.county!$B73,ET.region!$A$51:$A$61,0),MATCH(ET.county!G$1,ET.region!$A$51:$M$51,0)) -> 6.431889764 | H73: =INDEX(ET.region!$A$51:$M$61,MATCH(ET.county!$B73,ET.region!$A$51:$A$61,0),MATCH(ET.county!H$1,ET.region!$A$51:$M$51,0)) -> 7.07480315 | I73: =INDEX(ET.region!$A$51:$M$61,MATCH(ET.county!$B73,ET.region!$A$51:$A$61,0),MATCH(ET.county!I$1,ET.region!$A$51:$M$51,0)) -> 7.359448819 | J73: =INDEX(ET.region!$A$51:$M$61,MATCH(ET.county!$B73,ET.region!$A$51:$A$61,0),MATCH(ET.county!J$1,ET.region!$A$51:$M$51,0)) -> 6.566141732 | K73: =INDEX(ET.region!$A$51:$M$61,MATCH(ET.county!$B73,ET.region!$A$51:$A$61,0),MATCH(ET.county!K$1,ET.region!$A$51:$M$51,0)) -> 4.948818898 | L73: =INDEX(ET.region!$A$51:$M$61,MATCH(ET.county!$B73,ET.region!$A$51:$A$61,0),MATCH(ET.county!L$1,ET.region!$A$51:$M$51,0)) -> 3.575984252 | M73: =INDEX(ET.region!$A$51:$M$61,MATCH(ET.county!$B73,ET.region!$A$51:$A$61,0),MATCH(ET.county!M$1,ET.region!$A$51:$M$51,0)) -> 2.196850394 | N73: =INDEX(ET.region!$A$51:$M$61,MATCH(ET.county!$B73,ET.region!$A$51:$A$61,0),MATCH(ET.county!N$1,ET.region!$A$51:$M$51,0)) -> 1.525590551
A74: Person | B74: Reidsville | C74: =INDEX(ET.region!$A$51:$M$61,MATCH(ET.county!$B74,ET.region!$A$51:$A$61,0),MATCH(ET.county!C$1,ET.region!$A$51:$M$51,0)) -> 1.342519685 | D74: =INDEX(ET.region!$A$51:$M$61,MATCH(ET.county!$B74,ET.region!$A$51:$A$61,0),MATCH(ET.county!D$1,ET.region!$A$51:$M$51,0)) -> 1.763779528 | E74: =INDEX(ET.region!$A$51:$M$61,MATCH(ET.county!$B74,ET.region!$A$51:$A$61,0),MATCH(ET.county!E$1,ET.region!$A$51:$M$51,0)) -> 3.087795276 | F74: =INDEX(ET.region!$A$51:$M$61,MATCH(ET.county!$B74,ET.region!$A$51:$A$61,0),MATCH(ET.county!F$1,ET.region!$A$51:$M$51,0)) -> 4.476377953 | G74: =INDEX(ET.region!$A$51:$M$61,MATCH(ET.county!$B74,ET.region!$A$51:$A$61,0),MATCH(ET.county!G$1,ET.region!$A$51:$M$51,0)) -> 5.821653543 | H74: =INDEX(ET.region!$A$51:$M$61,MATCH(ET.county!$B74,ET.region!$A$51:$A$61,0),MATCH(ET.county!H$1,ET.region!$A$51:$M$51,0)) -> 6.484251969 | I74: =INDEX(ET.region!$A$51:$M$61,MATCH(ET.county!$B74,ET.region!$A$51:$A$61,0),MATCH(ET.county!I$1,ET.region!$A$51:$M$51,0)) -> 6.834645669 | J74: =INDEX(ET.region!$A$51:$M$61,MATCH(ET.county!$B74,ET.region!$A$51:$A$61,0),MATCH(ET.county!J$1,ET.region!$A$51:$M$51,0)) -> 6.126771654 | K74: =INDEX(ET.region!$A$51:$M$61,MATCH(ET.county!$B74,ET.region!$A$51:$A$61,0),MATCH(ET.county!K$1,ET.region!$A$51:$M$51,0)) -> 4.582677165 | L74: =INDEX(ET.region!$A$51:$M$61,MATCH(ET.county!$B74,ET.region!$A$51:$A$61,0),MATCH(ET.county!L$1,ET.region!$A$51:$M$51,0)) -> 3.246456693 | M74: =INDEX(ET.region!$A$51:$M$61,MATCH(ET.county!$B74,ET.region!$A$51:$A$61,0),MATCH(ET.county!M$1,ET.region!$A$51:$M$51,0)) -> 1.948818898 | N74: =INDEX(ET.region!$A$51:$M$61,MATCH(ET.county!$B74,ET.region!$A$51:$A$61,0),MATCH(ET.county!N$1,ET.region!$A$51:$M$51,0)) -> 1.318110236
A75: Pitt | B75: Goldsboro | C75: =INDEX(ET.region!$A$51:$M$61,MATCH(ET.county!$B75,ET.region!$A$51:$A$61,0),MATCH(ET.county!C$1,ET.region!$A$51:$M$51,0)) -> 1.574409449 | D75: =INDEX(ET.region!$A$51:$M$61,MATCH(ET.county!$B75,ET.region!$A$51:$A$61,0),MATCH(ET.county!D$1,ET.region!$A$51:$M$51,0)) -> 2.017322835 | E75: =INDEX(ET.region!$A$51:$M$61,MATCH(ET.county!$B75,ET.region!$A$51:$A$61,0),MATCH(ET.county!E$1,ET.region!$A$51:$M$51,0)) -> 3.466141732 | F75: =INDEX(ET.region!$A$51:$M$61,MATCH(ET.county!$B75,ET.region!$A$51:$A$61,0),MATCH(ET.county!F$1,ET.region!$A$51:$M$51,0)) -> 4.877952756 | G75: =INDEX(ET.region!$A$51:$M$61,MATCH(ET.county!$B75,ET.region!$A$51:$A$61,0),MATCH(ET.county!G$1,ET.region!$A$51:$M$51,0)) -> 6.297637795 | H75: =INDEX(ET.region!$A$51:$M$61,MATCH(ET.county!$B75,ET.region!$A$51:$A$61,0),MATCH(ET.county!H$1,ET.region!$A$51:$M$51,0)) -> 6.696850394 | I75: =INDEX(ET.region!$A$51:$M$61,MATCH(ET.county!$B75,ET.region!$A$51:$A$61,0),MATCH(ET.county!I$1,ET.region!$A$51:$M$51,0)) -> 6.834645669 | J75: =INDEX(ET.region!$A$51:$M$61,MATCH(ET.county!$B75,ET.region!$A$51:$A$61,0),MATCH(ET.county!J$1,ET.region!$A$51:$M$51,0)) -> 6.114566929 | K75: =INDEX(ET.region!$A$51:$M$61,MATCH(ET.county!$B75,ET.region!$A$51:$A$61,0),MATCH(ET.county!K$1,ET.region!$A$51:$M$51,0)) -> 4.712598425 | L75: =INDEX(ET.region!$A$51:$M$61,MATCH(ET.county!$B75,ET.region!$A$51:$A$61,0),MATCH(ET.county!L$1,ET.region!$A$51:$M$51,0)) -> 3.466141732 | M75: =INDEX(ET.region!$A$51:$M$61,MATCH(ET.county!$B75,ET.region!$A$51:$A$61,0),MATCH(ET.county!M$1,ET.region!$A$51:$M$51,0)) -> 2.196850394 | N75: =INDEX(ET.region!$A$51:$M$61,MATCH(ET.county!$B75,ET.region!$A$51:$A$61,0),MATCH(ET.county!N$1,ET.region!$A$51:$M$51,0)) -> 1.55
A76: Polk | B76: Lenoir | C76: =INDEX(ET.region!$A$51:$M$61,MATCH(ET.county!$B76,ET.region!$A$51:$A$61,0),MATCH(ET.county!C$1,ET.region!$A$51:$M$51,0)) -> 1.452362205 | D76: =INDEX(ET.region!$A$51:$M$61,MATCH(ET.county!$B76,ET.region!$A$51:$A$61,0),MATCH(ET.county!D$1,ET.region!$A$51:$M$51,0)) -> 1.88503937 | E76: =INDEX(ET.region!$A$51:$M$61,MATCH(ET.county!$B76,ET.region!$A$51:$A$61,0),MATCH(ET.county!E$1,ET.region!$A$51:$M$51,0)) -> 3.161023622 | F76: =INDEX(ET.region!$A$51:$M$61,MATCH(ET.county!$B76,ET.region!$A$51:$A$61,0),MATCH(ET.county!F$1,ET.region!$A$51:$M$51,0)) -> 4.346456693 | G76: =INDEX(ET.region!$A$51:$M$61,MATCH(ET.county!$B76,ET.region!$A$51:$A$61,0),MATCH(ET.county!G$1,ET.region!$A$51:$M$51,0)) -> 5.333464567 | H76: =INDEX(ET.region!$A$51:$M$61,MATCH(ET.county!$B76,ET.region!$A$51:$A$61,0),MATCH(ET.county!H$1,ET.region!$A$51:$M$51,0)) -> 5.57480315 | I76: =INDEX(ET.region!$A$51:$M$61,MATCH(ET.county!$B76,ET.region!$A$51:$A$61,0),MATCH(ET.county!I$1,ET.region!$A$51:$M$51,0)) -> 5.67519685 | J76: =INDEX(ET.region!$A$51:$M$61,MATCH(ET.county!$B76,ET.region!$A$51:$A$61,0),MATCH(ET.county!J$1,ET.region!$A$51:$M$51,0)) -> 5.089370079 | K76: =INDEX(ET.region!$A$51:$M$61,MATCH(ET.county!$B76,ET.region!$A$51:$A$61,0),MATCH(ET.county!K$1,ET.region!$A$51:$M$51,0)) -> 4.015748031 | L76: =INDEX(ET.region!$A$51:$M$61,MATCH(ET.county!$B76,ET.region!$A$51:$A$61,0),MATCH(ET.county!L$1,ET.region!$A$51:$M$51,0)) -> 3.063385827 | M76: =INDEX(ET.region!$A$51:$M$61,MATCH(ET.county!$B76,ET.region!$A$51:$A$61,0),MATCH(ET.county!M$1,ET.region!$A$51:$M$51,0)) -> 1.960629921 | N76: =INDEX(ET.region!$A$51:$M$61,MATCH(ET.county!$B76,ET.region!$A$51:$A$61,0),MATCH(ET.county!N$1,ET.region!$A$51:$M$51,0)) -> 1.391338583
A77: Randolph | B77: Salisbury | C77: =INDEX(ET.region!$A$51:$M$61,MATCH(ET.county!$B77,ET.region!$A$51:$A$61,0),MATCH(ET.county!C$1,ET.region!$A$51:$M$51,0)) -> 1.488976378 | D77: =INDEX(ET.region!$A$51:$M$61,MATCH(ET.county!$B77,ET.region!$A$51:$A$61,0),MATCH(ET.county!D$1,ET.region!$A$51:$M$51,0)) -> 1.94015748 | E77: =INDEX(ET.region!$A$51:$M$61,MATCH(ET.county!$B77,ET.region!$A$51:$A$61,0),MATCH(ET.county!E$1,ET.region!$A$51:$M$51,0)) -> 3.295275591 | F77: =INDEX(ET.region!$A$51:$M$61,MATCH(ET.county!$B77,ET.region!$A$51:$A$61,0),MATCH(ET.county!F$1,ET.region!$A$51:$M$51,0)) -> 4.700787402 | G77: =INDEX(ET.region!$A$51:$M$61,MATCH(ET.county!$B77,ET.region!$A$51:$A$61,0),MATCH(ET.county!G$1,ET.region!$A$51:$M$51,0)) -> 6.016929134 | H77: =INDEX(ET.region!$A$51:$M$61,MATCH(ET.county!$B77,ET.region!$A$51:$A$61,0),MATCH(ET.county!H$1,ET.region!$A$51:$M$51,0)) -> 6.649606299 | I77: =INDEX(ET.region!$A$51:$M$61,MATCH(ET.county!$B77,ET.region!$A$51:$A$61,0),MATCH(ET.county!I$1,ET.region!$A$51:$M$51,0)) -> 6.932283465 | J77: =INDEX(ET.region!$A$51:$M$61,MATCH(ET.county!$B77,ET.region!$A$51:$A$61,0),MATCH(ET.county!J$1,ET.region!$A$51:$M$51,0)) -> 6.175590551 | K77: =INDEX(ET.region!$A$51:$M$61,MATCH(ET.county!$B77,ET.region!$A$51:$A$61,0),MATCH(ET.county!K$1,ET.region!$A$51:$M$51,0)) -> 4.712598425 | L77: =INDEX(ET.region!$A$51:$M$61,MATCH(ET.county!$B77,ET.region!$A$51:$A$61,0),MATCH(ET.county!L$1,ET.region!$A$51:$M$51,0)) -> 3.417322835 | M77: =INDEX(ET.region!$A$51:$M$61,MATCH(ET.county!$B77,ET.region!$A$51:$A$61,0),MATCH(ET.county!M$1,ET.region!$A$51:$M$51,0)) -> 2.114173228 | N77: =INDEX(ET.region!$A$51:$M$61,MATCH(ET.county!$B77,ET.region!$A$51:$A$61,0),MATCH(ET.county!N$1,ET.region!$A$51:$M$51,0)) -> 1.452362205
A78: Richmond | B78: Jackson.Springs | C78: =INDEX(ET.region!$A$51:$M$61,MATCH(ET.county!$B78,ET.region!$A$51:$A$61,0),MATCH(ET.county!C$1,ET.region!$A$51:$M$51,0)) -> 1.501181102 | D78: =INDEX(ET.region!$A$51:$M$61,MATCH(ET.county!$B78,ET.region!$A$51:$A$61,0),MATCH(ET.county!D$1,ET.region!$A$51:$M$51,0)) -> 1.962204724 | E78: =INDEX(ET.region!$A$51:$M$61,MATCH(ET.county!$B78,ET.region!$A$51:$A$61,0),MATCH(ET.county!E$1,ET.region!$A$51:$M$51,0)) -> 3.40511811 | F78: =INDEX(ET.region!$A$51:$M$61,MATCH(ET.county!$B78,ET.region!$A$51:$A$61,0),MATCH(ET.county!F$1,ET.region!$A$51:$M$51,0)) -> 4.866141732 | G78: =INDEX(ET.region!$A$51:$M$61,MATCH(ET.county!$B78,ET.region!$A$51:$A$61,0),MATCH(ET.county!G$1,ET.region!$A$51:$M$51,0)) -> 6.175590551 | H78: =INDEX(ET.region!$A$51:$M$61,MATCH(ET.county!$B78,ET.region!$A$51:$A$61,0),MATCH(ET.county!H$1,ET.region!$A$51:$M$51,0)) -> 6.744094488 | I78: =INDEX(ET.region!$A$51:$M$61,MATCH(ET.county!$B78,ET.region!$A$51:$A$61,0),MATCH(ET.county!I$1,ET.region!$A$51:$M$51,0)) -> 7.005511811 | J78: =INDEX(ET.region!$A$51:$M$61,MATCH(ET.county!$B78,ET.region!$A$51:$A$61,0),MATCH(ET.county!J$1,ET.region!$A$51:$M$51,0)) -> 6.224409449 | K78: =INDEX(ET.region!$A$51:$M$61,MATCH(ET.county!$B78,ET.region!$A$51:$A$61,0),MATCH(ET.county!K$1,ET.region!$A$51:$M$51,0)) -> 4.771653543 | L78: =INDEX(ET.region!$A$51:$M$61,MATCH(ET.county!$B78,ET.region!$A$51:$A$61,0),MATCH(ET.county!L$1,ET.region!$A$51:$M$51,0)) -> 3.40511811 | M78: =INDEX(ET.region!$A$51:$M$61,MATCH(ET.county!$B78,ET.region!$A$51:$A$61,0),MATCH(ET.county!M$1,ET.region!$A$51:$M$51,0)) -> 2.090551181 | N78: =INDEX(ET.region!$A$51:$M$61,MATCH(ET.county!$B78,ET.region!$A$51:$A$61,0),MATCH(ET.county!N$1,ET.region!$A$51:$M$51,0)) -> 1.488976378
A79: Robeson | B79: Whiteville | C79: =INDEX(ET.region!$A$51:$M$61,MATCH(ET.county!$B79,ET.region!$A$51:$A$61,0),MATCH(ET.county!C$1,ET.region!$A$51:$M$51,0)) -> 1.696456693 | D79: =INDEX(ET.region!$A$51:$M$61,MATCH(ET.county!$B79,ET.region!$A$51:$A$61,0),MATCH(ET.county!D$1,ET.region!$A$51:$M$51,0)) -> 2.149606299 | E79: =INDEX(ET.region!$A$51:$M$61,MATCH(ET.county!$B79,ET.region!$A$51:$A$61,0),MATCH(ET.county!E$1,ET.region!$A$51:$M$51,0)) -> 3.62480315 | F79: =INDEX(ET.region!$A$51:$M$61,MATCH(ET.county!$B79,ET.region!$A$51:$A$61,0),MATCH(ET.county!F$1,ET.region!$A$51:$M$51,0)) -> 4.972440945 | G79: =INDEX(ET.region!$A$51:$M$61,MATCH(ET.county!$B79,ET.region!$A$51:$A$61,0),MATCH(ET.county!G$1,ET.region!$A$51:$M$51,0)) -> 6.297637795 | H79: =INDEX(ET.region!$A$51:$M$61,MATCH(ET.county!$B79,ET.region!$A$51:$A$61,0),MATCH(ET.county!H$1,ET.region!$A$51:$M$51,0)) -> 6.614173228 | I79: =INDEX(ET.region!$A$51:$M$61,MATCH(ET.county!$B79,ET.region!$A$51:$A$61,0),MATCH(ET.county!I$1,ET.region!$A$51:$M$51,0)) -> 6.859055118 | J79: =INDEX(ET.region!$A$51:$M$61,MATCH(ET.county!$B79,ET.region!$A$51:$A$61,0),MATCH(ET.county!J$1,ET.region!$A$51:$M$51,0)) -> 6.175590551 | K79: =INDEX(ET.region!$A$51:$M$61,MATCH(ET.county!$B79,ET.region!$A$51:$A$61,0),MATCH(ET.county!K$1,ET.region!$A$51:$M$51,0)) -> 4.866141732 | L79: =INDEX(ET.region!$A$51:$M$61,MATCH(ET.county!$B79,ET.region!$A$51:$A$61,0),MATCH(ET.county!L$1,ET.region!$A$51:$M$51,0)) -> 3.637007874 | M79: =INDEX(ET.region!$A$51:$M$61,MATCH(ET.county!$B79,ET.region!$A$51:$A$61,0),MATCH(ET.county!M$1,ET.region!$A$51:$M$51,0)) -> 2.362204724 | N79: =INDEX(ET.region!$A$51:$M$61,MATCH(ET.county!$B79,ET.region!$A$51:$A$61,0),MATCH(ET.county!N$1,ET.region!$A$51:$M$51,0)) -> 1.684251969
A80: Rockingham | B80: Reidsville | C80: =INDEX(ET.region!$A$51:$M$61,MATCH(ET.county!$B80,ET.region!$A$51:$A$61,0),MATCH(ET.county!C$1,ET.region!$A$51:$M$51,0)) -> 1.342519685 | D80: =INDEX(ET.region!$A$51:$M$61,MATCH(ET.county!$B80,ET.region!$A$51:$A$61,0),MATCH(ET.county!D$1,ET.region!$A$51:$M$51,0)) -> 1.763779528 | E80: =INDEX(ET.region!$A$51:$M$61,MATCH(ET.county!$B80,ET.region!$A$51:$A$61,0),MATCH(ET.county!E$1,ET.region!$A$51:$M$51,0)) -> 3.087795276 | F80: =INDEX(ET.region!$A$51:$M$61,MATCH(ET.county!$B80,ET.region!$A$51:$A$61,0),MATCH(ET.county!F$1,ET.region!$A$51:$M$51,0)) -> 4.476377953 | G80: =INDEX(ET.region!$A$51:$M$61,MATCH(ET.county!$B80,ET.region!$A$51:$A$61,0),MATCH(ET.county!G$1,ET.region!$A$51:$M$51,0)) -> 5.821653543 | H80: =INDEX(ET.region!$A$51:$M$61,MATCH(ET.county!$B80,ET.region!$A$51:$A$61,0),MATCH(ET.county!H$1,ET.region!$A$51:$M$51,0)) -> 6.484251969 | I80: =INDEX(ET.region!$A$51:$M$61,MATCH(ET.county!$B80,ET.region!$A$51:$A$61,0),MATCH(ET.county!I$1,ET.region!$A$51:$M$51,0)) -> 6.834645669 | J80: =INDEX(ET.region!$A$51:$M$61,MATCH(ET.county!$B80,ET.region!$A$51:$A$61,0),MATCH(ET.county!J$1,ET.region!$A$51:$M$51,0)) -> 6.126771654 | K80: =INDEX(ET.region!$A$51:$M$61,MATCH(ET.county!$B80,ET.region!$A$51:$A$61,0),MATCH(ET.county!K$1,ET.region!$A$51:$M$51,0)) -> 4.582677165 | L80: =INDEX(ET.region!$A$51:$M$61,MATCH(ET.county!$B80,ET.region!$A$51:$A$61,0),MATCH(ET.county!L$1,ET.region!$A$51:$M$51,0)) -> 3.246456693 | M80: =INDEX(ET.region!$A$51:$M$61,MATCH(ET.county!$B80,ET.region!$A$51:$A$61,0),MATCH(ET.county!M$1,ET.region!$A$51:$M$51,0)) -> 1.948818898 | N80: =INDEX(ET.region!$A$51:$M$61,MATCH(ET.county!$B80,ET.region!$A$51:$A$61,0),MATCH(ET.county!N$1,ET.region!$A$51:$M$51,0)) -> 1.318110236
A81: Rowan | B81: salisbury | C81: =INDEX(ET.region!$A$51:$M$61,MATCH(ET.county!$B81,ET.region!$A$51:$A$61,0),MATCH(ET.county!C$1,ET.region!$A$51:$M$51,0)) -> 1.488976378 | D81: =INDEX(ET.region!$A$51:$M$61,MATCH(ET.county!$B81,ET.region!$A$51:$A$61,0),MATCH(ET.county!D$1,ET.region!$A$51:$M$51,0)) -> 1.94015748 | E81: =INDEX(ET.region!$A$51:$M$61,MATCH(ET.county!$B81,ET.region!$A$51:$A$61,0),MATCH(ET.county!E$1,ET.region!$A$51:$M$51,0)) -> 3.295275591 | F81: =INDEX(ET.region!$A$51:$M$61,MATCH(ET.county!$B81,ET.region!$A$51:$A$61,0),MATCH(ET.county!F$1,ET.region!$A$51:$M$51,0)) -> 4.700787402 | G81: =INDEX(ET.region!$A$51:$M$61,MATCH(ET.county!$B81,ET.region!$A$51:$A$61,0),MATCH(ET.county!G$1,ET.region!$A$51:$M$51,0)) -> 6.016929134 | H81: =INDEX(ET.region!$A$51:$M$61,MATCH(ET.county!$B81,ET.region!$A$51:$A$61,0),MATCH(ET.county!H$1,ET.region!$A$51:$M$51,0)) -> 6.649606299 | I81: =INDEX(ET.region!$A$51:$M$61,MATCH(ET.county!$B81,ET.region!$A$51:$A$61,0),MATCH(ET.county!I$1,ET.region!$A$51:$M$51,0)) -> 6.932283465 | J81: =INDEX(ET.region!$A$51:$M$61,MATCH(ET.county!$B81,ET.region!$A$51:$A$61,0),MATCH(ET.county!J$1,ET.region!$A$51:$M$51,0)) -> 6.175590551 | K81: =INDEX(ET.region!$A$51:$M$61,MATCH(ET.county!$B81,ET.region!$A$51:$A$61,0),MATCH(ET.county!K$1,ET.region!$A$51:$M$51,0)) -> 4.712598425 | L81: =INDEX(ET.region!$A$51:$M$61,MATCH(ET.county!$B81,ET.region!$A$51:$A$61,0),MATCH(ET.county!L$1,ET.region!$A$51:$M$51,0)) -> 3.417322835 | M81: =INDEX(ET.region!$A$51:$M$61,MATCH(ET.county!$B81,ET.region!$A$51:$A$61,0),MATCH(ET.county!M$1,ET.region!$A$51:$M$51,0)) -> 2.114173228 | N81: =INDEX(ET.region!$A$51:$M$61,MATCH(ET.county!$B81,ET.region!$A$51:$A$61,0),MATCH(ET.county!N$1,ET.region!$A$51:$M$51,0)) -> 1.452362205
A82: Rutherford | B82: Lenoir | C82: =INDEX(ET.region!$A$51:$M$61,MATCH(ET.county!$B82,ET.region!$A$51:$A$61,0),MATCH(ET.county!C$1,ET.region!$A$51:$M$51,0)) -> 1.452362205 | D82: =INDEX(ET.region!$A$51:$M$61,MATCH(ET.county!$B82,ET.region!$A$51:$A$61,0),MATCH(ET.county!D$1,ET.region!$A$51:$M$51,0)) -> 1.88503937 | E82: =INDEX(ET.region!$A$51:$M$61,MATCH(ET.county!$B82,ET.region!$A$51:$A$61,0),MATCH(ET.county!E$1,ET.region!$A$51:$M$51,0)) -> 3.161023622 | F82: =INDEX(ET.region!$A$51:$M$61,MATCH(ET.county!$B82,ET.region!$A$51:$A$61,0),MATCH(ET.county!F$1,ET.region!$A$51:$M$51,0)) -> 4.346456693 | G82: =INDEX(ET.region!$A$51:$M$61,MATCH(ET.county!$B82,ET.region!$A$51:$A$61,0),MATCH(ET.county!G$1,ET.region!$A$51:$M$51,0)) -> 5.333464567 | H82: =INDEX(ET.region!$A$51:$M$61,MATCH(ET.county!$B82,ET.region!$A$51:$A$61,0),MATCH(ET.county!H$1,ET.region!$A$51:$M$51,0)) -> 5.57480315 | I82: =INDEX(ET.region!$A$51:$M$61,MATCH(ET.county!$B82,ET.region!$A$51:$A$61,0),MATCH(ET.county!I$1,ET.region!$A$51:$M$51,0)) -> 5.67519685 | J82: =INDEX(ET.region!$A$51:$M$61,MATCH(ET.county!$B82,ET.region!$A$51:$A$61,0),MATCH(ET.county!J$1,ET.region!$A$51:$M$51,0)) -> 5.089370079 | K82: =INDEX(ET.region!$A$51:$M$61,MATCH(ET.county!$B82,ET.region!$A$51:$A$61,0),MATCH(ET.county!K$1,ET.region!$A$51:$M$51,0)) -> 4.015748031 | L82: =INDEX(ET.region!$A$51:$M$61,MATCH(ET.county!$B82,ET.region!$A$51:$A$61,0),MATCH(ET.county!L$1,ET.region!$A$51:$M$51,0)) -> 3.063385827 | M82: =INDEX(ET.region!$A$51:$M$61,MATCH(ET.county!$B82,ET.region!$A$51:$A$61,0),MATCH(ET.county!M$1,ET.region!$A$51:$M$51,0)) -> 1.960629921 | N82: =INDEX(ET.region!$A$51:$M$61,MATCH(ET.county!$B82,ET.region!$A$51:$A$61,0),MATCH(ET.county!N$1,ET.region!$A$51:$M$51,0)) -> 1.391338583
A83: Sampson | B83: Goldsboro | C83: =INDEX(ET.region!$A$51:$M$61,MATCH(ET.county!$B83,ET.region!$A$51:$A$61,0),MATCH(ET.county!C$1,ET.region!$A$51:$M$51,0)) -> 1.574409449 | D83: =INDEX(ET.region!$A$51:$M$61,MATCH(ET.county!$B83,ET.region!$A$51:$A$61,0),MATCH(ET.county!D$1,ET.region!$A$51:$M$51,0)) -> 2.017322835 | E83: =INDEX(ET.region!$A$51:$M$61,MATCH(ET.county!$B83,ET.region!$A$51:$A$61,0),MATCH(ET.county!E$1,ET.region!$A$51:$M$51,0)) -> 3.466141732 | F83: =INDEX(ET.region!$A$51:$M$61,MATCH(ET.county!$B83,ET.region!$A$51:$A$61,0),MATCH(ET.county!F$1,ET.region!$A$51:$M$51,0)) -> 4.877952756 | G83: =INDEX(ET.region!$A$51:$M$61,MATCH(ET.county!$B83,ET.region!$A$51:$A$61,0),MATCH(ET.county!G$1,ET.region!$A$51:$M$51,0)) -> 6.297637795 | H83: =INDEX(ET.region!$A$51:$M$61,MATCH(ET.county!$B83,ET.region!$A$51:$A$61,0),MATCH(ET.county!H$1,ET.region!$A$51:$M$51,0)) -> 6.696850394 | I83: =INDEX(ET.region!$A$51:$M$61,MATCH(ET.county!$B83,ET.region!$A$51:$A$61,0),MATCH(ET.county!I$1,ET.region!$A$51:$M$51,0)) -> 6.834645669 | J83: =INDEX(ET.region!$A$51:$M$61,MATCH(ET.county!$B83,ET.region!$A$51:$A$61,0),MATCH(ET.county!J$1,ET.region!$A$51:$M$51,0)) -> 6.114566929 | K83: =INDEX(ET.region!$A$51:$M$61,MATCH(ET.county!$B83,ET.region!$A$51:$A$61,0),MATCH(ET.county!K$1,ET.region!$A$51:$M$51,0)) -> 4.712598425 | L83: =INDEX(ET.region!$A$51:$M$61,MATCH(ET.county!$B83,ET.region!$A$51:$A$61,0),MATCH(ET.county!L$1,ET.region!$A$51:$M$51,0)) -> 3.466141732 | M83: =INDEX(ET.region!$A$51:$M$61,MATCH(ET.county!$B83,ET.region!$A$51:$A$61,0),MATCH(ET.county!M$1,ET.region!$A$51:$M$51,0)) -> 2.196850394 | N83: =INDEX(ET.region!$A$51:$M$61,MATCH(ET.county!$B83,ET.region!$A$51:$A$61,0),MATCH(ET.county!N$1,ET.region!$A$51:$M$51,0)) -> 1.55
A84: Scotland | B84: Jackson.Springs | C84: =INDEX(ET.region!$A$51:$M$61,MATCH(ET.county!$B84,ET.region!$A$51:$A$61,0),MATCH(ET.county!C$1,ET.region!$A$51:$M$51,0)) -> 1.501181102 | D84: =INDEX(ET.region!$A$51:$M$61,MATCH(ET.county!$B84,ET.region!$A$51:$A$61,0),MATCH(ET.county!D$1,ET.region!$A$51:$M$51,0)) -> 1.962204724 | E84: =INDEX(ET.region!$A$51:$M$61,MATCH(ET.county!$B84,ET.region!$A$51:$A$61,0),MATCH(ET.county!E$1,ET.region!$A$51:$M$51,0)) -> 3.40511811 | F84: =INDEX(ET.region!$A$51:$M$61,MATCH(ET.county!$B84,ET.region!$A$51:$A$61,0),MATCH(ET.county!F$1,ET.region!$A$51:$M$51,0)) -> 4.866141732 | G84: =INDEX(ET.region!$A$51:$M$61,MATCH(ET.county!$B84,ET.region!$A$51:$A$61,0),MATCH(ET.county!G$1,ET.region!$A$51:$M$51,0)) -> 6.175590551 | H84: =INDEX(ET.region!$A$51:$M$61,MATCH(ET.county!$B84,ET.region!$A$51:$A$61,0),MATCH(ET.county!H$1,ET.region!$A$51:$M$51,0)) -> 6.744094488 | I84: =INDEX(ET.region!$A$51:$M$61,MATCH(ET.county!$B84,ET.region!$A$51:$A$61,0),MATCH(ET.county!I$1,ET.region!$A$51:$M$51,0)) -> 7.005511811 | J84: =INDEX(ET.region!$A$51:$M$61,MATCH(ET.county!$B84,ET.region!$A$51:$A$61,0),MATCH(ET.county!J$1,ET.region!$A$51:$M$51,0)) -> 6.224409449 | K84: =INDEX(ET.region!$A$51:$M$61,MATCH(ET.county!$B84,ET.region!$A$51:$A$61,0),MATCH(ET.county!K$1,ET.region!$A$51:$M$51,0)) -> 4.771653543 | L84: =INDEX(ET.region!$A$51:$M$61,MATCH(ET.county!$B84,ET.region!$A$51:$A$61,0),MATCH(ET.county!L$1,ET.region!$A$51:$M$51,0)) -> 3.40511811 | M84: =INDEX(ET.region!$A$51:$M$61,MATCH(ET.county!$B84,ET.region!$A$51:$A$61,0),MATCH(ET.county!M$1,ET.region!$A$51:$M$51,0)) -> 2.090551181 | N84: =INDEX(ET.region!$A$51:$M$61,MATCH(ET.county!$B84,ET.region!$A$51:$A$61,0),MATCH(ET.county!N$1,ET.region!$A$51:$M$51,0)) -> 1.488976378
A85: Stanly | B85: Salisbury | C85: =INDEX(ET.region!$A$51:$M$61,MATCH(ET.county!$B85,ET.region!$A$51:$A$61,0),MATCH(ET.county!C$1,ET.region!$A$51:$M$51,0)) -> 1.488976378 | D85: =INDEX(ET.region!$A$51:$M$61,MATCH(ET.county!$B85,ET.region!$A$51:$A$61,0),MATCH(ET.county!D$1,ET.region!$A$51:$M$51,0)) -> 1.94015748 | E85: =INDEX(ET.region!$A$51:$M$61,MATCH(ET.county!$B85,ET.region!$A$51:$A$61,0),MATCH(ET.county!E$1,ET.region!$A$51:$M$51,0)) -> 3.295275591 | F85: =INDEX(ET.region!$A$51:$M$61,MATCH(ET.county!$B85,ET.region!$A$51:$A$61,0),MATCH(ET.county!F$1,ET.region!$A$51:$M$51,0)) -> 4.700787402 | G85: =INDEX(ET.region!$A$51:$M$61,MATCH(ET.county!$B85,ET.region!$A$51:$A$61,0),MATCH(ET.county!G$1,ET.region!$A$51:$M$51,0)) -> 6.016929134 | H85: =INDEX(ET.region!$A$51:$M$61,MATCH(ET.county!$B85,ET.region!$A$51:$A$61,0),MATCH(ET.county!H$1,ET.region!$A$51:$M$51,0)) -> 6.649606299 | I85: =INDEX(ET.region!$A$51:$M$61,MATCH(ET.county!$B85,ET.region!$A$51:$A$61,0),MATCH(ET.county!I$1,ET.region!$A$51:$M$51,0)) -> 6.932283465 | J85: =INDEX(ET.region!$A$51:$M$61,MATCH(ET.county!$B85,ET.region!$A$51:$A$61,0),MATCH(ET.county!J$1,ET.region!$A$51:$M$51,0)) -> 6.175590551 | K85: =INDEX(ET.region!$A$51:$M$61,MATCH(ET.county!$B85,ET.region!$A$51:$A$61,0),MATCH(ET.county!K$1,ET.region!$A$51:$M$51,0)) -> 4.712598425 | L85: =INDEX(ET.region!$A$51:$M$61,MATCH(ET.county!$B85,ET.region!$A$51:$A$61,0),MATCH(ET.county!L$1,ET.region!$A$51:$M$51,0)) -> 3.417322835 | M85: =INDEX(ET.region!$A$51:$M$61,MATCH(ET.county!$B85,ET.region!$A$51:$A$61,0),MATCH(ET.county!M$1,ET.region!$A$51:$M$51,0)) -> 2.114173228 | N85: =INDEX(ET.region!$A$51:$M$61,MATCH(ET.county!$B85,ET.region!$A$51:$A$61,0),MATCH(ET.county!N$1,ET.region!$A$51:$M$51,0)) -> 1.452362205
A86: Stokes | B86: Reidsville | C86: =INDEX(ET.region!$A$51:$M$61,MATCH(ET.county!$B86,ET.region!$A$51:$A$61,0),MATCH(ET.county!C$1,ET.region!$A$51:$M$51,0)) -> 1.342519685 | D86: =INDEX(ET.region!$A$51:$M$61,MATCH(ET.county!$B86,ET.region!$A$51:$A$61,0),MATCH(ET.county!D$1,ET.region!$A$51:$M$51,0)) -> 1.763779528 | E86: =INDEX(ET.region!$A$51:$M$61,MATCH(ET.county!$B86,ET.region!$A$51:$A$61,0),MATCH(ET.county!E$1,ET.region!$A$51:$M$51,0)) -> 3.087795276 | F86: =INDEX(ET.region!$A$51:$M$61,MATCH(ET.county!$B86,ET.region!$A$51:$A$61,0),MATCH(ET.county!F$1,ET.region!$A$51:$M$51,0)) -> 4.476377953 | G86: =INDEX(ET.region!$A$51:$M$61,MATCH(ET.county!$B86,ET.region!$A$51:$A$61,0),MATCH(ET.county!G$1,ET.region!$A$51:$M$51,0)) -> 5.821653543 | H86: =INDEX(ET.region!$A$51:$M$61,MATCH(ET.county!$B86,ET.region!$A$51:$A$61,0),MATCH(ET.county!H$1,ET.region!$A$51:$M$51,0)) -> 6.484251969 | I86: =INDEX(ET.region!$A$51:$M$61,MATCH(ET.county!$B86,ET.region!$A$51:$A$61,0),MATCH(ET.county!I$1,ET.region!$A$51:$M$51,0)) -> 6.834645669 | J86: =INDEX(ET.region!$A$51:$M$61,MATCH(ET.county!$B86,ET.region!$A$51:$A$61,0),MATCH(ET.county!J$1,ET.region!$A$51:$M$51,0)) -> 6.126771654 | K86: =INDEX(ET.region!$A$51:$M$61,MATCH(ET.county!$B86,ET.region!$A$51:$A$61,0),MATCH(ET.county!K$1,ET.region!$A$51:$M$51,0)) -> 4.582677165 | L86: =INDEX(ET.region!$A$51:$M$61,MATCH(ET.county!$B86,ET.region!$A$51:$A$61,0),MATCH(ET.county!L$1,ET.region!$A$51:$M$51,0)) -> 3.246456693 | M86: =INDEX(ET.region!$A$51:$M$61,MATCH(ET.county!$B86,ET.region!$A$51:$A$61,0),MATCH(ET.county!M$1,ET.region!$A$51:$M$51,0)) -> 1.948818898 | N86: =INDEX(ET.region!$A$51:$M$61,MATCH(ET.county!$B86,ET.region!$A$51:$A$61,0),MATCH(ET.county!N$1,ET.region!$A$51:$M$51,0)) -> 1.318110236
A87: Surry | B87: Reidsville | C87: =INDEX(ET.region!$A$51:$M$61,MATCH(ET.county!$B87,ET.region!$A$51:$A$61,0),MATCH(ET.county!C$1,ET.region!$A$51:$M$51,0)) -> 1.342519685 | D87: =INDEX(ET.region!$A$51:$M$61,MATCH(ET.county!$B87,ET.region!$A$51:$A$61,0),MATCH(ET.county!D$1,ET.region!$A$51:$M$51,0)) -> 1.763779528 | E87: =INDEX(ET.region!$A$51:$M$61,MATCH(ET.county!$B87,ET.region!$A$51:$A$61,0),MATCH(ET.county!E$1,ET.region!$A$51:$M$51,0)) -> 3.087795276 | F87: =INDEX(ET.region!$A$51:$M$61,MATCH(ET.county!$B87,ET.region!$A$51:$A$61,0),MATCH(ET.county!F$1,ET.region!$A$51:$M$51,0)) -> 4.476377953 | G87: =INDEX(ET.region!$A$51:$M$61,MATCH(ET.county!$B87,ET.region!$A$51:$A$61,0),MATCH(ET.county!G$1,ET.region!$A$51:$M$51,0)) -> 5.821653543 | H87: =INDEX(ET.region!$A$51:$M$61,MATCH(ET.county!$B87,ET.region!$A$51:$A$61,0),MATCH(ET.county!H$1,ET.region!$A$51:$M$51,0)) -> 6.484251969 | I87: =INDEX(ET.region!$A$51:$M$61,MATCH(ET.county!$B87,ET.region!$A$51:$A$61,0),MATCH(ET.county!I$1,ET.region!$A$51:$M$51,0)) -> 6.834645669 | J87: =INDEX(ET.region!$A$51:$M$61,MATCH(ET.county!$B87,ET.region!$A$51:$A$61,0),MATCH(ET.county!J$1,ET.region!$A$51:$M$51,0)) -> 6.126771654 | K87: =INDEX(ET.region!$A$51:$M$61,MATCH(ET.county!$B87,ET.region!$A$51:$A$61,0),MATCH(ET.county!K$1,ET.region!$A$51:$M$51,0)) -> 4.582677165 | L87: =INDEX(ET.region!$A$51:$M$61,MATCH(ET.county!$B87,ET.region!$A$51:$A$61,0),MATCH(ET.county!L$1,ET.region!$A$51:$M$51,0)) -> 3.246456693 | M87: =INDEX(ET.region!$A$51:$M$61,MATCH(ET.county!$B87,ET.region!$A$51:$A$61,0),MATCH(ET.county!M$1,ET.region!$A$51:$M$51,0)) -> 1.948818898 | N87: =INDEX(ET.region!$A$51:$M$61,MATCH(ET.county!$B87,ET.region!$A$51:$A$61,0),MATCH(ET.county!N$1,ET.region!$A$51:$M$51,0)) -> 1.318110236
A88: Swain | B88: Fletcher | C88: =INDEX(ET.region!$A$51:$M$61,MATCH(ET.county!$B88,ET.region!$A$51:$A$61,0),MATCH(ET.county!C$1,ET.region!$A$51:$M$51,0)) -> 1.391338583 | D88: =INDEX(ET.region!$A$51:$M$61,MATCH(ET.county!$B88,ET.region!$A$51:$A$61,0),MATCH(ET.county!D$1,ET.region!$A$51:$M$51,0)) -> 1.77480315 | E88: =INDEX(ET.region!$A$51:$M$61,MATCH(ET.county!$B88,ET.region!$A$51:$A$61,0),MATCH(ET.county!E$1,ET.region!$A$51:$M$51,0)) -> 3.063385827 | F88: =INDEX(ET.region!$A$51:$M$61,MATCH(ET.county!$B88,ET.region!$A$51:$A$61,0),MATCH(ET.county!F$1,ET.region!$A$51:$M$51,0)) -> 4.417322835 | G88: =INDEX(ET.region!$A$51:$M$61,MATCH(ET.county!$B88,ET.region!$A$51:$A$61,0),MATCH(ET.county!G$1,ET.region!$A$51:$M$51,0)) -> 5.736220472 | H88: =INDEX(ET.region!$A$51:$M$61,MATCH(ET.county!$B88,ET.region!$A$51:$A$61,0),MATCH(ET.county!H$1,ET.region!$A$51:$M$51,0)) -> 6.307086614 | I88: =INDEX(ET.region!$A$51:$M$61,MATCH(ET.county!$B88,ET.region!$A$51:$A$61,0),MATCH(ET.county!I$1,ET.region!$A$51:$M$51,0)) -> 6.541732283 | J88: =INDEX(ET.region!$A$51:$M$61,MATCH(ET.county!$B88,ET.region!$A$51:$A$61,0),MATCH(ET.county!J$1,ET.region!$A$51:$M$51,0)) -> 5.931496063 | K88: =INDEX(ET.region!$A$51:$M$61,MATCH(ET.county!$B88,ET.region!$A$51:$A$61,0),MATCH(ET.county!K$1,ET.region!$A$51:$M$51,0)) -> 4.511811024 | L88: =INDEX(ET.region!$A$51:$M$61,MATCH(ET.county!$B88,ET.region!$A$51:$A$61,0),MATCH(ET.county!L$1,ET.region!$A$51:$M$51,0)) -> 3.270866142 | M88: =INDEX(ET.region!$A$51:$M$61,MATCH(ET.county!$B88,ET.region!$A$51:$A$61,0),MATCH(ET.county!M$1,ET.region!$A$51:$M$51,0)) -> 1.972440945 | N88: =INDEX(ET.region!$A$51:$M$61,MATCH(ET.county!$B88,ET.region!$A$51:$A$61,0),MATCH(ET.county!N$1,ET.region!$A$51:$M$51,0)) -> 1.354724409
A89: Transylvania | B89: Fletcher | C89: =INDEX(ET.region!$A$51:$M$61,MATCH(ET.county!$B89,ET.region!$A$51:$A$61,0),MATCH(ET.county!C$1,ET.region!$A$51:$M$51,0)) -> 1.391338583 | D89: =INDEX(ET.region!$A$51:$M$61,MATCH(ET.county!$B89,ET.region!$A$51:$A$61,0),MATCH(ET.county!D$1,ET.region!$A$51:$M$51,0)) -> 1.77480315 | E89: =INDEX(ET.region!$A$51:$M$61,MATCH(ET.county!$B89,ET.region!$A$51:$A$61,0),MATCH(ET.county!E$1,ET.region!$A$51:$M$51,0)) -> 3.063385827 | F89: =INDEX(ET.region!$A$51:$M$61,MATCH(ET.county!$B89,ET.region!$A$51:$A$61,0),MATCH(ET.county!F$1,ET.region!$A$51:$M$51,0)) -> 4.417322835 | G89: =INDEX(ET.region!$A$51:$M$61,MATCH(ET.county!$B89,ET.region!$A$51:$A$61,0),MATCH(ET.county!G$1,ET.region!$A$51:$M$51,0)) -> 5.736220472 | H89: =INDEX(ET.region!$A$51:$M$61,MATCH(ET.county!$B89,ET.region!$A$51:$A$61,0),MATCH(ET.county!H$1,ET.region!$A$51:$M$51,0)) -> 6.307086614 | I89: =INDEX(ET.region!$A$51:$M$61,MATCH(ET.county!$B89,ET.region!$A$51:$A$61,0),MATCH(ET.county!I$1,ET.region!$A$51:$M$51,0)) -> 6.541732283 | J89: =INDEX(ET.region!$A$51:$M$61,MATCH(ET.county!$B89,ET.region!$A$51:$A$61,0),MATCH(ET.county!J$1,ET.region!$A$51:$M$51,0)) -> 5.931496063 | K89: =INDEX(ET.region!$A$51:$M$61,MATCH(ET.county!$B89,ET.region!$A$51:$A$61,0),MATCH(ET.county!K$1,ET.region!$A$51:$M$51,0)) -> 4.511811024 | L89: =INDEX(ET.region!$A$51:$M$61,MATCH(ET.county!$B89,ET.region!$A$51:$A$61,0),MATCH(ET.county!L$1,ET.region!$A$51:$M$51,0)) -> 3.270866142 | M89: =INDEX(ET.region!$A$51:$M$61,MATCH(ET.county!$B89,ET.region!$A$51:$A$61,0),MATCH(ET.county!M$1,ET.region!$A$51:$M$51,0)) -> 1.972440945 | N89: =INDEX(ET.region!$A$51:$M$61,MATCH(ET.county!$B89,ET.region!$A$51:$A$61,0),MATCH(ET.county!N$1,ET.region!$A$51:$M$51,0)) -> 1.354724409
A90: Tyrrell | B90: Aurora | C90: =INDEX(ET.region!$A$51:$M$61,MATCH(ET.county!$B90,ET.region!$A$51:$A$61,0),MATCH(ET.county!C$1,ET.region!$A$51:$M$51,0)) -> 1.581 | D90: =INDEX(ET.region!$A$51:$M$61,MATCH(ET.county!$B90,ET.region!$A$51:$A$61,0),MATCH(ET.county!D$1,ET.region!$A$51:$M$51,0)) -> 1.96 | E90: =INDEX(ET.region!$A$51:$M$61,MATCH(ET.county!$B90,ET.region!$A$51:$A$61,0),MATCH(ET.county!E$1,ET.region!$A$51:$M$51,0)) -> 3.255 | F90: =INDEX(ET.region!$A$51:$M$61,MATCH(ET.county!$B90,ET.region!$A$51:$A$61,0),MATCH(ET.county!F$1,ET.region!$A$51:$M$51,0)) -> 4.59 | G90: =INDEX(ET.region!$A$51:$M$61,MATCH(ET.county!$B90,ET.region!$A$51:$A$61,0),MATCH(ET.county!G$1,ET.region!$A$51:$M$51,0)) -> 5.797 | H90: =INDEX(ET.region!$A$51:$M$61,MATCH(ET.county!$B90,ET.region!$A$51:$A$61,0),MATCH(ET.county!H$1,ET.region!$A$51:$M$51,0)) -> 6.24 | I90: =INDEX(ET.region!$A$51:$M$61,MATCH(ET.county!$B90,ET.region!$A$51:$A$61,0),MATCH(ET.county!I$1,ET.region!$A$51:$M$51,0)) -> 6.479 | J90: =INDEX(ET.region!$A$51:$M$61,MATCH(ET.county!$B90,ET.region!$A$51:$A$61,0),MATCH(ET.county!J$1,ET.region!$A$51:$M$51,0)) -> 5.735 | K90: =INDEX(ET.region!$A$51:$M$61,MATCH(ET.county!$B90,ET.region!$A$51:$A$61,0),MATCH(ET.county!K$1,ET.region!$A$51:$M$51,0)) -> 4.38 | L90: =INDEX(ET.region!$A$51:$M$61,MATCH(ET.county!$B90,ET.region!$A$51:$A$61,0),MATCH(ET.county!L$1,ET.region!$A$51:$M$51,0)) -> 3.255 | M90: =INDEX(ET.region!$A$51:$M$61,MATCH(ET.county!$B90,ET.region!$A$51:$A$61,0),MATCH(ET.county!M$1,ET.region!$A$51:$M$51,0)) -> 2.07 | N90: =INDEX(ET.region!$A$51:$M$61,MATCH(ET.county!$B90,ET.region!$A$51:$A$61,0),MATCH(ET.county!N$1,ET.region!$A$51:$M$51,0)) -> 1.55
A91: Union | B91: Salisbury | C91: =INDEX(ET.region!$A$51:$M$61,MATCH(ET.county!$B91,ET.region!$A$51:$A$61,0),MATCH(ET.county!C$1,ET.region!$A$51:$M$51,0)) -> 1.488976378 | D91: =INDEX(ET.region!$A$51:$M$61,MATCH(ET.county!$B91,ET.region!$A$51:$A$61,0),MATCH(ET.county!D$1,ET.region!$A$51:$M$51,0)) -> 1.94015748 | E91: =INDEX(ET.region!$A$51:$M$61,MATCH(ET.county!$B91,ET.region!$A$51:$A$61,0),MATCH(ET.county!E$1,ET.region!$A$51:$M$51,0)) -> 3.295275591 | F91: =INDEX(ET.region!$A$51:$M$61,MATCH(ET.county!$B91,ET.region!$A$51:$A$61,0),MATCH(ET.county!F$1,ET.region!$A$51:$M$51,0)) -> 4.700787402 | G91: =INDEX(ET.region!$A$51:$M$61,MATCH(ET.county!$B91,ET.region!$A$51:$A$61,0),MATCH(ET.county!G$1,ET.region!$A$51:$M$51,0)) -> 6.016929134 | H91: =INDEX(ET.region!$A$51:$M$61,MATCH(ET.county!$B91,ET.region!$A$51:$A$61,0),MATCH(ET.county!H$1,ET.region!$A$51:$M$51,0)) -> 6.649606299 | I91: =INDEX(ET.region!$A$51:$M$61,MATCH(ET.county!$B91,ET.region!$A$51:$A$61,0),MATCH(ET.county!I$1,ET.region!$A$51:$M$51,0)) -> 6.932283465 | J91: =INDEX(ET.region!$A$51:$M$61,MATCH(ET.county!$B91,ET.region!$A$51:$A$61,0),MATCH(ET.county!J$1,ET.region!$A$51:$M$51,0)) -> 6.175590551 | K91: =INDEX(ET.region!$A$51:$M$61,MATCH(ET.county!$B91,ET.region!$A$51:$A$61,0),MATCH(ET.county!K$1,ET.region!$A$51:$M$51,0)) -> 4.712598425 | L91: =INDEX(ET.region!$A$51:$M$61,MATCH(ET.county!$B91,ET.region!$A$51:$A$61,0),MATCH(ET.county!L$1,ET.region!$A$51:$M$51,0)) -> 3.417322835 | M91: =INDEX(ET.region!$A$51:$M$61,MATCH(ET.county!$B91,ET.region!$A$51:$A$61,0),MATCH(ET.county!M$1,ET.region!$A$51:$M$51,0)) -> 2.114173228 | N91: =INDEX(ET.region!$A$51:$M$61,MATCH(ET.county!$B91,ET.region!$A$51:$A$61,0),MATCH(ET.county!N$1,ET.region!$A$51:$M$51,0)) -> 1.452362205
A92: Vance | B92: Reidsville | C92: =INDEX(ET.region!$A$51:$M$61,MATCH(ET.county!$B92,ET.region!$A$51:$A$61,0),MATCH(ET.county!C$1,ET.region!$A$51:$M$51,0)) -> 1.342519685 | D92: =INDEX(ET.region!$A$51:$M$61,MATCH(ET.county!$B92,ET.region!$A$51:$A$61,0),MATCH(ET.county!D$1,ET.region!$A$51:$M$51,0)) -> 1.763779528 | E92: =INDEX(ET.region!$A$51:$M$61,MATCH(ET.county!$B92,ET.region!$A$51:$A$61,0),MATCH(ET.county!E$1,ET.region!$A$51:$M$51,0)) -> 3.087795276 | F92: =INDEX(ET.region!$A$51:$M$61,MATCH(ET.county!$B92,ET.region!$A$51:$A$61,0),MATCH(ET.county!F$1,ET.region!$A$51:$M$51,0)) -> 4.476377953 | G92: =INDEX(ET.region!$A$51:$M$61,MATCH(ET.county!$B92,ET.region!$A$51:$A$61,0),MATCH(ET.county!G$1,ET.region!$A$51:$M$51,0)) -> 5.821653543 | H92: =INDEX(ET.region!$A$51:$M$61,MATCH(ET.county!$B92,ET.region!$A$51:$A$61,0),MATCH(ET.county!H$1,ET.region!$A$51:$M$51,0)) -> 6.484251969 | I92: =INDEX(ET.region!$A$51:$M$61,MATCH(ET.county!$B92,ET.region!$A$51:$A$61,0),MATCH(ET.county!I$1,ET.region!$A$51:$M$51,0)) -> 6.834645669 | J92: =INDEX(ET.region!$A$51:$M$61,MATCH(ET.county!$B92,ET.region!$A$51:$A$61,0),MATCH(ET.county!J$1,ET.region!$A$51:$M$51,0)) -> 6.126771654 | K92: =INDEX(ET.region!$A$51:$M$61,MATCH(ET.county!$B92,ET.region!$A$51:$A$61,0),MATCH(ET.county!K$1,ET.region!$A$51:$M$51,0)) -> 4.582677165 | L92: =INDEX(ET.region!$A$51:$M$61,MATCH(ET.county!$B92,ET.region!$A$51:$A$61,0),MATCH(ET.county!L$1,ET.region!$A$51:$M$51,0)) -> 3.246456693 | M92: =INDEX(ET.region!$A$51:$M$61,MATCH(ET.county!$B92,ET.region!$A$51:$A$61,0),MATCH(ET.county!M$1,ET.region!$A$51:$M$51,0)) -> 1.948818898 | N92: =INDEX(ET.region!$A$51:$M$61,MATCH(ET.county!$B92,ET.region!$A$51:$A$61,0),MATCH(ET.county!N$1,ET.region!$A$51:$M$51,0)) -> 1.318110236
A93: Wake | B93: Raleigh | C93: =INDEX(ET.region!$A$51:$M$61,MATCH(ET.county!$B93,ET.region!$A$51:$A$61,0),MATCH(ET.county!C$1,ET.region!$A$51:$M$51,0)) -> 1.562204724 | D93: =INDEX(ET.region!$A$51:$M$61,MATCH(ET.county!$B93,ET.region!$A$51:$A$61,0),MATCH(ET.county!D$1,ET.region!$A$51:$M$51,0)) -> 2.050393701 | E93: =INDEX(ET.region!$A$51:$M$61,MATCH(ET.county!$B93,ET.region!$A$51:$A$61,0),MATCH(ET.county!E$1,ET.region!$A$51:$M$51,0)) -> 3.502755906 | F93: =INDEX(ET.region!$A$51:$M$61,MATCH(ET.county!$B93,ET.region!$A$51:$A$61,0),MATCH(ET.county!F$1,ET.region!$A$51:$M$51,0)) -> 4.937007874 | G93: =INDEX(ET.region!$A$51:$M$61,MATCH(ET.county!$B93,ET.region!$A$51:$A$61,0),MATCH(ET.county!G$1,ET.region!$A$51:$M$51,0)) -> 6.212204724 | H93: =INDEX(ET.region!$A$51:$M$61,MATCH(ET.county!$B93,ET.region!$A$51:$A$61,0),MATCH(ET.county!H$1,ET.region!$A$51:$M$51,0)) -> 6.696850394 | I93: =INDEX(ET.region!$A$51:$M$61,MATCH(ET.county!$B93,ET.region!$A$51:$A$61,0),MATCH(ET.county!I$1,ET.region!$A$51:$M$51,0)) -> 6.944488189 | J93: =INDEX(ET.region!$A$51:$M$61,MATCH(ET.county!$B93,ET.region!$A$51:$A$61,0),MATCH(ET.county!J$1,ET.region!$A$51:$M$51,0)) -> 6.212204724 | K93: =INDEX(ET.region!$A$51:$M$61,MATCH(ET.county!$B93,ET.region!$A$51:$A$61,0),MATCH(ET.county!K$1,ET.region!$A$51:$M$51,0)) -> 4.75984252 | L93: =INDEX(ET.region!$A$51:$M$61,MATCH(ET.county!$B93,ET.region!$A$51:$A$61,0),MATCH(ET.county!L$1,ET.region!$A$51:$M$51,0)) -> 3.441732283 | M93: =INDEX(ET.region!$A$51:$M$61,MATCH(ET.county!$B93,ET.region!$A$51:$A$61,0),MATCH(ET.county!M$1,ET.region!$A$51:$M$51,0)) -> 2.149606299 | N93: =INDEX(ET.region!$A$51:$M$61,MATCH(ET.county!$B93,ET.region!$A$51:$A$61,0),MATCH(ET.county!N$1,ET.region!$A$51:$M$51,0)) -> 1.513385827
A94: Warren | B94: Lewiston | C94: =INDEX(ET.region!$A$51:$M$61,MATCH(ET.county!$B94,ET.region!$A$51:$A$61,0),MATCH(ET.county!C$1,ET.region!$A$51:$M$51,0)) -> 1.525590551 | D94: =INDEX(ET.region!$A$51:$M$61,MATCH(ET.county!$B94,ET.region!$A$51:$A$61,0),MATCH(ET.county!D$1,ET.region!$A$51:$M$51,0)) -> 2.017322835 | E94: =INDEX(ET.region!$A$51:$M$61,MATCH(ET.county!$B94,ET.region!$A$51:$A$61,0),MATCH(ET.county!E$1,ET.region!$A$51:$M$51,0)) -> 3.490551181 | F94: =INDEX(ET.region!$A$51:$M$61,MATCH(ET.county!$B94,ET.region!$A$51:$A$61,0),MATCH(ET.county!F$1,ET.region!$A$51:$M$51,0)) -> 5.05511811 | G94: =INDEX(ET.region!$A$51:$M$61,MATCH(ET.county!$B94,ET.region!$A$51:$A$61,0),MATCH(ET.county!G$1,ET.region!$A$51:$M$51,0)) -> 6.431889764 | H94: =INDEX(ET.region!$A$51:$M$61,MATCH(ET.county!$B94,ET.region!$A$51:$A$61,0),MATCH(ET.county!H$1,ET.region!$A$51:$M$51,0)) -> 7.07480315 | I94: =INDEX(ET.region!$A$51:$M$61,MATCH(ET.county!$B94,ET.region!$A$51:$A$61,0),MATCH(ET.county!I$1,ET.region!$A$51:$M$51,0)) -> 7.359448819 | J94: =INDEX(ET.region!$A$51:$M$61,MATCH(ET.county!$B94,ET.region!$A$51:$A$61,0),MATCH(ET.county!J$1,ET.region!$A$51:$M$51,0)) -> 6.566141732 | K94: =INDEX(ET.region!$A$51:$M$61,MATCH(ET.county!$B94,ET.region!$A$51:$A$61,0),MATCH(ET.county!K$1,ET.region!$A$51:$M$51,0)) -> 4.948818898 | L94: =INDEX(ET.region!$A$51:$M$61,MATCH(ET.county!$B94,ET.region!$A$51:$A$61,0),MATCH(ET.county!L$1,ET.region!$A$51:$M$51,0)) -> 3.575984252 | M94: =INDEX(ET.region!$A$51:$M$61,MATCH(ET.county!$B94,ET.region!$A$51:$A$61,0),MATCH(ET.county!M$1,ET.region!$A$51:$M$51,0)) -> 2.196850394 | N94: =INDEX(ET.region!$A$51:$M$61,MATCH(ET.county!$B94,ET.region!$A$51:$A$61,0),MATCH(ET.county!N$1,ET.region!$A$51:$M$51,0)) -> 1.525590551
A95: Washington | B95: Aurora | C95: =INDEX(ET.region!$A$51:$M$61,MATCH(ET.county!$B95,ET.region!$A$51:$A$61,0),MATCH(ET.county!C$1,ET.region!$A$51:$M$51,0)) -> 1.581 | D95: =INDEX(ET.region!$A$51:$M$61,MATCH(ET.county!$B95,ET.region!$A$51:$A$61,0),MATCH(ET.county!D$1,ET.region!$A$51:$M$51,0)) -> 1.96 | E95: =INDEX(ET.region!$A$51:$M$61,MATCH(ET.county!$B95,ET.region!$A$51:$A$61,0),MATCH(ET.county!E$1,ET.region!$A$51:$M$51,0)) -> 3.255 | F95: =INDEX(ET.region!$A$51:$M$61,MATCH(ET.county!$B95,ET.region!$A$51:$A$61,0),MATCH(ET.county!F$1,ET.region!$A$51:$M$51,0)) -> 4.59 | G95: =INDEX(ET.region!$A$51:$M$61,MATCH(ET.county!$B95,ET.region!$A$51:$A$61,0),MATCH(ET.county!G$1,ET.region!$A$51:$M$51,0)) -> 5.797 | H95: =INDEX(ET.region!$A$51:$M$61,MATCH(ET.county!$B95,ET.region!$A$51:$A$61,0),MATCH(ET.county!H$1,ET.region!$A$51:$M$51,0)) -> 6.24 | I95: =INDEX(ET.region!$A$51:$M$61,MATCH(ET.county!$B95,ET.region!$A$51:$A$61,0),MATCH(ET.county!I$1,ET.region!$A$51:$M$51,0)) -> 6.479 | J95: =INDEX(ET.region!$A$51:$M$61,MATCH(ET.county!$B95,ET.region!$A$51:$A$61,0),MATCH(ET.county!J$1,ET.region!$A$51:$M$51,0)) -> 5.735 | K95: =INDEX(ET.region!$A$51:$M$61,MATCH(ET.county!$B95,ET.region!$A$51:$A$61,0),MATCH(ET.county!K$1,ET.region!$A$51:$M$51,0)) -> 4.38 | L95: =INDEX(ET.region!$A$51:$M$61,MATCH(ET.county!$B95,ET.region!$A$51:$A$61,0),MATCH(ET.county!L$1,ET.region!$A$51:$M$51,0)) -> 3.255 | M95: =INDEX(ET.region!$A$51:$M$61,MATCH(ET.county!$B95,ET.region!$A$51:$A$61,0),MATCH(ET.county!M$1,ET.region!$A$51:$M$51,0)) -> 2.07 | N95: =INDEX(ET.region!$A$51:$M$61,MATCH(ET.county!$B95,ET.region!$A$51:$A$61,0),MATCH(ET.county!N$1,ET.region!$A$51:$M$51,0)) -> 1.55
A96: Watauga | B96: Fletcher | C96: =INDEX(ET.region!$A$51:$M$61,MATCH(ET.county!$B96,ET.region!$A$51:$A$61,0),MATCH(ET.county!C$1,ET.region!$A$51:$M$51,0)) -> 1.391338583 | D96: =INDEX(ET.region!$A$51:$M$61,MATCH(ET.county!$B96,ET.region!$A$51:$A$61,0),MATCH(ET.county!D$1,ET.region!$A$51:$M$51,0)) -> 1.77480315 | E96: =INDEX(ET.region!$A$51:$M$61,MATCH(ET.county!$B96,ET.region!$A$51:$A$61,0),MATCH(ET.county!E$1,ET.region!$A$51:$M$51,0)) -> 3.063385827 | F96: =INDEX(ET.region!$A$51:$M$61,MATCH(ET.county!$B96,ET.region!$A$51:$A$61,0),MATCH(ET.county!F$1,ET.region!$A$51:$M$51,0)) -> 4.417322835 | G96: =INDEX(ET.region!$A$51:$M$61,MATCH(ET.county!$B96,ET.region!$A$51:$A$61,0),MATCH(ET.county!G$1,ET.region!$A$51:$M$51,0)) -> 5.736220472 | H96: =INDEX(ET.region!$A$51:$M$61,MATCH(ET.county!$B96,ET.region!$A$51:$A$61,0),MATCH(ET.county!H$1,ET.region!$A$51:$M$51,0)) -> 6.307086614 | I96: =INDEX(ET.region!$A$51:$M$61,MATCH(ET.county!$B96,ET.region!$A$51:$A$61,0),MATCH(ET.county!I$1,ET.region!$A$51:$M$51,0)) -> 6.541732283 | J96: =INDEX(ET.region!$A$51:$M$61,MATCH(ET.county!$B96,ET.region!$A$51:$A$61,0),MATCH(ET.county!J$1,ET.region!$A$51:$M$51,0)) -> 5.931496063 | K96: =INDEX(ET.region!$A$51:$M$61,MATCH(ET.county!$B96,ET.region!$A$51:$A$61,0),MATCH(ET.county!K$1,ET.region!$A$51:$M$51,0)) -> 4.511811024 | L96: =INDEX(ET.region!$A$51:$M$61,MATCH(ET.county!$B96,ET.region!$A$51:$A$61,0),MATCH(ET.county!L$1,ET.region!$A$51:$M$51,0)) -> 3.270866142 | M96: =INDEX(ET.region!$A$51:$M$61,MATCH(ET.county!$B96,ET.region!$A$51:$A$61,0),MATCH(ET.county!M$1,ET.region!$A$51:$M$51,0)) -> 1.972440945 | N96: =INDEX(ET.region!$A$51:$M$61,MATCH(ET.county!$B96,ET.region!$A$51:$A$61,0),MATCH(ET.county!N$1,ET.region!$A$51:$M$51,0)) -> 1.354724409
A97: Wayne | B97: Goldsboro | C97: =INDEX(ET.region!$A$51:$M$61,MATCH(ET.county!$B97,ET.region!$A$51:$A$61,0),MATCH(ET.county!C$1,ET.region!$A$51:$M$51,0)) -> 1.574409449 | D97: =INDEX(ET.region!$A$51:$M$61,MATCH(ET.county!$B97,ET.region!$A$51:$A$61,0),MATCH(ET.county!D$1,ET.region!$A$51:$M$51,0)) -> 2.017322835 | E97: =INDEX(ET.region!$A$51:$M$61,MATCH(ET.county!$B97,ET.region!$A$51:$A$61,0),MATCH(ET.county!E$1,ET.region!$A$51:$M$51,0)) -> 3.466141732 | F97: =INDEX(ET.region!$A$51:$M$61,MATCH(ET.county!$B97,ET.region!$A$51:$A$61,0),MATCH(ET.county!F$1,ET.region!$A$51:$M$51,0)) -> 4.877952756 | G97: =INDEX(ET.region!$A$51:$M$61,MATCH(ET.county!$B97,ET.region!$A$51:$A$61,0),MATCH(ET.county!G$1,ET.region!$A$51:$M$51,0)) -> 6.297637795 | H97: =INDEX(ET.region!$A$51:$M$61,MATCH(ET.county!$B97,ET.region!$A$51:$A$61,0),MATCH(ET.county!H$1,ET.region!$A$51:$M$51,0)) -> 6.696850394 | I97: =INDEX(ET.region!$A$51:$M$61,MATCH(ET.county!$B97,ET.region!$A$51:$A$61,0),MATCH(ET.county!I$1,ET.region!$A$51:$M$51,0)) -> 6.834645669 | J97: =INDEX(ET.region!$A$51:$M$61,MATCH(ET.county!$B97,ET.region!$A$51:$A$61,0),MATCH(ET.county!J$1,ET.region!$A$51:$M$51,0)) -> 6.114566929 | K97: =INDEX(ET.region!$A$51:$M$61,MATCH(ET.county!$B97,ET.region!$A$51:$A$61,0),MATCH(ET.county!K$1,ET.region!$A$51:$M$51,0)) -> 4.712598425 | L97: =INDEX(ET.region!$A$51:$M$61,MATCH(ET.county!$B97,ET.region!$A$51:$A$61,0),MATCH(ET.county!L$1,ET.region!$A$51:$M$51,0)) -> 3.466141732 | M97: =INDEX(ET.region!$A$51:$M$61,MATCH(ET.county!$B97,ET.region!$A$51:$A$61,0),MATCH(ET.county!M$1,ET.region!$A$51:$M$51,0)) -> 2.196850394 | N97: =INDEX(ET.region!$A$51:$M$61,MATCH(ET.county!$B97,ET.region!$A$51:$A$61,0),MATCH(ET.county!N$1,ET.region!$A$51:$M$51,0)) -> 1.55
A98: Wilkes | B98: Lenoir | C98: =INDEX(ET.region!$A$51:$M$61,MATCH(ET.county!$B98,ET.region!$A$51:$A$61,0),MATCH(ET.county!C$1,ET.region!$A$51:$M$51,0)) -> 1.452362205 | D98: =INDEX(ET.region!$A$51:$M$61,MATCH(ET.county!$B98,ET.region!$A$51:$A$61,0),MATCH(ET.county!D$1,ET.region!$A$51:$M$51,0)) -> 1.88503937 | E98: =INDEX(ET.region!$A$51:$M$61,MATCH(ET.county!$B98,ET.region!$A$51:$A$61,0),MATCH(ET.county!E$1,ET.region!$A$51:$M$51,0)) -> 3.161023622 | F98: =INDEX(ET.region!$A$51:$M$61,MATCH(ET.county!$B98,ET.region!$A$51:$A$61,0),MATCH(ET.county!F$1,ET.region!$A$51:$M$51,0)) -> 4.346456693 | G98: =INDEX(ET.region!$A$51:$M$61,MATCH(ET.county!$B98,ET.region!$A$51:$A$61,0),MATCH(ET.county!G$1,ET.region!$A$51:$M$51,0)) -> 5.333464567 | H98: =INDEX(ET.region!$A$51:$M$61,MATCH(ET.county!$B98,ET.region!$A$51:$A$61,0),MATCH(ET.county!H$1,ET.region!$A$51:$M$51,0)) -> 5.57480315 | I98: =INDEX(ET.region!$A$51:$M$61,MATCH(ET.county!$B98,ET.region!$A$51:$A$61,0),MATCH(ET.county!I$1,ET.region!$A$51:$M$51,0)) -> 5.67519685 | J98: =INDEX(ET.region!$A$51:$M$61,MATCH(ET.county!$B98,ET.region!$A$51:$A$61,0),MATCH(ET.county!J$1,ET.region!$A$51:$M$51,0)) -> 5.089370079 | K98: =INDEX(ET.region!$A$51:$M$61,MATCH(ET.county!$B98,ET.region!$A$51:$A$61,0),MATCH(ET.county!K$1,ET.region!$A$51:$M$51,0)) -> 4.015748031 | L98: =INDEX(ET.region!$A$51:$M$61,MATCH(ET.county!$B98,ET.region!$A$51:$A$61,0),MATCH(ET.county!L$1,ET.region!$A$51:$M$51,0)) -> 3.063385827 | M98: =INDEX(ET.region!$A$51:$M$61,MATCH(ET.county!$B98,ET.region!$A$51:$A$61,0),MATCH(ET.county!M$1,ET.region!$A$51:$M$51,0)) -> 1.960629921 | N98: =INDEX(ET.region!$A$51:$M$61,MATCH(ET.county!$B98,ET.region!$A$51:$A$61,0),MATCH(ET.county!N$1,ET.region!$A$51:$M$51,0)) -> 1.391338583
A99: Wilson | B99: Goldsboro | C99: =INDEX(ET.region!$A$51:$M$61,MATCH(ET.county!$B99,ET.region!$A$51:$A$61,0),MATCH(ET.county!C$1,ET.region!$A$51:$M$51,0)) -> 1.574409449 | D99: =INDEX(ET.region!$A$51:$M$61,MATCH(ET.county!$B99,ET.region!$A$51:$A$61,0),MATCH(ET.county!D$1,ET.region!$A$51:$M$51,0)) -> 2.017322835 | E99: =INDEX(ET.region!$A$51:$M$61,MATCH(ET.county!$B99,ET.region!$A$51:$A$61,0),MATCH(ET.county!E$1,ET.region!$A$51:$M$51,0)) -> 3.466141732 | F99: =INDEX(ET.region!$A$51:$M$61,MATCH(ET.county!$B99,ET.region!$A$51:$A$61,0),MATCH(ET.county!F$1,ET.region!$A$51:$M$51,0)) -> 4.877952756 | G99: =INDEX(ET.region!$A$51:$M$61,MATCH(ET.county!$B99,ET.region!$A$51:$A$61,0),MATCH(ET.county!G$1,ET.region!$A$51:$M$51,0)) -> 6.297637795 | H99: =INDEX(ET.region!$A$51:$M$61,MATCH(ET.county!$B99,ET.region!$A$51:$A$61,0),MATCH(ET.county!H$1,ET.region!$A$51:$M$51,0)) -> 6.696850394 | I99: =INDEX(ET.region!$A$51:$M$61,MATCH(ET.county!$B99,ET.region!$A$51:$A$61,0),MATCH(ET.county!I$1,ET.region!$A$51:$M$51,0)) -> 6.834645669 | J99: =INDEX(ET.region!$A$51:$M$61,MATCH(ET.county!$B99,ET.region!$A$51:$A$61,0),MATCH(ET.county!J$1,ET.region!$A$51:$M$51,0)) -> 6.114566929 | K99: =INDEX(ET.region!$A$51:$M$61,MATCH(ET.county!$B99,ET.region!$A$51:$A$61,0),MATCH(ET.county!K$1,ET.region!$A$51:$M$51,0)) -> 4.712598425 | L99: =INDEX(ET.region!$A$51:$M$61,MATCH(ET.county!$B99,ET.region!$A$51:$A$61,0),MATCH(ET.county!L$1,ET.region!$A$51:$M$51,0)) -> 3.466141732 | M99: =INDEX(ET.region!$A$51:$M$61,MATCH(ET.county!$B99,ET.region!$A$51:$A$61,0),MATCH(ET.county!M$1,ET.region!$A$51:$M$51,0)) -> 2.196850394 | N99: =INDEX(ET.region!$A$51:$M$61,MATCH(ET.county!$B99,ET.region!$A$51:$A$61,0),MATCH(ET.county!N$1,ET.region!$A$51:$M$51,0)) -> 1.55
A100: Yadkin | B100: Reidsville | C100: =INDEX(ET.region!$A$51:$M$61,MATCH(ET.county!$B100,ET.region!$A$51:$A$61,0),MATCH(ET.county!C$1,ET.region!$A$51:$M$51,0)) -> 1.342519685 | D100: =INDEX(ET.region!$A$51:$M$61,MATCH(ET.county!$B100,ET.region!$A$51:$A$61,0),MATCH(ET.county!D$1,ET.region!$A$51:$M$51,0)) -> 1.763779528 | E100: =INDEX(ET.region!$A$51:$M$61,MATCH(ET.county!$B100,ET.region!$A$51:$A$61,0),MATCH(ET.county!E$1,ET.region!$A$51:$M$51,0)) -> 3.087795276 | F100: =INDEX(ET.region!$A$51:$M$61,MATCH(ET.county!$B100,ET.region!$A$51:$A$61,0),MATCH(ET.county!F$1,ET.region!$A$51:$M$51,0)) -> 4.476377953 | G100: =INDEX(ET.region!$A$51:$M$61,MATCH(ET.county!$B100,ET.region!$A$51:$A$61,0),MATCH(ET.county!G$1,ET.region!$A$51:$M$51,0)) -> 5.821653543 | H100: =INDEX(ET.region!$A$51:$M$61,MATCH(ET.county!$B100,ET.region!$A$51:$A$61,0),MATCH(ET.county!H$1,ET.region!$A$51:$M$51,0)) -> 6.484251969 | I100: =INDEX(ET.region!$A$51:$M$61,MATCH(ET.county!$B100,ET.region!$A$51:$A$61,0),MATCH(ET.county!I$1,ET.region!$A$51:$M$51,0)) -> 6.834645669 | J100: =INDEX(ET.region!$A$51:$M$61,MATCH(ET.county!$B100,ET.region!$A$51:$A$61,0),MATCH(ET.county!J$1,ET.region!$A$51:$M$51,0)) -> 6.126771654 | K100: =INDEX(ET.region!$A$51:$M$61,MATCH(ET.county!$B100,ET.region!$A$51:$A$61,0),MATCH(ET.county!K$1,ET.region!$A$51:$M$51,0)) -> 4.582677165 | L100: =INDEX(ET.region!$A$51:$M$61,MATCH(ET.county!$B100,ET.region!$A$51:$A$61,0),MATCH(ET.county!L$1,ET.region!$A$51:$M$51,0)) -> 3.246456693 | M100: =INDEX(ET.region!$A$51:$M$61,MATCH(ET.county!$B100,ET.region!$A$51:$A$61,0),MATCH(ET.county!M$1,ET.region!$A$51:$M$51,0)) -> 1.948818898 | N100: =INDEX(ET.region!$A$51:$M$61,MATCH(ET.county!$B100,ET.region!$A$51:$A$61,0),MATCH(ET.county!N$1,ET.region!$A$51:$M$51,0)) -> 1.318110236
A101: Yancey | B101: Fletcher | C101: =INDEX(ET.region!$A$51:$M$61,MATCH(ET.county!$B101,ET.region!$A$51:$A$61,0),MATCH(ET.county!C$1,ET.region!$A$51:$M$51,0)) -> 1.391338583 | D101: =INDEX(ET.region!$A$51:$M$61,MATCH(ET.county!$B101,ET.region!$A$51:$A$61,0),MATCH(ET.county!D$1,ET.region!$A$51:$M$51,0)) -> 1.77480315 | E101: =INDEX(ET.region!$A$51:$M$61,MATCH(ET.county!$B101,ET.region!$A$51:$A$61,0),MATCH(ET.county!E$1,ET.region!$A$51:$M$51,0)) -> 3.063385827 | F101: =INDEX(ET.region!$A$51:$M$61,MATCH(ET.county!$B101,ET.region!$A$51:$A$61,0),MATCH(ET.county!F$1,ET.region!$A$51:$M$51,0)) -> 4.417322835 | G101: =INDEX(ET.region!$A$51:$M$61,MATCH(ET.county!$B101,ET.region!$A$51:$A$61,0),MATCH(ET.county!G$1,ET.region!$A$51:$M$51,0)) -> 5.736220472 | H101: =INDEX(ET.region!$A$51:$M$61,MATCH(ET.county!$B101,ET.region!$A$51:$A$61,0),MATCH(ET.county!H$1,ET.region!$A$51:$M$51,0)) -> 6.307086614 | I101: =INDEX(ET.region!$A$51:$M$61,MATCH(ET.county!$B101,ET.region!$A$51:$A$61,0),MATCH(ET.county!I$1,ET.region!$A$51:$M$51,0)) -> 6.541732283 | J101: =INDEX(ET.region!$A$51:$M$61,MATCH(ET.county!$B101,ET.region!$A$51:$A$61,0),MATCH(ET.county!J$1,ET.region!$A$51:$M$51,0)) -> 5.931496063 | K101: =INDEX(ET.region!$A$51:$M$61,MATCH(ET.county!$B101,ET.region!$A$51:$A$61,0),MATCH(ET.county!K$1,ET.region!$A$51:$M$51,0)) -> 4.511811024 | L101: =INDEX(ET.region!$A$51:$M$61,MATCH(ET.county!$B101,ET.region!$A$51:$A$61,0),MATCH(ET.county!L$1,ET.region!$A$51:$M$51,0)) -> 3.270866142 | M101: =INDEX(ET.region!$A$51:$M$61,MATCH(ET.county!$B101,ET.region!$A$51:$A$61,0),MATCH(ET.county!M$1,ET.region!$A$51:$M$51,0)) -> 1.972440945 | N101: =INDEX(ET.region!$A$51:$M$61,MATCH(ET.county!$B101,ET.region!$A$51:$A$61,0),MATCH(ET.county!N$1,ET.region!$A$51:$M$51,0)) -> 1.354724409

Sheet ET.region
A1: Region | B1: 1 | C1: 2 | D1: 3 | E1: 4 | F1: 5 | G1: 6 | H1: 7 | I1: 8 | J1: 9 | K1: 10
B2: Harg.Eto | C2: Harg.Eto | D2: Harg.Eto | E2: Harg.Eto | F2: Harg.Eto | G2: Harg.Eto | H2: Harg.Eto | I2: Harg.Eto | J2: Harg.Eto | K2: Harg.Eto
B3: Aurora | C3: Lewiston | D3: Goldsboro | E3: Whiteville | F3: Raleigh | G3: Jackson.Springs | H3: Reidsville | I3: Salisbury | J3: Lenoir | K3: Fletcher | N3: Month | O3: Days/mo.
A4: 1 | B4: 0.051 | C4: 0.04921259843 | D4: 0.05078740157 | E4: 0.05472440945 | F4: 0.05039370079 | G4: 0.04842519685 | H4: 0.04330708661 | I4: 0.04803149606 | J4: 0.0468503937 | K4: 0.04488188976 | N4: 1 | O4: 31
A5: 2 | B5: 0.07 | C5: 0.07204724409 | D5: 0.07204724409 | E5: 0.07677165354 | F5: 0.07322834646 | G5: 0.07007874016 | H5: 0.06299212598 | I5: 0.06929133858 | J5: 0.06732283465 | K5: 0.06338582677 | N5: 2 | O5: 28
A6: 3 | B6: 0.105 | C6: 0.1125984252 | D6: 0.1118110236 | E6: 0.1169291339 | F6: 0.112992126 | G6: 0.1098425197 | H6: 0.09960629921 | I6: 0.1062992126 | J6: 0.1019685039 | K6: 0.09881889764 | N6: 3 | O6: 31
A7: 4 | B7: 0.153 | C7: 0.168503937 | D7: 0.1625984252 | E7: 0.1657480315 | F7: 0.1645669291 | G7: 0.1622047244 | H7: 0.1492125984 | I7: 0.1566929134 | J7: 0.1448818898 | K7: 0.1472440945 | N7: 4 | O7: 30
A8: 5 | B8: 0.187 | C8: 0.207480315 | D8: 0.2031496063 | E8: 0.2031496063 | F8: 0.2003937008 | G8: 0.1992125984 | H8: 0.1877952756 | I8: 0.1940944882 | J8: 0.1720472441 | K8: 0.1850393701 | N8: 5 | O8: 31
A9: 6 | B9: 0.208 | C9: 0.2358267717 | D9: 0.2232283465 | E9: 0.2204724409 | F9: 0.2232283465 | G9: 0.2248031496 | H9: 0.2161417323 | I9: 0.2216535433 | J9: 0.1858267717 | K9: 0.2102362205 | N9: 6 | O9: 30
A10: 7 | B10: 0.209 | C10: 0.2374015748 | D10: 0.2204724409 | E10: 0.2212598425 | F10: 0.224015748 | G10: 0.225984252 | H10: 0.2204724409 | I10: 0.2236220472 | J10: 0.1830708661 | K10: 0.211023622 | N10: 7 | O10: 31
A11: 8 | B11: 0.185 | C11: 0.2118110236 | D11: 0.1972440945 | E11: 0.1992125984 | F11: 0.2003937008 | G11: 0.2007874016 | H11: 0.1976377953 | I11: 0.1992125984 | J11: 0.1641732283 | K11: 0.1913385827 | N11: 8 | O11: 31
A12: 9 | B12: 0.146 | C12: 0.1649606299 | D12: 0.1570866142 | E12: 0.1622047244 | F12: 0.1586614173 | G12: 0.1590551181 | H12: 0.1527559055 | I12: 0.1570866142 | J12: 0.1338582677 | K12: 0.1503937008 | N12: 9 | O12: 30
A13: 10 | B13: 0.105 | C13: 0.1153543307 | D13: 0.1118110236 | E13: 0.1173228346 | F13: 0.111023622 | G13: 0.1098425197 | H13: 0.1047244094 | I13: 0.1102362205 | J13: 0.09881889764 | K13: 0.105511811 | N13: 10 | O13: 31
A14: 11 | B14: 0.069 | C14: 0.07322834646 | D14: 0.07322834646 | E14: 0.07874015748 | F14: 0.07165354331 | G14: 0.06968503937 | H14: 0.06496062992 | I14: 0.07047244094 | J14: 0.06535433071 | K14: 0.0657480315 | N14: 11 | O14: 30
A15: 12 | B15: 0.05 | C15: 0.04921259843 | D15: 0.05 | E15: 0.05433070866 | F15: 0.04881889764 | G15: 0.04803149606 | H15: 0.04251968504 | I15: 0.0468503937 | J15: 0.04488188976 | K15: 0.0437007874 | N15: 12 | O15: 31
A16: Monthly Total, in.
A17: Region | B17: 1 | C17: 2 | D17: 3 | E17: 4 | F17: 5 | G17: 6 | H17: 7 | I17: 8 | J17: 9 | K17: 10
B18: Harg.Eto | C18: Harg.Eto | D18: Harg.Eto | E18: Harg.Eto | F18: Harg.Eto | G18: Harg.Eto | H18: Harg.Eto | I18: Harg.Eto | J18: Harg.Eto | K18: Harg.Eto
B19: Aurora | C19: Lewiston | D19: Goldsboro | E19: Whiteville | F19: Raleigh | G19: Jackson.Springs | H19: Reidsville | I19: Salisbury | J19: Lenoir | K19: Fletcher
A20: 1 | B20: =+B4*VLOOKUP($A20,$N$4:$O$15,2) -> 1.581 | C20: =+C4*VLOOKUP($A20,$N$4:$O$15,2) -> 1.525590551 | D20: 1.574409449 | E20: 1.696456693 | F20: 1.562204724 | G20: 1.501181102 | H20: 1.342519685 | I20: 1.488976378 | J20: 1.452362205 | K20: 1.391338583
A21: 2 | B21: =+B5*VLOOKUP($A21,$N$4:$O$15,2) -> 1.96 | C21: 2.017322835 | D21: 2.017322835 | E21: 2.149606299 | F21: 2.050393701 | G21: 1.962204724 | H21: 1.763779528 | I21: 1.94015748 | J21: 1.88503937 | K21: 1.77480315
A22: 3 | B22: 3.255 | C22: 3.490551181 | D22: 3.466141732 | E22: 3.62480315 | F22: 3.502755906 | G22: 3.40511811 | H22: 3.087795276 | I22: 3.295275591 | J22: 3.161023622 | K22: 3.063385827
A23: 4 | B23: 4.59 | C23: 5.05511811 | D23: 4.877952756 | E23: 4.972440945 | F23: 4.937007874 | G23: 4.866141732 | H23: 4.476377953 | I23: 4.700787402 | J23: 4.346456693 | K23: 4.417322835
A24: 5 | B24: 5.797 | C24: 6.431889764 | D24: 6.297637795 | E24: 6.297637795 | F24: 6.212204724 | G24: 6.175590551 | H24: 5.821653543 | I24: 6.016929134 | J24: 5.333464567 | K24: 5.736220472
A25: 6 | B25: 6.24 | C25: 7.07480315 | D25: 6.696850394 | E25: 6.614173228 | F25: 6.696850394 | G25: 6.744094488 | H25: 6.484251969 | I25: 6.649606299 | J25: 5.57480315 | K25: 6.307086614
A26: 7 | B26: 6.479 | C26: 7.359448819 | D26: 6.834645669 | E26: 6.859055118 | F26: 6.944488189 | G26: 7.005511811 | H26: 6.834645669 | I26: 6.932283465 | J26: 5.67519685 | K26: 6.541732283
A27: 8 | B27: 5.735 | C27: 6.566141732 | D27: 6.114566929 | E27: 6.175590551 | F27: 6.212204724 | G27: 6.224409449 | H27: 6.126771654 | I27: 6.175590551 | J27: 5.089370079 | K27: 5.931496063
A28: 9 | B28: 4.38 | C28: 4.948818898 | D28: 4.712598425 | E28: 4.866141732 | F28: 4.75984252 | G28: 4.771653543 | H28: 4.582677165 | I28: 4.712598425 | J28: 4.015748031 | K28: 4.511811024
A29: 10 | B29: 3.255 | C29: 3.575984252 | D29: 3.466141732 | E29: 3.637007874 | F29: 3.441732283 | G29: 3.40511811 | H29: 3.246456693 | I29: 3.417322835 | J29: 3.063385827 | K29: 3.270866142
A30: 11 | B30: 2.07 | C30: 2.196850394 | D30: 2.196850394 | E30: 2.362204724 | F30: 2.149606299 | G30: 2.090551181 | H30: 1.948818898 | I30: 2.114173228 | J30: 1.960629921 | K30: 1.972440945
A31: 12 | B31: 1.55 | C31: 1.525590551 | D31: 1.55 | E31: 1.684251969 | F31: 1.513385827 | G31: 1.488976378 | H31: 1.318110236 | I31: 1.452362205 | J31: 1.391338583 | K31: 1.354724409
A32: Values
A33: Region | B33: 1 | C33: 2 | D33: 3 | E33: 4 | F33: 5 | G33: 6 | H33: 7 | I33: 8 | J33: 9 | K33: 10
B34: Harg.Eto | C34: Harg.Eto | D34: Harg.Eto | E34: Harg.Eto | F34: Harg.Eto | G34: Harg.Eto | H34: Harg.Eto | I34: Harg.Eto | J34: Harg.Eto | K34: Harg.Eto
B35: Aurora | C35: Lewiston | D35: Goldsboro | E35: Whiteville | F35: Raleigh | G35: Jackson.Springs | H35: Reidsville | I35: Salisbury | J35: Lenoir | K35: Fletcher
A36: 1 | B36: 1.581 | C36: 1.525590551 | D36: 1.574409449 | E36: 1.696456693 | F36: 1.562204724 | G36: 1.501181102 | H36: 1.342519685 | I36: 1.488976378 | J36: 1.452362205 | K36: 1.391338583
A37: 2 | B37: 1.96 | C37: 2.017322835 | D37: 2.017322835 | E37: 2.149606299 | F37: 2.050393701 | G37: 1.962204724 | H37: 1.763779528 | I37: 1.94015748 | J37: 1.88503937 | K37: 1.77480315
A38: 3 | B38: 3.255 | C38: 3.490551181 | D38: 3.466141732 | E38: 3.62480315 | F38: 3.502755906 | G38: 3.40511811 | H38: 3.087795276 | I38: 3.295275591 | J38: 3.161023622 | K38: 3.063385827
A39: 4 | B39: 4.59 | C39: 5.05511811 | D39: 4.877952756 | E39: 4.972440945 | F39: 4.937007874 | G39: 4.866141732 | H39: 4.476377953 | I39: 4.700787402 | J39: 4.346456693 | K39: 4.417322835
A40: 5 | B40: 5.797 | C40: 6.431889764 | D40: 6.297637795 | E40: 6.297637795 | F40: 6.212204724 | G40: 6.175590551 | H40: 5.821653543 | I40: 6.016929134 | J40: 5.333464567 | K40: 5.736220472
A41: 6 | B41: 6.24 | C41: 7.07480315 | D41: 6.696850394 | E41: 6.614173228 | F41: 6.696850394 | G41: 6.744094488 | H41: 6.484251969 | I41: 6.649606299 | J41: 5.57480315 | K41: 6.307086614
A42: 7 | B42: 6.479 | C42: 7.359448819 | D42: 6.834645669 | E42: 6.859055118 | F42: 6.944488189 | G42: 7.005511811 | H42: 6.834645669 | I42: 6.932283465 | J42: 5.67519685 | K42: 6.541732283
A43: 8 | B43: 5.735 | C43: 6.566141732 | D43: 6.114566929 | E43: 6.175590551 | F43: 6.212204724 | G43: 6.224409449 | H43: 6.126771654 | I43: 6.175590551 | J43: 5.089370079 | K43: 5.931496063
A44: 9 | B44: 4.38 | C44: 4.948818898 | D44: 4.712598425 | E44: 4.866141732 | F44: 4.75984252 | G44: 4.771653543 | H44: 4.582677165 | I44: 4.712598425 | J44: 4.015748031 | K44: 4.511811024
A45: 10 | B45: 3.255 | C45: 3.575984252 | D45: 3.466141732 | E45: 3.637007874 | F45: 3.441732283 | G45: 3.40511811 | H45: 3.246456693 | I45: 3.417322835 | J45: 3.063385827 | K45: 3.270866142
A46: 11 | B46: 2.07 | C46: 2.196850394 | D46: 2.196850394 | E46: 2.362204724 | F46: 2.149606299 | G46: 2.090551181 | H46: 1.948818898 | I46: 2.114173228 | J46: 1.960629921 | K46: 1.972440945
A47: 12 | B47: 1.55 | C47: 1.525590551 | D47: 1.55 | E47: 1.684251969 | F47: 1.513385827 | G47: 1.488976378 | H47: 1.318110236 | I47: 1.452362205 | J47: 1.391338583 | K47: 1.354724409
A49: Transposed
A50: Region
B51: 1 | C51: 2 | D51: 3 | E51: 4 | F51: 5 | G51: 6 | H51: 7 | I51: 8 | J51: 9 | K51: 10 | L51: 11 | M51: 12
A52: Aurora | B52: 1.581 | C52: 1.96 | D52: 3.255 | E52: 4.59 | F52: 5.797 | G52: 6.24 | H52: 6.479 | I52: 5.735 | J52: 4.38 | K52: 3.255 | L52: 2.07 | M52: 1.55
A53: Lewiston | B53: 1.525590551 | C53: 2.017322835 | D53: 3.490551181 | E53: 5.05511811 | F53: 6.431889764 | G53: 7.07480315 | H53: 7.359448819 | I53: 6.566141732 | J53: 4.948818898 | K53: 3.575984252 | L53: 2.196850394 | M53: 1.525590551
A54: Goldsboro | B54: 1.574409449 | C54: 2.017322835 | D54: 3.466141732 | E54: 4.877952756 | F54: 6.297637795 | G54: 6.696850394 | H54: 6.834645669 | I54: 6.114566929 | J54: 4.712598425 | K54: 3.466141732 | L54: 2.196850394 | M54: 1.55
A55: Whiteville | B55: 1.696456693 | C55: 2.149606299 | D55: 3.62480315 | E55: 4.972440945 | F55: 6.297637795 | G55: 6.614173228 | H55: 6.859055118 | I55: 6.175590551 | J55: 4.866141732 | K55: 3.637007874 | L55: 2.362204724 | M55: 1.684251969
A56: Raleigh | B56: 1.562204724 | C56: 2.050393701 | D56: 3.502755906 | E56: 4.937007874 | F56: 6.212204724 | G56: 6.696850394 | H56: 6.944488189 | I56: 6.212204724 | J56: 4.75984252 | K56: 3.441732283 | L56: 2.149606299 | M56: 1.513385827
A57: Jackson.Springs | B57: 1.501181102 | C57: 1.962204724 | D57: 3.40511811 | E57: 4.866141732 | F57: 6.175590551 | G57: 6.744094488 | H57: 7.005511811 | I57: 6.224409449 | J57: 4.771653543 | K57: 3.40511811 | L57: 2.090551181 | M57: 1.488976378
A58: Reidsville | B58: 1.342519685 | C58: 1.763779528 | D58: 3.087795276 | E58: 4.476377953 | F58: 5.821653543 | G58: 6.484251969 | H58: 6.834645669 | I58: 6.126771654 | J58: 4.582677165 | K58: 3.246456693 | L58: 1.948818898 | M58: 1.318110236
A59: Salisbury | B59: 1.488976378 | C59: 1.94015748 | D59: 3.295275591 | E59: 4.700787402 | F59: 6.016929134 | G59: 6.649606299 | H59: 6.932283465 | I59: 6.175590551 | J59: 4.712598425 | K59: 3.417322835 | L59: 2.114173228 | M59: 1.452362205
A60: Lenoir | B60: 1.452362205 | C60: 1.88503937 | D60: 3.161023622 | E60: 4.346456693 | F60: 5.333464567 | G60: 5.57480315 | H60: 5.67519685 | I60: 5.089370079 | J60: 4.015748031 | K60: 3.063385827 | L60: 1.960629921 | M60: 1.391338583
A61: Fletcher | B61: 1.391338583 | C61: 1.77480315 | D61: 3.063385827 | E61: 4.417322835 | F61: 5.736220472 | G61: 6.307086614 | H61: 6.541732283 | I61: 5.931496063 | J61: 4.511811024 | K61: 3.270866142 | L61: 1.972440945 | M61: 1.354724409

Sheet input.form.data
B1: Use Type | D1: Crops | F1: Planting Dates | I1: Predominant Soil | J1: HSG | O1: A | P1: B | Q1: C | R1: D | T1: Cover Type - Area 1 | AA1: Animal Type | AD1: Animal Type
B2: Irrigation Only | D2: Bermudagrass | F2: 2012-02-15 | I2: Acredale | J2: C | N2: Pasture - grazed - good | O2: 39 | P2: 61 | Q2: 74 | R2: 80 | T2: Pasture - grazed - good | AA2: Beef Cattle | AB2: 20 | AD2: Beef Cattle | AE2: 15
B3: Irrigation and Livestock | D3: Corn (field) | F3: 2012-03-01 | I3: Acredale Poorly Drained | J3: D | N3: Pasture - grazed - fair | O3: 49 | P3: 69 | Q3: 79 | R3: 84 | T3: Pasture - grazed - fair | AA3: Beef Cow/calf pair | AB3: 28 | AD3: Beef Cow | AE3: 20
B4: Livestock Only | D4: Corn (sweet) | F4: 2012-03-15 | I4: Ailey | J4: B | N4: Pasture - grazed - poor | O4: 68 | P4: 79 | Q4: 86 | R4: 89 | T4: Pasture - grazed - poor | AA4: Calves | AB4: 7 | AD4: Beef Cow/calf pair | AE4: 30 | AG4: =62.4/7.48 -> 8.342245989
D5: Cotton | F5: 2012-04-01 | I5: Alaga | J5: A | N5: Meadow - not grazed | O5: 30 | P5: 58 | Q5: 71 | R5: 78 | T5: Meadow - not grazed | AA5: Dry Cow | AB5: 20 | AD5: Dry Cow | AE5: 15 | AG5: =182/AG4 -> 21.81666667
D6: Hops | F6: 2012-04-15 | I6: Alamance | J6: B | N6: Woods/grass - good | O6: 32 | P6: 58 | Q6: 72 | R6: 79 | T6: Woods/grass - good | AA6: Goats | AB6: 7 | AD6: Goats | AE6: 2
D7: Orchard no cover | F7: 2012-05-01 | I7: Alarka | J7: D | N7: Woods/grass - fair | O7: 43 | P7: 65 | Q7: 76 | R7: 82 | T7: Woods/grass - fair | AA7: Horses | AB7: 25 | AD7: Horses | AE7: 8
D8: Orchard with cover | F8: 2012-05-15 | I8: Alpin | J8: A | N8: Woods/grass - poor | O8: 57 | P8: 73 | Q8: 82 | R8: 86 | T8: Woods/grass - poor | AA8: Milking Cow | AB8: 23 | AD8: Milking Cow | AE8: 35
D9: Pasture Grasses | F9: 2012-06-01 | I9: Altavista | J9: C | N9: Woods - good | O9: 30 | P9: 55 | Q9: 70 | R9: 77 | T9: Woods - good | AA9: Milking Cow/calf pair | AB9: 35 | AD9: Milking Cow/calf pair | AE9: 45
D10: Peanut | F10: 2012-06-15 | I10: Anakeesta | J10: B | N10: Woods - fair | O10: 36 | P10: 60 | Q10: 73 | R10: 79 | T10: Woods - fair | AA10: Sheep | AB10: 7 | AD10: Sheep and lambs | AE10: 2
D11: Small Grain (Spring) | F11: 2012-07-01 | I11: Appling | J11: B | N11: Woods - poor | O11: 45 | P11: 66 | Q11: 77 | R11: 83 | T11: Woods - poor | AD11: Null | AE11: 0
D12: Small Grain (Winter) | F12: 2012-07-15 | I12: Arapahoe | J12: B | N12: Fallow - Bare soil | O12: 77 | P12: 86 | Q12: 91 | R12: 94 | T12: Fallow - Bare soil | AA12: USGS water needs calculator | AD12: Adapted from MWPS
D13: Sorghum | F13: 2012-08-01 | I13: Arapahoe Poorly Drained | J13: D | N13: Fallow - CR - good | O13: 74 | P13: 82 | Q13: 86 | R13: 90 | T13: Fallow - CR - good
D14: Soybean | F14: 2012-08-15 | I14: Argent | J14: D | N14: Fallow - CR - poor | O14: 76 | P14: 85 | Q14: 90 | R14: 93 | T14: Fallow - CR - poor
D15: Strawberries | F15: 2012-09-01 | I15: Arkaqua | J15: C | N15: Row Crops - SR - good | O15: 67 | P15: 78 | Q15: 85 | R15: 89 | T15: Row Crops - SR - good
D16: Sweet Potato | F16: 2012-09-15 | I16: Armenia | J16: D | N16: Row Crops - SR - poor | O16: 72 | P16: 81 | Q16: 8 | R16: 91 | T16: Row Crops - SR - poor
D17: Tobacco | F17: 2012-10-01 | I17: Ashe | J17: B | N17: Row Crops - SR + CR -good | O17: 64 | P17: 75 | Q17: 82 | R17: 85 | T17: Row Crops - SR + CR -good
D18: Tomatoes | F18: 2012-10-15 | I18: Ashlar | J18: B | N18: Row Crops - SR + CR -poor | O18: 71 | P18: 80 | Q18: 87 | R18: 90 | T18: Row Crops - SR + CR -poor
D19: Vegetables (small) | F19: 2012-11-01 | I19: Augusta | J19: C | N19: Row Crops - C + CR - good | O19: 64 | P19: 74 | Q19: 81 | R19: 85 | T19: Row Crops - C + CR - good
D20: Watermelon | I20: Autryville | J20: A | N20: Row Crops - C + CR - poor | O20: 69 | P20: 75 | Q20: 82 | R20: 86 | T20: Row Crops - C + CR - poor
I21: Aycock | J21: B | N21: Small Grain - SR - good | O21: 63 | P21: 75 | Q21: 83 | R21: 87 | T21: Small Grain - SR - good
B22: Irrigation System Type | D22: efficiency | I22: Ayersville | J22: B | N22: Small Grain - SR - poor | O22: 65 | P22: 76 | Q22: 84 | R22: 88 | T22: Small Grain - SR - poor
B23: Drip | D23: 90 | I23: Backbay | J23: D | N23: Small Grain - SR + CR -good | O23: 60 | P23: 72 | Q23: 80 | R23: 84 | T23: Small Grain - SR + CR -good
B24: Center Pivot | D24: 80 | I24: Badin | J24: B | N24: Small Grain - SR + CR -poor | O24: 64 | P24: 75 | Q24: 83 | R24: 86 | T24: Small Grain - SR + CR -poor
B25: Solid Set | D25: 70 | I25: Ballahack | J25: B
B26: Traveling Gun | D26: 75 | I26: Ballahack Poorly Drained | J26: D | N26: Cover Type - Area 2
B27: Custom | I27: Balsam | J27: A | N27: Pasture - grazed - good
I28: Bandana | J28: B | N28: Pasture - grazed - fair
I29: Banister | J29: C | N29: Pasture - grazed - poor
B30: inflow first | I30: Bannertown | J30: B | N30: Meadow - not grazed
B31: irrigation first | I31: Barclay | J31: C | N31: Woods/grass - good
I32: Bayboro | J32: D | N32: Woods/grass - fair
I33: Baymeade | J33: A | N33: Woods/grass - poor
I34: Beaches | J34: D | N34: Woods - good
I35: Belhaven | J35: D | N35: Woods - fair
I36: Bertie | J36: C | N36: Woods - poor
I37: Bethera | J37: D | N37: Fallow - Bare soil
I38: Bethlehem | J38: B | N38: Fallow - CR - good
I39: Bibb | J39: D | N39: Fallow - CR - poor
I40: Biltmore | J40: A | N40: Row Crops - SR - good
I41: Bladen | J41: D | N41: Row Crops - SR - poor
I42: Blaney | J42: B | N42: Row Crops - SR + CR -good
I43: Blanton | J43: A | N43: Row Crops - SR + CR -poor
I44: Bohicket | J44: D | N44: Row Crops - C + CR - good
I45: Bojac | J45: A | N45: Row Crops - C + CR - poor
I46: Bolling | J46: C | N46: Small Grain - SR - good
I47: Bonneau | J47: A | N47: Small Grain - SR - poor
I48: Braddock | J48: B | N48: Small Grain - SR + CR -good
I49: Bradson | J49: B | N49: Small Grain - SR + CR -poor
I50: Bragg | J50: C
I51: Brasstown | J51: B | N51: Cover Type - Area 3
I52: Breakneck | J52: B | N52: Pasture - grazed - good
I53: Brevard | J53: B | N53: Pasture - grazed - fair
I54: Brickhaven | J54: C | N54: Pasture - grazed - poor
I55: Brookman | J55: D | N55: Meadow - not grazed
I56: Brownwood | J56: B | N56: Woods/grass - good
I57: Buladean | J57: B | N57: Woods/grass - fair
I58: Buncombe | J58: A | N58: Woods/grass - poor
I59: Burton | J59: B | N59: Woods - good
I60: Butters | J60: B | N60: Woods - fair
I61: Byars | J61: D | N61: Woods - poor
I62: Cainhoy | J62: A | N62: Fallow - Bare soil
I63: Callison | J63: C | N63: Fallow - CR - good
I64: Calvin | J64: C | N64: Fallow - CR - poor
I65: Candor | J65: A | N65: Row Crops - SR - good
I66: Cape Fear | J66: C | N66: Row Crops - SR - poor
I67: Cape Fear Poorly Drained | J67: D | N67: Row Crops - SR + CR -good
I68: Cape Lookout | J68: C | N68: Row Crops - SR + CR -poor
I69: Cape Lookout Poorly Drained | J69: D | N69: Row Crops - C + CR - good
I70: Carbonton | J70: C | N70: Row Crops - C + CR - poor
I71: Caroline | J71: C | N71: Small Grain - SR - good
I72: Carteret | J72: D | N72: Small Grain - SR - poor
I73: Cashiers | J73: B | N73: Small Grain - SR + CR -good
I74: Cataloochee | J74: B | N74: Small Grain - SR + CR -poor
I75: Cataska | J75: D
I76: Cecil | J76: B
I77: Centenary | J77: A
I78: Chandler | J78: A
I79: Chapanoke | J79: C
I80: Chapanoke Poorly Drained | J80: D
I81: Charleston | J81: B
I82: Chastain | J82: D
I83: Chenneby | J83: C
I84: Cheoah | J84: B
I85: Chesapeake | J85: B
I86: Chester | J86: B
I87: Chestnut | J87: B
I88: Chestoa | J88: B
I89: Chewacla | J89: C
I90: Chiltoskie | J90: B
I91: Chipley | J91: B
I92: Chowan | J92: D
I93: Chute | J93: D
I94: Cid | J94: C
I95: Claycreek | J95: C
I96: Cleveland | J96: C
I97: Cliffield | J97: B
I98: Clifford | J98: B
I99: Cliffside | J99: B
I100: Clifton | J100: B
I101: Clingman | J101: D
I102: Codorus | J102: C
I103: Colfax | J103: C
I104: Colvard | J104: A
I105: Conaby | J105: B
I106: Conaby Poorly Drained | J106: D
I107: Conetoe | J107: A
I108: Congaree | J108: C
I109: Corolla | J109: A
I110: Corolla Poorly Drained | J110: D
I111: Coronaca | J111: B
I112: Cowarts | J112: C
I113: Cowee | J113: B
I114: Coxville | J114: D
I115: Craggey | J115: D
I116: Craven | J116: C
I117: Creedmoor | J117: C
I118: Croatan | J118: C
I119: Croatan Poorly Drained | J119: D
I120: Crossnore | J120: B
I121: Cruso | J121: A
I122: Cullasaja | J122: A
I123: Cullen | J123: C
I124: Cullowhee | J124: B
I125: Cullowhee | J125: D
I126: Currituck | J126: D
I127: Dare | J127: D
I128: Davidson | J128: B
I129: Dellwood | J129: A
I130: Deloss | J130: B
I131: Deloss Poorly Drained | J131: D
I132: Delway | J132: D
I133: Devotion | J133: C
I134: Dillard | J134: C
I135: Dillsboro | J135: B
I136: Ditney | J136: C
I137: Dogue | J137: C
I138: Dorovan | J138: D
I139: Dothan | J139: B
I140: Dragston | J140: C
I141: Duckston | J141: A
I142: Duckston Poorly Drained | J142: D
I143: Dunbar | J143: C
I144: Dunbar Poorly Drained | J144: D
I145: Dune land | J145: A
I146: Duplin | J146: C
I147: Durham | J147: B
I148: Echaw | J148: A
I149: Edneytown | J149: B
I150: Edneyville | J150: A
I151: Ela | J151: B
I152: Ela | J152: D
I153: Ellijay | J153: B
I154: Elsinboro | J154: B
I155: Emporia | J155: C
I156: Engelhard | J156: B
I157: Engelhard Poorly Drained | J157: D
I158: Enon | J158: C
I159: Eutrochrepts | J159: B
I160: Evard | J160: B
I161: Exum | J161: C
I162: Exway | J162: B
I163: Faceville | J163: B
I164: Fairview | J164: B
I165: Fannin | J165: B
I166: Fletcher | J166: B
I167: Fluvaquents | J167: D
I168: Fontaflora | J168: A
I169: Foreston | J169: B
I170: Fork | J170: C
I171: Fortescue | J171: C
I172: Fortescue Poorly Drained | J172: D
I173: French | J173: C
I174: Fripp | J174: A
I175: Fuquay | J175: B
I176: Gaston | J176: B
I177: Georgeville | J177: B
I178: Gertie | J178: D
I179: Gilead | J179: C
I180: Goldsboro | J180: B
I181: Goldston | J181: C
I182: Grantham | J182: D
I183: Granville | J183: B
I184: Green Level | J184: D
I185: Greenlee | J185: A
I186: Grifton | J186: D
I187: Gritney | J187: C
I188: Grover | J188: B
I189: Gullied land | J189: D
I190: Gullrock | J190: C
I191: Gullrock Poorly Drained | J191: D
I192: Guyot | J192: B
I193: Gwinnett | J193: B
I194: Hallison | J194: C
I195: Harmiller | J195: B
I196: Hatboro | J196: B
I197: Hatboro Poorly Drained | J197: D
I198: Hayesville | J198: B
I199: Heintooga | J199: A
I200: Helena | J200: C
... 292 more rows

Sheet kcs
C1: days.init | D1: day.dev | E1: days.mid | F1: days.late | G1: total | H1: kc.ini | I1: kc.mid | J1: kc.late | L1: JD | M1: kc.1.init | N1: kc.1.dev | O1: kc.1.mid | P1: kc.1.late | Q1: kc.1 | R1: kc.2.init | S1: kc.2.dev | T1: kc.2.mid | U1: kc.2.late | V1: kc.2 | W1: kc.3.init | X1: kc.3.dev | Y1: kc.3.mid | Z1: kc.3.late | AA1: kc.3
B2: Corn (field) | C2: 20 | D2: 35 | E2: 40 | F2: 30 | G2: =SUM(C2:F2) -> 125 | H2: 0.3 | I2: 1.2 | J2: 0.6 | L2: 1 | M2: =MAX(IF(OR(kcjd<jdplant1,kcjd>jdplant1+C$22),0,kc.ini.1),M367) -> 0 | N2: =MAX(IF(OR(kcjd<jdplant1+C$22,kcjd>jdplant1+SUM(C$22,D$22)),0,+H$22+(kcjd-(jdplant1+C$22))/(jdplant1+SUM(C$22,D$22)-(jdplant1+C$22))*(I$22-H$22)),N367) -> 0 | O2: =MAX(IF(OR(kcjd<jdplant1+SUM(C$22,D$22),kcjd>jdplant1+SUM(C$22,D$22,E$22)),0,kc.mid.1),O367) -> 0 | P2: =MAX(IF(OR(kcjd<jdplant1+SUM(C$22:E$22),kcjd>jdplant1+G$22),0,+I$22-(kcjd-(jdplant1+SUM(C$22:E$22)))/((jdplant1+G$22)-(jdplant1+SUM(C$22:E$22)))*(I$22-J$22)),P367) -> 0 | Q2: =MAX(M2:P2) -> 0 | R2: =MAX(IF(OR(kcjd<jdplant2,kcjd>jdplant2+$C$23),0,kc.ini.2),R367) ->  | S2: =MAX(IF(OR(kcjd<jdplant2+$C$23,kcjd>jdplant2+SUM($C$23,$D$23)),0,+kc.ini.2+(kcjd-(jdplant2+$C$23))/(jdplant2+SUM($C$23,$D$23)-(jdplant2+$C$23))*(kc.mid.2-kc.ini.2)),S367) ->  | T2: =MAX(IF(OR(kcjd<jdplant2+SUM($C$23,$D$23),kcjd>jdplant2+SUM($C$23,$D$23,$E$23)),0,kc.mid.2),T367) ->  | U2: =MAX(IF(OR(kcjd<jdplant2+SUM($C$23:$E$23),kcjd>jdplant2+$G$23),0,+kc.mid.2-(kcjd-(jdplant2+SUM($C$23:$E$23)))/((jdplant2+$G$23)-(jdplant2+SUM($C$23:$E$23)))*(kc.mid.2-kc.late.2)),U367) ->  | V2: =MAX(R2:U2) ->  | W2: =MAX(IF(OR(kcjd<jdplant3,kcjd>jdplant3+$C$24),0,kc.ini.3),W367) ->  | X2: =MAX(IF(OR(kcjd<jdplant3+$C$24,kcjd>jdplant3+SUM($C$24,$D$24)),0,+kc.ini.3+(kcjd-(jdplant3+$C$24))/(jdplant3+SUM($C$24,$D$24)-(jdplant3+$C$24))*(kc.mid.3-kc.ini.3)),X367) ->  | Y2: =MAX(IF(OR(kcjd<jdplant3+SUM($C$24,$D$24),kcjd>jdplant3+SUM($C$24,$D$24,$E$24)),0,kc.mid.3),Y367) ->  | Z2: =MAX(IF(OR(kcjd<jdplant3+SUM($C$24:$E$24),kcjd>jdplant3+$G$24),0,+kc.mid.3-(kcjd-(jdplant3+SUM($C$24:$E$24)))/((jdplant3+$G$24)-(jdplant3+SUM($C$24:$E$24)))*(kc.mid.3-kc.late.3)),Z367) ->  | AA2: =MAX(W2:Z2) -> 
B3: Corn (sweet) | C3: 20 | D3: 20 | E3: 30 | F3: 10 | G3: =SUM(C3:F3) -> 80 | H3: 0.3 | I3: 1.15 | J3: 1.05 | L3: 2 | M3: 0 | N3: 0 | O3: 0 | P3: 0 | Q3: =MAX(M3:P3) -> 0 | V3: =MAX(R3:U3) ->  | AA3: =MAX(W3:Z3) -> 
B4: Cotton | C4: 30 | D4: 50 | E4: 55 | F4: 45 | G4: 180 | H4: 0.35 | I4: 1.15 | J4: 0.6 | L4: 3 | M4: 0 | N4: 0 | O4: 0 | P4: 0 | Q4: 0
B5: Soybean | C5: 20 | D5: 35 | E5: 60 | F5: 25 | G5: 140 | H5: 0.4 | I5: 1.15 | J5: 0.5 | L5: 4 | M5: 0 | N5: 0 | O5: 0 | P5: 0 | Q5: 0
B6: Peanut | C6: 35 | D6: 35 | E6: 35 | F6: 35 | G6: 140 | H6: 0.4 | I6: 1.15 | J6: 0.6 | L6: 5 | M6: 0 | N6: 0 | O6: 0 | P6: 0 | Q6: 0
B7: Small Grain (Winter) | C7: 20 | D7: 60 | E7: 70 | F7: 30 | G7: 180 | H7: 0.7 | I7: 1.15 | J7: 0.25 | L7: 6 | M7: 0 | N7: 0 | O7: 0 | P7: 0 | Q7: 0
B8: Small Grain (Spring) | C8: 20 | D8: 25 | E8: 60 | F8: 30 | G8: 135 | H8: 0.3 | I8: 1.15 | J8: 0.25 | L8: 7 | M8: 0 | N8: 0 | O8: 0 | P8: 0 | Q8: 0
B9: Sorghum | C9: 20 | D9: 35 | E9: 40 | F9: 30 | G9: 125 | H9: 0.3 | I9: 1.1 | J9: 0.55 | L9: 8 | M9: 0 | N9: 0 | O9: 0 | P9: 0 | Q9: 0
B10: Pasture Grasses | C10: 10 | D10: 20 | E10: 75 | F10: 60 | G10: 165 | H10: 0.4 | I10: 0.85 | J10: 0.85 | L10: 9 | M10: 0 | N10: 0 | O10: 0 | P10: 0 | Q10: 0
B11: Tomatoes | C11: 30 | D11: 40 | E11: 45 | F11: 25 | G11: 140 | H11: 0.6 | I11: 1.15 | J11: 0.8 | L11: 10 | M11: 0 | N11: 0 | O11: 0 | P11: 0 | Q11: 0
B12: Orchard with Cover | C12: 20 | D12: 70 | E12: 90 | F12: 30 | G12: 210 | H12: 0.5 | I12: 1.15 | J12: 0.9 | L12: 11 | M12: 0 | N12: 0 | O12: 0 | P12: 0 | Q12: 0
B13: Orchard no Cover | C13: 20 | D13: 70 | E13: 90 | F13: 30 | G13: =SUM(C13:F13) -> 210 | H13: 0.45 | I13: 0.9 | J13: 0.65 | L13: 12 | M13: 0 | N13: 0 | O13: 0 | P13: 0 | Q13: 0
B14: Hops | C14: 25 | D14: 40 | E14: 80 | F14: 10 | G14: 155 | H14: 0.3 | I14: 1.05 | J14: 0.85 | L14: 13 | M14: 0 | N14: 0 | O14: 0 | P14: 0 | Q14: 0
B15: Bermudagrass | C15: 10 | D15: 15 | E15: 90 | F15: 40 | G15: 155 | H15: 0.55 | I15: 1 | J15: 0.85 | L15: 14 | M15: 0 | N15: 0 | O15: 0 | P15: 0 | Q15: 0
B16: Vegetables (small) | C16: 30 | D16: 30 | E16: 20 | F16: 10 | G16: 90 | H16: 0.7 | I16: 1.05 | J16: 0.95 | L16: 15 | M16: 0 | N16: 0 | O16: 0 | P16: 0 | Q16: 0
B17: Watermelon | C17: 20 | D17: 30 | E17: 30 | F17: 30 | G17: 110 | H17: 0.4 | I17: 1 | J17: 0.75 | L17: 16 | M17: 0 | N17: 0 | O17: 0 | P17: 0 | Q17: 0
B18: Tobacco | C18: 20 | D18: 20 | E18: 30 | F18: 20 | G18: 90 | H18: 0.3 | I18: 1 | J18: 0.5 | L18: 17 | M18: 0 | N18: 0 | O18: 0 | P18: 0 | Q18: 0
B19: Sweet Potato | C19: 15 | D19: 30 | E19: 50 | F19: 35 | G19: 130 | H19: 0.5 | I19: 1.15 | J19: 0.65 | L19: 18 | M19: 0 | N19: 0 | O19: 0 | P19: 0 | Q19: 0
B20: Strawberries | C20: 20 | D20: 120 | E20: 75 | F20: 35 | G20: 250 | H20: 0.4 | I20: 0.85 | J20: 0.75 | L20: 19 | M20: 0 | N20: 0 | O20: 0 | P20: 0 | Q20: 0
L21: 20 | M21: 0 | N21: 0 | O21: 0 | P21: 0 | Q21: 0
B22: =+Crop1 -> Corn (sweet) | C22: =IF(ISNA(variables!C13),0,VLOOKUP(Crop1,kcs!$B$2:$J$20,2,0)) -> 20 | D22: =IF(ISNA(variables!C14),0,VLOOKUP(Crop1,kcs!$B$2:$J$20,3,0)) -> 20 | E22: =IF(ISNA(variables!C15),0,VLOOKUP(Crop1,kcs!$B$2:$J$20,4,0)) -> 30 | F22: =IF(ISNA(variables!C16),0,VLOOKUP(Crop1,kcs!$B$2:$J$20,5,0)) -> 10 | G22: =IF(ISNA(variables!C17),0,VLOOKUP(Crop1,kcs!$B$2:$J$20,6,0)) -> 80 | H22: =IF(Crop1="NULL",0,VLOOKUP(Crop1,kcs!$B$2:$J$20,7,FALSE)) -> 0.3 | I22: =IF(Crop1="NULL",0,VLOOKUP(Crop1,kcs!$B$2:$J$20,8,FALSE)) -> 1.15 | J22: =IF(Crop1="NULL",0,VLOOKUP(Crop1,kcs!$B$2:$J$20,9,FALSE)) -> 1.05 | L22: 21 | M22: 0 | N22: 0 | O22: 0 | P22: 0 | Q22: 0
B23: =+Crop2 -> 0 | C23: =IF(ISNA(variables!D13),0,VLOOKUP(Crop2,kcs!$B$2:$J$20,2,0)) ->  | D23: =IF(ISNA(variables!D14),0,VLOOKUP(Crop2,kcs!$B$2:$J$20,3,0)) ->  | E23: =IF(ISNA(variables!D15),0,VLOOKUP(Crop2,kcs!$B$2:$J$20,4,0)) ->  | F23: =IF(ISNA(variables!D16),0,VLOOKUP(Crop2,kcs!$B$2:$J$20,5,0)) ->  | G23: =IF(ISNA(variables!D17),0,VLOOKUP(Crop2,kcs!$B$2:$J$20,6,0)) ->  | H23: =IF(Crop2="NULL",0,VLOOKUP(Crop2,kcs!$B$2:$J$20,7,0)) ->  | I23: =IF(Crop2="NULL",0,VLOOKUP(Crop2,kcs!$B$2:$J$20,8,FALSE)) ->  | J23: =IF(Crop2="NULL",0,VLOOKUP(Crop2,kcs!$B$2:$J$20,9,FALSE)) ->  | L23: 22 | M23: 0 | N23: 0 | O23: 0 | P23: 0 | Q23: 0
B24: =IF(Crop3="","NULL",+Crop3) -> NULL | C24: =IF(ISNA(variables!E13),0,VLOOKUP(Crop3,kcs!$B$2:$J$20,2,0)) ->  | D24: =IF(ISNA(variables!E14),0,VLOOKUP(Crop3,kcs!$B$2:$J$20,3,0)) ->  | E24: =IF(ISNA(variables!E15),0,VLOOKUP(Crop3,kcs!$B$2:$J$20,4,0)) ->  | F24: =IF(ISNA(variables!E16),0,VLOOKUP(Crop3,kcs!$B$2:$J$20,5,0)) ->  | G24: =IF(ISNA(variables!E17),0,VLOOKUP(Crop3,kcs!$B$2:$J$20,6,0)) ->  | H24: =IF(Crop3="NULL",0,VLOOKUP(Crop3,kcs!$B$2:$J$20,7,0)) ->  | I24: =IF(Crop3="NULL",0,VLOOKUP(Crop3,kcs!$B$2:$J$20,8,FALSE)) ->  | J24: =IF(Crop3="NULL",0,VLOOKUP(Crop3,kcs!$B$2:$J$20,9,FALSE)) ->  | L24: 23 | M24: 0 | N24: 0 | O24: 0 | P24: 0 | Q24: 0
L25: 24 | M25: 0 | N25: 0 | O25: 0 | P25: 0 | Q25: 0
L26: 25 | M26: 0 | N26: 0 | O26: 0 | P26: 0 | Q26: 0
L27: 26 | M27: 0 | N27: 0 | O27: 0 | P27: 0 | Q27: 0
L28: 27 | M28: 0 | N28: 0 | O28: 0 | P28: 0 | Q28: 0
L29: 28 | M29: 0 | N29: 0 | O29: 0 | P29: 0 | Q29: 0
L30: 29 | M30: 0 | N30: 0 | O30: 0 | P30: 0 | Q30: 0
L31: 30 | M31: 0 | N31: 0 | O31: 0 | P31: 0 | Q31: 0
L32: 31 | M32: 0 | N32: 0 | O32: 0 | P32: 0 | Q32: 0
L33: 32 | M33: 0 | N33: 0 | O33: 0 | P33: 0 | Q33: 0
L34: 33 | M34: 0 | N34: 0 | O34: 0 | P34: 0 | Q34: 0
L35: 34 | M35: 0 | N35: 0 | O35: 0 | P35: 0 | Q35: 0
L36: 35 | M36: 0 | N36: 0 | O36: 0 | P36: 0 | Q36: 0
L37: 36 | M37: 0 | N37: 0 | O37: 0 | P37: 0 | Q37: 0
L38: 37 | M38: 0 | N38: 0 | O38: 0 | P38: 0 | Q38: 0
L39: 38 | M39: 0 | N39: 0 | O39: 0 | P39: 0 | Q39: 0
L40: 39 | M40: 0 | N40: 0 | O40: 0 | P40: 0 | Q40: 0
L41: 40 | M41: 0 | N41: 0 | O41: 0 | P41: 0 | Q41: 0
L42: 41 | M42: 0 | N42: 0 | O42: 0 | P42: 0 | Q42: 0
L43: 42 | M43: 0 | N43: 0 | O43: 0 | P43: 0 | Q43: 0
L44: 43 | M44: 0 | N44: 0 | O44: 0 | P44: 0 | Q44: 0
L45: 44 | M45: 0 | N45: 0 | O45: 0 | P45: 0 | Q45: 0
L46: 45 | M46: 0 | N46: 0 | O46: 0 | P46: 0 | Q46: 0
L47: 46 | M47: 0 | N47: 0 | O47: 0 | P47: 0 | Q47: 0
L48: 47 | M48: 0 | N48: 0 | O48: 0 | P48: 0 | Q48: 0
L49: 48 | M49: 0 | N49: 0 | O49: 0 | P49: 0 | Q49: 0
L50: 49 | M50: 0 | N50: 0 | O50: 0 | P50: 0 | Q50: 0
L51: 50 | M51: 0 | N51: 0 | O51: 0 | P51: 0 | Q51: 0
L52: 51 | M52: 0 | N52: 0 | O52: 0 | P52: 0 | Q52: 0
L53: 52 | M53: 0 | N53: 0 | O53: 0 | P53: 0 | Q53: 0
L54: 53 | M54: 0 | N54: 0 | O54: 0 | P54: 0 | Q54: 0
L55: 54 | M55: 0 | N55: 0 | O55: 0 | P55: 0 | Q55: 0
L56: 55 | M56: 0 | N56: 0 | O56: 0 | P56: 0 | Q56: 0
L57: 56 | M57: 0 | N57: 0 | O57: 0 | P57: 0 | Q57: 0
L58: 57 | M58: 0 | N58: 0 | O58: 0 | P58: 0 | Q58: 0
L59: 58 | M59: 0 | N59: 0 | O59: 0 | P59: 0 | Q59: 0
L60: 59 | M60: 0 | N60: 0 | O60: 0 | P60: 0 | Q60: 0
L61: 60 | M61: 0 | N61: 0 | O61: 0 | P61: 0 | Q61: 0
L62: 61 | M62: 0 | N62: 0 | O62: 0 | P62: 0 | Q62: 0
L63: 62 | M63: 0 | N63: 0 | O63: 0 | P63: 0 | Q63: 0
L64: 63 | M64: 0 | N64: 0 | O64: 0 | P64: 0 | Q64: 0
L65: 64 | M65: 0 | N65: 0 | O65: 0 | P65: 0 | Q65: 0
L66: 65 | M66: =MAX(IF(OR(kcjd<jdplant1,kcjd>jdplant1+C$22),0,kc.ini.1),M431) -> 0 | N66: =MAX(IF(OR(kcjd<jdplant1+C$22,kcjd>jdplant1+SUM(C$22,D$22)),0,+H$22+(kcjd-(jdplant1+C$22))/(jdplant1+SUM(C$22,D$22)-(jdplant1+C$22))*(I$22-H$22)),N431) -> 0 | O66: =MAX(IF(OR(kcjd<jdplant1+SUM(C$22,D$22),kcjd>jdplant1+SUM(C$22,D$22,E$22)),0,kc.mid.1),O431) -> 0 | P66: =MAX(IF(OR(kcjd<jdplant1+SUM(C$22:E$22),kcjd>jdplant1+G$22),0,+I$22-(kcjd-(jdplant1+SUM(C$22:E$22)))/((jdplant1+G$22)-(jdplant1+SUM(C$22:E$22)))*(I$22-J$22)),P431) -> 0 | Q66: 0 | R66: =MAX(IF(OR(kcjd<jdplant2,kcjd>jdplant2+$C$23),0,kc.ini.2),R431) ->  | S66: =MAX(IF(OR(kcjd<jdplant2+$C$23,kcjd>jdplant2+SUM($C$23,$D$23)),0,+kc.ini.2+(kcjd-(jdplant2+$C$23))/(jdplant2+SUM($C$23,$D$23)-(jdplant2+$C$23))*(kc.mid.2-kc.ini.2)),S431) ->  | T66: =MAX(IF(OR(kcjd<jdplant2+SUM($C$23,$D$23),kcjd>jdplant2+SUM($C$23,$D$23,$E$23)),0,kc.mid.2),T431) ->  | U66: =MAX(IF(OR(kcjd<jdplant2+SUM($C$23:$E$23),kcjd>jdplant2+$G$23),0,+kc.mid.2-(kcjd-(jdplant2+SUM($C$23:$E$23)))/((jdplant2+$G$23)-(jdplant2+SUM($C$23:$E$23)))*(kc.mid.2-kc.late.2)),U431) ->  | W66: =MAX(IF(OR(kcjd<jdplant3,kcjd>jdplant3+$C$24),0,kc.ini.3),W431) ->  | X66: =MAX(IF(OR(kcjd<jdplant3+$C$24,kcjd>jdplant3+SUM($C$24,$D$24)),0,+kc.ini.3+(kcjd-(jdplant3+$C$24))/(jdplant3+SUM($C$24,$D$24)-(jdplant3+$C$24))*(kc.mid.3-kc.ini.3)),X431) ->  | Y66: =MAX(IF(OR(kcjd<jdplant3+SUM($C$24,$D$24),kcjd>jdplant3+SUM($C$24,$D$24,$E$24)),0,kc.mid.3),Y431) ->  | Z66: =MAX(IF(OR(kcjd<jdplant3+SUM($C$24:$E$24),kcjd>jdplant3+$G$24),0,+kc.mid.3-(kcjd-(jdplant3+SUM($C$24:$E$24)))/((jdplant3+$G$24)-(jdplant3+SUM($C$24:$E$24)))*(kc.mid.3-kc.late.3)),Z431) -> 
L67: 66 | M67: 0 | N67: 0 | O67: 0 | P67: 0 | Q67: =MAX(M67:P67) -> 0 | V67: =MAX(R67:U67) ->  | AA67: =MAX(W67:Z67) -> 
L68: 67 | M68: 0 | N68: 0 | O68: 0 | P68: 0 | Q68: 0
L69: 68 | M69: 0 | N69: 0 | O69: 0 | P69: 0 | Q69: 0
L70: 69 | M70: 0 | N70: 0 | O70: 0 | P70: 0 | Q70: 0
L71: 70 | M71: 0 | N71: 0 | O71: 0 | P71: 0 | Q71: 0
L72: 71 | M72: 0 | N72: 0 | O72: 0 | P72: 0 | Q72: 0
L73: 72 | M73: 0 | N73: 0 | O73: 0 | P73: 0 | Q73: 0
L74: 73 | M74: 0 | N74: 0 | O74: 0 | P74: 0 | Q74: 0
L75: 74 | M75: 0 | N75: 0 | O75: 0 | P75: 0 | Q75: 0
L76: 75 | M76: 0 | N76: 0 | O76: 0 | P76: 0 | Q76: 0
L77: 76 | M77: 0 | N77: 0 | O77: 0 | P77: 0 | Q77: 0
L78: 77 | M78: 0 | N78: 0 | O78: 0 | P78: 0 | Q78: 0
L79: 78 | M79: 0 | N79: 0 | O79: 0 | P79: 0 | Q79: 0
L80: 79 | M80: 0 | N80: 0 | O80: 0 | P80: 0 | Q80: 0
L81: 80 | M81: 0 | N81: 0 | O81: 0 | P81: 0 | Q81: 0
L82: 81 | M82: 0 | N82: 0 | O82: 0 | P82: 0 | Q82: 0
L83: 82 | M83: 0 | N83: 0 | O83: 0 | P83: 0 | Q83: 0
L84: 83 | M84: 0 | N84: 0 | O84: 0 | P84: 0 | Q84: 0
L85: 84 | M85: 0 | N85: 0 | O85: 0 | P85: 0 | Q85: 0
L86: 85 | M86: 0 | N86: 0 | O86: 0 | P86: 0 | Q86: 0
L87: 86 | M87: 0 | N87: 0 | O87: 0 | P87: 0 | Q87: 0
L88: 87 | M88: 0 | N88: 0 | O88: 0 | P88: 0 | Q88: 0
L89: 88 | M89: 0 | N89: 0 | O89: 0 | P89: 0 | Q89: 0
L90: 89 | M90: 0 | N90: 0 | O90: 0 | P90: 0 | Q90: 0
L91: 90 | M91: 0 | N91: 0 | O91: 0 | P91: 0 | Q91: 0
L92: 91 | M92: 0 | N92: 0 | O92: 0 | P92: 0 | Q92: 0
L93: 92 | M93: 0 | N93: 0 | O93: 0 | P93: 0 | Q93: 0
L94: 93 | M94: 0 | N94: 0 | O94: 0 | P94: 0 | Q94: 0
L95: 94 | M95: 0 | N95: 0 | O95: 0 | P95: 0 | Q95: 0
L96: 95 | M96: 0 | N96: 0 | O96: 0 | P96: 0 | Q96: 0
L97: 96 | M97: 0 | N97: 0 | O97: 0 | P97: 0 | Q97: 0
L98: 97 | M98: 0 | N98: 0 | O98: 0 | P98: 0 | Q98: 0
L99: 98 | M99: 0 | N99: 0 | O99: 0 | P99: 0 | Q99: 0
L100: 99 | M100: 0 | N100: 0 | O100: 0 | P100: 0 | Q100: 0
L101: 100 | M101: 0 | N101: 0 | O101: 0 | P101: 0 | Q101: 0
L102: 101 | M102: 0 | N102: 0 | O102: 0 | P102: 0 | Q102: 0
L103: 102 | M103: 0 | N103: 0 | O103: 0 | P103: 0 | Q103: 0
L104: 103 | M104: 0 | N104: 0 | O104: 0 | P104: 0 | Q104: 0
L105: 104 | M105: 0 | N105: 0 | O105: 0 | P105: 0 | Q105: 0
L106: 105 | M106: 0.3 | N106: 0 | O106: 0 | P106: 0 | Q106: 0.3
L107: 106 | M107: 0.3 | N107: 0 | O107: 0 | P107: 0 | Q107: 0.3
L108: 107 | M108: 0.3 | N108: 0 | O108: 0 | P108: 0 | Q108: 0.3
L109: 108 | M109: 0.3 | N109: 0 | O109: 0 | P109: 0 | Q109: 0.3
L110: 109 | M110: 0.3 | N110: 0 | O110: 0 | P110: 0 | Q110: 0.3
L111: 110 | M111: 0.3 | N111: 0 | O111: 0 | P111: 0 | Q111: 0.3
L112: 111 | M112: 0.3 | N112: 0 | O112: 0 | P112: 0 | Q112: 0.3
L113: 112 | M113: 0.3 | N113: 0 | O113: 0 | P113: 0 | Q113: 0.3
L114: 113 | M114: 0.3 | N114: 0 | O114: 0 | P114: 0 | Q114: 0.3
L115: 114 | M115: 0.3 | N115: 0 | O115: 0 | P115: 0 | Q115: 0.3
L116: 115 | M116: 0.3 | N116: 0 | O116: 0 | P116: 0 | Q116: 0.3
L117: 116 | M117: 0.3 | N117: 0 | O117: 0 | P117: 0 | Q117: 0.3
L118: 117 | M118: 0.3 | N118: 0 | O118: 0 | P118: 0 | Q118: 0.3
L119: 118 | M119: 0.3 | N119: 0 | O119: 0 | P119: 0 | Q119: 0.3
L120: 119 | M120: 0.3 | N120: 0 | O120: 0 | P120: 0 | Q120: 0.3
L121: 120 | M121: 0.3 | N121: 0 | O121: 0 | P121: 0 | Q121: 0.3
